Workbook

Sheet Kuntakortti
A1: Valtiovarainministeriö/Kunta- ja aluehallinto-osasto,4.6.2018
A2: KUNTAKONSERNIEN TP 2015 - 2017 (lyhennetty kaava) | G2: Valitse kunta valikosta:
A4: =INDEX(Luvut!$B$3:'Luvut'!$B$298,$A$7) -> KOKO MAA (Manner-Suomi) | D4: 2015 | G4: 2016 | J4: 2017
A6: Asukasluku | D6: =VLOOKUP($A$4,Luvut!$B$3:$AV$298,2) -> 5458325 | G6: =VLOOKUP($A$4,Luvut!$B$3:$EJ$298,48) -> 5474085 | I6: =((G6/D6)-1)*100 -> 0.2887332652 | J6: =VLOOKUP($A$4,Luvut!$B$3:$EJ$298,94) -> 5483641 | L6: =((J6/G6)-1)*100 -> 0.1745679872
A7: 96
A8: Tunnuslukuja
I9: muut.% | L9: muut.%
A10: Lainat, euro/as | D10: =E66 -> 5988.923708 | G10: =H66 -> 6160.406716 | I10: =((G10/D10)-1)*100 -> 2.863335992 | J10: =K66 -> 6314.227901 | L10: =((J10/G10)-1)*100 -> 2.496932288
A12: Lainanhoitokate* | D12: =VLOOKUP($A$4,Luvut!$B$3:$AV$298,4) -> 1.5 | G12: =VLOOKUP($A$4,Luvut!$B$3:$EJ$298,50) -> 1.6 | J12: =VLOOKUP($A$4,Luvut!$B$3:$EJ$298,96) -> 1.885379184
A13: Suhteellinen velkaantuneisuus, % | D13: =VLOOKUP($A$4,Luvut!$B$3:$AV$298,5) -> 78.16553584 | G13: =VLOOKUP($A$4,Luvut!$B$3:$EJ$298,51) -> 77.6 | J13: =VLOOKUP($A$4,Luvut!$B$3:$EJ$298,97) -> 78.71552436
A14: Rahoitusvarallisuus, euro/as | D14: =VLOOKUP($A$4,Luvut!$B$3:$AV$298,6) -> -5903.283516 | G14: =VLOOKUP($A$4,Luvut!$B$3:$EJ$298,52) -> -5949 | J14: =VLOOKUP($A$4,Luvut!$B$3:$EJ$298,98) -> -6016.301578
A15: Omavaraisuusaste, % | D15: =VLOOKUP($A$4,Luvut!$B$3:$AV$298,10) -> 43.11851089 | G15: =VLOOKUP($A$4,Luvut!$B$3:$EJ$298,56) -> 42.9 | J15: =VLOOKUP($A$4,Luvut!$B$3:$EJ$298,102) -> 44.3
A17: Rahavarat, euro/as | D17: =VLOOKUP($A$4,Luvut!$B$3:$AV$298,11) -> 1207.195248 | G17: =VLOOKUP($A$4,Luvut!$B$3:$EJ$298,57) -> 1247 | J17: =VLOOKUP($A$4,Luvut!$B$3:$EJ$298,103) -> 1378.654803
A18: Kassan riittävyys, pv | D18: =VLOOKUP($A$4,Luvut!$B$3:$AV$298,12) -> 40.23659993 | G18: =VLOOKUP($A$4,Luvut!$B$3:$EJ$298,58) -> 41 | J18: =VLOOKUP($A$4,Luvut!$B$3:$EJ$298,104) -> 59
A19: Kassastamaksut, euro/as | D19: =VLOOKUP($A$4,Luvut!$B$3:$AV$298,13) -> 10950.88218 | G19: =VLOOKUP($A$4,Luvut!$B$3:$EJ$298,59) -> 11169 | J19: =VLOOKUP($A$4,Luvut!$B$3:$EJ$298,105) -> 8537.36377
A20: Tuloslaskelma | D20: 1000 | E20: euro/as | G20: 1000 | H20: euro/as | I20: muut.% | J20: 1000 | K20: euro/as | L20: muut.% | N20: 2015 - 2016 | O20: 2016 - 2017
N21: €/as | O21: €/as
A22: Henkilöstömenot (palkat+sivukulut) | D22: =VLOOKUP($A$4,Luvut!$B$3:$AZ$298,14) -> 0 | E22: =D22*1000/$D$6 -> 0
A23: Palvelujen ostot | D23: =VLOOKUP($A$4,Luvut!$B$3:$EL$298,134) -> 1498550 | E23: =D23*1000/$D$6 -> 274.5439306
A24: Toimintatuotot, sis. valmistus omaan käyt. | D24: =VLOOKUP($A$4,Luvut!$B$3:$AV$298,15) -> 23476833 | E24: =D24*1000/$D$6 -> 4301.105742 | G24: =VLOOKUP($A$4,Luvut!$B$3:$EJ$298,61) -> 23903762 | H24: =G24*1000/$G$6 -> 4366.713706 | I24: =((G24/D24)-1)*100 -> 1.818511892 | J24: =VLOOKUP($A$4,Luvut!$B$3:$EJ$298,107) -> 24653392 | K24: =J24*1000/$J$6 -> 4495.807074 | L24: =((J24/G24)-1)*100 -> 3.136033567 | N24: =((H24/E24)-1)*100 -> 1.525374364 | O24: =((K24/H24)-1)*100 -> 2.956304818
A25: Toimintakulut | D25: =VLOOKUP($A$4,Luvut!$B$3:$AV$298,16) -> 49847855 | E25: =D25*1000/$D$6 -> 9132.445393 | G25: =VLOOKUP($A$4,Luvut!$B$3:$EJ$298,62) -> 50418429 | H25: =G25*1000/$G$6 -> 9210.384749 | I25: 1.144630998 | J25: =VLOOKUP($A$4,Luvut!$B$3:$EJ$298,108) -> 50758330 | K25: =J25*1000/$J$6 -> 9256.318931 | L25: 0.6741602361 | N25: =((H25/E25)-1)*100 -> 0.8534335858 | O25: =((K25/H25)-1)*100 -> 0.4987216406
A26: Osuus osakkuusyhteisöjen voitosta/tappiosta | D26: =VLOOKUP($A$4,Luvut!$B$3:$AZ$298,17) -> 59655 | E26: 10.92917699 | G26: =VLOOKUP($A$4,Luvut!$B$3:$EJ$298,63) -> 68081 | H26: 12.43696435 | J26: =VLOOKUP($A$4,Luvut!$B$3:$EJ$298,109) -> 81900 | K26: =J26*1000/$J$6 -> 14.9353322
A27: Toimintakate | D27: =VLOOKUP($A$4,Luvut!$B$3:$AV$298,18) -> -26311367 | E27: -4820.410474 | G27: =VLOOKUP($A$4,Luvut!$B$3:$EJ$298,64) -> -26446586 | H27: -4831.234078 | I27: 0.5139185661 | J27: =VLOOKUP($A$4,Luvut!$B$3:$EJ$298,110) -> -25965096 | K27: =J27*1000/$J$6 -> -4735.010188 | L27: -1.820613065 | N27: =((H27/E27)-1)*100 -> 0.2245369879 | O27: =((K27/H27)-1)*100 -> -1.991704174
A29: Verotulot | D29: =VLOOKUP($A$4,Luvut!$B$3:$AV$298,19) -> 21629067 | E29: 3962.58321 | G29: =VLOOKUP($A$4,Luvut!$B$3:$EJ$298,65) -> 21942053 | H29: 4008.350802 | I29: 1.447061956 | J29: =VLOOKUP($A$4,Luvut!$B$3:$EJ$298,111) -> 22391744 | K29: =J29*1000/$J$6 -> 4083.371614 | L29: 2.049448153 | N29: =((H29/E29)-1)*100 -> 1.154993839 | O29: =((K29/H29)-1)*100 -> 1.871612929
A30: Valtionosuudet, | D30: =VLOOKUP($A$4,Luvut!$B$3:$AV$298,20) -> 9442539 | E30: 1729.93345 | G30: =VLOOKUP($A$4,Luvut!$B$3:$EJ$298,66) -> 10050212 | H30: 1835.961992 | I30: 6.435483084 | J30: =VLOOKUP($A$4,Luvut!$B$3:$EJ$298,112) -> 9699290 | K30: =J30*1000/$J$6 -> 1768.768233 | L30: -3.491687539 | N30: =((H30/E30)-1)*100 -> 6.129053203 | O30: =((K30/H30)-1)*100 -> -3.65986657
A32: Verorahoitus | D32: =SUM(D29:D30) -> 31071606 | E32: 5692.51666 | G32: =SUM(G29:G30) -> 31992265 | H32: 5844.312794 | I32: 2.96302354 | J32: =SUM(J29:J30) -> 32091034 | K32: =J32*1000/$J$6 -> 5852.139846 | L32: 0.3087277503 | N32: =((H32/E32)-1)*100 -> 2.66659094 | O32: =((K32/H32)-1)*100 -> 0.1339259713
A33: Käyttökate | D33: =D32+D27 -> 4760239 | E33: 872.1061864 | G33: =G27+G32 -> 5545679 | H33: 1013.078715 | J33: =J27+J32 -> 6125938 | K33: =J33*1000/$J$6 -> 1117.129659
A35: Korkotuotot/-menot, netto | D35: =VLOOKUP($A$4,Luvut!$B$3:$AV$298,23) -> -435325 | E35: -79.75432024 | G35: =VLOOKUP($A$4,Luvut!$B$3:$EJ$298,69) -> -384607 | H35: -70.2595959 | J35: =VLOOKUP($A$4,Luvut!$B$3:$EJ$298,115) -> -371628 | K35: =J35*1000/$J$6 -> -67.77030079
A36: Muut rahoituskulut/-tuotot, netto | D36: =VLOOKUP($A$4,Luvut!$B$3:$AV$298,24) -> 136177 | E36: 24.9484961 | G36: =VLOOKUP($A$4,Luvut!$B$3:$EJ$298,70) -> 116459 | H36: 21.27460571 | J36: =VLOOKUP($A$4,Luvut!$B$3:$EJ$298,116) -> 155675 | K36: =J36*1000/$J$6 -> 28.38898462
A37: Vuosikate | D37: =VLOOKUP($A$4,Luvut!$B$3:$AV$298,25) -> 4449264 | E37: 815.1335804 | G37: =VLOOKUP($A$4,Luvut!$B$3:$EJ$298,71) -> 5294661 | H37: 967.2230154 | J37: =VLOOKUP($A$4,Luvut!$B$3:$EJ$298,117) -> 5909985 | K37: =J37*1000/$J$6 -> 1077.748343
A39: Suunnitelman mukaiset poistot ja arvonalen. | D39: =VLOOKUP($A$4,Luvut!$B$3:$AV$298,26) -> 3816180 | E39: 699.1485483 | G39: =VLOOKUP($A$4,Luvut!$B$3:$EJ$298,72) -> 3936462 | H39: 719.108673 | I39: 3.151895351 | J39: =VLOOKUP($A$4,Luvut!$B$3:$EJ$298,118) -> 4146302 | K39: =J39*1000/$J$6 -> 756.1220729 | L39: 5.330675109
A40: Satunnaiset erät | D40: =VLOOKUP($A$4,Luvut!$B$3:$AV$298,27) -> 128426 | E40: 23.5284634 | G40: =VLOOKUP($A$4,Luvut!$B$3:$EJ$298,73) -> 322374 | H40: 58.89093794 | J40: =VLOOKUP($A$4,Luvut!$B$3:$EJ$298,119) -> 84151 | K40: =J40*1000/$J$6 -> 15.34582588
A42: Tilikauden tulos | D42: =VLOOKUP($A$4,Luvut!$B$3:$AV$298,29) -> 761510 | E42: 139.5134954 | G42: =VLOOKUP($A$4,Luvut!$B$3:$EJ$298,75) -> 1680573 | H42: 307.0052803 | J42: =VLOOKUP($A$4,Luvut!$B$3:$EJ$298,121) -> 1847834 | K42: =J42*1000/$J$6 -> 336.9720957
A44: Tilinpäätössiirrot | D44: =VLOOKUP($A$4,Luvut!$B$3:$AV$298,31) -> -66137 | E44: =D44*1000/$D$6 -> -12.11672079 | G44: =VLOOKUP($A$4,Luvut!$B$3:$EJ$298,77) -> -15533 | H44: -2.837551847 | J44: =VLOOKUP($A$4,Luvut!$B$3:$EJ$298,123) -> -9621 | K44: =J44*1000/$J$6 -> -1.754491222
A45: Tilikauden verot | D45: TK ei kerännyt | G45: =VLOOKUP($A$4,Luvut!$B$3:$EJ$298,78) -> 68562 | H45: 12.52483292 | J45: =VLOOKUP($A$4,Luvut!$B$3:$EJ$298,124) -> 78796 | K45: =J45*1000/$J$6 -> 14.36928493
A46: Laskennalliset verot | D46: vuonna 2015 | G46: =VLOOKUP($A$4,Luvut!$B$3:$EJ$298,79) -> -43947 | H46: -8.028191013 | J46: =VLOOKUP($A$4,Luvut!$B$3:$EJ$298,125) -> -48127
A47: Vähemmistöosuudet | D47: =VLOOKUP($A$4,Luvut!$B$3:$AV$298,30) -> -26951 | E47: =D47*1000/$D$6 -> -4.937595325 | G47: =VLOOKUP($A$4,Luvut!$B$3:$EJ$298,76) -> -32889 | H47: =G47*1000/$G$6 -> -6.008127386 | J47: =VLOOKUP($A$4,Luvut!$B$3:$EJ$298,122) -> -39026
A48: Tilikauden yli-/alijäämä | D48: =VLOOKUP($A$4,Luvut!$B$3:$AV$298,34) -> 668422 | E48: 122.4591793 | G48: =VLOOKUP($A$4,Luvut!$B$3:$EJ$298,80) -> 1519612 | H48: 277.6010968 | J48: =VLOOKUP($A$4,Luvut!$B$3:$EJ$298,126) -> 1672264 | K48: =J48*1000/$J$6 -> 304.9550472
A49: Kumulatiivinen yli-/alijäämä | D49: =VLOOKUP($A$4,Luvut!$B$3:$AW$298,35) -> 9192259 | E49: 1684.080556 | G49: =VLOOKUP($A$4,Luvut!$B$3:$EJ$298,81) -> 10807561 | H49: 1974.313698 | J49: =VLOOKUP($A$4,Luvut!$B$3:$EJ$298,127) -> 12311904 | K49: =J49*1000/$J$6 -> 2245.206059
A51: Rahoituslaskelma | D51: 1000 | E51: euro/as | G51: 1000 | H51: euro/as | J51: 1000 | K51: euro/as
A53: Toiminnan rahavirta | D53: =VLOOKUP($A$4,Luvut!$B$3:$AV$298,36) -> 4093841 | E53: 750.0178168 | G53: =VLOOKUP($A$4,Luvut!$B$3:$EJ$298,82) -> 4883308 | H53: =G53*1000/$G$6 -> 892.0774887 | J53: =VLOOKUP($A$4,Luvut!$B$3:$EJ$298,128) -> 5404065 | K53: =J53*1000/$J$6 -> 985.4884738
A54: Investoinnit, netto | D54: =D55+D56+D57 -> -5369920 | E54: -983.8036394 | G54: =G55+G56+G57 -> -5640611 | H54: -1030.420792 | I54: 5.040875842 | J54: =J55+J56+J57 -> -5826619 | K54: =J54*1000/$J$6 -> -1062.54567 | L54: 3.297656938
A55: - Investointimenot | D55: =VLOOKUP($A$4,Luvut!$B$3:$EV$298,146) -> -6500580 | E55: -1190.947772 | G55: =VLOOKUP($A$4,Luvut!$B$3:$EV$298,149) -> -7001117 | H55: -1278.956574 | I55: 7.699882164 | J55: =VLOOKUP($A$4,Luvut!$B$3:$FQ$298,152) -> -7342002 | K55: -1338.891806 | L55: 4.86900876
A56: + Rahoitusosuudet investointimenoihin | D56: =VLOOKUP($A$4,Luvut!$B$3:$EV$298,147) -> 232603 | E56: 42.61435514 | G56: =VLOOKUP($A$4,Luvut!$B$3:$EV$298,150) -> 173789 | H56: 31.74758887 | I56: =((G56/D56)-1)*100 -> -25.2851425 | J56: =VLOOKUP($A$4,Luvut!$B$3:$FQ$298,153) -> 215662 | K56: 39.32824924 | L56: 24.09416016
A57: + Investointihyödykkeiden luovutustulot | D57: =VLOOKUP($A$4,Luvut!$B$3:$EV$298,148) -> 898057 | E57: 164.5297779 | G57: =VLOOKUP($A$4,Luvut!$B$3:$EV$298,151) -> 1186717 | H57: 216.7881938 | I57: =((G57/D57)-1)*100 -> 32.14272591 | J57: =VLOOKUP($A$4,Luvut!$B$3:$FQ$298,154) -> 1299721 | K57: 237.0178865 | L57: 9.522405089
A58: Saamisten muutos | D58: =VLOOKUP($A$4,Luvut!$B$3:$AV$298,38) -> 107003 | E58: 19.60363298 | G58: =VLOOKUP($A$4,Luvut!$B$3:$EJ$298,84) -> -144906 | H58: -26.47127328 | J58: =VLOOKUP($A$4,Luvut!$B$3:$EJ$298,130) -> -72292 | K58: -13.18321167
A59: Pitkäaikaisten lainojen vähennys | D59: =VLOOKUP($A$4,Luvut!$B$3:$AV$298,39) -> -2758048 | E59: -505.2920081 | G59: =VLOOKUP($A$4,Luvut!$B$3:$EJ$298,85) -> -3144680 | H59: -574.466783 | J59: =VLOOKUP($A$4,Luvut!$B$3:$EJ$298,131) -> -2923408 | K59: -533.1144034
A60: Pitkäaikaisten lainojen lisäys | D60: =VLOOKUP($A$4,Luvut!$B$3:$FE$298,155) -> 4070889 | E60: 745.8128638 | G60: =VLOOKUP($A$4,Luvut!$B$3:$FE$298,157) -> 4149527 | H60: 758.0311595 | J60: =VLOOKUP($A$4,Luvut!$B$3:$FE$298,159) -> 3784026 | K60: 690.0572083
A61: ± Lyhytaikaisten lainojen muutos | D61: =VLOOKUP($A$4,Luvut!$B$3:$FE$298,156) -> 20959 | E61: 3.839822656 | G61: =VLOOKUP($A$4,Luvut!$B$3:$FE$298,158) -> 49387 | H61: 9.021964401 | J61: =VLOOKUP($A$4,Luvut!$B$3:$FE$298,160) -> 43211 | K61: 7.879983391
A62: Toiminnan ja investointien rahavirta | D62: =VLOOKUP($A$4,Luvut!$B$3:$AV$298,40) -> -1276079 | E62: -233.7858226 | G62: =VLOOKUP($A$4,Luvut!$B$3:$EJ$298,86) -> -755736 | H62: -138.0570452 | J62: =VLOOKUP($A$4,Luvut!$B$3:$EJ$298,132) -> -422554 | K62: -77.05719612
A64: Takaukset muiden puolesta (jäljellä oleva po) | E64: 0 | J64: =VLOOKUP($A$4,Luvut!$B$3:$EJ$298,134) -> 1498550 | K64: =J64*1000/$J$6 -> 273.2764599
E65: 0 | N65: 2015 - 2016 | O65: 2016 - 2017
A66: Lainakanta, | D66: =VLOOKUP($A$4,Luvut!$B$3:$FM$298,161) -> 32689492 | E66: 5988.923708 | G66: =VLOOKUP($A$4,Luvut!$B$3:$FM$298,165) -> 33722590 | H66: 6160.406716 | I66: =((G66/D66)-1)*100 -> 3.160336661 | J66: =VLOOKUP($A$4,Luvut!$B$3:$FQ$298,169) -> 34624959 | K66: =J66*1000/$J$6 -> 6314.227901 | L66: =((J66/G66)-1)*100 -> 2.67585912 | N66: €/as | O66: €/as
A67: josta pitkäaikainen laina | D67: =VLOOKUP($A$4,Luvut!$B$3:$FM$298,162) -> 27462794 | E67: 5031.359254 | G67: =VLOOKUP($A$4,Luvut!$B$3:$FM$298,166) -> 28582527 | H67: 5221.425499 | J67: =VLOOKUP($A$4,Luvut!$B$3:$FQ$298,170) -> 29283914 | K67: =J67*1000/$J$6 -> 5340.231791 | N67: =((H66/E66)-1)*100 -> 2.863335992 | O67: =((K66/H66)-1)*100 -> 2.496932288
A68: josta lyhytaikainen laina | D68: =VLOOKUP($A$4,Luvut!$B$3:$FM$298,163) -> 5226698 | E68: 957.5644543 | G68: =VLOOKUP($A$4,Luvut!$B$3:$FM$298,167) -> 5140063 | H68: 938.9812179 | J68: =VLOOKUP($A$4,Luvut!$B$3:$FQ$298,171) -> 5341045 | K68: 973.9961095 | N68: 3.777632145 | O68: 2.275361255
A69: Lainasaamiset | D69: =VLOOKUP($A$4,Luvut!$B$3:$FM$298,164) -> 1096501 | E69: 200.8859861 | G69: =VLOOKUP($A$4,Luvut!$B$3:$FM$298,168) -> 1163381 | H69: 212.5251983 | J69: =VLOOKUP($A$4,Luvut!$B$3:$FQ$298,172) -> 1196148 | K69: 218.1302532 | N69: -1.940677345 | O69: 3.729030037
N70: 5.793939347 | O70: 2.637360186
A71: Tuloveroprosentti | D71: =VLOOKUP($A$4,Luvut!$B$3:$AV$298,45) -> 19.85 | G71: =VLOOKUP($A$4,Luvut!$B$3:$EJ$298,91) -> 19.89 | J71: =VLOOKUP($A$4,Luvut!$B$3:$EJ$298,137) -> 19.92
A72: Veroprosenttiyksikön tuotto | D72: =#REF!/D71 ->  | E72: =D72*1000/$D$6 ->  | J72: =#REF!/J71 -> 
A73: * Ei tietoa kertalyhenteisistä lainoista
A74: Sijoitus vuosikatteen (euro/as) mukaan | D74: =VLOOKUP($A$4,Luvut!$B$3:$AV$298,47) -> - | G74: =VLOOKUP($A$4,Luvut!$B$3:$EJ$298,93) -> - | J74: =VLOOKUP($A$4,Luvut!$B$3:$EJ$298,139) -> -
A75: Lähde: Tilastokeskus
A77: Vuoden 2017 kuntajaolla

Sheet Luvut
C1: 2015 | D1: hakee muualta | E1: 92 | F1: 93 | G1: 94 | H1: vanha | I1: 96 | J1: 97 | K1: 98 | L1: 99 | M1: 100 | N1: 101 | O1: 102 | P1: 103 | Q1: 104 | S1: 105 | T1: 106 | U1: 107 | V1: 108 | W1: summana | X1: 110 | Y1: 111 | Z1: 112 | AA1: 113 | AB1: 114 | AC1: 115 | AD1: 116 | AF1: 117 | AG1: 118 | AH1: 119 | AI1: 120 | AJ1: 121 | AK1: 122 | AL1: kaavasta | AM1: 124 | AN1: 125 | AO1: 126 | AP1: 127 | AQ1: 128 | AR1: 129 | AS1: 130 | AT1: 131 | AU1: kaavasta | AV1: 133 | AW1: 2016 | AX1: hakee muualta | AY1: 92 | AZ1: 93 | BA1: 94 | BB1: vanha | BC1: 96 | BD1: 97 | BE1: 98 | BF1: 99 | BG1: 100 | BH1: 101 | BI1: 102 | BJ1: 103 | BK1: 104 | BM1: 105 | BN1: 106 | BO1: 107 | BP1: 108 | BQ1: summana | BR1: 110 | BS1: 111 | BT1: 112 | BU1: 113 | BV1: 114 | BW1: 115 | BX1: 116 | BY1: 117 | CA1: 118 | CB1: 119 | CC1: 120 | CD1: 121 | CE1: 122 | CF1: kaavasta | CG1: 124 | CH1: 125 | CI1: 126 | CJ1: 127 | CK1: 128 | CL1: 129 | CM1: 130 | CN1: 131 | CO1: kaavasta | CP1: 133 | CQ1: 2017 | CR1: hakee muualta | CS1: 92 | CT1: 93 | CU1: 94 | CV1: vanha | CW1: 96 | CX1: 97 | CY1: 98 | CZ1: 99 | DA1: 100 | DB1: 101 | DC1: 102 | DD1: 107 | DE1: 108 | DF1: 109 | DG1: 110 | DH1: 111 | DI1: 112 | DJ1: 113 | DK1: summana | DL1: 115 | DM1: 116 | DN1: 117 | DO1: 118 | DP1: 119 | DQ1: 120 | DR1: 121 | DS1: 122 | DT1: 123 | DU1: 124 | DV1: 125 | DW1: 126 | DX1: 127 | DY1: 128 | DZ1: kaavasta | EA1: 130 | EB1: 131 | EC1: 132 | ED1: 133 | EE1: 134 | EF1: 135 | EG1: 136 | EH1: 137 | EI1: kaavasta | EJ1: 139 | EK1: Erillistiedot | EL1: 141 | EM1: 142 | EN1: 143 | EO1: 144 | EP1: 145 | EQ1: 2015 | ER1: 147 | ES1: 148 | ET1: 2016 | EU1: 150 | EV1: 151 | EW1: 2017 | EX1: 153 | EY1: 154 | EZ1: 2015 | FA1: 156 | FB1: 2016 | FC1: 158 | FD1: 2017 | FE1: 160 | FF1: 2015 | FG1: 162 | FH1: 163 | FI1: 164 | FJ1: 2016 | FK1: 166 | FL1: 167 | FM1: 168 | FN1: 2017 | FO1: 170 | FP1: 171 | FQ1: 172
A2: Kunta nro | B2: Kunta | C2: Asukasluku | D2: Lainat e/asukas | E2: Lainanhoitokate | F2: Suhteellinen velkaantuneisuus-% | G2: Rahoitusvarallisuus, e/as | H2: Vuosikate | I2: Suunnitelman mukaiset poistot | J2: Tilikauden tulos | K2: Omavaraisuusaste, % | L2: Rahavarat e/as | M2: Kassan riittävyys, pv | N2: Kassasta maksut, €/as | O2: Henkilöstökulut | P2: Toimintatuotot | Q2: Toimintakulut | R2: Osuus osakkuusyhteisojen voitosta/tappiosta | S2: Toimintakate | T2: Verotulot | U2: Valtionosuudet | V2: Alv-takaisinperintä | W2: Käyttökate | X2: Korkotuotot/-menot, netto | Y2: Muut rahoitustuotot/-menot, netto (sis Osinkotuotot) | Z2: Vuosikate | AA2: Suunnitelman mukaiset poistot ja arvonalet | AB2: Satu. erät, netto | AC2: Satunnaiset kulut | AD2: Tilikauden tulos | AE2: Vähemmistöosuudet | AF2: Tilinpäätössiirrot | AG2: Tilikauden verot | AH2: Lask. Verot | AI2: Tilikauden yli- tai alijäämä | AJ2: Kumulat yli/alij | AK2: Tulorah (toiminnan rahavirta) | AL2: Investoinnit, netto | AM2: Saamisten muutos (ent Pitkäaikaisten saamisten muutokset, netto) | AN2: Pitkäaikaisten lainojen vähennys | AO2: Toim ja inv rahavirta | AP2: Verotulot | AQ2: Kunnallisvero | AR2: Osuus yhteisöveron tuotosta | AS2: Kiinteistövero | AT2: Tuloveroprosentti 2015 | AU2: Yhden veroprosentin tuotto 2015 | AV2: Sijoitus vuosikatteen mukaan | AW2: Asukasluku | AX2: Lainat e/asukas | AY2: Lainanhoitokate | AZ2: Suhteellinen velkaantuneisuus-% | BA2: Rahoitusvarallisuus, e/as | BB2: Vuosikate | BC2: Suunnitelman mukaiset poistot | BD2: Tilikauden tulos | BE2: Omavaraisuusaste, % | BF2: Rahavarat e/as | BG2: Kassan riittävyys, pv | BH2: Kassasta maksut, €/as | BI2: Henkilöstökulut | BJ2: Toimintatuotot | BK2: Toimintakulut | BL2: Osuus osakkuusyhteisojen voitosta/tappiosta | BM2: Toimintakate | BN2: Verotulot | BO2: Valtionosuudet | BP2: Alv-takaisinperintä | BQ2: Käyttökate | BR2: Korkotuotot/-menot, netto | BS2: Muut rahoitustuotot/-menot, netto (sis Osinkotuotot) | BT2: Vuosikate | BU2: Suunnitelman mukaiset poistot ja arvonalet | BV2: Satu. Erät | BW2: Satu. kulut | BX2: Tilikauden tulos | BY2: Vähemmistöosuudet | BZ2: Tilinpäätössiirrot | CA2: Tilikauden verot | CB2: Lask. verot | CC2: Tilikauden yli- tai alijäämä | CD2: Kumulat yli/alij | CE2: Toiminnan rahavirta | CF2: Investoinnit, netto | CG2: Saamisten muutos | CH2: Pitkäaikaisten lainojen vähennys | CI2: Toim ja inv rahavirta | CJ2: Verotulot | CK2: Kunnallisvero | CL2: Osuus yhteisöveron tuotosta | CM2: Kiinteistövero | CN2: Tuloveroprosentti 2016 | CO2: Yhden veroprosentin tuotto 2016 | CP2: Sijoitus vuosikatteen mukaan | CQ2: Asukasluku | CR2: Lainat e/asukas | CS2: Lainanhoitokate | CT2: Suhteellinen velkaantuneisuus-% | CU2: Rahoitusvarallisuus, e/as | CV2: Vuosikate | CW2: Suunnitelman mukaiset poistot | CX2: Tilikauden tulos | CY2: Omavaraisuusaste, % | CZ2: Rahavarat e/as | DA2: Kassan riittävyys, pv | DB2: Kassasta maksut, €/as | DC2: Henkilöstökulut | DD2: Toimintatuotot | DE2: Toimintakulut | DF2: Osuus osakkuusyhteisojen voitosta/tappiosta | DG2: Toimintakate | DH2: Verotulot | DI2: Valtionosuudet | DJ2: Alv-takaisinperintä | DK2: Käyttökate | DL2: Korkotuotot/-menot, netto | DM2: Muut rahoitustuotot/-menot, netto (sis Osinkotuotot) | DN2: Vuosikate | DO2: Suunnitelman mukaiset poistot ja arvonalet | DP2: Satu. erät | DQ2: Satu. kulut | DR2: Tilikauden tulos | DS2: Vähemmistöosuudet | DT2: Tilinpäätössiirrot | DU2: Tilikauden verot | DV2: Lask. verot | DW2: Tilikauden yli- tai alijäämä | DX2: Kumulat yli/alij | DY2: Toiminnan rahavirta | DZ2: Investoinnit, netto | EA2: Saamisten muutos | EB2: Pitkäaikaisten lainojen vähennys | EC2: Toim ja inv rahavirta | ED2: Verotulot | EE2: Takaukset muiden puolesta (jäljellä oleva pääoma) | EF2: Osuus yhteisöveron tuotosta | EG2: Kiinteistövero | EH2: Tuloveroprosentti 2017 | EI2: Yhden veroprosentin tuotto 2006 | EJ2: Sijoitus vuosikatteen mukaan | EK2: Palvelujen ostot 2015 | EL2: Palvelujen ostot 2016 | EM2: Palvelujen ostot 2017 | EN2: Harkvar2015 | EO2: Harkvar2016 | EP2: Harkvar2017 | EQ2: - Investointimenot | ER2: + Rahoitusos. investointimenoihin | ES2: + Investointihyödykk. luovutustulot | ET2: - Investointimenot | EU2: + Rahoitusosuudet investointimenoihin | EV2: + Investointihyödykkeiden luovutustulot | EW2: - Investointimenot | EX2: + Rahoitusosuudet investointimenoihin | EY2: + Investointihyödykkeiden luovutustulot | EZ2: Pitkäaikaisten lainojen lisäys | FA2: ± Lyhytaikaisten lainojen muutos | FB2: Pitkäaikaisten lainojen lisäys | FC2: ± Lyhytaikaisten lainojen muutos | FD2: Pitkäaikaisten lainojen lisäys | FE2: ± Lyhytaikaisten lainojen muutos | FF2: Lainakanta | FG2: josta pitkäaik | FH2: josta lyhytaik | FI2: Lainasaamiset | FJ2: Lainakanta | FK2: josta pitkäaik | FL2: josta lyhytaik | FM2: Lainasaamiset | FN2: Lainakanta | FO2: josta pitkäaik | FP2: josta lyhytaik | FQ2: Lainasaamiset
A3: 20 | B3: Akaa | C3: 17043 | E3: 0.5719932918 | F3: 61.01993989 | G3: -4536.75996 | K3: 21.30817908 | L3: 300.2992431 | M3: 11.3408815 | N3: 9664.965088 | P3: 57367 | Q3: 144558 | R3: 0 | S3: -87191 | T3: 59092 | U3: 32589 | X3: -429 | Y3: -100 | Z3: 3961 | AA3: 6334 | AB3: 0 | AD3: -2373 | AE3: -30 | AF3: -24 | AI3: -2427 | AJ3: -8757 | AK3: 3282 | AM3: 1308 | AN3: -7534 | AO3: -6777 | AP3: 59092 | AT3: 21.25 | AV3: 282 | AW3: 16923 | AY3: 1.092157112 | AZ3: 60.47579876 | BA3: -4432.724694 | BE3: 21.10885172 | BF3: 563.3752881 | BG3: 21.96954488 | BH3: 9359.865272 | BJ3: 57740 | BK3: 143891 | BL3: 22 | BM3: -86129 | BN3: 60148 | BO3: 34067 | BR3: -317 | BS3: 132 | BT3: 7901 | BU3: 7116 | BV3: 98 | BX3: 883 | BY3: -84 | BZ3: 9 | CA3: 73 | CB3: -46 | CC3: 689 | CD3: -7699 | CE3: 7815 | CG3: 1105 | CH3: -7176 | CI3: 2261 | CN3: 21.25 | CP3: 243 | CQ3: 16769 | CS3: 1.183814721 | CT3: 58.25771205 | CU3: -4381.477727 | CY3: 22.94687844 | CZ3: 382.8493053 | DA3: 16.35674498 | DB3: 8543.264357 | DD3: 58889 | DE3: 142923 | DF3: 96 | DG3: -83938 | DH3: 59399 | DI3: 32904 | DL3: -261 | DM3: 144 | DN3: 8248 | DO3: 7001 | DP3: 0 | DR3: 1247 | DS3: -71 | DT3: 1 | DU3: 84 | DV3: -57 | DW3: 1036 | DX3: -6683 | DY3: 7470 | EA3: -839 | EB3: -6867 | EC3: 1442 | EE3: 5140 | EH3: 21.25 | EJ3: 255 | EQ3: -11427 | ER3: 341 | ES3: 1027 | ET3: -6421 | EU3: 394 | EV3: 473 | EW3: -7344 | EX3: 97 | EY3: 1219 | EZ3: 12000 | FA3: 2424 | FB3: 8646 | FC3: -1099 | FD3: 1321 | FE3: 983 | FF3: 70056 | FG3: 53009 | FH3: 17047 | FI3: 7333 | FJ3: 70428 | FK3: 54402 | FL3: 16026 | FM3: 7390 | FN3: 65864 | FO3: 49356 | FP3: 16508 | FQ3: 7271
A4: 5 | B4: Alajärvi | C4: 10006 | E4: 1.272334294 | F4: 43.96839958 | G4: -4158.105137 | K4: 31.69283379 | L4: 1065.560664 | M4: 28.92394479 | N4: 13446.63202 | P4: 66627 | Q4: 124182 | R4: 91 | S4: -57464 | T4: 28454 | U4: 36816 | X4: -500 | Y4: 114 | Z4: 7420 | AA4: 4849 | AB4: -38 | AD4: 2533 | AE4: -130 | AF4: -94 | AI4: 2309 | AJ4: -783 | AK4: 7280 | AM4: 1223 | AN4: -5719 | AO4: 3561 | AP4: 28454 | AT4: 21.5 | AV4: 103 | AW4: 9899 | AY4: 2.029387486 | AZ4: 41.8247322 | BA4: -3915.547025 | BE4: 34.87587475 | BF4: 926.3561976 | BG4: 23.77014253 | BH4: 14224.56814 | BJ4: 66345 | BK4: 123039 | BL4: 77 | BM4: -56617 | BN4: 29436 | BO4: 39395 | BR4: -477 | BS4: 57 | BT4: 11794 | BU4: 4798 | BV4: 0 | BX4: 6996 | BY4: -65 | BZ4: 83 | CA4: 68 | CB4: -9 | CC4: 6937 | CD4: 5760 | CE4: 11859 | CG4: -2632 | CH4: -5559 | CI4: 2530 | CN4: 22 | CP4: 23 | CQ4: 9831 | CS4: 1.752173109 | CT4: 48.64949207 | CU4: -4045.06154 | CY4: 38.19065771 | CZ4: 959.1089411 | DA4: 32.13761451 | DB4: 10892.99156 | DD4: 54164 | DE4: 112513 | DF4: 114 | DG4: -58235 | DH4: 29659 | DI4: 37946 | DL4: -346 | DM4: 83 | DN4: 9107 | DO4: 5188 | DP4: 0 | DR4: 3919 | DS4: -102 | DT4: 9 | DU4: 87 | DV4: -16 | DW4: 3723 | DX4: 9052 | DY4: 8653 | EA4: -1173 | EB4: -5040 | EC4: -817 | EE4: 1006 | EH4: 21.75 | EJ4: 89 | EQ4: -4076 | ER4: 286 | ES4: 71 | ET4: -11502 | EU4: 134 | EV4: 2039 | EW4: -10966 | EX4: 647 | EY4: 849 | EZ4: 5114 | FA4: 317 | FB4: 4181 | FC4: -1500 | FD4: 6607 | FE4: 1439 | FF4: 41488 | FG4: 33268 | FH4: 8220 | FI4: 163 | FJ4: 38620 | FK4: 32085 | FL4: 6535 | FM4: 28 | FN4: 41635 | FO4: 33495 | FP4: 8140 | FQ4: 17
A5: 9 | B5: Alavieska | C5: 2687 | E5: 1.584708949 | F5: 49.53033385 | G5: -4667.659099 | K5: 30.8209571 | L5: 177.8935616 | M5: 5.156799574 | N5: 12591.36584 | P5: 16292 | Q5: 31617 | R5: 3 | S5: -15322 | T5: 7790 | U5: 9346 | X5: -77 | Y5: 9 | Z5: 1746 | AA5: 1149 | AB5: 0 | AD5: 597 | AE5: 0 | AF5: 0 | AI5: 597 | AJ5: -508 | AK5: 1733 | AM5: 175 | AN5: -1073 | AO5: 802 | AP5: 7790 | AT5: 21.5 | AV5: 133 | AW5: 2639 | AY5: 2.067307692 | AZ5: 41.58324942 | BA5: -3485.032209 | BE5: 36.6368089 | BF5: 749.5263357 | BG5: 21.42217079 | BH5: 12770.74649 | BJ5: 16234 | BK5: 32053 | BL5: 0 | BM5: -15819 | BN5: 7683 | BO5: 9849 | BR5: -50 | BS5: 6 | BT5: 1669 | BU5: 1054 | BV5: 681 | BX5: 1296 | BY5: -1 | BZ5: 0 | CA5: -1 | CB5: -1 | CC5: 1295 | CD5: 329 | CE5: 2383 | CG5: -1245 | CH5: -781 | CI5: 1858 | CN5: 21.5 | CP5: 171 | CQ5: 2610 | CS5: 1.54465593 | CT5: 42.48554 | CU5: -3465.900383 | CY5: 37.79674096 | CZ5: 864.7509579 | DA5: 27.28373187 | DB5: 11568.58238 | DD5: 14579 | DE5: 30594 | DF5: 1 | DG5: -16014 | DH5: 7282 | DI5: 9778 | DL5: -45 | DM5: 9 | DN5: 1010 | DO5: 1059 | DP5: 0 | DR5: -49 | DS5: 0 | DT5: 0 | DU5: 1 | DV5: -1 | DW5: -51 | DX5: 300 | DY5: 1037 | EA5: 727 | EB5: -638 | EC5: 142 | EE5: 1172 | EH5: 21.5 | EJ5: 276 | EQ5: -1050 | ER5: 109 | ES5: 10 | ET5: -815 | EU5: 9 | EV5: 281 | EW5: -1100 | EX5: 201 | EY5: 4 | EZ5: 320 | FA5: 424 | FB5: 93 | FC5: -3 | FD5: 118 | FE5: -2000 | FF5: 13050 | FG5: 6709 | FH5: 6341 | FI5: 84 | FJ5: 10838 | FK5: 5187 | FL5: 5651 | FM5: 110 | FN5: 8306 | FO5: 4767 | FP5: 3539 | FQ5: 102
A6: 10 | B6: Alavus | C6: 12050 | E6: 0.7983721262 | F6: 64.57440667 | G6: -4738.174274 | K6: 35.32403964 | L6: 1280.829876 | M6: 40.3686877 | N6: 11580.82988 | P6: 51581 | Q6: 118452 | R6: 30 | S6: -66841 | T6: 34014 | U6: 37398 | X6: -611 | Y6: 920 | Z6: 4880 | AA6: 6038 | AB6: 0 | AD6: -1158 | AE6: -29 | AF6: -26 | AI6: -1213 | AJ6: 9493 | AK6: 4742 | AM6: 721 | AN6: -6292 | AO6: -8325 | AP6: 34014 | AT6: 20.75 | AV6: 247 | AW6: 11907 | AY6: 0.7740948496 | AZ6: 60.31173758 | BA6: -5001.175779 | BE6: 35.39784783 | BF6: 1332.913412 | BG6: 37.17171879 | BH6: 13088.26741 | BJ6: 64883 | BK6: 130531 | BL6: 541 | BM6: -65107 | BN6: 34376 | BO6: 38870 | BR6: -449 | BS6: 949 | BT6: 8639 | BU6: 6022 | BV6: 0 | BX6: 2617 | BY6: -34 | BZ6: -12 | CA6: 6 | CB6: -50 | CC6: 2515 | CD6: 12545 | CE6: 7964 | CG6: 489 | CH6: -11297 | CI6: -2302 | CN6: 21.25 | CP6: 133 | CQ6: 11713 | CS6: 1.447011952 | CT6: 58.44925189 | CU6: -5011.696406 | CY6: 38.82006319 | CZ6: 1515.410228 | DA6: 47.79390068 | DB6: 11573.12388 | DD6: 70759 | DE6: 136082 | DF6: 1545 | DG6: -63778 | DH6: 35110 | DI6: 38629 | DL6: -579 | DM6: 873 | DN6: 10255 | DO6: 6434 | DP6: 0 | DR6: 3821 | DS6: -31 | DT6: -4 | DU6: 18 | DV6: -30 | DW6: 3738 | DX6: 20120 | DY6: 8996 | EA6: 1315 | EB6: -6889 | EC6: 1581 | EE6: 1190 | EH6: 21.25 | EJ6: 101 | EQ6: -14134 | ER6: 194 | ES6: 873 | ET6: -12793 | EU6: 546 | EV6: 1981 | EW6: -9360 | EX6: 768 | EY6: 1177 | EZ6: 11219 | FA6: 2056 | FB6: 19669 | FC6: 554 | FD6: 8780 | FE6: -1568 | FF6: 60717 | FG6: 50125 | FH6: 10592 | FI6: 1764 | FJ6: 69825 | FK6: 59081 | FL6: 10744 | FM6: 2204 | FN6: 70327 | FO6: 61433 | FP6: 8894 | FQ6: 2876
A7: 16 | B7: Asikkala | C7: 8287 | E7: 5.631212724 | F7: 53.27164574 | G7: -3954.145046 | K7: 38.24714722 | L7: 494.0267889 | M7: 19.41343068 | N7: 9288.403524 | P7: 30917 | Q7: 71353 | R7: -14 | S7: -40450 | T7: 29378 | U7: 16868 | X7: -306 | Y7: -139 | Z7: 5351 | AA7: 3865 | AB7: -30 | AD7: 1456 | AE7: 0 | AF7: -22 | AI7: 1434 | AJ7: 4148 | AK7: 5264 | AM7: -440 | AN7: -692 | AO7: 1607 | AP7: 29378 | AT7: 20.75 | AV7: 136 | AW7: 8323 | AY7: 2.09071618 | AZ7: 46.72654992 | BA7: -3451.399736 | BE7: 43.60687023 | BF7: 377.3879611 | BG7: 14.3771789 | BH7: 9580.920341 | BJ7: 31656 | BK7: 71447 | BL7: 4 | BM7: -39787 | BN7: 29926 | BO7: 17906 | BR7: -176 | BS7: -171 | BT7: 7698 | BU7: 4014 | BV7: -6 | BX7: 3678 | BY7: 0 | BZ7: -1 | CA7: 0 | CB7: -81 | CC7: 3596 | CD7: 7509 | CE7: 7667 | CG7: -1007 | CH7: -3586 | CI7: 4275 | CN7: 20.75 | CP7: 70 | CQ7: 8248 | CS7: 8.879594423 | CT7: 39.58465564 | CU7: -3093.355965 | CY7: 46.14103603 | CZ7: 557.8322017 | DA7: 20.97921273 | DB7: 9705.261882 | DD7: 42592 | DE7: 82843 | DF7: -3 | DG7: -40254 | DH7: 29700 | DI7: 17513 | DL7: -120 | DM7: 43 | DN7: 6882 | DO7: 4354 | DP7: 64 | DR7: 2592 | DS7: 0 | DT7: 0 | DU7: 2 | DV7: -43 | DW7: 2547 | DX7: 9751 | DY7: 6503 | EA7: -158 | EB7: -665 | EC7: 3943 | EE7: 12 | EH7: 20.75 | EJ7: 115 | EQ7: -4426 | ER7: 190 | ES7: 579 | ET7: -4015 | EU7: 231 | EV7: 392 | EW7: -3984 | EX7: 196 | EY7: 1228 | EZ7: 1524 | FA7: -2530 | FB7: 2274 | FC7: -2000 | FD7: 326 | FE7: -3250 | FF7: 31761 | FG7: 10901 | FH7: 20860 | FI7: 145 | FJ7: 28449 | FK7: 9771 | FL7: 18678 | FM7: 229 | FN7: 24863 | FO7: 9426 | FP7: 15437 | FQ7: 388
A8: 18 | B8: Askola | C8: 5104 | E8: 1.026143791 | F8: 65.84157171 | G8: -4365.987461 | K8: 19.01364278 | L8: 398.315047 | M8: 17.16623869 | N8: 8469.239812 | P8: 14479 | Q8: 38746 | R8: -1 | S8: -24268 | T8: 18430 | U8: 6844 | X8: -199 | Y8: 247 | Z8: 1054 | AA8: 1780 | AB8: 0 | AD8: -726 | AE8: 0 | AF8: 89 | AI8: -637 | AJ8: -2084 | AK8: 910 | AM8: -663 | AN8: -1022 | AO8: -2100 | AP8: 18430 | AT8: 20.25 | AV8: 287 | AW8: 5046 | AY8: 1.401490066 | AZ8: 64.73328732 | BA8: -4507.530717 | BE8: 18.51346832 | BF8: 340.8640507 | BG8: 14.62891763 | BH8: 8504.756243 | BJ8: 14258 | BK8: 39091 | BL8: 0 | BM8: -24833 | BN8: 19174 | BO8: 7136 | BR8: -192 | BS8: 216 | BT8: 1501 | BU8: 1892 | BV8: 0 | BX8: -391 | BY8: 0 | BZ8: 93 | CA8: 0 | CB8: 0 | CC8: -298 | CD8: -2045 | CE8: 1323 | CG8: -419 | CH8: -1016 | CI8: -961 | CN8: 20.25 | CP8: 275 | CQ8: 4990 | CS8: 1.433070866 | CT8: 71.39762168 | CU8: -5016.032064 | CY8: 16.14631929 | CZ8: 511.0220441 | DA8: 25.01747124 | DB8: 7455.711423 | DD8: 15461 | DE8: 39934 | DF8: -30 | DG8: -24503 | DH8: 18756 | DI8: 7325 | DL8: -172 | DM8: 242 | DN8: 1648 | DO8: 2120 | DP8: 0 | DR8: -472 | DS8: 0 | DT8: 123 | DU8: 3 | DV8: 0 | DW8: -352 | DX8: -2503 | DY8: 1460 | EA8: -373 | EB8: -1098 | EC8: -2271 | EE8: 2000 | EH8: 20.75 | EJ8: 282 | EQ8: -3207 | ER8: 24 | ES8: 173 | ET8: -2567 | EU8: 2 | EV8: 281 | EW8: -4053 | EX8: 12 | EY8: 310 | EZ8: 1463 | FA8: 2176 | FB8: 2695 | FC8: -1485 | FD8: 2257 | FE8: 1738 | FF8: 21513 | FG8: 14465 | FH8: 7048 | FI8: 0 | FJ8: 21697 | FK8: 15999 | FL8: 5698 | FM8: 0 | FN8: 24594 | FO8: 16477 | FP8: 8117 | FQ8: 0
A9: 19 | B9: Aura | C9: 3986 | E9: 1.109298532 | F9: 68.18942384 | G9: -4732.313096 | K9: 12.16430955 | L9: 304.816859 | M9: 13.16262021 | N9: 8452.584044 | P9: 12423 | Q9: 30335 | R9: 1 | S9: -17911 | T9: 13875 | U9: 5377 | X9: -124 | Y9: 16 | Z9: 1233 | AA9: 1289 | AB9: 0 | AD9: -56 | AE9: -35 | AF9: 0 | AI9: -91 | AJ9: -1894 | AK9: 1096 | AM9: 265 | AN9: -1099 | AO9: -692 | AP9: 13875 | AT9: 21 | AV9: 273 | AW9: 3984 | AY9: 2.275105485 | AZ9: 59.63508517 | BA9: -4296.435743 | BE9: 17.96246649 | BF9: 299.6987952 | BG9: 13.42689013 | BH9: 8147.088353 | BJ9: 12522 | BK9: 30312 | BL9: 0 | BM9: -17790 | BN9: 14440 | BO9: 6032 | BR9: -66 | BS9: 12 | BT9: 2628 | BU9: 1259 | BV9: 0 | BX9: 1369 | BY9: -49 | BZ9: 0 | CA9: 0 | CB9: 0 | CC9: 1320 | CD9: -543 | CE9: 2607 | CG9: 156 | CH9: -1117 | CI9: 1700 | CN9: 21.75 | CP9: 159 | CQ9: 3991 | CS9: 2.955424727 | CT9: 55.6105709 | CU9: -3685.041343 | CY9: 24.99417566 | CZ9: 588.3237284 | DA9: 28.45068552 | DB9: 7547.732398 | DD9: 12669 | DE9: 30038 | DF9: 1 | DG9: -17368 | DH9: 14873 | DI9: 5984 | DL9: -62 | DM9: 22 | DN9: 3449 | DO9: 1306 | DP9: 0 | DR9: 2143 | DS9: -24 | DT9: 0 | DU9: 0 | DV9: 0 | DW9: 2119 | DX9: 1556 | DY9: 3453 | EA9: -224 | EB9: -1124 | EC9: 2452 | EE9: 912 | EH9: 21.75 | EJ9: 103 | EQ9: -2122 | ER9: 80 | ES9: 254 | ET9: -958 | EU9: 3 | EV9: 48 | EW9: -1111 | EX9: 10 | EY9: 100 | EZ9: 55 | FA9: 1967 | FB9: 49 | FC9: -520 | FD9: 197 | FE9: -593 | FF9: 21599 | FG9: 6586 | FH9: 15013 | FI9: 0 | FJ9: 16296 | FK9: 5511 | FL9: 10785 | FM9: 0 | FN9: 14775 | FO9: 4567 | FP9: 10208 | FQ9: 0
A10: 46 | B10: Enonkoski | C10: 1473 | E10: 1.406818182 | F10: 20.68084236 | G10: 152.7494908 | K10: 72.39079257 | L10: 2188.051595 | M10: 58.50673895 | N10: 13650.37339 | P10: 9643 | Q10: 18560 | R10: 0 | S10: -8917 | T10: 4825 | U10: 5096 | X10: -23 | Y10: 223 | Z10: 1204 | AA10: 802 | AB10: -65 | AD10: 337 | AE10: 0 | AF10: 0 | AI10: 337 | AJ10: 5610 | AK10: 1231 | AM10: 4 | AN10: -846 | AO10: 696 | AP10: 4825 | AT10: 21 | AV10: 82 | AW10: 1453 | AY10: 4.46728972 | AZ10: 17.25612937 | BA10: 807.2952512 | BE10: 77.05100504 | BF10: 2294.562973 | BG10: 63.81614138 | BH10: 13123.88162 | BJ10: 9399 | BK10: 17959 | BL10: 0 | BM10: -8560 | BN10: 4544 | BO10: 5227 | BR10: -13 | BS10: 212 | BT10: 1410 | BU10: 780 | BV10: -65 | BX10: 565 | BY10: 0 | BZ10: -79 | CA10: 0 | CB10: 9 | CC10: 495 | CD10: 6061 | CE10: 1452 | CG10: -54 | CH10: -297 | CI10: 806 | CN10: 21 | CP10: 58 | CQ10: 1416 | CS10: 9.048780488 | CT10: 17.95425119 | CU10: 960.4519774 | CY10: 75.02968936 | CZ10: 2175.847458 | DA10: 60.89592246 | DB10: 13041.66667 | DD10: 10316 | DE10: 19838 | DF10: 0 | DG10: -9522 | DH10: 4854 | DI10: 5683 | DL10: -4 | DM10: 71 | DN10: 1082 | DO10: 787 | DP10: -16 | DR10: 279 | DS10: 0 | DT10: 0 | DU10: 0 | DV10: -36 | DW10: 243 | DX10: 6840 | DY10: 1036 | EA10: -876 | EB10: -92 | EC10: -56 | EE10: 109 | EH10: 21 | EJ10: 151 | EQ10: -661 | ER10: 6 | ES10: 120 | ET10: -787 | EU10: 73 | EV10: 68 | EW10: -1552 | EX10: 18 | EY10: 442 | EZ10: 84 | FA10: -98 | FB10: 44 | FC10: -82 | FD10: 14 | FE10: 0 | FF10: 1471 | FG10: 1269 | FH10: 202 | FI10: 0 | FJ10: 1164 | FK10: 1022 | FL10: 142 | FM10: -53 | FN10: 1085 | FO10: 930 | FP10: 155 | FQ10: 0
A11: 47 | B11: Enontekiö | C11: 1861 | E11: 1.080409357 | F11: 94.72455902 | G11: -6750.134336 | K11: 35.34066714 | L11: 1836.109618 | M11: 58.692 | N11: 11418.59215 | P11: 3569 | Q11: 17395 | R11: 6 | S11: -13820 | T11: 6023 | U11: 8833 | X11: -204 | Y11: 429 | Z11: 1261 | AA11: 1198 | AB11: 5 | AD11: 68 | AE11: -4 | AF11: -74 | AI11: -10 | AJ11: -107 | AK11: 1237 | AM11: 926 | AN11: -1151 | AO11: -879 | AP11: 6023 | AT11: 20.75 | AV11: 122 | AW11: 1872 | AY11: 1.166040571 | AZ11: 99.92231717 | BA11: -7270.299145 | BE11: 31.97454481 | BF11: 1537.92735 | BG11: 48.25435092 | BH11: 11633.01282 | BJ11: 2936 | BK11: 16836 | BL11: -4 | BM11: -13904 | BN11: 6151 | BO11: 8935 | BR11: -82 | BS11: 266 | BT11: 1366 | BU11: 1108 | BV11: 0 | BX11: 258 | BY11: -1 | BZ11: 0 | CA11: 0 | CB11: 2 | CC11: 259 | CD11: 576 | CE11: 1306 | CG11: 540 | CH11: -1145 | CI11: -924 | CN11: 21.25 | CP11: 131 | CQ11: 1893 | CS11: 1.892241379 | CT11: 81.73696239 | CU11: -6499.735869 | CY11: 38.00690898 | CZ11: 1033.280507 | DA11: 44.9471166 | DB11: 8390.913893 | DD11: 4225 | DE11: 17496 | DF11: 2 | DG11: -13269 | DH11: 6203 | DI11: 8824 | DL11: -157 | DM11: 421 | DN11: 2022 | DO11: 1177 | DP11: -22 | DR11: 823 | DS11: 0 | DT11: -11 | DU11: 0 | DV11: -3 | DW11: 809 | DX11: 1400 | DY11: 1995 | EA11: 996 | EB11: -987 | EC11: 1231 | EE11: 5138 | EH11: 21.25 | EJ11: 59 | EQ11: -2234 | ER11: 117 | ES11: 1 | ET11: -3331 | EU11: 1021 | EV11: 80 | EW11: -2967 | EX11: 2153 | EY11: 50 | EZ11: 2723 | FA11: -701 | FB11: 307 | FC11: 456 | FD11: 0 | FE11: -342 | FF11: 12005 | FG11: 10495 | FH11: 1510 | FI11: 81 | FJ11: 11675 | FK11: 9704 | FL11: 1971 | FM11: 81 | FN11: 10397 | FO11: 8767 | FP11: 1630 | FQ11: 116
A12: 49 | B12: Espoo | C12: 269800 | E12: 1.746266655 | F12: 130.5053205 | G12: -7779.951816 | K12: 44.21051771 | L12: 3313.428466 | M12: 103.6059562 | N12: 11673.08747 | P12: 954496 | Q12: 2193314 | R12: 692 | S12: -1238126 | T12: 1393802 | U12: 84376 | X12: -27346 | Y12: 33521 | Z12: 246227 | AA12: 220614 | AB12: 0 | AD12: 25613 | AE12: -42 | AF12: 39148 | AI12: 64719 | AJ12: 558885 | AK12: 210727 | AM12: 16740 | AN12: -123793 | AO12: -481200 | AP12: 1393802 | AT12: 18 | AV12: 53 | AW12: 274583 | AY12: 1.942542217 | AZ12: 140.2772277 | BA12: -8531.332967 | BE12: 41.82287592 | BF12: 3764.17331 | BG12: 120.0713733 | BH12: 11442.55471 | BJ12: 982749 | BK12: 2234818 | BL12: -2334 | BM12: -1254403 | BN12: 1446483 | BO12: 116040 | BR12: -30747 | BS12: 20127 | BT12: 297500 | BU12: 237379 | BV12: 13541 | BX12: 73662 | BY12: 29 | BZ12: 60 | CA12: 1649 | CB12: 10 | CC12: 72112 | CD12: 629653 | CE12: 259201 | CG12: -12525 | CH12: -131950 | CI12: -372917 | CN12: 18 | CP12: 37 | CQ12: 279044 | CS12: 1.984179228 | CT12: 147.2504652 | CU12: -9164.676538 | CY12: 40.9473173 | CZ12: 3871.382291 | DA12: 214.2994746 | DB12: 6593.83108 | DD12: 1012445 | DE12: 2264850 | DF12: 994 | DG12: -1251411 | DH12: 1490270 | DI12: 84559 | DL12: -43228 | DM12: 39111 | DN12: 319301 | DO12: 267979 | DP12: 1200 | DR12: 52522 | DS12: -463 | DT12: 17 | DU12: 390 | DV12: -773 | DW12: 50913 | DX12: 600201 | DY12: 289704 | EA12: 22161 | EB12: -133610 | EC12: -231776 | EE12: 50979 | EH12: 18 | EJ12: 44 | EQ12: -776344 | ER12: 43335 | ES12: 41082 | ET12: -726495 | EU12: 30414 | EV12: 63963 | EW12: -616503 | EX12: 48410 | EY12: 46613 | EZ12: 639085 | FA12: -9183 | FB12: 626942 | FC12: -6325 | FD12: 374787 | FE12: 1824 | FF12: 2698010 | FG12: 2562825 | FH12: 135185 | FI12: 211961 | FJ12: 3186678 | FK12: 3056512 | FL12: 130166 | FM12: 210467 | FN12: 3429679 | FO12: 3275274 | FP12: 154405 | FQ12: 208539
A13: 50 | B13: Eura | C13: 12128 | E13: 1.423871784 | F13: 66.6124516 | G13: -4857.354881 | K13: 33.72812798 | L13: 487.1372032 | M13: 18.43235804 | N13: 9646.355541 | P13: 36066 | Q13: 102621 | R13: -44 | S13: -66599 | T13: 45291 | U13: 26854 | X13: -784 | Y13: 1203 | Z13: 5965 | AA13: 5645 | AB13: 0 | AD13: 320 | AE13: -125 | AF13: -102 | AI13: 93 | AJ13: 3737 | AK13: 6377 | AM13: -451 | AN13: -3955 | AO13: -2619 | AP13: 45291 | AT13: 20.5 | AV13: 212 | AW13: 12004 | AY13: 1.481371088 | AZ13: 67.05498074 | BA13: -4887.954015 | BE13: 33.72350754 | BF13: 497.4175275 | BG13: 19.56439581 | BH13: 9279.990003 | BJ13: 35238 | BK13: 100185 | BL13: 0 | BM13: -64947 | BN13: 43653 | BO13: 27037 | BR13: -703 | BS13: 1208 | BT13: 6248 | BU13: 5435 | BV13: 0 | BX13: 813 | BY13: -43 | BZ13: 0 | CA13: 1 | CB13: -127 | CC13: 642 | CD13: 4004 | CE13: 6368 | CG13: 880 | CH13: -3987 | CI13: -59 | CN13: 20.5 | CP13: 222 | CQ13: 11910 | CS13: 1.819447722 | CT13: 65.16809825 | CU13: -4830.310663 | CY13: 35.50656446 | CZ13: 448.9504618 | DA13: 20.09736381 | DB13: 8153.652393 | DD13: 36426 | DE13: 99266 | DF13: 0 | DG13: -62840 | DH13: 44397 | DI13: 26168 | DL13: -466 | DM13: -3 | DN13: 7256 | DO13: 5748 | DP13: 0 | DR13: 1508 | DS13: 30 | DT13: 0 | DU13: 0 | DV13: -4 | DW13: 1534 | DX13: 5504 | DY13: 6875 | EA13: -463 | EB13: -3784 | EC13: 1115 | EE13: 552 | EH13: 20.5 | EJ13: 219 | EQ13: -9582 | ER13: 640 | ES13: -54 | ET13: -6501 | EU13: 87 | EV13: -13 | EW13: -6603 | EX13: 191 | EY13: 652 | EZ13: 8717 | FA13: -2539 | FB13: 271 | FC13: 4200 | FD13: 334 | FE13: 1632 | FF13: 53290 | FG13: 41396 | FH13: 11894 | FI13: 70 | FJ13: 54035 | FK13: 38127 | FL13: 15908 | FM13: 50 | FN13: 52506 | FO13: 35316 | FP13: 17190 | FQ13: 50
A14: 51 | B14: Eurajoki | C14: 5938 | E14: 61.8951049 | F14: 24.45331927 | G14: 2035.53385 | K14: 83.03985171 | L14: 3815.257663 | M14: 115.2789589 | N14: 12079.99326 | P14: 23606 | Q14: 58773 | R14: -2 | S14: -35169 | T14: 34542 | U14: 8207 | X14: 124 | Y14: 1082 | Z14: 8786 | AA14: 3763 | AB14: -2 | AD14: 5021 | AE14: -2 | AF14: 0 | AI14: 5019 | AJ14: 68463 | AK14: 7549 | AM14: -1628 | AN14: -78 | AO14: -3181 | AP14: 34542 | AT14: 18 | AV14: 2 | AW14: 6070 | AY14: 9.156218905 | AZ14: 22.3069421 | BA14: 2182.537068 | BE14: 84.82852292 | BF14: 4058.15486 | BG14: 130.2729038 | BH14: 11370.18122 | BJ14: 21029 | BK14: 59307 | BL14: -6 | BM14: -38284 | BN14: 38036 | BO14: 8609 | BR14: 71 | BS14: 731 | BT14: 9163 | BU14: 4275 | BV14: 3 | BX14: 4891 | BY14: 2 | BZ14: 0 | CA14: 1 | CB14: -6 | CC14: 4886 | CD14: 73485 | CE14: 9091 | CG14: 1833 | CH14: -966 | CI14: 1073 | CN14: 18 | CP14: 7 | CQ14: 9521 | CS14: 5.951488423 | CT14: 33.44840853 | CU14: -191.1563911 | CY14: 74.5585702 | CZ14: 2540.804537 | DA14: 108.9388911 | DB14: 8512.971327 | DD14: 30898 | DE14: 86250 | DF14: 0 | DG14: -55352 | DH14: 51919 | DI14: 13352 | DL14: -92 | DM14: 836 | DN14: 10663 | DO14: 5641 | DP14: 2 | DR14: 5024 | DS14: 0 | DT14: 29 | DU14: 3 | DV14: -13 | DW14: 5037 | DX14: 76253 | DY14: 10769 | EA14: -365 | EB14: -1681 | EC14: 3378 | EE14: 111 | EH14: 18 | EJ14: 47 | EQ14: -10962 | ER14: 31 | ES14: 201 | ET14: -8307 | EU14: 16 | EV14: 273 | EW14: -7916 | EX14: 39 | EY14: 486 | EZ14: 545 | FA14: 666 | FB14: 26 | FC14: -904 | FD14: 568 | FE14: -763 | FF14: 5640 | FG14: 3632 | FH14: 2008 | FI14: 146 | FJ14: 3694 | FK14: 2948 | FL14: 746 | FM14: 130 | FN14: 17545 | FO14: 15617 | FP14: 1928 | FQ14: 130
A15: 52 | B15: Evijärvi | C15: 2576 | E15: 2.779329609 | F15: 34.50991594 | G15: -232.9192547 | K15: 59.00504956 | L15: 2682.453416 | M15: 100.4520472 | N15: 9746.89441 | P15: 7223 | Q15: 23615 | R15: 7 | S15: -16385 | T15: 8877 | U15: 8406 | X15: 13 | Y15: 37 | Z15: 948 | AA15: 798 | AB15: 0 | AD15: 150 | AE15: -6 | AF15: -32 | AI15: 112 | AJ15: 3263 | AK15: 935 | AM15: 98 | AN15: -311 | AO15: 10 | AP15: 8877 | AT15: 21.5 | AV15: 258 | AW15: 2535 | AY15: 2.319201995 | AZ15: 35.03646627 | BA15: -347.1400394 | BE15: 56.23661919 | BF15: 2625.246548 | BG15: 96.3345231 | BH15: 9946.745562 | BJ15: 7088 | BK15: 23575 | BL15: 4 | BM15: -16483 | BN15: 8615 | BO15: 8566 | BR15: 171 | BS15: 35 | BT15: 904 | BU15: 834 | BV15: 0 | BX15: 70 | BY15: -7 | BZ15: -30 | CA15: 6 | CB15: -2 | CC15: 25 | CD15: 3286 | CE15: 924 | CG15: 47 | CH15: -375 | CI15: -273 | CN15: 21.5 | CP15: 264 | CQ15: 2499 | CS15: 2.2268431 | CT15: 38.61535244 | CU15: -228.0912365 | CY15: 57.27722552 | CZ15: 3002.80112 | DA15: 119.8354918 | DB15: 9146.058423 | DD15: 7148 | DE15: 23269 | DF15: 0 | DG15: -16121 | DH15: 8224 | DI15: 8533 | DL15: 72 | DM15: 448 | DN15: 1156 | DO15: 888 | DP15: 0 | DR15: 268 | DS15: -7 | DT15: -28 | DU15: 8 | DV15: -2 | DW15: 223 | DX15: 3481 | DY15: 1104 | EA15: -121 | EB15: -507 | EC15: 339 | EE15: 21 | EH15: 21.5 | EJ15: 264 | EQ15: -1124 | ER15: 176 | ES15: 23 | ET15: -1216 | EU15: 9 | EV15: 10 | EW15: -976 | EX15: 52 | EY15: 159 | EZ15: 39 | FA15: -494 | FB15: 173 | FC15: 500 | FD15: 618 | FE15: 950 | FF15: 5899 | FG15: 1745 | FH15: 4154 | FI15: 58 | FJ15: 6210 | FK15: 1705 | FL15: 4505 | FM15: 57 | FN15: 7285 | FO15: 2021 | FP15: 5264 | FQ15: 56
A16: 61 | B16: Forssa | C16: 17422 | E16: 1.965212965 | F16: 49.26865437 | G16: -3159.453564 | K16: 48.96236482 | L16: 1026.345999 | M16: 35.38296604 | N16: 10587.47561 | P16: 73086 | Q16: 166775 | R16: 117 | S16: -93572 | T16: 59678 | U16: 45264 | X16: -829 | Y16: 119 | Z16: 10660 | AA16: 9067 | AB16: 0 | AD16: 1593 | AE16: 66 | AF16: -119 | AI16: 1540 | AJ16: 20111 | AK16: 9322 | AM16: 2456 | AN16: -4972 | AO16: -1419 | AP16: 59678 | AT16: 20 | AV16: 150 | AW16: 17332 | AY16: 2.361519806 | AZ16: 49.1041761 | BA16: -3408.839141 | BE16: 48.95149333 | BF16: 1135.64505 | BG16: 37.84235283 | BH16: 10953.61182 | BJ16: 73748 | BK16: 167829 | BL16: 56 | BM16: -94025 | BN16: 60408 | BO16: 47018 | BR16: -622 | BS16: 154 | BT16: 12933 | BU16: 8501 | BV16: 0 | BX16: 4432 | BY16: 94 | BZ16: 171 | CA16: 7 | CB16: -47 | CC16: 4643 | CD16: 24755 | CE16: 12701 | CG16: 4273 | CH16: -5512 | CI16: -3878 | CN16: 20 | CP16: 101 | CQ16: 17185 | CS16: 2.180599094 | CT16: 49.5358546 | CU16: -3243.759092 | CY16: 49.54189245 | CZ16: 1126.447483 | DA16: 42.74530088 | DB16: 9618.679081 | DD16: 73061 | DE16: 166862 | DF16: 143 | DG16: -93658 | DH16: 61074 | DI16: 44796 | DL16: -520 | DM16: 66 | DN16: 11758 | DO16: 10896 | DP16: 0 | DR16: 862 | DS16: 120 | DT16: 3 | DU16: 11 | DV16: -62 | DW16: 912 | DX16: 25667 | DY16: 10166 | EA16: -3335 | EB16: -4979 | EC16: 3207 | EE16: 1000 | EH16: 20.5 | EJ16: 185 | EQ16: -11773 | ER16: 188 | ES16: 844 | ET16: -16789 | EU16: 51 | EV16: 159 | EW16: -7329 | EX16: 17 | EY16: 353 | EZ16: 8277 | FA16: 406 | FB16: 5181 | FC16: -4032 | FD16: 6072 | FE16: 4699 | FF16: 64164 | FG16: 48570 | FH16: 15594 | FI16: 336 | FJ16: 60008 | FK16: 47742 | FL16: 12266 | FM16: 305 | FN16: 65801 | FO16: 47833 | FP16: 17968 | FQ16: 303
A17: 69 | B17: Haapajärvi | C17: 7438 | E17: 1.018236126 | F17: 56.95277793 | G17: -3549.072331 | K17: 39.02842341 | L17: 2785.022856 | M17: 77.83665675 | N17: 13059.82791 | P17: 44549 | Q17: 86667 | R17: 15 | S17: -42103 | T17: 23151 | U17: 23465 | X17: -581 | Y17: 1938 | Z17: 5870 | AA17: 3524 | AB17: 0 | AD17: 2346 | AE17: -167 | AF17: 29 | AI17: 2208 | AJ17: 5800 | AK17: 5671 | AM17: 1068 | AN17: -5754 | AO17: 2206 | AP17: 23151 | AT17: 22 | AV17: 90 | AW17: 7332 | AY17: 0.6600848564 | AZ17: 60.92620349 | BA17: -3926.077469 | BE17: 34.27099087 | BF17: 2728.723404 | BG17: 72.55394933 | BH17: 13727.49591 | BJ17: 40616 | BK17: 87803 | BL17: 19 | BM17: -47168 | BN17: 23037 | BO17: 27083 | BR17: -501 | BS17: 1078 | BT17: 3529 | BU17: 3603 | BV17: -259 | BX17: -333 | BY17: -53 | BZ17: -2 | CA17: 89 | CB17: 19 | CC17: -458 | CD17: 4756 | CE17: 3430 | CG17: -1539 | CH17: -5612 | CI17: -2528 | CN17: 22 | CP17: 237 | CQ17: 7251 | CS17: 0.8400062073 | CT17: 63.30487724 | CU17: -4155.151014 | CY17: 36.13689475 | CZ17: 2779.340781 | DA17: 85.54999244 | DB17: 11858.08854 | DD17: 41518 | DE17: 85945 | DF17: 28 | DG17: -44399 | DH17: 22647 | DI17: 26501 | DL17: -495 | DM17: 644 | DN17: 4898 | DO17: 3904 | DP17: -24 | DR17: 970 | DS17: -99 | DT17: -3 | DU17: 80 | DV17: -4 | DW17: 784 | DX17: 5116 | DY17: 4695 | EA17: 129 | EB17: -5929 | EC17: -1596 | EE17: 6867 | EH17: 22 | EJ17: 188 | EQ17: -3945 | ER17: 417 | ES17: 63 | ET17: -6533 | EU17: 489 | EV17: 86 | EW17: -7120 | EX17: 253 | EY17: 576 | EZ17: 4043 | FA17: -1698 | FB17: 7059 | FC17: 1971 | FD17: 6361 | FE17: 1149 | FF17: 38778 | FG17: 28718 | FH17: 10060 | FI17: 205 | FJ17: 42099 | FK17: 29374 | FL17: 12725 | FM17: 216 | FN17: 43029 | FO17: 29755 | FP17: 13274 | FQ17: 171
A18: 71 | B18: Haapavesi | C18: 7167 | E18: 0.7237174096 | F18: 53.03471113 | G18: -4459.048416 | K18: 27.76904003 | L18: 1604.995117 | M18: 41.08897762 | N18: 14257.42989 | P18: 51216 | Q18: 91724 | R18: 12 | S18: -40496 | T18: 21200 | U18: 22107 | X18: -365 | Y18: 563 | Z18: 3009 | AA18: 4062 | AB18: -19 | AD18: -1072 | AE18: 2 | AF18: -4 | AI18: -1074 | AJ18: 320 | AK18: 2836 | AM18: 284 | AN18: -4323 | AO18: -1907 | AP18: 21200 | AT18: 21.25 | AV18: 241 | AW18: 7098 | AY18: 0.555041044 | AZ18: 55.46494022 | BA18: -4778.247394 | BE18: 24.44143721 | BF18: 1653.705269 | BG18: 41.00267968 | BH18: 14721.04818 | BJ18: 52007 | BK18: 93366 | BL18: 1 | BM18: -41358 | BN18: 20805 | BO18: 22953 | BR18: -270 | BS18: 180 | BT18: 2310 | BU18: 3844 | BV18: 0 | BX18: -1534 | BY18: -1 | BZ18: -4 | CA18: 0 | CB18: -40 | CC18: -1579 | CD18: -1575 | CE18: 2538 | CG18: -434 | CH18: -4424 | CI18: -1599 | CN18: 22 | CP18: 270 | CQ18: 6970 | CS18: 1.471192242 | CT18: 67.56119842 | CU18: -4498.421808 | CY18: 26.03944941 | CZ18: 1884.361549 | DA18: 69.95957621 | DB18: 9831.276901 | DD18: 30893 | DE18: 70568 | DF18: 2 | DG18: -39673 | DH18: 20643 | DI18: 23997 | DL18: -284 | DM18: 113 | DN18: 4796 | DO18: 3611 | DP18: 0 | DR18: 1185 | DS18: 2 | DT18: -1 | DU18: 118 | DV18: -27 | DW18: 1041 | DX18: 214 | DY18: 4411 | EA18: 819 | EB18: -3144 | EC18: 2426 | EE18: 1147 | EH18: 22 | EJ18: 183 | EQ18: -5579 | ER18: 736 | ES18: 100 | ET18: -6169 | EU18: 1991 | EV18: 41 | EW18: -5797 | EX18: 127 | EY18: 3685 | EZ18: 1219 | FA18: 6816 | FB18: 5638 | FC18: 1927 | FD18: 499 | FE18: 3487 | FF18: 45288 | FG18: 15187 | FH18: 30101 | FI18: 1 | FJ18: 48554 | FK18: 17008 | FL18: 31546 | FM18: 19 | FN18: 38371 | FO18: 14065 | FP18: 24306 | FQ18: 271
A19: 72 | B19: Hailuoto | C19: 993 | E19: 4.18627451 | F19: 56.80074205 | G19: -2377.643505 | K19: 56.31499073 | L19: 3431.01712 | M19: 102.0645929 | N19: 12269.88922 | P19: 4724 | Q19: 11068 | R19: 3 | S19: -6341 | T19: 3432 | U19: 3703 | X19: -9 | Y19: 56 | Z19: 841 | AA19: 686 | AB19: 0 | AD19: 155 | AE19: 0 | AF19: 2 | AI19: 157 | AJ19: 6657 | AK19: 832 | AM19: -252 | AN19: -191 | AO19: 226 | AP19: 3432 | AT19: 20 | AV19: 72 | AW19: 994 | AY19: 2.362962963 | AZ19: 57.39966555 | BA19: -2836.016097 | BE19: 55.90873416 | BF19: 2677.062374 | BG19: 74.44355024 | BH19: 13125.75453 | BJ19: 4977 | BK19: 11338 | BL19: 0 | BM19: -6361 | BN19: 3336 | BO19: 3647 | BR19: -9 | BS19: 2 | BT19: 615 | BU19: 685 | BV19: 0 | BX19: -70 | BY19: -1 | BZ19: -1 | CA19: 0 | CB19: -1 | CC19: -73 | CD19: 6621 | CE19: 624 | CG19: -370 | CH19: -247 | CI19: -495 | CN19: 20 | CP19: 179 | CQ19: 967 | CS19: 2.810096154 | CT19: 52.75396825 | CU19: -2125.129266 | CY19: 57.64245132 | CZ19: 3656.670114 | DA19: 112.8379087 | DB19: 11828.33506 | DD19: 5176 | DE19: 11532 | DF19: 1 | DG19: -6355 | DH19: 3691 | DI19: 3733 | DL19: -15 | DM19: 91 | DN19: 1145 | DO19: 674 | DP19: 0 | DR19: 471 | DS19: 0 | DT19: 4 | DU19: 1 | DV19: -1 | DW19: 473 | DX19: 7093 | DY19: 1061 | EA19: 329 | EB19: -392 | EC19: 692 | EE19: 18 | EH19: 20 | EJ19: 36 | EQ19: -908 | ER19: 90 | ES19: 212 | ET19: -1437 | EU19: 250 | EV19: 68 | EW19: -511 | EX19: 5 | EY19: 137 | EZ19: 1004 | FA19: -8 | FB19: 816 | FC19: -4 | FD19: 146 | FE19: 53 | FF19: 2827 | FG19: 2580 | FH19: 247 | FI19: 0 | FJ19: 3392 | FK19: 3166 | FL19: 226 | FM19: 5 | FN19: 3199 | FO19: 2863 | FP19: 336 | FQ19: 1
A20: 74 | B20: Halsua | C20: 1225 | E20: 0.4267756128 | F20: 118.5581934 | G20: -11164.08163 | K20: 27.10925478 | L20: 1422.857143 | M20: 29.18325688 | N20: 17795.91837 | P20: 5561 | Q20: 13200 | R20: 18 | S20: -7621 | T20: 3838 | U20: 4417 | X20: -168 | Y20: 23 | Z20: 489 | AA20: 613 | AB20: -14 | AD20: -138 | AE20: 0 | AF20: -94 | AI20: -232 | AJ20: 2237 | AK20: 392 | AM20: -103 | AN20: -1401 | AO20: -6246 | AP20: 3838 | AT20: 21.5 | AV20: 251 | AW20: 1219 | AY20: 1.372854914 | AZ20: 118.6900382 | BA20: -11153.40443 | BE20: 26.72493302 | BF20: 1169.811321 | BG20: 36.41572798 | BH20: 11725.18458 | BJ20: 5581 | BK20: 13051 | BL20: 34 | BM20: -7436 | BN20: 3649 | BO20: 4633 | BR20: -143 | BS20: 24 | BT20: 727 | BU20: 774 | BV20: -4 | BX20: -51 | BY20: -3 | BZ20: 1 | CA20: 3 | CB20: 2 | CC20: -54 | CD20: 2337 | CE20: 705 | CG20: -303 | CH20: -488 | CI20: 156 | CN20: 21.5 | CP20: 192 | CQ20: 1171 | CS20: 2.077445652 | CT20: 103.683596 | CU20: -12404.78224 | CY20: 25.16650017 | CZ20: 1631.084543 | DA20: 44.51787995 | DB20: 13373.18531 | DD20: 9263 | DE20: 15712 | DF20: 75 | DG20: -6374 | DH20: 3712 | DI20: 4155 | DL20: -135 | DM20: 28 | DN20: 1386 | DO20: 844 | DP20: 0 | DR20: 542 | DS20: -2 | DT20: -7 | DU20: 4 | DV20: -3 | DW20: 526 | DX20: 2010 | DY20: 1305 | EA20: 332 | EB20: -593 | EC20: 574 | EE20: 804 | EH20: 22 | EJ20: 37 | EQ20: -6995 | ER20: 280 | ES20: 77 | ET20: -590 | EU20: 0 | EV20: 41 | EW20: -799 | EX20: 15 | EY20: 53 | EZ20: 5568 | FA20: 711 | FB20: 138 | FC20: 284 | FD20: 1431 | FE20: -16 | FF20: 13630 | FG20: 10493 | FH20: 3137 | FI20: 83 | FJ20: 13613 | FK20: 10232 | FL20: 3381 | FM20: 93 | FN20: 14372 | FO20: 10834 | FP20: 3538 | FQ20: 103
A21: 75 | B21: Hamina | C21: 20851 | E21: 1.336668905 | F21: 89.91555967 | G21: -7645.052995 | K21: 34.29062171 | L21: 678.0010551 | M21: 22.88169378 | N21: 10815.2127 | P21: 87899 | Q21: 193973 | R21: -76 | S21: -106150 | T21: 82811 | U21: 42103 | X21: -2660 | Y21: 1094 | Z21: 17198 | AA21: 16241 | AB21: 275 | AD21: 1232 | AE21: 22 | AF21: 83 | AI21: 1337 | AJ21: 6473 | AK21: 16234 | AM21: -3146 | AN21: -12185 | AO21: 4542 | AP21: 82811 | AT21: 21 | AV21: 78 | AW21: 20636 | AY21: 0.6269088482 | AZ21: 86.06438147 | BA21: -7431.575887 | BE21: 34.98327599 | BF21: 905.9410739 | BG21: 27.47017951 | BH21: 12037.36189 | BJ21: 89621 | BK21: 196366 | BL21: 1083 | BM21: -105662 | BN21: 81940 | BO21: 44992 | BR21: -2343 | BS21: 1214 | BT21: 20141 | BU21: 16440 | BV21: 0 | BX21: 3701 | BY21: 53 | BZ21: 0 | CA21: 0 | CB21: -206 | CC21: 3548 | CD21: 10712 | CE21: 19109 | CG21: 3485 | CH21: -33554 | CI21: 7315 | CN21: 21 | CP21: 57 | CQ21: 20493 | CS21: 1.354971713 | CT21: 87.0613192 | CU21: -7063.631484 | CY21: 37.08394473 | CZ21: 1296.881862 | DA21: 50.17562961 | DB21: 9434.099449 | DD21: 89565 | DE21: 189548 | DF21: 652 | DG21: -99331 | DH21: 82237 | DI21: 44101 | DL21: -2182 | DM21: 1200 | DN21: 26025 | DO21: 19513 | DP21: 0 | DR21: 6512 | DS21: 54 | DT21: 0 | DU21: 0 | DV21: -97 | DW21: 6469 | DX21: 17455 | DY21: 24681 | EA21: -3305 | EB21: -18621 | EC21: 11572 | EE21: 47950 | EH21: 21 | EJ21: 20 | EQ21: -16531 | ER21: 131 | ES21: 4708 | ET21: -15716 | EU21: 72 | EV21: 3850 | EW21: -19704 | EX21: 648 | EY21: 5947 | EZ21: 14192 | FA21: -2027 | FB21: 29423 | FC21: 200 | FD21: 22362 | FE21: 0 | FF21: 152096 | FG21: 135815 | FH21: 16281 | FI21: 501 | FJ21: 148165 | FK21: 130774 | FL21: 17391 | FM21: 758 | FN21: 151906 | FO21: 133474 | FP21: 18432 | FQ21: 720
A22: 77 | B22: Hankasalmi | C22: 5240 | E22: 2.426470588 | F22: 42.80532718 | G22: -3393.129771 | K22: 42.31783317 | L22: 307.4427481 | M22: 10.47930924 | N22: 10708.39695 | P22: 18510 | Q22: 50287 | R22: 6 | S22: -31771 | T22: 15267 | U22: 19985 | X22: -133 | Y22: 97 | Z22: 3445 | AA22: 2490 | AB22: 0 | AD22: 955 | AE22: -10 | AF22: -82 | AI22: 863 | AJ22: -2394 | AK22: 3194 | AM22: -672 | AN22: -1311 | AO22: -669 | AP22: 15267 | AT22: 22 | AV22: 129 | AW22: 5159 | AY22: 3.582372323 | AZ22: 48.20959568 | BA22: -3502.810622 | BE22: 40.88957915 | BF22: 905.0203528 | BG22: 30.62987527 | BH22: 10784.64819 | BJ22: 17234 | BK22: 49802 | BL22: 0 | BM22: -32568 | BN22: 15514 | BO22: 21318 | BR22: -87 | BS22: 37 | BT22: 4214 | BU22: 2483 | BV22: 0 | BX22: 1731 | BY22: -5 | BZ22: 191 | CA22: 0 | CB22: -64 | CC22: 1853 | CD22: -691 | CE22: 4216 | CG22: 408 | CH22: -1079 | CI22: -65 | CN22: 22 | CP22: 98 | CQ22: 5019 | CS22: 2.371804237 | CT22: 52.50764828 | CU22: -3854.353457 | CY22: 42.78907243 | CZ22: 963.7377964 | DA22: 39.05466089 | DB22: 9006.973501 | DD22: 15022 | DE22: 47579 | DF22: 0 | DG22: -32557 | DH22: 15243 | DI22: 20400 | DL22: -40 | DM22: 99 | DN22: 3145 | DO22: 2342 | DP22: 2 | DR22: 805 | DS22: -12 | DT22: 5 | DU22: 0 | DV22: 1 | DW22: 799 | DX22: 108 | DY22: 2860 | EA22: 968 | EB22: -1267 | EC22: -550 | EE22: 594 | EH22: 22 | EJ22: 217 | EQ22: -4274 | ER22: 33 | ES22: 378 | ET22: -4476 | EU22: 120 | EV22: 75 | EW22: -3829 | EX22: 27 | EY22: 392 | EZ22: 0 | FA22: 1662 | FB22: 1353 | FC22: 2233 | FD22: 3990 | FE22: -762 | FF22: 14775 | FG22: 7886 | FH22: 6889 | FI22: 0 | FJ22: 17283 | FK22: 8414 | FL22: 8869 | FM22: 0 | FN22: 19443 | FO22: 11137 | FP22: 8306 | FQ22: 0
A23: 78 | B23: Hanko | C23: 8864 | E23: 1.512009276 | F23: 87.62040107 | G23: -8160.649819 | K23: 22.52490699 | L23: 1156.25 | M23: 36.0008565 | N23: 11722.81137 | P23: 49155 | Q23: 92254 | R23: -3 | S23: -43102 | T23: 40070 | U23: 12103 | X23: -1190 | Y23: 42 | Z23: 7923 | AA23: 7713 | AB23: 326 | AD23: 536 | AE23: 1 | AF23: -1 | AI23: 536 | AJ23: -12607 | AK23: 7591 | AM23: -197 | AN23: -4832 | AO23: 4080 | AP23: 40070 | AT23: 21.75 | AV23: 59 | AW23: 8663 | AY23: 1.652855369 | AZ23: 86.08793088 | BA23: -8361.07584 | BE23: 25.77566405 | BF23: 1040.286275 | BG23: 31.06177643 | BH23: 12224.17176 | BJ23: 50050 | BK23: 91181 | BL23: -1 | BM23: -41132 | BN23: 38792 | BO23: 12897 | BR23: -1228 | BS23: 61 | BT23: 9390 | BU23: 5414 | BV23: 0 | BX23: 3976 | BY23: -1 | BZ23: 1 | CA23: 504 | CB23: -15 | CC23: 3457 | CD23: -7948 | CE23: 7855 | CG23: 192 | CH23: -5183 | CI23: 897 | CN23: 21.75 | CP23: 36 | CQ23: 8517 | CS23: 13.80594243 | CT23: 81.62708163 | CU23: -8558.647411 | CY23: 30.30100232 | CZ23: 791.593284 | DA23: 31.49056242 | DB23: 9175.179054 | DD23: 54531 | DE23: 91458 | DF23: 0 | DG23: -36927 | DH23: 39028 | DI23: 12668 | DL23: -1060 | DM23: 83 | DN23: 13792 | DO23: 5867 | DP23: 38 | DR23: 7963 | DS23: -3 | DT23: -2 | DU23: 595 | DV23: 55 | DW23: 7418 | DX23: -472 | DY23: 11466 | EA23: -934 | EB23: 0 | EC23: -897 | EE23: 340 | EH23: 21.75 | EJ23: 6 | EQ23: -5511 | ER23: 10 | ES23: 1990 | ET23: -7859 | EU23: 5 | EV23: 896 | EW23: -14496 | EX23: 16 | EY23: 2117 | EZ23: 5400 | FA23: 607 | FB23: 4022 | FC23: 65 | FD23: 1590 | FE23: -3047 | FF23: 74741 | FG23: 33158 | FH23: 41583 | FI23: 500 | FJ23: 74732 | FK23: 28260 | FL23: 46472 | FM23: 416 | FN23: 73274 | FO23: 29849 | FP23: 43425 | FQ23: 417
A24: 79 | B24: Harjavalta | C24: 7296 | E24: 0.898078243 | F24: 42.87400208 | G24: -3133.223684 | K24: 47.14839608 | L24: 411.0471491 | M24: 13.82900638 | N24: 10849.09539 | P24: 26709 | Q24: 69358 | R24: -73 | S24: -42722 | T24: 30476 | U24: 14840 | X24: -247 | Y24: 21 | Z24: 2368 | AA24: 3147 | AB24: 14 | AD24: -765 | AE24: -23 | AF24: -37 | AI24: -825 | AJ24: 9953 | AK24: 2276 | AM24: -55 | AN24: -2665 | AO24: -4155 | AP24: 30476 | AT24: 19.75 | AV24: 269 | AW24: 7240 | AY24: 0.3461055276 | AZ24: 46.67123652 | BA24: -3357.044199 | BE24: 42.9835442 | BF24: 637.8453039 | BG24: 22.10525626 | BH24: 10532.0442 | BJ24: 26885 | BK24: 70411 | BL24: -1 | BM24: -43527 | BN24: 30405 | BO24: 14193 | BR24: -221 | BS24: 25 | BT24: 875 | BU24: 3220 | BV24: 0 | BX24: -2345 | BY24: 7 | BZ24: 0 | CA24: 8 | CB24: -33 | CC24: -2379 | CD24: 7575 | CE24: 646 | CG24: 552 | CH24: -2957 | CI24: -1646 | CN24: 19.75 | CP24: 288 | CQ24: 7151 | CS24: 1.204069934 | CT24: 44.62177643 | CU24: -3317.018599 | CY24: 43.95989727 | CZ24: 696.406097 | DA24: 25.86589635 | DB24: 9827.157041 | DD24: 26103 | DE24: 70215 | DF24: -34 | DG24: -44146 | DH24: 34747 | DI24: 13524 | DL24: -203 | DM24: 72 | DN24: 3994 | DO24: 3281 | DP24: 0 | DR24: 713 | DS24: -16 | DT24: 0 | DU24: 8 | DV24: -38 | DW24: 651 | DX24: 8242 | DY24: 4009 | EA24: -50 | EB24: -3282 | EC24: 965 | EE24: 719 | EH24: 20.75 | EJ24: 232 | EQ24: -6856 | ER24: 6 | ES24: 419 | ET24: -2643 | EU24: 20 | EV24: 331 | EW24: -3452 | EX24: 312 | EY24: 96 | EZ24: 4724 | FA24: 925 | FB24: 3175 | FC24: 2614 | FD24: 5209 | FE24: -1786 | FF24: 20566 | FG24: 16204 | FH24: 4362 | FI24: 0 | FJ24: 23367 | FK24: 15993 | FL24: 7374 | FM24: 0 | FN24: 23508 | FO24: 17197 | FP24: 6311 | FQ24: 0
A25: 81 | B25: Hartola | C25: 2982 | E25: 0.9926174497 | F25: 111.9655016 | G25: -10210.59691 | K25: 16.01859301 | L25: 976.5258216 | M25: 27.73333333 | N25: 12852.11268 | P25: 14037 | Q25: 30125 | R25: 0 | S25: -16088 | T25: 10219 | U25: 8789 | X25: -382 | Y25: 25 | Z25: 2563 | AA25: 1634 | AB25: 0 | AD25: 929 | AE25: -37 | AF25: -5 | AI25: 887 | AJ25: 147 | AK25: 2357 | AM25: -51 | AN25: -2585 | AO25: -1005 | AP25: 10219 | AT25: 21.5 | AV25: 68 | AW25: 2924 | AY25: 1.202507599 | AZ25: 112.1114619 | BA25: -10554.71956 | BE25: 16.8699772 | BF25: 617.3050616 | BG25: 18.15545084 | BH25: 12410.39672 | BJ25: 14141 | BK25: 29815 | BL25: 0 | BM25: -15674 | BN25: 9741 | BO25: 9062 | BR25: -339 | BS25: 22 | BT25: 2812 | BU25: 1738 | BV25: -566 | BX25: 508 | BY25: -36 | BZ25: 34 | CA25: 0 | CB25: 0 | CC25: 506 | CD25: 1178 | CE25: 2195 | CG25: -630 | CH25: -2279 | CI25: -469 | CN25: 21.5 | CP25: 62 | CQ25: 2882 | CS25: 1.119013581 | CT25: 90.57770253 | CU25: -10119.70854 | CY25: 18.7649853 | CZ25: 1082.581541 | DA25: 29.91331757 | DB25: 13209.57668 | DD25: 19841 | DE25: 36166 | DF25: 0 | DG25: -16325 | DH25: 9988 | DI25: 9153 | DL25: -287 | DM25: 300 | DN25: 2829 | DO25: 1885 | DP25: -233 | DR25: 711 | DS25: -37 | DT25: -230 | DU25: 0 | DV25: 0 | DW25: 444 | DX25: 1867 | DY25: 2541 | EA25: 1243 | EB25: -2496 | EC25: 1821 | EE25: 491 | EH25: 21.5 | EJ25: 74 | EQ25: -5200 | ER25: 1503 | ES25: 335 | ET25: -3834 | EU25: 961 | EV25: 209 | EW25: -931 | EX25: 29 | EY25: 182 | EZ25: 2849 | FA25: 561 | FB25: 2616 | FC25: -31 | FD25: 759 | FE25: -1160 | FF25: 32378 | FG25: 26900 | FH25: 5478 | FI25: 67 | FJ25: 32865 | FK25: 27459 | FL25: 5406 | FM25: 31 | FN25: 29984 | FO25: 26592 | FP25: 3392 | FQ25: 59
A26: 82 | B26: Hattula | C26: 9747 | E26: 0.9678754434 | F26: 66.0697257 | G26: -4449.163845 | K26: 36.27272727 | L26: 123.3199959 | M26: 5.234067429 | N26: 8599.77429 | P26: 22081 | Q26: 66540 | R26: 18 | S26: -44441 | T26: 36734 | U26: 12493 | X26: -112 | Y26: -96 | Z26: 4578 | AA26: 2705 | AB26: 0 | AD26: 1873 | AE26: -3 | AF26: -60 | AI26: 1810 | AJ26: 7593 | AK26: 4373 | AM26: 139 | AN26: -4741 | AO26: -5096 | AP26: 36734 | AT26: 20 | AV26: 222 | AW26: 9682 | AY26: 0.7935003385 | AZ26: 74.80302946 | BA26: -5191.799215 | BE26: 33.26493221 | BF26: 104.7304276 | BG26: 4.408643137 | BH26: 8670.832473 | BJ26: 22703 | BK26: 68725 | BL26: 0 | BM26: -46022 | BN26: 36577 | BO26: 12812 | BR26: -48 | BS26: -63 | BT26: 3256 | BU26: 2770 | BV26: -271 | BX26: 215 | BY26: 0 | BZ26: 2 | CA26: 0 | CB26: -82 | CC26: 135 | CD26: 7728 | CE26: 3272 | CG26: -51 | CH26: -4171 | CI26: -7257 | CN26: 20 | CP26: 268 | CQ26: 9610 | CS26: 0.9676258993 | CT26: 67.61771265 | CU26: -4946.826223 | CY26: 34.58536585 | CZ26: 304.2663892 | DA26: 13.95640177 | DB26: 7957.440166 | DD26: 31306 | DE26: 74081 | DF26: 0 | DG26: -42775 | DH26: 37510 | DI26: 9659 | DL26: -58 | DM26: -27 | DN26: 4309 | DO26: 3357 | DP26: 191 | DR26: 1143 | DS26: 0 | DT26: 2 | DU26: 0 | DV26: -35 | DW26: 1110 | DX26: 8825 | DY26: 3833 | EA26: 47 | EB26: -4462 | EC26: 2640 | EE26: 1359 | EH26: 20.5 | EJ26: 266 | EQ26: -12071 | ER26: 1344 | ES26: 1258 | ET26: -10679 | EU26: 265 | EV26: -115 | EW26: -2447 | EX26: 10 | EY26: 1244 | EZ26: 11802 | FA26: -1019 | FB26: 3060 | FC26: 7641 | FD26: 10931 | FE26: -7199 | FF26: 38701 | FG26: 30956 | FH26: 7745 | FI26: 4157 | FJ26: 45167 | FK26: 29799 | FL26: 15368 | FM26: 4152 | FN26: 44436 | FO26: 35782 | FP26: 8654 | FQ26: 4147
A27: 86 | B27: Hausjärvi | C27: 8729 | E27: 0.7049819928 | F27: 58.31193983 | G27: -3447.359377 | K27: 31.93122931 | L27: 821.1708099 | M27: 36.97508444 | N27: 8106.197732 | P27: 21888 | Q27: 62021 | R27: 62 | S27: -40071 | T27: 32179 | U27: 12542 | X27: -549 | Y27: 35 | Z27: 4136 | AA27: 2848 | AB27: 0 | AD27: 1288 | AE27: 2 | AF27: -17 | AI27: 1273 | AJ27: 3677 | AK27: 3829 | AM27: 39 | AN27: -6102 | AO27: 3285 | AP27: 32179 | AT27: 21 | AV27: 221 | AW27: 8641 | AY27: 0.8060370592 | AZ27: 48.82221671 | BA27: -3113.759981 | BE27: 37.22136394 | BF27: 521.5831501 | BG27: 22.83847008 | BH27: 8335.840759 | BJ27: 22652 | BK27: 63212 | BL27: 2 | BM27: -40558 | BN27: 32433 | BO27: 13476 | BR27: -420 | BS27: 32 | BT27: 4963 | BU27: 2781 | BV27: 0 | BX27: 2182 | BY27: -6 | BZ27: 26 | CA27: 6 | CB27: 0 | CC27: 2196 | CD27: 5692 | CE27: 4848 | CG27: -480 | CH27: -6261 | CI27: 3087 | CN27: 21.5 | CP27: 202 | CQ27: 8504 | CS27: 0.6311010216 | CT27: 48.25844577 | CU27: -3209.783631 | CY27: 38.30994597 | CZ27: 469.0733772 | DA27: 22.05670267 | DB27: 7762.347131 | DD27: 22886 | DE27: 64775 | DF27: 2 | DG27: -41887 | DH27: 32232 | DI27: 13585 | DL27: -326 | DM27: -49 | DN27: 3555 | DO27: 2774 | DP27: 138 | DR27: 919 | DS27: 4 | DT27: 1 | DU27: 11 | DV27: 0 | DW27: 913 | DX27: 6568 | DY27: 3659 | EA27: 188 | EB27: -5830 | EC27: -415 | EE27: 3610 | EH27: 21.5 | EJ27: 271 | EQ27: -2068 | ER27: 0 | ES27: 1524 | ET27: -2120 | EU27: 118 | EV27: 241 | EW27: -5035 | EX27: 96 | EY27: 865 | EZ27: 7233 | FA27: -662 | FB27: 478 | FC27: 597 | FD27: 6172 | FE27: -800 | FF27: 32144 | FG27: 25723 | FH27: 6421 | FI27: 194 | FJ27: 26959 | FK27: 20331 | FL27: 6628 | FM27: 177 | FN27: 26501 | FO27: 20536 | FP27: 5965 | FQ27: 159
A28: 111 | B28: Heinola | C28: 19575 | E28: 0.442262046 | F28: 50.7082642 | G28: -90.37037037 | K28: 57.59795899 | L28: 4055.32567 | M28: 141.321161 | N28: 10473.9719 | P28: 71155 | Q28: 175485 | R28: -1 | S28: -104331 | T28: 71054 | U28: 37385 | X28: -1090 | Y28: 3271 | Z28: 6289 | AA28: 8402 | AB28: 1123 | AD28: -990 | AE28: 10 | AF28: -27 | AI28: -1007 | AJ28: 22998 | AK28: 7287 | AM28: 881 | AN28: -15688 | AO28: -1908 | AP28: 71054 | AT28: 20.5 | AV28: 271 | AW28: 19350 | AY28: 0.9683996908 | AZ28: 54.74735839 | BA28: -298.8113695 | BE28: 54.73999682 | BF28: 4359.018088 | BG28: 148.9833047 | BH28: 10679.32817 | BJ28: 73429 | BK28: 178811 | BL28: 0 | BM28: -105382 | BN28: 71326 | BO28: 41022 | BR28: -775 | BS28: 3020 | BT28: 9211 | BU28: 10104 | BV28: -14 | BX28: -907 | BY28: -1 | BZ28: -2 | CA28: 0 | CB28: 54 | CC28: -856 | CD28: 22036 | CE28: 9394 | CG28: -1636 | CH28: -9538 | CI28: -3992 | CN28: 20.5 | CP28: 240 | CQ28: 19128 | CS28: 1.351977401 | CT28: 54.51156277 | CU28: -595.9849435 | CY28: 52.3150855 | CZ28: 4677.593057 | DA28: 167.534384 | DB28: 10190.87202 | DD28: 99479 | DE28: 201269 | DF28: 8 | DG28: -101782 | DH28: 69813 | DI28: 42076 | DL28: -744 | DM28: 4126 | DN28: 13489 | DO28: 9896 | DP28: 162 | DR28: 3755 | DS28: -3 | DT28: 146 | DU28: 0 | DV28: -70 | DW28: 3828 | DX28: 25618 | DY28: 13607 | EA28: -2789 | EB28: -9751 | EC28: -1751 | EE28: 21 | EH28: 20.5 | EJ28: 177 | EQ28: -10795 | ER28: 383 | ES28: 1217 | ET28: -16223 | EU28: 2102 | EV28: 735 | EW28: -18900 | EX28: 1320 | EY28: 2222 | EZ28: 21312 | FA28: -3537 | FB28: 18944 | FC28: 2988 | FD28: 22779 | FE28: -4010 | FF28: 63600 | FG28: 45715 | FH28: 17885 | FI28: 198 | FJ28: 76029 | FK28: 54259 | FL28: 21770 | FM28: 161 | FN28: 85052 | FO28: 66850 | FP28: 18202 | FQ28: 1773
A29: 90 | B29: Heinävesi | C29: 3574 | E29: 1.655395683 | F29: 67.47445404 | G29: -5632.064913 | K29: 27.09329013 | L29: 1318.410744 | M29: 42.49660251 | N29: 11323.72692 | P29: 13712 | Q29: 37361 | R29: 1 | S29: -23648 | T29: 12039 | U29: 13492 | X29: 4 | Y29: 289 | Z29: 2176 | AA29: 2146 | AB29: 0 | AD29: 30 | AE29: -3 | AF29: 136 | AI29: 163 | AJ29: 757 | AK29: 2166 | AM29: -103 | AN29: -1265 | AO29: 475 | AP29: 12039 | AT29: 20.75 | AV29: 153 | AW29: 3514 | AY29: 1.999041227 | AZ29: 73.25062997 | BA29: -5664.484917 | BE29: 26.56906602 | BF29: 1409.220262 | BG29: 48.02657101 | BH29: 10710.01707 | BJ29: 10299 | BK29: 34474 | BL29: 0 | BM29: -24175 | BN29: 11892 | BO29: 13922 | BR29: 64 | BS29: 300 | BT29: 2003 | BU29: 2526 | BV29: 0 | BX29: -523 | BY29: 0 | BZ29: 267 | CA29: 0 | CB29: -1 | CC29: -257 | CD29: 600 | CE29: 1984 | CG29: -2 | CH29: -961 | CI29: 452 | CN29: 20.75 | CP29: 205 | CQ29: 3455 | CS29: 3.214750542 | CT29: 63.10575511 | CU29: -5071.201158 | CY29: 27.68316112 | CZ29: 2299.855282 | DA29: 77.12921841 | DB29: 10883.64689 | DD29: 16905 | DE29: 39957 | DF29: 0 | DG29: -23052 | DH29: 12055 | DI29: 13941 | DL29: 117 | DM29: -154 | DN29: 2907 | DO29: 2774 | DP29: -198 | DR29: -65 | DS29: 2 | DT29: 191 | DU29: 0 | DV29: 0 | DW29: 128 | DX29: 1349 | DY29: 3009 | EA29: -214 | EB29: -865 | EC29: -238 | EE29: 0 | EH29: 20.75 | EJ29: 110 | EQ29: -1719 | ER29: 21 | ES29: 7 | ET29: -1903 | EU29: 342 | EV29: 29 | EW29: -3779 | EX29: 33 | EY29: 499 | EZ29: 419 | FA29: 900 | FB29: 106 | FC29: 1000 | FD29: 2381 | FE29: 2127 | FF29: 21051 | FG29: 7881 | FH29: 13170 | FI29: 0 | FJ29: 21181 | FK29: 7233 | FL29: 13948 | FM29: 0 | FN29: 23378 | FO29: 5526 | FP29: 17852 | FQ29: 0
A30: 91 | B30: Helsinki | C30: 628208 | E30: 3.584228172 | F30: 96.73036063 | G30: -6854.981153 | K30: 58.77404731 | L30: 2384.660813 | M30: 79.0740917 | N30: 11007.41315 | P30: 3114365 | Q30: 5559544 | R30: 7794 | S30: -2437385 | T30: 3067915 | U30: 273172 | X30: -70566 | Y30: 4707 | Z30: 837843 | AA30: 645659 | AB30: 115565 | AD30: 307749 | AE30: 1370 | AF30: -26674 | AI30: 282445 | AJ30: 3559243 | AK30: 813437 | AM30: 25162 | AN30: -168807 | AO30: -56632 | AP30: 3067915 | AT30: 18.5 | AV30: 3 | AW30: 635181 | AY30: 1.687631258 | AZ30: 91.16286439 | BA30: -6726.30636 | BE30: 60.07768361 | BF30: 1980.082843 | BG30: 58.98894248 | BH30: 12251.96125 | BJ30: 3156032 | BK30: 5604281 | BL30: 9883 | BM30: -2438366 | BN30: 3205605 | BO30: 316330 | BR30: -56998 | BS30: 5412 | BT30: 1031983 | BU30: 676631 | BV30: 272830 | BX30: 628182 | BY30: 1754 | BZ30: -12546 | CA30: 10906 | CB30: -8052 | CC30: 598432 | CD30: 4153306 | CE30: 1001650 | CG30: -115793 | CH30: -581447 | CI30: -37322 | CN30: 18.5 | CP30: 4 | CQ30: 643272 | CS30: 3.509177835 | CT30: 89.17479081 | CU30: -6375.679339 | CY30: 61.91198449 | CZ30: 2382.259759 | DA30: 121.6089481 | DB30: 7150.171312 | DD30: 3368014 | DE30: 5549282 | DF30: 23333 | DG30: -2157935 | DH30: 3380795 | DI30: 220442 | DL30: -51809 | DM30: 1171 | DN30: 1392664 | DO30: 709312 | DP30: 2492 | DR30: 685844 | DS30: 1289 | DT30: -15738 | DU30: 12602 | DV30: -10463 | DW30: 648330 | DX30: 4770587 | DY30: 1193637 | EA30: -23272 | EB30: -347200 | EC30: 171265 | EE30: 316055 | EH30: 18.5 | EJ30: 2 | EQ30: -1074671 | ER30: 7008 | ES30: 197594 | ET30: -1505347 | EU30: 20003 | EV30: 446372 | EW30: -1385994 | EX30: 33379 | EY30: 330243 | EZ30: 269182 | FA30: -30345 | FB30: 534986 | FC30: -24788 | FD30: 417793 | FE30: -26229 | FF30: 5011275 | FG30: 4443558 | FH30: 567717 | FI30: 475906 | FJ30: 4940025 | FK30: 4661008 | FL30: 279017 | FM30: 478671 | FN30: 4984749 | FO30: 4716499 | FP30: 268250 | FQ30: 480390
A31: 97 | B31: Hirvensalmi | C31: 2290 | E31: 2.85883905 | F31: 47.63156814 | G31: -1429.257642 | K31: 48.59550562 | L31: 2981.659389 | M31: 101.371568 | N31: 10735.80786 | P31: 9858 | Q31: 22360 | R31: 0 | S31: -12502 | T31: 7427 | U31: 7056 | X31: -130 | Y31: 182 | Z31: 2033 | AA31: 1338 | AB31: 1 | AD31: 696 | AE31: -3 | AF31: 0 | AI31: 693 | AJ31: 2765 | AK31: 1992 | AM31: -34 | AN31: -624 | AO31: 658 | AP31: 7427 | AT31: 19.5 | AV31: 62 | AW31: 2274 | AY31: 2.396694215 | AZ31: 46.62843664 | BA31: -1338.610378 | BE31: 49.18318992 | BF31: 3117.854002 | BG31: 102.9416445 | BH31: 11054.96922 | BJ31: 10076 | BK31: 22968 | BL31: 0 | BM31: -12892 | BN31: 7377 | BO31: 7135 | BR31: -111 | BS31: 118 | BT31: 1627 | BU31: 1289 | BV31: 1 | BX31: 339 | BY31: -4 | BZ31: -6 | CA31: 0 | CB31: -1 | CC31: 328 | CD31: 3014 | CE31: 1667 | CG31: 161 | CH31: -613 | CI31: 314 | CN31: 19.5 | CP31: 137 | CQ31: 2236 | CS31: 2.46911958 | CT31: 45.31962331 | CU31: -1069.767442 | CY31: 46.00225225 | CZ31: 4306.797853 | DA31: 124.6480372 | DB31: 12611.35957 | DD31: 15101 | DE31: 28513 | DF31: 0 | DG31: -13412 | DH31: 7602 | DI31: 7348 | DL31: -101 | DM31: 335 | DN31: 1772 | DO31: 1252 | DP31: 1 | DR31: 521 | DS31: -5 | DT31: 10 | DU31: 0 | DV31: -1 | DW31: 525 | DX31: 3417 | DY31: 1690 | EA31: -266 | EB31: -654 | EC31: 774 | EE31: 814 | EH31: 20 | EJ31: 135 | EQ31: -1445 | ER31: 80 | ES31: 31 | ET31: -1420 | EU31: 12 | EV31: 55 | EW31: -1093 | EX31: 24 | EY31: 153 | EZ31: 490 | FA31: 0 | FB31: 21 | FC31: 305 | FD31: 895 | FE31: 335 | FF31: 7968 | FG31: 6836 | FH31: 1132 | FI31: 0 | FJ31: 7682 | FK31: 6220 | FL31: 1462 | FM31: 0 | FN31: 8258 | FO31: 6457 | FP31: 1801 | FQ31: 0
A32: 98 | B32: Hollola | C32: 21813 | E32: 1.042861485 | F32: 44.24970082 | G32: -3211.846147 | K32: 39.98203196 | L32: 1324.485399 | M32: 38.53695928 | N32: 12544.76688 | P32: 143877 | Q32: 245405 | R32: 0 | S32: -101528 | T32: 83775 | U32: 27213 | X32: -805 | Y32: 821 | Z32: 9476 | AA32: 12745 | AB32: -67 | AD32: -3336 | AE32: -41 | AF32: 66 | AI32: -3311 | AJ32: 11524 | AK32: 9325 | AM32: -397 | AN32: -9053 | AO32: -7346 | AP32: 83775 | AT32: 21 | AV32: 235 | AW32: 23791 | AY32: 1.442199681 | AZ32: 46.39061323 | BA32: -3247.152284 | BE32: 40.45399958 | BF32: 1343.575302 | BG32: 42.37280595 | BH32: 11573.57824 | BJ32: 140184 | BK32: 250012 | BL32: 31 | BM32: -109797 | BN32: 90990 | BO32: 35755 | BR32: -933 | BS32: 245 | BT32: 16260 | BU32: 10542 | BV32: -14 | BX32: 5704 | BY32: -34 | BZ32: -1 | CA32: 0 | CB32: -56 | CC32: 5613 | CD32: 18195 | CE32: 15997 | CG32: 202 | CH32: -10985 | CI32: 4004 | CN32: 21 | CP32: 147 | CQ32: 23782 | CS32: 8.940217391 | CT32: 48.86981974 | CU32: -3149.693045 | CY32: 44.20128099 | CZ32: 1010.25986 | DA32: 44.57242042 | DB32: 8272.937516 | DD32: 96659 | DE32: 211063 | DF32: -22 | DG32: -114426 | DH32: 91982 | DI32: 41632 | DL32: -849 | DM32: 545 | DN32: 18884 | DO32: 14390 | DP32: 152 | DR32: 4646 | DS32: 194 | DT32: -1 | DU32: 0 | DV32: 68 | DW32: 4907 | DX32: 23158 | DY32: 18487 | EA32: 1247 | EB32: -1352 | EC32: 3528 | EE32: 227 | EH32: 21 | EJ32: 133 | EQ32: -17999 | ER32: 93 | ES32: 1235 | ET32: -12995 | EU32: 247 | EV32: 755 | EW32: -18275 | EX32: 5 | EY32: 3311 | EZ32: 11360 | FA32: -10 | FB32: 10200 | FC32: -400 | FD32: 5761 | FE32: -9040 | FF32: 70576 | FG32: 61225 | FH32: 9351 | FI32: 83 | FJ32: 79879 | FK32: 70011 | FL32: 9868 | FM32: 119 | FN32: 75251 | FO32: 65624 | FP32: 9627 | FQ32: 1576
A33: 99 | B33: Honkajoki | C33: 1793 | E33: 1.198630137 | F33: 34.56708526 | G33: -3679.308422 | K33: 26.46866841 | L33: 401.5616286 | M33: 10.11274868 | N33: 14493.58617 | P33: 15002 | Q33: 25026 | R33: 0 | S33: -10024 | T33: 6002 | U33: 4717 | X33: -82 | Y33: 5 | Z33: 618 | AA33: 533 | AB33: 0 | AD33: 85 | AE33: 0 | AF33: 0 | AI33: 85 | AJ33: -1522 | AK33: 621 | AM33: 60 | AN33: -502 | AO33: 335 | AP33: 6002 | AT33: 21.5 | AV33: 264 | AW33: 1759 | AY33: 1.236786469 | AZ33: 33.85201651 | BA33: -3571.347356 | BE33: 27.25970853 | BF33: 421.8305856 | BG33: 10.66595778 | BH33: 14435.4747 | BJ33: 14315 | BK33: 24618 | BL33: 0 | BM33: -10303 | BN33: 6147 | BO33: 4730 | BR33: -59 | BS33: 10 | BT33: 525 | BU33: 534 | BV33: 0 | BX33: -9 | BY33: 1 | BZ33: 0 | CA33: 0 | CB33: 0 | CC33: -8 | CD33: -1525 | CE33: 527 | CG33: 69 | CH33: -413 | CI33: 278 | CN33: 21.5 | CP33: 274 | CQ33: 1707 | CS33: 1.518617021 | CT33: 35.11875309 | CU33: -3541.300527 | CY33: 27.45757016 | CZ33: 585.2372583 | DA33: 15.34271649 | DB33: 13922.67135 | DD33: 13630 | DE33: 23688 | DF33: 0 | DG33: -10058 | DH33: 5972 | DI33: 4650 | DL33: -45 | DM33: 6 | DN33: 525 | DO33: 481 | DP33: 0 | DR33: 44 | DS33: 0 | DT33: 4 | DU33: 0 | DV33: 0 | DW33: 48 | DX33: -1494 | DY33: 533 | EA33: 32 | EB33: -330 | EC33: 236 | EE33: 1520 | EH33: 22 | EJ33: 284 | EQ33: -371 | ER33: 3 | ES33: 82 | ET33: -295 | EU33: 18 | EV33: 28 | EW33: -303 | EX33: 4 | EY33: 2 | EZ33: 119 | FA33: -115 | FB33: 7 | FC33: 73 | FD33: 46 | FE33: 660 | FF33: 5021 | FG33: 4348 | FH33: 673 | FI33: 0 | FJ33: 4681 | FK33: 3997 | FL33: 684 | FM33: 0 | FN33: 5057 | FO33: 3701 | FP33: 1356 | FQ33: 0
A34: 102 | B34: Huittinen | C34: 10473 | E34: 2.106968641 | F34: 46.37868655 | G34: -2836.818486 | K34: 50.56683721 | L34: 625.3222572 | M34: 24.3951687 | N34: 9356.058436 | P34: 28751 | Q34: 84994 | R34: -216 | S34: -56459 | T34: 32997 | U34: 29462 | X34: -257 | Y34: 34 | Z34: 5777 | AA34: 4447 | AB34: 0 | AD34: 1330 | AE34: -20 | AF34: -62 | AI34: 1248 | AJ34: 10546 | AK34: 5392 | AM34: 299 | AN34: -2600 | AO34: -3746 | AP34: 32997 | AT34: 20.25 | AV34: 183 | AW34: 10403 | AY34: 1.455861877 | AZ34: 46.35847986 | BA34: -2666.923003 | BE34: 51.28590265 | BF34: 734.884168 | BG34: 31.05268136 | BH34: 8637.989042 | BJ34: 25240 | BK34: 82750 | BL34: -217 | BM34: -57727 | BN34: 32587 | BO34: 30323 | BR34: -252 | BS34: 35 | BT34: 4966 | BU34: 4789 | BV34: -1 | BX34: 176 | BY34: -18 | BZ34: -34 | CA34: 0 | CB34: 0 | CC34: 124 | CD34: 10636 | CE34: 4658 | CG34: 562 | CH34: -3329 | CI34: 1994 | CN34: 20.5 | CP34: 239 | CQ34: 10207 | CS34: 1.338978635 | CT34: 48.6813833 | CU34: -2762.613892 | CY34: 50.25531489 | CZ34: 916.3319291 | DA34: 41.82300983 | DB34: 7997.060841 | DD34: 24736 | DE34: 83637 | DF34: 266 | DG34: -58635 | DH34: 33980 | DI34: 29710 | DL34: -229 | DM34: 79 | DN34: 4905 | DO34: 4583 | DP34: 0 | DR34: 322 | DS34: -25 | DT34: 0 | DU34: 41 | DV34: -25 | DW34: 231 | DX34: 10861 | DY34: 4489 | EA34: -20 | EB34: -3604 | EC34: -823 | EE34: 300 | EH34: 20.75 | EJ34: 260 | EQ34: -10080 | ER34: 37 | ES34: 905 | ET34: -3489 | EU34: 108 | EV34: 717 | EW34: -5894 | EX34: 304 | EY34: 278 | EZ34: 5647 | FA34: 27 | FB34: 3423 | FC34: -33 | FD34: 5547 | FE34: 17 | FF34: 26580 | FG34: 23509 | FH34: 3071 | FI34: 0 | FJ34: 26616 | FK34: 23255 | FL34: 3361 | FM34: 0 | FN34: 28572 | FO34: 24882 | FP34: 3690 | FQ34: 0
A35: 103 | B35: Humppila | C35: 2388 | E35: 1.047191011 | F35: 41.66955467 | G35: -3023.450586 | K35: 39.73166927 | L35: 262.5628141 | M35: 9.652663545 | N35: 9928.39196 | P35: 8648 | Q35: 21699 | R35: 1 | S35: -13050 | T35: 7559 | U35: 6877 | X35: -90 | Y35: -7 | Z35: 1289 | AA35: 834 | AB35: 0 | AD35: 455 | AE35: 1 | AF35: -14 | AI35: 442 | AJ35: -642 | AK35: 1221 | AM35: -55 | AN35: -1226 | AO35: 726 | AP35: 7559 | AT35: 21.5 | AV35: 191 | AW35: 2345 | AY35: 0.4511002445 | AZ35: 41.18511475 | BA35: -3109.594883 | BE35: 39.3194947 | BF35: 247.761194 | BG35: 8.497555698 | BH35: 10642.21748 | BJ35: 8777 | BK35: 22399 | BL35: 0 | BM35: -13622 | BN35: 7442 | BO35: 6918 | BR35: -81 | BS35: -11 | BT35: 646 | BU35: 834 | BV35: 0 | BX35: -188 | BY35: 0 | BZ35: -25 | CA35: 0 | CB35: 0 | CC35: -213 | CD35: -842 | CE35: 633 | CG35: 28 | CH35: -1544 | CI35: -82 | CN35: 21.5 | CP35: 277 | CQ35: 2290 | CS35: 1.133462282 | CT35: 42.5686173 | CU35: -3069.432314 | CY35: 39.3291379 | CZ35: 312.6637555 | DA35: 11.79917829 | DB35: 9672.052402 | DD35: 8848 | DE35: 21998 | DF35: 0 | DG35: -13150 | DH35: 7652 | DI35: 6672 | DL35: -63 | DM35: -6 | DN35: 1105 | DO35: 763 | DP35: 5 | DR35: 347 | DS35: 0 | DT35: 0 | DU35: 33 | DV35: -6 | DW35: 308 | DX35: -573 | DY35: 1063 | EA35: -564 | EB35: -967 | EC35: 286 | EE35: 0 | EH35: 22 | EJ35: 257 | EQ35: -654 | ER35: 7 | ES35: 152 | ET35: -899 | EU35: 34 | EV35: 150 | EW35: -895 | EX35: 45 | EY35: 73 | EZ35: 1518 | FA35: -727 | FB35: 661 | FC35: 1125 | FD35: 3128 | FE35: -1462 | FF35: 6897 | FG35: 4562 | FH35: 2335 | FI35: 11 | FJ35: 6810 | FK35: 3836 | FL35: 2974 | FM35: 10 | FN35: 7500 | FO35: 6073 | FP35: 1427 | FQ35: 8
A36: 105 | B36: Hyrynsalmi | C36: 2422 | E36: 3.5 | F36: 39.25432379 | G36: -4442.196532 | K36: 39.45729158 | L36: 754.3352601 | M36: 19.01605452 | N36: 14478.94302 | P36: 16752 | Q36: 33831 | R36: 0 | S36: -17079 | T36: 8216 | U36: 10302 | X36: -103 | Y36: 8 | Z36: 1344 | AA36: 1291 | AB36: 36 | AD36: 89 | AE36: 0 | AF36: 0 | AI36: 89 | AJ36: -2541 | AK36: 1398 | AM36: 317 | AN36: -309 | AO36: 628 | AP36: 8216 | AT36: 21.75 | AV36: 177 | AW36: 2406 | AY36: 1.006129597 | AZ36: 37.5343496 | BA36: -4282.211139 | BE36: 40.44153648 | BF36: 549.8753117 | BG36: 13.63416907 | BH36: 14720.69825 | BJ36: 16928 | BK36: 33353 | BL36: 0 | BM36: -16425 | BN36: 7537 | BO36: 10106 | BR36: -69 | BS36: -72 | BT36: 1077 | BU36: 1249 | BV36: 10 | BX36: -162 | BY36: 0 | BZ36: -14 | CA36: 0 | CB36: 0 | CC36: -176 | CD36: -2717 | CE36: 1051 | CG36: -93 | CH36: -1070 | CI36: 431 | CN36: 21.75 | CP36: 247 | CQ36: 2326 | CS36: 3.074433657 | CT36: 36.78349712 | CU36: -4039.982803 | CY36: 42.57039893 | CZ36: 1037.403267 | DA36: 27.11235955 | DB36: 13966.03611 | DD36: 16914 | DE36: 32982 | DF36: 0 | DG36: -16068 | DH36: 7838 | DI36: 11169 | DL36: -45 | DM36: -93 | DN36: 2801 | DO36: 1272 | DP36: 0 | DR36: 1529 | DS36: 0 | DT36: 3 | DU36: 0 | DV36: -25 | DW36: 1507 | DX36: -1654 | DY36: 2823 | EA36: -53 | EB36: -878 | EC36: 1328 | EE36: 2917 | EH36: 21.75 | EJ36: 32 | EQ36: -799 | ER36: 24 | ES36: 5 | ET36: -820 | EU36: 134 | EV36: 66 | EW36: -1535 | EX36: 15 | EY36: 25 | EZ36: 51 | FA36: -890 | FB36: 1 | FC36: 467 | FD36: 1367 | FE36: -500 | FF36: 10458 | FG36: 7424 | FH36: 3034 | FI36: 1 | FJ36: 9172 | FK36: 5850 | FL36: 3322 | FM36: 0 | FN36: 9162 | FO36: 6383 | FP36: 2779 | FQ36: 0
A37: 106 | B37: Hyvinkää | C37: 46463 | E37: 1.270214676 | F37: 67.52658124 | G37: -4752.254482 | K37: 41.43197504 | L37: 707.6383359 | M37: 26.8932301 | N37: 9604.201192 | P37: 168924 | Q37: 377890 | R37: 771 | S37: -208195 | T37: 194911 | U37: 46981 | X37: -4079 | Y37: 138 | Z37: 29756 | AA37: 29614 | AB37: -589 | AD37: -447 | AE37: 94 | AF37: 115 | AI37: -238 | AJ37: 42031 | AK37: 24095 | AM37: -3717 | AN37: -22531 | AO37: -10533 | AP37: 194911 | AT37: 19.75 | AV37: 138 | AW37: 46596 | AY37: 1.979324164 | AZ37: 70.18691433 | BA37: -4791.055026 | BE37: 40.69450511 | BF37: 1073.375397 | BG37: 40.92513507 | BH37: 9573.139325 | BJ37: 169167 | BK37: 377443 | BL37: 142 | BM37: -208134 | BN37: 197930 | BO37: 53470 | BR37: -3690 | BS37: 144 | BT37: 39720 | BU37: 30728 | BV37: 0 | BX37: 8992 | BY37: -51 | BZ37: -257 | CA37: 176 | CB37: -559 | CC37: 7949 | CD37: 49475 | CE37: 35520 | CG37: 1804 | CH37: -18216 | CI37: -3695 | CN37: 19.75 | CP37: 88 | CQ37: 46739 | CS37: 2.333458465 | CT37: 73.28428957 | CU37: -5056.740623 | CY37: 40.37175423 | CZ37: 1101.949122 | DA37: 54.22505798 | DB37: 7417.445816 | DD37: 177245 | DE37: 383035 | DF37: 236 | DG37: -205554 | DH37: 197736 | DI37: 51169 | DL37: -3224 | DM37: 119 | DN37: 40246 | DO37: 30538 | DP37: 238 | DR37: 9946 | DS37: -82 | DT37: -237 | DU37: 200 | DV37: -572 | DW37: 8855 | DX37: 56526 | DY37: 32481 | EA37: -2299 | EB37: -15381 | EC37: -12554 | EE37: 5700 | EH37: 19.75 | EJ37: 106 | EQ37: -41018 | ER37: 1414 | ES37: 4976 | ET37: -46118 | EU37: 2308 | EV37: 4595 | EW37: -55528 | EX37: 787 | EY37: 9706 | EZ37: 28868 | FA37: 2535 | FB37: 40921 | FC37: 1519 | FD37: 26636 | FE37: 0 | FF37: 201010 | FG37: 183767 | FH37: 17243 | FI37: 2037 | FJ37: 225234 | FK37: 209635 | FL37: 15599 | FM37: 2037 | FN37: 236489 | FO37: 220708 | FP37: 15781 | FQ37: 2006
A38: 108 | B38: Hämeenkyrö | C38: 10667 | E38: 1.522801788 | F38: 72.75743467 | G38: -4681.634949 | K38: 37.0575657 | L38: 989.7815693 | M38: 34.50604848 | N38: 10469.76657 | P38: 33531 | Q38: 85569 | R38: 1 | S38: -52037 | T38: 35705 | U38: 21185 | X38: -377 | Y38: 72 | Z38: 4548 | AA38: 5056 | AB38: 0 | AD38: -508 | AE38: -10 | AF38: -77 | AI38: -595 | AJ38: 7437 | AK38: 4284 | AM38: 997 | AN38: -2794 | AO38: -16841 | AP38: 35705 | AT38: 21 | AV38: 237 | AW38: 10681 | AY38: 1.945454545 | AZ38: 79.23557043 | BA38: -5371.407172 | BE38: 32.55929644 | BF38: 1126.767157 | BG38: 42.02687447 | BH38: 9785.881472 | BJ38: 34877 | BK38: 87294 | BL38: 17 | BM38: -52400 | BN38: 36062 | BO38: 22307 | BR38: -381 | BS38: 38 | BT38: 5626 | BU38: 7669 | BV38: 52 | BX38: -1991 | BY38: -81 | BZ38: 5 | CA38: 55 | CB38: -40 | CC38: -2162 | CD38: 5223 | CE38: 5626 | CG38: 818 | CH38: -2662 | CI38: -7391 | CN38: 21 | CP38: 217 | CQ38: 10599 | CS38: 2.199082816 | CT38: 78.24421965 | CU38: -5617.794132 | CY38: 32.96734822 | CZ38: 1046.796868 | DA38: 48.83244905 | DB38: 7824.323049 | DD38: 36936 | DE38: 89241 | DF38: 56 | DG38: -52249 | DH38: 38179 | DI38: 21765 | DL38: -410 | DM38: 388 | DN38: 7673 | DO38: 6635 | DP38: 0 | DR38: 1038 | DS38: -96 | DT38: 9 | DU38: 62 | DV38: -59 | DW38: 830 | DX38: 5670 | DY38: 7525 | EA38: -689 | EB38: -3228 | EC38: -1987 | EE38: 84 | EH38: 22 | EJ38: 168 | EQ38: -22465 | ER38: 879 | ES38: 461 | ET38: -13776 | EU38: 531 | EV38: 228 | EW38: -10296 | EX38: 234 | EY38: 550 | EZ38: 20000 | FA38: -2494 | FB38: 3372 | FC38: 7425 | FD38: 7425 | FE38: -1015 | FF38: 50327 | FG38: 41628 | FH38: 8699 | FI38: 0 | FJ38: 58524 | FK38: 42280 | FL38: 16244 | FM38: 32 | FN38: 61756 | FO38: 46520 | FP38: 15236 | FQ38: 29
A39: 109 | B39: Hämeenlinna | C39: 68011 | E39: 0.96365921 | F39: 80.65776382 | G39: -5019.246887 | K39: 43.67228252 | L39: 1549.499346 | M39: 57.16374047 | N39: 9893.811295 | P39: 211673 | Q39: 558299 | R39: 2381 | S39: -344245 | T39: 275761 | U39: 113572 | X39: -4711 | Y39: 5838 | Z39: 46215 | AA39: 40010 | AB39: 0 | AD39: 6205 | AE39: -250 | AF39: -618 | AI39: 5337 | AJ39: 10748 | AK39: 38755 | AM39: -4425 | AN39: -48413 | AO39: 7113 | AP39: 275761 | AT39: 20.5 | AV39: 121 | AW39: 67850 | AY39: 1.502901825 | AZ39: 85.83162285 | BA39: -5377.361828 | BE39: 39.3976037 | BF39: 1712.070744 | BG39: 63.1109014 | BH39: 9901.709654 | BJ39: 218006 | BK39: 571540 | BL39: 603 | BM39: -352931 | BN39: 272446 | BO39: 117077 | BR39: -9036 | BS39: 6124 | BT39: 33680 | BU39: 40104 | BV39: 0 | BX39: -6424 | BY39: 136 | BZ39: -18 | CA39: 2 | CB39: -37 | CC39: -6345 | CD39: 5228 | CE39: 30507 | CG39: -1884 | CH39: -19209 | CI39: -28511 | CN39: 20.5 | CP39: 231 | CQ39: 67662 | CS39: 0.9044351464 | CT39: 86.30282338 | CU39: -5342.319175 | CY39: 41.16444194 | CZ39: 1796.370193 | DA39: 77.8426033 | DB39: 8423.088292 | DD39: 222299 | DE39: 566706 | DF39: 800 | DG39: -343607 | DH39: 278641 | DI39: 113537 | DL39: -10331 | DM39: 5012 | DN39: 43252 | DO39: 42380 | DP39: 1471 | DR39: 2343 | DS39: 168 | DT39: 2 | DU39: 12 | DV39: 82 | DW39: 2583 | DX39: 8011 | DY39: 43191 | EA39: -6929 | EB39: -48962 | EC39: -3066 | EE39: 18820 | EH39: 20.75 | EJ39: 212 | EQ39: -50464 | ER39: 2063 | ES39: 16759 | ET39: -71492 | EU39: 566 | EV39: 11908 | EW39: -57216 | EX39: 635 | EY39: 10324 | EZ39: 41143 | FA39: -4344 | FB39: 49430 | FC39: 13430 | FD39: 25181 | FE39: 27306 | FF39: 384746 | FG39: 339003 | FH39: 45743 | FI39: 1046 | FJ39: 428009 | FK39: 364950 | FL39: 63059 | FM39: 965 | FN39: 426284 | FO39: 358090 | FP39: 68194 | FQ39: 1202
A40: 139 | B40: Ii | C40: 9663 | E40: 0.9217834395 | F40: 56.72090495 | G40: -5166.71841 | K40: 37.64067163 | L40: 963.8828521 | M40: 26.66256225 | N40: 13195.17748 | P40: 59803 | Q40: 110640 | R40: 19 | S40: -50818 | T40: 31634 | U40: 26315 | X40: -845 | Y40: 81 | Z40: 6367 | AA40: 5520 | AB40: 0 | AD40: 847 | AE40: -32 | AF40: -488 | AI40: 327 | AJ40: 12007 | AK40: 6805 | AM40: 1559 | AN40: -6981 | AO40: -1141 | AP40: 31634 | AT40: 21.25 | AV40: 128 | AW40: 9628 | AY40: 1.05731142 | AZ40: 56.01448558 | BA40: -5481.304528 | BE40: 37.53637502 | BF40: 784.8982135 | BG40: 21.07474672 | BH40: 13593.89281 | BJ40: 62339 | BK40: 113763 | BL40: 1 | BM40: -51423 | BN40: 31222 | BO40: 27663 | BR40: -652 | BS40: 45 | BT40: 6855 | BU40: 5948 | BV40: 0 | BX40: 907 | BY40: -5 | BZ40: 545 | CA40: 75 | CB40: -66 | CC40: 1306 | CD40: 13291 | CE40: 7036 | CG40: 608 | CH40: -6447 | CI40: -2666 | CN40: 21.25 | CP40: 140 | CQ40: 9966 | CS40: 1.051624983 | CT40: 64.8454084 | CU40: -5848.284166 | CY40: 35.76450479 | CZ40: 1141.8824 | DA40: 39.64664783 | DB40: 10512.54264 | DD40: 59869 | DE40: 111519 | DF40: 4 | DG40: -51646 | DH40: 31639 | DI40: 27677 | DL40: -565 | DM40: 167 | DN40: 7272 | DO40: 5869 | DP40: 0 | DR40: 1403 | DS40: -9 | DT40: 42 | DU40: 4 | DV40: -120 | DW40: 1312 | DX40: 14529 | DY40: 6754 | EA40: 1274 | EB40: -6886 | EC40: -5421 | EE40: 714 | EH40: 21.25 | EJ40: 164 | EQ40: -8995 | ER40: 898 | ES40: 151 | ET40: -9984 | EU40: 169 | EV40: 113 | EW40: -14238 | EX40: 222 | EY40: 1841 | EZ40: 5023 | FA40: 2496 | FB40: 1243 | FC40: 5840 | FD40: 12549 | FE40: 1588 | FF40: 43271 | FG40: 31599 | FH40: 11672 | FI40: 297 | FJ40: 44502 | FK40: 26990 | FL40: 17512 | FM40: 326 | FN40: 52711 | FO40: 33611 | FP40: 19100 | FQ40: 225
A41: 140 | B41: Iisalmi | C41: 21945 | E41: 1.588654618 | F41: 43.75345818 | G41: -2941.581226 | K41: 46.33223165 | L41: 1518.478013 | M41: 45.1231316 | N41: 12282.93461 | P41: 118258 | Q41: 242055 | R41: 425 | S41: -123372 | T41: 77367 | U41: 61013 | X41: -493 | Y41: 779 | Z41: 15294 | AA41: 12263 | AB41: 0 | AD41: 3031 | AE41: 0 | AF41: 341 | AI41: 3372 | AJ41: 21492 | AK41: 13965 | AM41: -14 | AN41: -9431 | AO41: 248 | AP41: 77367 | AT41: 20.5 | AV41: 116 | AW41: 21767 | AY41: 1.336864959 | AZ41: 48.14522124 | BA41: -3550.971654 | BE41: 44.79620511 | BF41: 1483.805761 | BG41: 40.85152611 | BH41: 13257.49989 | BJ41: 118051 | BK41: 241172 | BL41: 406 | BM41: -122715 | BN41: 74672 | BO41: 62887 | BR41: -428 | BS41: 445 | BT41: 14861 | BU41: 12226 | BV41: 321 | BX41: 2956 | BY41: -29 | BZ41: 1279 | CA41: 13 | CB41: -171 | CC41: 4022 | CD41: 26532 | CE41: 14656 | CG41: 927 | CH41: -10982 | CI41: -15199 | CN41: 20.5 | CP41: 148 | CQ41: 21639 | CS41: 1.852766431 | CT41: 50.26634513 | CU41: -3883.774666 | CY41: 44.74431646 | CZ41: 1582.281991 | DA41: 54.91938248 | DB41: 10516.01275 | DD41: 120731 | DE41: 242112 | DF41: 653 | DG41: -120728 | DH41: 75009 | DI41: 64261 | DL41: -416 | DM41: 1268 | DN41: 19394 | DO41: 14003 | DP41: -15 | DR41: 5376 | DS41: -41 | DT41: -25 | DU41: 17 | DV41: -224 | DW41: 5069 | DX41: 32377 | DY41: 18930 | EA41: 914 | EB41: -10208 | EC41: -6264 | EE41: 3258 | EH41: 20.5 | EJ41: 96 | EQ41: -15986 | ER41: 388 | ES41: 1881 | ET41: -34841 | EU41: 697 | EV41: 4289 | EW41: -26205 | EX41: 458 | EY41: 553 | EZ41: 2893 | FA41: 40 | FB41: 24385 | FC41: -31 | FD41: 16159 | FE41: 953 | FF41: 78452 | FG41: 68529 | FH41: 9923 | FI41: 0 | FJ41: 91334 | FK41: 79556 | FL41: 11778 | FM41: 0 | FN41: 98358 | FO41: 83036 | FP41: 15322 | FQ41: 0
A42: 142 | B42: Iitti | C42: 6910 | E42: 1.429415627 | F42: 55.6407563 | G42: -3334.298119 | K42: 43.12367865 | L42: 752.9667149 | M42: 31.05024362 | N42: 8851.230101 | P42: 18568 | Q42: 52819 | R42: 0 | S42: -34251 | T42: 23519 | U42: 15033 | X42: -317 | Y42: 29 | Z42: 4013 | AA42: 3343 | AB42: 110 | AD42: 780 | AE42: 1 | AF42: 0 | AI42: 781 | AJ42: 695 | AK42: 3936 | AM42: 615 | AN42: -2705 | AO42: 24 | AP42: 23519 | AT42: 20.25 | AV42: 168 | AW42: 6889 | AY42: 1.21223565 | AZ42: 50.98116506 | BA42: -3155.029758 | BE42: 44.49576597 | BF42: 817.68036 | BG42: 34.34469222 | BH42: 8689.940485 | BJ42: 19087 | BK42: 55200 | BL42: 0 | BM42: -36113 | BN42: 23613 | BO42: 15649 | BR42: -263 | BS42: 50 | BT42: 2936 | BU42: 3254 | BV42: 115 | BX42: -203 | BY42: 0 | BZ42: 0 | CA42: 0 | CB42: 42 | CC42: -161 | CD42: 534 | CE42: 3028 | CG42: 1160 | CH42: -2374 | CI42: 1247 | CN42: 20.25 | CP42: 254 | CQ42: 6820 | CS42: 1.100979653 | CT42: 45.76598998 | CU42: -3017.595308 | CY42: 43.10366914 | CZ42: 975.9530792 | DA42: 37.4884654 | DB42: 9502.199413 | DD42: 27351 | DE42: 63863 | DF42: 0 | DG42: -36512 | DH42: 24167 | DI42: 15180 | DL42: -220 | DM42: 83 | DN42: 2698 | DO42: 3068 | DP42: 0 | DR42: -370 | DS42: 0 | DT42: 0 | DU42: 0 | DV42: 0 | DW42: -370 | DX42: 316 | DY42: 2676 | EA42: -909 | EB42: -2430 | EC42: 1234 | EE42: 1219 | EH42: 20.25 | EJ42: 275 | EQ42: -5277 | ER42: 828 | ES42: 537 | ET42: -1996 | EU42: 8 | EV42: 207 | EW42: -1754 | EX42: 214 | EY42: 98 | EZ42: 1337 | FA42: 253 | FB42: 207 | FC42: 0 | FD42: 1655 | FE42: 0 | FF42: 23608 | FG42: 21444 | FH42: 2164 | FI42: 7 | FJ42: 21440 | FK42: 19012 | FL42: 2428 | FM42: 6 | FN42: 20664 | FO42: 18468 | FP42: 2196 | FQ42: 30
A43: 143 | B43: Ikaalinen | C43: 7207 | E43: 2.39084507 | F43: 57.93298811 | G43: -5027.195782 | K43: 34.78854601 | L43: 704.1764951 | M43: 23.75966805 | N43: 10817.67726 | P43: 29059 | Q43: 71974 | R43: 3 | S43: -42912 | T43: 25579 | U43: 23378 | X43: -242 | Y43: 19 | Z43: 5822 | AA43: 4091 | AB43: 0 | AD43: 1731 | AE43: -92 | AF43: -285 | AI43: 1354 | AJ43: 1923 | AK43: 5453 | AM43: 6495 | AN43: -2267 | AO43: 3241 | AP43: 25579 | AT43: 21.25 | AV43: 84 | AW43: 7128 | AY43: 2.759109312 | AZ43: 67.06846673 | BA43: -5831.790123 | BE43: 31.51375288 | BF43: 1021.885522 | BG43: 30.6092703 | BH43: 12185.46577 | BJ43: 29801 | BK43: 73413 | BL43: 22 | BM43: -43590 | BN43: 25046 | BO43: 23965 | BR43: -205 | BS43: 16 | BT43: 5232 | BU43: 3743 | BV43: 0 | BX43: 1489 | BY43: -101 | BZ43: 5 | CA43: 65 | CB43: -35 | CC43: 1293 | CD43: 3216 | CE43: 5086 | CG43: 2049 | CH43: -1756 | CI43: -5352 | CN43: 21.25 | CP43: 129 | CQ43: 7119 | CS43: 2.075112669 | CT43: 71.39059644 | CU43: -6286.557101 | CY43: 31.40084388 | CZ43: 930.0463548 | DA43: 34.82677869 | DB43: 9747.295969 | DD43: 30047 | DE43: 74520 | DF43: 55 | DG43: -44418 | DH43: 25271 | DI43: 22929 | DL43: -197 | DM43: 356 | DN43: 3941 | DO43: 3574 | DP43: 0 | DR43: 367 | DS43: -64 | DT43: -8 | DU43: 71 | DV43: 5 | DW43: 229 | DX43: 3114 | DY43: 3801 | EA43: 2173 | EB43: -1794 | EC43: -2761 | EE43: 577 | EH43: 21.25 | EJ43: 236 | EQ43: -3304 | ER43: 8 | ES43: 1084 | ET43: -11281 | EU43: 269 | EV43: 574 | EW43: -7259 | EX43: 26 | EY43: 671 | EZ43: -1362 | FA43: -5886 | FB43: 2197 | FC43: 5674 | FD43: 12219 | FE43: -10197 | FF43: 32700 | FG43: 15235 | FH43: 17465 | FI43: 31 | FJ43: 40729 | FK43: 17436 | FL43: 23293 | FM43: 61 | FN43: 42644 | FO43: 27968 | FP43: 14676 | FQ43: 27
A44: 145 | B44: Ilmajoki | C44: 12159 | E44: 1.048959201 | F44: 67.38665996 | G44: -5913.479727 | K44: 30.87715378 | L44: 645.3655728 | M44: 21.50072816 | N44: 10955.83518 | P44: 61715 | Q44: 121145 | R44: 24 | S44: -59406 | T44: 39043 | U44: 26558 | X44: -1023 | Y44: 63 | Z44: 5235 | AA44: 5044 | AB44: 0 | AD44: 191 | AE44: -20 | AF44: -21 | AI44: 150 | AJ44: 6455 | AK44: 4617 | AM44: 2644 | AN44: -4941 | AO44: -383 | AP44: 39043 | AT44: 20.25 | AV44: 236 | AW44: 12167 | AY44: 1.124514224 | AZ44: 65.2779588 | BA44: -5799.786307 | BE44: 31.54297494 | BF44: 652.3382921 | BG44: 21.16007713 | BH44: 11252.48623 | BJ44: 63437 | BK44: 123278 | BL44: 14 | BM44: -59827 | BN44: 38465 | BO44: 28531 | BR44: -781 | BS44: -27 | BT44: 6361 | BU44: 4983 | BV44: 0 | BX44: 1378 | BY44: -19 | BZ44: -220 | CA44: 0 | CB44: -8 | CC44: 1131 | CD44: 7827 | CE44: 6101 | CG44: 1004 | CH44: -5560 | CI44: 920 | CN44: 20.25 | CP44: 220 | CQ44: 12205 | CS44: 1.137695312 | CT44: 66.08570194 | CU44: -5772.470299 | CY44: 32.47328256 | CZ44: 697.5010242 | DA44: 25.70945722 | DB44: 9902.498976 | DD44: 61655 | DE44: 122728 | DF44: 0 | DG44: -61073 | DH44: 38942 | DI44: 29015 | DL44: -802 | DM44: 95 | DN44: 6177 | DO44: 5027 | DP44: 0 | DR44: 1150 | DS44: -20 | DT44: -61 | DU44: 5 | DV44: -6 | DW44: 1058 | DX44: 9718 | DY44: 6084 | EA44: 1006 | EB44: -5331 | EC44: -11 | EE44: 6254 | EH44: 20.25 | EJ44: 251 | EQ44: -6007 | ER44: 5 | ES44: 1002 | ET44: -7062 | EU44: 465 | EV44: 1416 | EW44: -8075 | EX44: 321 | EY44: 1659 | EZ44: 3552 | FA44: 1173 | FB44: 2795 | FC44: 1017 | FD44: 3216 | FE44: 2661 | FF44: 69107 | FG44: 61951 | FH44: 7156 | FI44: 206 | FJ44: 67810 | FK44: 59649 | FL44: 8161 | FM44: 233 | FN44: 68362 | FO44: 58124 | FP44: 10238 | FQ44: 118
A45: 146 | B45: Ilomantsi | C45: 5336 | E45: 1.457221711 | F45: 49.35430356 | G45: -3891.491754 | K45: 42.92533116 | L45: 1208.395802 | M45: 34.24696604 | N45: 12878.93553 | P45: 18951 | Q45: 58611 | R45: -1 | S45: -39661 | T45: 18491 | U45: 24042 | X45: -254 | Y45: 272 | Z45: 2890 | AA45: 2744 | AB45: 0 | AD45: 146 | AE45: 38 | AF45: -5 | AI45: 179 | AJ45: 1563 | AK45: 2899 | AM45: 878 | AN45: -1896 | AO45: -4240 | AP45: 18491 | AT45: 20.75 | AV45: 190 | AW45: 5237 | AY45: 2.231265509 | AZ45: 52.17151479 | BA45: -4137.483292 | BE45: 41.11099369 | BF45: 1412.640825 | BG45: 39.95191454 | BH45: 12905.86213 | BJ45: 19294 | BK45: 57497 | BL45: -4 | BM45: -38207 | BN45: 17868 | BO45: 24477 | BR45: -289 | BS45: 328 | BT45: 4177 | BU45: 3190 | BV45: 0 | BX45: 987 | BY45: 39 | BZ45: 47 | CA45: 21 | CB45: -25 | CC45: 1027 | CD45: 2494 | CE45: 4168 | CG45: 4 | CH45: -1696 | CI45: -2867 | CN45: 20.75 | CP45: 104 | CQ45: 5128 | CS45: 2.191629956 | CT45: 39.67797116 | CU45: -3652.4961 | CY45: 44.47778889 | CZ45: 1555.967239 | DA45: 45.54722322 | DB45: 12468.99376 | DD45: 31722 | DE45: 70039 | DF45: 4 | DG45: -38313 | DH45: 18359 | DI45: 23577 | DL45: -241 | DM45: 337 | DN45: 3719 | DO45: 3541 | DP45: -157 | DR45: 21 | DS45: 38 | DT45: -28 | DU45: 11 | DV45: 2 | DW45: 22 | DX45: 2484 | DY45: 3673 | EA45: 2245 | EB45: -1555 | EC45: -3893 | EE45: 1159 | EH45: 20.75 | EJ45: 167 | EQ45: -7851 | ER45: 621 | ES45: 91 | ET45: -7459 | EU45: 409 | EV45: 15 | EW45: -7938 | EX45: 17 | EY45: 355 | EZ45: 2750 | FA45: 1121 | FB45: 4652 | FC45: -341 | FD45: 3923 | FE45: -771 | FF45: 20571 | FG45: 17324 | FH45: 3247 | FI45: 0 | FJ45: 23187 | FK45: 20211 | FL45: 2976 | FM45: 315 | FN45: 21383 | FO45: 18931 | FP45: 2452 | FQ45: 315
A46: 153 | B46: Imatra | C46: 27835 | E46: 1.379223013 | F46: 75.53533472 | G46: -7278.17496 | K46: 33.08432724 | L46: 647.0989761 | M46: 17.43303228 | N46: 13548.48213 | P46: 154456 | Q46: 294946 | R46: -31 | S46: -140521 | T46: 107569 | U46: 61184 | X46: -2258 | Y46: 262 | Z46: 26236 | AA46: 21484 | AB46: 0 | AD46: 4752 | AE46: -98 | AF46: -254 | AI46: 4400 | AJ46: 38109 | AK46: 26325 | AM46: 688 | AN46: -18300 | AO46: -28302 | AP46: 107569 | AT46: 20 | AV46: 50 | AW46: 27517 | AY46: 1.511658442 | AZ46: 74.78286949 | BA46: -7415.415925 | BE46: 34.39426202 | BF46: 498.1284297 | BG46: 13.46166575 | BH46: 13506.26885 | BJ46: 151530 | BK46: 290861 | BL46: 486 | BM46: -138845 | BN46: 106689 | BO46: 65204 | BR46: -2364 | BS46: 182 | BT46: 30866 | BU46: 23087 | BV46: 0 | BX46: 7779 | BY46: -23 | BZ46: 282 | CA46: 279 | CB46: -131 | CC46: 7628 | CD46: 48119 | CE46: 26688 | CG46: -13381 | CH46: -19565 | CI46: -9247 | CN46: 20 | CP46: 31 | CQ46: 27269 | CS46: 1.418109847 | CT46: 77.71674798 | CU46: -7712.750743 | CY46: 34.65796079 | CZ46: 498.294767 | DA46: 17.8946229 | DB46: 10163.81239 | DD46: 148086 | DE46: 288149 | DF46: -6 | DG46: -140069 | DH46: 105590 | DI46: 65658 | DL46: -2326 | DM46: 212 | DN46: 29065 | DO46: 23575 | DP46: 854 | DR46: 6344 | DS46: -65 | DT46: 747 | DU46: 374 | DV46: -81 | DW46: 6571 | DX46: 52223 | DY46: 33672 | EA46: 1201 | EB46: -19770 | EC46: -2680 | EE46: 4335 | EH46: 20 | EJ46: 61 | EQ46: -61095 | ER46: 1893 | ES46: 4575 | ET46: -58698 | EU46: 2029 | EV46: 20734 | EW46: -41820 | EX46: 463 | EY46: 5005 | EZ46: 46490 | FA46: 300 | FB46: 27534 | FC46: -1186 | FD46: 26785 | FE46: -2370 | FF46: 189052 | FG46: 170271 | FH46: 18781 | FI46: 1328 | FJ46: 196872 | FK46: 176057 | FL46: 20815 | FM46: 1244 | FN46: 200492 | FO46: 181585 | FP46: 18907 | FQ46: 1161
A47: 148 | B47: Inari | C47: 6804 | E47: 1.957525935 | F47: 83.96172111 | G47: -7351.11699 | K47: 45.53877989 | L47: 1673.72134 | M47: 46.19698586 | N47: 13223.98589 | P47: 35376 | Q47: 73770 | R47: 0 | S47: -38394 | T47: 25281 | U47: 22731 | X47: -979 | Y47: 245 | Z47: 8884 | AA47: 5754 | AB47: 44 | AD47: 3174 | AE47: -29 | AF47: -184 | AI47: 2961 | AJ47: 14511 | AK47: 8804 | AM47: 47 | AN47: -3992 | AO47: 1000 | AP47: 25281 | AT47: 19 | AV47: 5 | AW47: 6825 | AY47: 1.919324222 | AZ47: 79.99367519 | BA47: -6768.351648 | BE47: 46.70230928 | BF47: 1838.827839 | BG47: 52.40952828 | BH47: 12806.30037 | BJ47: 35417 | BK47: 75437 | BL47: 0 | BM47: -40020 | BN47: 26169 | BO47: 23792 | BR47: -915 | BS47: 127 | BT47: 9153 | BU47: 5155 | BV47: 18 | BX47: 4016 | BY47: -155 | BZ47: 63 | CA47: 0 | CB47: -45 | CC47: 3879 | CD47: 17773 | CE47: 8766 | CG47: -1793 | CH47: -4310 | CI47: 2707 | CN47: 19 | CP47: 10 | CQ47: 6869 | CS47: 3.410298103 | CT47: 78.21384984 | CU47: -6460.911341 | CY47: 49.8612983 | CZ47: 2073.664289 | DA47: 73.34499542 | DB47: 10319.55161 | DD47: 38359 | DE47: 76083 | DF47: -2 | DG47: -37726 | DH47: 26677 | DI47: 23456 | DL47: -741 | DM47: 127 | DN47: 11793 | DO47: 5689 | DP47: 1 | DR47: 6105 | DS47: -234 | DT47: -18 | DU47: 343 | DV47: -260 | DW47: 5250 | DX47: 23370 | DY47: 10887 | EA47: -1037 | EB47: -2899 | EC47: 2147 | EE47: 22153 | EH47: 19 | EJ47: 5 | EQ47: -10981 | ER47: 607 | ES47: 2570 | ET47: -6568 | EU47: 214 | EV47: 295 | EW47: -10713 | EX47: 1057 | EY47: 916 | EZ47: 3096 | FA47: -254 | FB47: 3036 | FC47: 521 | FD47: 1257 | FE47: 448 | FF47: 48191 | FG47: 43414 | FH47: 4777 | FI47: 241 | FJ47: 46440 | FK47: 41207 | FL47: 5233 | FM47: 17 | FN47: 43499 | FO47: 37760 | FP47: 5739 | FQ47: 241
A48: 149 | B48: Inkoo | C48: 5541 | E48: 1.160765896 | F48: 62.51038846 | G48: -3513.445226 | K48: 39.00570161 | L48: 354.4486555 | M48: 17.92463681 | N48: 7217.650244 | P48: 5875 | Q48: 34093 | R48: 2 | S48: -28216 | T48: 26367 | U48: 5059 | X48: -201 | Y48: 1 | Z48: 3010 | AA48: 1970 | AB48: 0 | AD48: 1040 | AE48: 0 | AF48: 0 | AI48: 1040 | AJ48: 7292 | AK48: 2241 | AM48: 314 | AN48: -2565 | AO48: 381 | AP48: 26367 | AT48: 20.75 | AV48: 188 | AW48: 5585 | AY48: 2.370070779 | AZ48: 49.68828345 | BA48: -3330.170098 | BE48: 39.86950549 | BF48: 350.4028648 | BG48: 15.63578058 | BH48: 8179.767234 | BJ48: 13322 | BK48: 42732 | BL48: -1 | BM48: -29411 | BN48: 25764 | BO48: 5987 | BR48: -186 | BS48: 3 | BT48: 2157 | BU48: 2080 | BV48: 0 | BX48: 77 | BY48: 0 | BZ48: 0 | CA48: 0 | CB48: 0 | CC48: 77 | CD48: 7279 | CE48: 2112 | CG48: 419 | CH48: -802 | CI48: 858 | CN48: 20.75 | CP48: 260 | CQ48: 5481 | CS48: 1.08168028 | CT48: 47.89735977 | CU48: -3251.049079 | CY48: 40.30072058 | CZ48: 543.8788542 | DA48: 24.26982959 | DB48: 8179.529283 | DD48: 15299 | DE48: 44385 | DF48: 0 | DG48: -29086 | DH48: 25578 | DI48: 6278 | DL48: -140 | DM48: 10 | DN48: 2640 | DO48: 2176 | DP48: 0 | DR48: 464 | DS48: 0 | DT48: 2 | DU48: 0 | DV48: 0 | DW48: 466 | DX48: 7667 | DY48: 2362 | EA48: 53 | EB48: -2430 | EC48: 535 | EE48: 443 | EH48: 20.75 | EJ48: 258 | EQ48: -2947 | ER48: 177 | ES48: 910 | ET48: -1901 | EU48: 2 | EV48: 645 | EW48: -2175 | EX48: 8 | EY48: 340 | EZ48: 3006 | FA48: -390 | FB48: 2207 | FC48: -3116 | FD48: 2993 | FE48: -1013 | FF48: 15407 | FG48: 13999 | FH48: 1408 | FI48: 0 | FJ48: 16081 | FK48: 13665 | FL48: 2416 | FM48: 0 | FN48: 16695 | FO48: 14237 | FP48: 2458 | FQ48: 0
A49: 151 | B49: Isojoki | C49: 2123 | E49: 3.300699301 | F49: 22.9491268 | G49: -1887.894489 | K49: 60.1698818 | L49: 768.7235045 | M49: 18.09422557 | N49: 15506.82996 | P49: 17083 | Q49: 31565 | R49: 34 | S49: -14448 | T49: 6470 | U49: 9372 | X49: -57 | Y49: 21 | Z49: 1358 | AA49: 860 | AB49: 0 | AD49: 498 | AE49: 4 | AF49: -1 | AI49: 501 | AJ49: 822 | AK49: 1307 | AM49: 61 | AN49: -371 | AO49: 626 | AP49: 6470 | AT49: 22 | AV49: 139 | AW49: 2079 | AY49: 2.781690141 | AZ49: 22.86053635 | BA49: -1602.212602 | BE49: 60.87960639 | BF49: 837.4218374 | BG49: 19.92178193 | BH49: 15342.95334 | BJ49: 16560 | BK49: 30504 | BL49: 69 | BM49: -13875 | BN49: 6145 | BO49: 9289 | BR49: -47 | BS49: 20 | BT49: 1532 | BU49: 846 | BV49: 0 | BX49: 686 | BY49: 0 | BZ49: -4 | CA49: 0 | CB49: 0 | CC49: 682 | CD49: 1469 | CE49: 1482 | CG49: -306 | CH49: -520 | CI49: 696 | CN49: 22 | CP49: 128 | CQ49: 2032 | CS49: 4.014888337 | CT49: 21.3057235 | CU49: -1215.059055 | CY49: 64.06943682 | CZ49: 1274.606299 | DA49: 31.41637034 | DB49: 14808.56299 | DD49: 16348 | DE49: 30446 | DF49: 133 | DG49: -13965 | DH49: 6512 | DI49: 9061 | DL49: -45 | DM49: 9 | DN49: 1572 | DO49: 856 | DP49: 0 | DR49: 716 | DS49: -6 | DT49: 2 | DU49: 0 | DV49: -1 | DW49: 711 | DX49: 2113 | DY49: 1412 | EA49: 512 | EB49: -357 | EC49: 800 | EE49: 324 | EH49: 22 | EJ49: 144 | EQ49: -722 | ER49: 1 | ES49: 40 | ET49: -807 | EU49: 20 | EV49: 1 | EW49: -777 | EX49: 20 | EY49: 145 | EZ49: 98 | FA49: -263 | FB49: 306 | FC49: -24 | FD49: 472 | FE49: -89 | FF49: 3753 | FG49: 3159 | FH49: 594 | FI49: 200 | FJ49: 3532 | FK49: 2950 | FL49: 582 | FM49: 183 | FN49: 3508 | FO49: 3080 | FP49: 428 | FQ49: 161
A50: 152 | B50: Isokyrö | C50: 4785 | E50: 1.733540695 | F50: 46.0905849 | G50: -2671.891327 | K50: 50.72948872 | L50: 886.1024033 | M50: 37.47124767 | N50: 8631.347962 | P50: 13420 | Q50: 37893 | R50: -27 | S50: -24500 | T50: 15739 | U50: 12062 | X50: -220 | Y50: 33 | Z50: 3114 | AA50: 1875 | AB50: 0 | AD50: 1239 | AE50: -10 | AF50: -17 | AI50: 1212 | AJ50: 8519 | AK50: 3122 | AM50: 573 | AN50: -1699 | AO50: 1707 | AP50: 15739 | AT50: 21.5 | AV50: 130 | AW50: 4712 | AY50: 1.640079365 | AZ50: 38.99243491 | BA50: -2222.410866 | BE50: 56.93351843 | BF50: 808.7860781 | BG50: 33.03916679 | BH50: 8935.059423 | BJ50: 13506 | BK50: 37806 | BL50: 9 | BM50: -24291 | BN50: 15439 | BO50: 12958 | BR50: -224 | BS50: 19 | BT50: 3901 | BU50: 1883 | BV50: 0 | BX50: 2018 | BY50: -11 | BZ50: -61 | CA50: 0 | CB50: 0 | CC50: 1946 | CD50: 10876 | CE50: 3954 | CG50: 5 | CH50: -2288 | CI50: 2287 | CN50: 21.5 | CP50: 93 | CQ50: 4673 | CS50: 2.909733124 | CT50: 39.40162272 | CU50: -2109.137599 | CY50: 58.93990846 | CZ50: 926.8136101 | DA50: 44.37001796 | DB50: 7624.224267 | DD50: 13217 | DE50: 37748 | DF50: -7 | DG50: -24538 | DH50: 15063 | DI50: 13132 | DL50: -151 | DM50: 42 | DN50: 3548 | DO50: 1886 | DP50: 142 | DR50: 1804 | DS50: -10 | DT50: -37 | DU50: 0 | DV50: 0 | DW50: 1757 | DX50: 12604 | DY50: 3631 | EA50: 43 | EB50: -1115 | EC50: 660 | EE50: 661 | EH50: 21.5 | EJ50: 152 | EQ50: -1465 | ER50: 0 | ES50: 50 | ET50: -1762 | EU50: 60 | EV50: 35 | EW50: -3414 | EX50: 0 | EY50: 443 | EZ50: 13 | FA50: 0 | FB50: 99 | FC50: 0 | FD50: 874 | FE50: -206 | FF50: 12325 | FG50: 10222 | FH50: 2103 | FI50: 9 | FJ50: 10140 | FK50: 8567 | FL50: 1573 | FM50: 7 | FN50: 9694 | FO50: 8327 | FP50: 1367 | FQ50: 6
A51: 165 | B51: Janakkala | C51: 16853 | E51: 0.7261234739 | F51: 66.35996147 | G51: -4143.119919 | K51: 35.19131079 | L51: 823.6515754 | M51: 34.28636684 | N51: 8768.290512 | P51: 46898 | Q51: 128825 | R51: 27 | S51: -81900 | T51: 62381 | U51: 27769 | X51: -956 | Y51: 96 | Z51: 7390 | AA51: 7471 | AB51: 0 | AD51: -81 | AE51: -14 | AF51: -206 | AI51: -301 | AJ51: 1905 | AK51: 7188 | AM51: 520 | AN51: -10553 | AO51: 1064 | AP51: 62381 | AT51: 20.5 | AV51: 233 | AW51: 16709 | AY51: 0.9280521901 | AZ51: 66.25392969 | BA51: -4107.008199 | BE51: 35.25548703 | BF51: 925.8483452 | BG51: 37.44024136 | BH51: 9025.974026 | BJ51: 48225 | BK51: 130113 | BL51: 0 | BM51: -81888 | BN51: 62843 | BO51: 28892 | BR51: -683 | BS51: 83 | BT51: 9247 | BU51: 7484 | BV51: 0 | BX51: 1763 | BY51: -8 | BZ51: 5 | CA51: 72 | CB51: -162 | CC51: 1526 | CD51: 3431 | CE51: 8932 | CG51: -1318 | CH51: -10019 | CI51: 779 | CN51: 20.5 | CP51: 210 | CQ51: 16607 | CS51: 0.8055278055 | CT51: 65.14520985 | CU51: -3869.693503 | CY51: 38.0251869 | CZ51: 963.3889324 | DA51: 44.79896741 | DB51: 7849.220208 | DD51: 43023 | DE51: 123571 | DF51: 0 | DG51: -80548 | DH51: 64611 | DI51: 27894 | DL51: -637 | DM51: 121 | DN51: 11441 | DO51: 7908 | DP51: 292 | DR51: 3825 | DS51: -7 | DT51: 4 | DU51: 79 | DV51: -10 | DW51: 3733 | DX51: 7147 | DY51: 11548 | EA51: 608 | EB51: -14361 | EC51: 4423 | EE51: 2755 | EH51: 21 | EJ51: 182 | EQ51: -7214 | ER51: 5 | ES51: 1085 | ET51: -9957 | EU51: 180 | EV51: 1624 | EW51: -8306 | EX51: 354 | EY51: 827 | EZ51: 11367 | FA51: 227 | FB51: 13008 | FC51: -523 | FD51: 11094 | FE51: -434 | FF51: 71604 | FG51: 60868 | FH51: 10736 | FI51: 95 | FJ51: 73972 | FK51: 63602 | FL51: 10370 | FM51: 85 | FN51: 70271 | FO51: 59920 | FP51: 10351 | FQ51: 77
A52: 167 | B52: Joensuu | C52: 75514 | E52: 1.410271769 | F52: 67.38897084 | G52: -4628.068967 | K52: 41.8581315 | L52: 1605.410917 | M52: 53.79090755 | N52: 10893.5694 | P52: 302795 | Q52: 692934 | R52: 160 | S52: -389979 | T52: 261994 | U52: 187018 | X52: -6492 | Y52: 4003 | Z52: 56544 | AA52: 50905 | AB52: -3 | AD52: 5636 | AE52: -207 | AF52: -1275 | AI52: 4154 | AJ52: 60316 | AK52: 51636 | AM52: 4152 | AN52: -38051 | AO52: -19789 | AP52: 261994 | AT52: 20.5 | AV52: 101 | AW52: 75848 | AY52: 1.337386842 | AZ52: 70.2300521 | BA52: -4893.70847 | BE52: 39.74539218 | BF52: 1661.639068 | BG52: 54.70678827 | BH52: 11086.34374 | BJ52: 308191 | BK52: 705537 | BL52: -59 | BM52: -397405 | BN52: 262306 | BO52: 193982 | BR52: -5006 | BS52: 4640 | BT52: 58517 | BU52: 53999 | BV52: 0 | BX52: 4518 | BY52: 3 | BZ52: 60 | CA52: 396 | CB52: -737 | CC52: 3448 | CD52: 63842 | CE52: 53586 | CG52: -3764 | CH52: -42342 | CI52: -20594 | CN52: 20.5 | CP52: 111 | CQ52: 76067 | CS52: 0.7617256728 | CT52: 72.9549688 | CU52: -5062.366072 | CY52: 39.00189415 | CZ52: 2107.510484 | DA52: 89.03579607 | DB52: 8639.686066 | DD52: 356517 | DE52: 737618 | DF52: -83 | DG52: -381184 | DH52: 262380 | DI52: 186922 | DL52: -4324 | DM52: 5247 | DN52: 69041 | DO52: 57334 | DP52: -2729 | DR52: 8978 | DS52: -240 | DT52: -681 | DU52: 435 | DV52: -867 | DW52: 6755 | DX52: 73685 | DY52: 65824 | EA52: -2808 | EB52: -92166 | EC52: -14888 | EE52: 1531 | EH52: 20.5 | EJ52: 91 | EQ52: -81863 | ER52: 3842 | ES52: 6596 | ET52: -84405 | EU52: 1801 | EV52: 8424 | EW52: -178434 | EX52: 5028 | EY52: 92694 | EZ52: 61082 | FA52: 4 | FB52: 59533 | FC52: 15905 | FD52: 131284 | FE52: 24916 | FF52: 388906 | FG52: 351234 | FH52: 37672 | FI52: 2980 | FJ52: 422002 | FK52: 365127 | FL52: 56875 | FM52: 5452 | FN52: 486034 | FO52: 399680 | FP52: 86354 | FQ52: 5984
A53: 169 | B53: Jokioinen | C53: 5425 | E53: 1.302512212 | F53: 48.77091366 | G53: -4192.995392 | K53: 42.42529251 | L53: 240.5529954 | M53: 7.663132662 | N53: 11457.69585 | P53: 26864 | Q53: 53623 | R53: -13 | S53: -26772 | T53: 19310 | U53: 11145 | X53: -249 | Y53: 23 | Z53: 3457 | AA53: 2123 | AB53: 2 | AD53: 1336 | AE53: 20 | AF53: 1 | AI53: 1357 | AJ53: 7163 | AK53: 3391 | AM53: 1199 | AN53: -2590 | AO53: -1278 | AP53: 19310 | AT53: 20.5 | AV53: 140 | AW53: 5341 | AY53: 1.054981203 | AZ53: 48.86607363 | BA53: -4263.246583 | BE53: 40.89163604 | BF53: 228.9833365 | BG53: 7.582724648 | BH53: 11022.28047 | BJ53: 26879 | BK53: 54651 | BL53: -6 | BM53: -27778 | BN53: 18408 | BO53: 11595 | BR53: -242 | BS53: 18 | BT53: 2001 | BU53: 2526 | BV53: 0 | BX53: -525 | BY53: 27 | BZ53: 3 | CA53: 0 | CB53: 0 | CC53: -495 | CD53: 6628 | CE53: 1949 | CG53: 408 | CH53: -1884 | CI53: -45 | CN53: 20.5 | CP53: 263 | CQ53: 5286 | CS53: 1.560142712 | CT53: 46.31053036 | CU53: -4060.726447 | CY53: 41.41123674 | CZ53: 161.5588347 | DA53: 5.689176857 | DB53: 10365.1154 | DD53: 27261 | DE53: 54213 | DF53: -4 | DG53: -26956 | DH53: 18647 | DI53: 11336 | DL53: -213 | DM53: 93 | DN53: 2907 | DO53: 2538 | DP53: 27 | DR53: 396 | DS53: 0 | DT53: 3 | DU53: 0 | DV53: 0 | DW53: 399 | DX53: 5562 | DY53: 2911 | EA53: 397 | EB53: -1808 | EC53: 1561 | EE53: 1917 | EH53: 20.5 | EJ53: 238 | EQ53: -5803 | ER53: 834 | ES53: 300 | ET53: -2075 | EU53: 48 | EV53: 33 | EW53: -1431 | EX53: 24 | EY53: 57 | EZ53: 5147 | FA53: -1592 | FB53: 297 | FC53: 761 | FD53: 1004 | FE53: -200 | FF53: 22249 | FG53: 15626 | FH53: 6623 | FI53: 9 | FJ53: 21397 | FK53: 14146 | FL53: 7251 | FM53: 11 | FN53: 21130 | FO53: 13948 | FP53: 7182 | FQ53: 8
A54: 171 | B54: Joroinen | C54: 5110 | E54: 0.672510958 | F54: 67.82181549 | G54: -2192.172211 | K54: 32.6450624 | L54: 3325.831703 | M54: 129.8958224 | N54: 9345.401174 | P54: 15346 | Q54: 42316 | R54: -2 | S54: -26972 | T54: 17168 | U54: 12069 | X54: -293 | Y54: -138 | Z54: 1834 | AA54: 1484 | AB54: 187 | AD54: 537 | AE54: 10 | AF54: 0 | AI54: 547 | AJ54: -656 | AK54: 2198 | AM54: 1317 | AN54: -2880 | AO54: 365 | AP54: 17168 | AT54: 20.25 | AV54: 260 | AW54: 5039 | AY54: 0.4754990926 | AZ54: 63.54660173 | BA54: -2283.588013 | BE54: 34.47311159 | BF54: 2980.750149 | BG54: 109.9913729 | BH54: 9891.446716 | BJ54: 15702 | BK54: 43434 | BL54: 2 | BM54: -27730 | BN54: 16776 | BO54: 12692 | BR54: -226 | BS54: 42 | BT54: 1554 | BU54: 1235 | BV54: 216 | BX54: 535 | BY54: 26 | BZ54: -5 | CA54: 0 | CB54: 0 | CC54: 556 | CD54: 140 | CE54: 1861 | CG54: 1361 | CH54: -3577 | CI54: -366 | CN54: 20.25 | CP54: 273 | CQ54: 4917 | CS54: 0.869168357 | CT54: 62.16888791 | CU54: -2393.329266 | CY54: 31.22261174 | CZ54: 3751.677852 | DA54: 130.02636 | DB54: 10531.4216 | DD54: 24452 | DE54: 51864 | DF54: -15 | DG54: -27427 | DH54: 17376 | DI54: 12421 | DL54: -139 | DM54: 129 | DN54: 2360 | DO54: 1968 | DP54: 0 | DR54: 392 | DS54: -10 | DT54: 0 | DU54: 0 | DV54: 0 | DW54: 382 | DX54: 496 | DY54: 2317 | EA54: 490 | EB54: -2747 | EC54: -109 | EE54: 910 | EH54: 20.75 | EJ54: 262 | EQ54: -2112 | ER54: 31 | ES54: 248 | ET54: -2535 | EU54: 114 | EV54: 194 | EW54: -3133 | EX54: 232 | EY54: 475 | EZ54: 3462 | FA54: 0 | FB54: 1731 | FC54: 494 | FD54: 5035 | FE54: 543 | FF54: 25733 | FG54: 21477 | FH54: 4256 | FI54: 159 | FJ54: 24677 | FK54: 21030 | FL54: 3647 | FM54: 159 | FN54: 27827 | FO54: 23498 | FP54: 4329 | FQ54: 159
A55: 172 | B55: Joutsa | C55: 4688 | E55: 1.655 | F55: 59.19549156 | G55: -4274.957338 | K55: 27.52777637 | L55: 853.668942 | M55: 32.59248516 | N55: 9560.153584 | P55: 14125 | Q55: 40203 | R55: 6 | S55: -26072 | T55: 15012 | U55: 15934 | X55: -172 | Y55: 87 | Z55: 4789 | AA55: 2153 | AB55: 0 | AD55: 2636 | AE55: -3 | AF55: -43 | AI55: 2590 | AJ55: 1583 | AK55: 4646 | AM55: 138 | AN55: -2824 | AO55: 3529 | AP55: 15012 | AT55: 21 | AV55: 31 | AW55: 4673 | AY55: 1.622188334 | AZ55: 56.38881064 | BA55: -3898.780227 | BE55: 29.59624645 | BF55: 1050.074898 | BG55: 38.05249851 | BH55: 10072.33041 | BJ55: 14033 | BK55: 41942 | BL55: -4 | BM55: -27913 | BN55: 15166 | BO55: 16952 | BR55: -124 | BS55: 48 | BT55: 4129 | BU55: 2178 | BV55: -145 | BX55: 1806 | BY55: -11 | BZ55: -2 | CA55: 36 | CB55: -5 | CC55: 1752 | CD55: 3331 | CE55: 3992 | CG55: -259 | CH55: -2497 | CI55: 1632 | CN55: 21 | CP55: 80 | CQ55: 4567 | CS55: 0.7872028177 | CT55: 66.00747566 | CU55: -4942.850887 | CY55: 27.06386646 | CZ55: 914.6047734 | DA55: 37.39159759 | DB55: 8927.961463 | DD55: 13962 | DE55: 43415 | DF55: 1 | DG55: -29452 | DH55: 15492 | DI55: 16562 | DL55: -143 | DM55: 77 | DN55: 2536 | DO55: 2272 | DP55: -1037 | DR55: -773 | DS55: 11 | DT55: 5 | DU55: 6 | DV55: 9 | DW55: -754 | DX55: 2581 | DY55: 1461 | EA55: -725 | EB55: -3261 | EC55: -4214 | EE55: 1220 | EH55: 21 | EJ55: 233 | EQ55: -1599 | ER55: 31 | ES55: 451 | ET55: -2468 | EU55: 84 | EV55: 24 | EW55: -6081 | EX55: 26 | EY55: 380 | EZ55: 0 | FA55: -857 | FB55: 1152 | FC55: 268 | FD55: 9023 | FE55: -1165 | FF55: 20051 | FG55: 13151 | FH55: 6900 | FI55: 70 | FJ55: 18975 | FK55: 11039 | FL55: 7936 | FM55: 70 | FN55: 23572 | FO55: 18250 | FP55: 5322 | FQ55: 70
A56: 176 | B56: Juuka | C56: 5034 | E56: 6.21 | F56: 36.02624672 | G56: -2083.234009 | K56: 56.39761546 | L56: 1232.618196 | M56: 35.21675919 | N56: 12775.32777 | P56: 19303 | Q56: 53303 | R56: 2 | S56: -33998 | T56: 15520 | U56: 22327 | X56: -10 | Y56: 369 | Z56: 4208 | AA56: 2771 | AB56: 0 | AD56: 1437 | AE56: 0 | AF56: 337 | AI56: 1774 | AJ56: 10117 | AK56: 4058 | AM56: 716 | AN56: -561 | AO56: -4330 | AP56: 15520 | AT56: 20.75 | AV56: 76 | AW56: 4938 | AY56: 0.5721162418 | AZ56: 36.53719082 | BA56: -2024.301337 | BE56: 56.19614407 | BF56: 1308.626974 | BG56: 38.06206429 | BH56: 12549.21021 | BJ56: 19242 | BK56: 53273 | BL56: 0 | BM56: -34031 | BN56: 14495 | BO56: 22258 | BR56: -9 | BS56: 370 | BT56: 3083 | BU56: 3145 | BV56: 0 | BX56: -62 | BY56: 2 | BZ56: 256 | CA56: 13 | CB56: -3 | CC56: 180 | CD56: 10052 | CE56: 3097 | CG56: -104 | CH56: -5483 | CI56: 700 | CN56: 20.75 | CP56: 177 | CQ56: 4817 | CS56: 3.575122292 | CT56: 27.39372157 | CU56: -1424.538094 | CY56: 58.31143233 | CZ56: 1965.538717 | DA56: 57.90777171 | DB56: 12389.03882 | DD56: 34359 | DE56: 66595 | DF56: 0 | DG56: -32236 | DH56: 14781 | DI56: 22088 | DL56: -16 | DM56: 390 | DN56: 5007 | DO56: 3287 | DP56: -553 | DR56: 1167 | DS56: -2 | DT56: -904 | DU56: 25 | DV56: -1 | DW56: 235 | DX56: 11179 | DY56: 4567 | EA56: -387 | EB56: -1322 | EC56: -2304 | EE56: 989 | EH56: 20.75 | EJ56: 66 | EQ56: -9773 | ER56: 252 | ES56: 1133 | ET56: -2785 | EU56: 192 | EV56: 196 | EW56: -8352 | EX56: 24 | EY56: 1457 | EZ56: 1008 | FA56: -1 | FB56: 618 | FC56: 5000 | FD56: 9297 | FE56: -4222 | FF56: 12514 | FG56: 12031 | FH56: 483 | FI56: 2776 | FJ56: 12649 | FK56: 7166 | FL56: 5483 | FM56: 3058 | FN56: 12659 | FO56: 11422 | FP56: 1237 | FQ56: 3058
A57: 177 | B57: Juupajoki | C57: 1988 | E57: 3.804123711 | F57: 47.35991379 | G57: -3220.82495 | K57: 49.19869999 | L57: 780.1810865 | M57: 31.07789855 | N57: 9162.977867 | P57: 6571 | Q57: 16778 | R57: 4 | S57: -10203 | T57: 7280 | U57: 4709 | X57: -72 | Y57: 31 | Z57: 1745 | AA57: 788 | AB57: -7 | AD57: 950 | AE57: 81 | AF57: 1 | AI57: 1032 | AJ57: 1894 | AK57: 1702 | AM57: 299 | AN57: -385 | AO57: 802 | AP57: 7280 | AT57: 21 | AV57: 63 | AW57: 1957 | AY57: 1.265658747 | AZ57: 47.00098869 | BA57: -3227.899847 | BE57: 49.81402164 | BF57: 726.6223812 | BG57: 27.14308127 | BH57: 9771.078181 | BJ57: 6800 | BK57: 17075 | BL57: 15 | BM57: -10260 | BN57: 6912 | BO57: 4494 | BR57: -59 | BS57: -2 | BT57: 1085 | BU57: 827 | BV57: 13 | BX57: 271 | BY57: 74 | BZ57: 12 | CA57: 9 | CB57: 0 | CC57: 348 | CD57: 2299 | CE57: 1082 | CG57: 19 | CH57: -839 | CI57: 87 | CN57: 21 | CP57: 208 | CQ57: 1904 | CS57: -8.674418605 | CT57: 44.93394446 | CU57: -3321.953782 | CY57: 52.30436471 | CZ57: 601.8907563 | DA57: 27.05102503 | DB57: 8121.323529 | DD57: 7086 | DE57: 17134 | DF57: 12 | DG57: -10036 | DH57: 7174 | DI57: 4285 | DL57: -43 | DM57: 62 | DN57: 1442 | DO57: 803 | DP57: -2 | DR57: 637 | DS57: 72 | DT57: 1 | DU57: 0 | DV57: 0 | DW57: 710 | DX57: 2823 | DY57: 1262 | EA57: -42 | EB57: 222 | EC57: 79 | EE57: 397 | EH57: 21 | EJ57: 153 | EQ57: -975 | ER57: 37 | ES57: 38 | ET57: -1108 | EU57: 87 | EV57: 26 | EW57: -1611 | EX57: 192 | EY57: 236 | EZ57: 0 | FA57: -6 | FB57: 448 | FC57: 269 | FD57: 0 | FE57: -554 | FF57: 6478 | FG57: 5099 | FH57: 1379 | FI57: 52 | FJ57: 6359 | FK57: 4681 | FL57: 1678 | FM57: 58 | FN57: 6060 | FO57: 4865 | FP57: 1195 | FQ57: 55
A58: 178 | B58: Juva | C58: 6548 | E58: 1.257599499 | F58: 58.22572043 | G58: -4751.985339 | K58: 53.52755707 | L58: 250.4581552 | M58: 8.938864498 | N58: 10226.93952 | P58: 22109 | Q58: 58286 | R58: 122 | S58: -36055 | T58: 19827 | U58: 19937 | X58: -385 | Y58: 302 | Z58: 3626 | AA58: 2354 | AB58: -74 | AD58: 1198 | AE58: -9 | AF58: -5 | AI58: 1184 | AJ58: 1594 | AK58: 3318 | AM58: 915 | AN58: -2804 | AO58: -547 | AP58: 19827 | AT58: 19.75 | AV58: 180 | AW58: 6421 | AY58: 1.625231339 | AZ58: 56.20889446 | BA58: -4725.587915 | BE58: 54.38262289 | BF58: 314.4370036 | BG58: 10.80185568 | BH58: 10624.98053 | BJ58: 23334 | BK58: 59034 | BL58: 81 | BM58: -35619 | BN58: 19218 | BO58: 21308 | BR58: -310 | BS58: 360 | BT58: 4957 | BU58: 2780 | BV58: -199 | BX58: 1978 | BY58: -8 | BZ58: -37 | CA58: 0 | CB58: 0 | CC58: 1933 | CD58: 3145 | CE58: 5050 | CG58: -172 | CH58: -2930 | CI58: 871 | CN58: 19.75 | CP58: 110 | CQ58: 6334 | CS58: 1.421455939 | CT58: 55.83263598 | CU58: -4813.703821 | CY58: 52.22630076 | CZ58: 835.9646353 | DA58: 29.91988544 | DB58: 10198.13704 | DD58: 30684 | DE58: 66970 | DF58: 216 | DG58: -36070 | DH58: 19236 | DI58: 21780 | DL58: -227 | DM58: 597 | DN58: 5316 | DO58: 4198 | DP58: 3 | DR58: 1121 | DS58: -11 | DT58: -33 | DU58: 0 | DV58: 0 | DW58: 1077 | DX58: 3944 | DY58: 5100 | EA58: -574 | EB58: -3666 | EC58: 125 | EE58: 1420 | EH58: 19.75 | EJ58: 112 | EQ58: -4585 | ER58: 406 | ES58: 314 | ET58: -4887 | EU58: 130 | EV58: 578 | EW58: -5286 | EX58: 60 | EY58: 251 | EZ58: 3140 | FA58: -115 | FB58: 980 | FC58: 2998 | FD58: 6858 | FE58: -209 | FF58: 27637 | FG58: 18423 | FH58: 9214 | FI58: 158 | FJ58: 27753 | FK58: 14834 | FL58: 12919 | FM58: 158 | FN58: 31771 | FO58: 19893 | FP58: 11878 | FQ58: 160
A59: 179 | B59: Jyväskylä | C59: 137368 | E59: 1.788669697 | F59: 102.700877 | G59: -8818.735077 | K59: 24.9089905 | L59: 224.4190787 | M59: 8.188047809 | N59: 10003.96745 | P59: 553679 | Q59: 1146692 | R59: 252 | S59: -592761 | T59: 490468 | U59: 254098 | X59: -18918 | Y59: 279 | Z59: 133166 | AA59: 122479 | AB59: 0 | AD59: 10687 | AE59: 89 | AF59: -4357 | AI59: 6419 | AJ59: -33462 | AK59: 121112 | AM59: 5272 | AN59: -65842 | AO59: 10551 | AP59: 490468 | AT59: 20 | AV59: 42 | AW59: 138850 | AY59: 1.133627788 | AZ59: 97.71341452 | BA59: -8203.989917 | BE59: 25.93558347 | BF59: 402.160605 | BG59: 13.97103329 | BH59: 10506.64026 | BJ59: 562405 | BK59: 1165225 | BL59: 543 | BM59: -602277 | BN59: 506959 | BO59: 271325 | BR59: -14050 | BS59: -1101 | BT59: 160856 | BU59: 118271 | BV59: 3878 | BX59: 46463 | BY59: -953 | BZ59: -70 | CA59: 4695 | CB59: -2946 | CC59: 37799 | CD59: 4169 | CE59: 145690 | CG59: -24441 | CH59: -139920 | CI59: 43723 | CN59: 20 | CP59: 27 | CQ59: 140188 | CS59: 1.342847992 | CT59: 96.97265574 | CU59: -8016.192541 | CY59: 28.50333078 | CZ59: 452.5209005 | DA59: 21.18653497 | DB59: 7795.995378 | DD59: 555518 | DE59: 1157049 | DF59: 489 | DG59: -601042 | DH59: 514407 | DI59: 263554 | DL59: -16285 | DM59: -1674 | DN59: 158960 | DO59: 117804 | DP59: 0 | DR59: 41156 | DS59: -127 | DT59: 138 | DU59: 4198 | DV59: -1455 | DW59: 35514 | DX59: 40775 | DY59: 137949 | EA59: 11302 | EB59: -114002 | EC59: 6752 | EE59: 6350 | EH59: 20 | EJ59: 46 | EQ59: -138010 | ER59: 1159 | ES59: 26290 | ET59: -134941 | EU59: 545 | EV59: 32429 | EW59: -197578 | EX59: 1488 | EY59: 64893 | EZ59: 146671 | FA59: -100550 | FB59: 161880 | FC59: -36040 | FD59: 49747 | FE59: 33476 | FF59: 1080972 | FG59: 937805 | FH59: 143167 | FI59: 5245 | FJ59: 1066245 | FK59: 927435 | FL59: 138810 | FM59: 5774 | FN59: 1035466 | FO59: 876846 | FP59: 158620 | FQ59: 5567
A60: 181 | B60: Jämijärvi | C60: 1948 | E60: 0.5801781737 | F60: 42.43428732 | G60: -3658.110883 | K60: 16.78930366 | L60: 364.476386 | M60: 11.50652695 | N60: 11561.60164 | P60: 9636 | Q60: 20902 | R60: 0 | S60: -11266 | T60: 5874 | U60: 5909 | X60: -93 | Y60: 4 | Z60: 428 | AA60: 578 | AB60: 0 | AD60: -150 | AE60: 0 | AF60: 0 | AI60: -150 | AJ60: -1910 | AK60: 447 | AM60: -116 | AN60: -805 | AO60: -76 | AP60: 5874 | AT60: 21.5 | AV60: 285 | AW60: 1915 | AY60: -0.2463917526 | AZ60: 48.03677082 | BA60: -4105.483029 | BE60: 9.790273007 | BF60: 418.2767624 | BG60: 13.16307235 | BH60: 11598.43342 | BJ60: 9091 | BK60: 20697 | BL60: 0 | BM60: -11606 | BN60: 5372 | BO60: 5988 | BR60: -52 | BS60: 6 | BT60: -292 | BU60: 568 | BV60: 0 | BX60: -860 | BY60: 0 | BZ60: 4 | CA60: 0 | CB60: 0 | CC60: -856 | CD60: -2692 | CE60: -297 | CG60: 59 | CH60: -917 | CI60: -834 | CN60: 21.5 | CP60: 296 | CQ60: 1867 | CS60: 0.5774011299 | CT60: 46.90582092 | CU60: -4114.622389 | CY60: 9.026303646 | CZ60: 484.7348688 | DA60: 15.95002414 | DB60: 11092.66202 | DD60: 8896 | DE60: 20177 | DF60: 0 | DG60: -11281 | DH60: 5694 | DI60: 6094 | DL60: -57 | DM60: 4 | DN60: 454 | DO60: 560 | DP60: 0 | DR60: -106 | DS60: 0 | DT60: 0 | DU60: 0 | DV60: 0 | DW60: -106 | DX60: -2798 | DY60: 459 | EA60: 45 | EB60: -828 | EC60: 126 | EE60: 1950 | EH60: 22.5 | EJ60: 287 | EQ60: -554 | ER60: 8 | ES60: 23 | ET60: -538 | EU60: 5 | EV60: -4 | EW60: -359 | EX60: 4 | EY60: 22 | EZ60: 884 | FA60: 261 | FB60: 822 | FC60: 836 | FD60: 1296 | FE60: -207 | FF60: 6189 | FG60: 5072 | FH60: 1117 | FI60: 50 | FJ60: 6848 | FK60: 4998 | FL60: 1850 | FM60: 50 | FN60: 7074 | FO60: 5332 | FP60: 1742 | FQ60: 50
A61: 182 | B61: Jämsä | C61: 21542 | E61: 2.518442342 | F61: 42.22664295 | G61: -3040.943274 | K61: 54.07582725 | L61: 553.1055612 | M61: 19.84619 | N61: 10172.40739 | P61: 65660 | Q61: 196738 | R61: 555 | S61: -130523 | T61: 87105 | U61: 60875 | X61: -954 | Y61: 826 | Z61: 17329 | AA61: 12966 | AB61: 0 | AD61: 4363 | AE61: -12 | AF61: -150 | AI61: 4201 | AJ61: 13474 | AK61: 16582 | AM61: -958 | AN61: -6255 | AO61: 3387 | AP61: 87105 | AT61: 21 | AV61: 85 | AW61: 21259 | AY61: 1.742368742 | AZ61: 42.45678034 | BA61: -3192.671339 | BE61: 53.37509537 | BF61: 561.9267134 | BG61: 19.40157249 | BH61: 10571.47561 | BJ61: 64992 | BK61: 199557 | BL61: 434 | BM61: -134131 | BN61: 86941 | BO61: 61338 | BR61: -920 | BS61: 98 | BT61: 13326 | BU61: 14169 | BV61: 31 | BX61: -812 | BY61: -14 | BZ61: 21 | CA61: 23 | CB61: 2 | CC61: -826 | CD61: 12454 | CE61: 13211 | CG61: 2060 | CH61: -7246 | CI61: -2905 | CN61: 21 | CP61: 175 | CQ61: 20877 | CS61: 1.668816388 | CT61: 47.51579628 | CU61: -3335.153518 | CY61: 50.8049808 | CZ61: 842.4582076 | DA61: 33.86589998 | DB61: 9079.848637 | DD61: 63810 | DE61: 195533 | DF61: 1453 | DG61: -130270 | DH61: 85413 | DI61: 57946 | DL61: -802 | DM61: 76 | DN61: 12363 | DO61: 15968 | DP61: 0 | DR61: -3605 | DS61: -10 | DT61: 2267 | DU61: 26 | DV61: 0 | DW61: -1374 | DX61: 11080 | DY61: 10828 | EA61: -493 | EB61: -7074 | EC61: -1968 | EE61: 2831 | EH61: 21 | EJ61: 224 | EQ61: -14879 | ER61: 205 | ES61: 1479 | ET61: -16657 | EU61: 0 | EV61: 541 | EW61: -14092 | EX61: 481 | EY61: 815 | EZ61: 4000 | FA61: 3840 | FB61: 16816 | FC61: -4415 | FD61: 13354 | FE61: -4 | FF61: 60355 | FG61: 48760 | FH61: 11595 | FI61: 605 | FJ61: 65510 | FK61: 58122 | FL61: 7388 | FM61: 584 | FN61: 71787 | FO61: 64362 | FP61: 7425 | FQ61: 390
A62: 186 | B62: Järvenpää | C62: 40900 | E62: 3.028125403 | F62: 91.79509137 | G62: -6601.638142 | K62: 32.94668239 | L62: 602.5672372 | M62: 23.78150339 | N62: 9248.239609 | P62: 130483 | Q62: 317537 | R62: 13 | S62: -187041 | T62: 174872 | U62: 35636 | X62: -2223 | Y62: -52 | Z62: 21192 | AA62: 24575 | AB62: 27 | AD62: -3356 | AE62: 2 | AF62: -195 | AI62: -3549 | AJ62: 42696 | AK62: 13034 | AM62: -5865 | AN62: -5472 | AO62: -28472 | AP62: 174872 | AT62: 19.75 | AV62: 202 | AW62: 41529 | AY62: 4.459643436 | AZ62: 94.9564635 | BA62: -7428.929182 | BE62: 31.28107578 | BF62: 396.2773002 | BG62: 14.52083555 | BH62: 9960.942956 | BJ62: 137385 | BK62: 330798 | BL62: 9 | BM62: -193404 | BN62: 180855 | BO62: 40080 | BR62: -1399 | BS62: -72 | BT62: 26060 | BU62: 25558 | BV62: 0 | BX62: 502 | BY62: -2 | BZ62: -92 | CA62: 100 | CB62: -197 | CC62: 111 | CD62: 43742 | CE62: 16554 | CG62: 3085 | CH62: -4714 | CI62: -40313 | CN62: 19.75 | CP62: 174 | CQ62: 42572 | CS62: 3.567933297 | CT62: 103.2395939 | CU62: -7624.565442 | CY62: 28.8873248 | CZ62: 327.1399042 | DA62: 18.02435582 | DB62: 6624.70638 | DD62: 127885 | DE62: 320599 | DF62: 533 | DG62: -192181 | DH62: 181045 | DI62: 36638 | DL62: -34 | DM62: -704 | DN62: 24764 | DO62: 33397 | DP62: 57 | DR62: -8576 | DS62: 18 | DT62: -42 | DU62: 245 | DV62: 924 | DW62: -7921 | DX62: 36104 | DY62: 16951 | EA62: -2966 | EB62: -5977 | EC62: -17967 | EE62: 8932 | EH62: 19.75 | EJ62: 225 | EQ62: -52372 | ER62: 329 | ES62: 10537 | ET62: -76160 | EU62: 953 | EV62: 18340 | EW62: -47031 | EX62: 479 | EY62: 11634 | EZ62: 45512 | FA62: 11385 | FB62: 30479 | FC62: 4378 | FD62: 17167 | FE62: 8397 | FF62: 252287 | FG62: 173492 | FH62: 78795 | FI62: 5 | FJ62: 279613 | FK62: 196222 | FL62: 83391 | FM62: 5 | FN62: 299420 | FO62: 204956 | FP62: 94464 | FQ62: 4
A63: 202 | B63: Kaarina | C63: 32590 | E63: 3.578458943 | F63: 61.70864856 | G63: -3731.48205 | K63: 39.20694997 | L63: 510.9849647 | M63: 24.02251538 | N63: 7763.945996 | P63: 78640 | Q63: 231808 | R63: 9 | S63: -153159 | T63: 129819 | U63: 34622 | X63: -507 | Y63: 620 | Z63: 11395 | AA63: 11878 | AB63: 0 | AD63: -483 | AE63: 26 | AF63: 25 | AI63: -432 | AJ63: 20480 | AK63: 9137 | AM63: -1405 | AN63: -2226 | AO63: -5170 | AP63: 129819 | AT63: 19.25 | AV63: 263 | AW63: 32738 | AY63: 5.705021521 | AZ63: 59.85712876 | BA63: -3635.591667 | BE63: 39.73797096 | BF63: 626.0003665 | BG63: 29.11476112 | BH63: 7847.913739 | BJ63: 80043 | BK63: 234729 | BL63: 3 | BM63: -154683 | BN63: 137017 | BO63: 36315 | BR63: -600 | BS63: 622 | BT63: 18671 | BU63: 12703 | BV63: -500 | BX63: 5468 | BY63: 38 | BZ63: 33 | CA63: 5 | CB63: -4 | CC63: 5530 | CD63: 25281 | CE63: 15938 | CG63: -407 | CH63: -2274 | CI63: 1285 | CN63: 19.25 | CP63: 203 | CQ63: 33099 | CS63: 5.787088765 | CT63: 66.19908771 | CU63: -3975.648811 | CY63: 38.35617422 | CZ63: 738.5419499 | DA63: 42.79012162 | DB63: 6299.767365 | DD63: 82653 | DE63: 236306 | DF63: 10 | DG63: -153643 | DH63: 137266 | DI63: 33728 | DL63: -614 | DM63: 653 | DN63: 17390 | DO63: 13520 | DP63: 1 | DR63: 3871 | DS63: -8 | DT63: 0 | DU63: 4 | DV63: -3 | DW63: 3856 | DX63: 29136 | DY63: 13919 | EA63: 271 | EB63: -1966 | EC63: -12645 | EE63: 19802 | EH63: 19.75 | EJ63: 246 | EQ63: -17619 | ER63: 104 | ES63: 3208 | ET63: -18672 | EU63: 335 | EV63: 3684 | EW63: -31031 | EX63: 146 | EY63: 4321 | EZ63: 635 | FA63: 6334 | FB63: 4863 | FC63: -1548 | FD63: 9971 | FE63: 4180 | FF63: 105304 | FG63: 38499 | FH63: 66805 | FI63: 1620 | FJ63: 106345 | FK63: 39416 | FL63: 66929 | FM63: 1620 | FN63: 118530 | FO63: 45377 | FP63: 73153 | FQ63: 1620
A64: 204 | B64: Kaavi | C64: 3194 | E64: 1.54304103 | F64: 50.95818097 | G64: -4722.917971 | K64: 34.71669639 | L64: 609.5804634 | M64: 17.12421687 | N64: 12993.11209 | P64: 13924 | Q64: 34742 | R64: 44 | S64: -20774 | T64: 9268 | U64: 13179 | X64: -242 | Y64: 240 | Z64: 1671 | AA64: 1291 | AB64: 1 | AD64: 381 | AE64: 1 | AF64: -5 | AI64: 377 | AJ64: 1098 | AK64: 1794 | AM64: -242 | AN64: -996 | AO64: -2811 | AP64: 9268 | AT64: 21.25 | AV64: 198 | AW64: 3154 | AY64: 1.773399015 | AZ64: 56.06483615 | BA64: -5748.256183 | BE64: 32.20052871 | BF64: 280.9131262 | BG64: 7.832542143 | BH64: 13090.6785 | BJ64: 14076 | BK64: 35289 | BL64: 9 | BM64: -21204 | BN64: 9193 | BO64: 13624 | BR64: -234 | BS64: 184 | BT64: 1563 | BU64: 1498 | BV64: 0 | BX64: 65 | BY64: -11 | BZ64: -7 | CA64: 2 | CB64: -2 | CC64: 43 | CD64: 1142 | CE64: 1543 | CG64: -131 | CH64: -778 | CI64: -3144 | CN64: 21.25 | CP64: 232 | CQ64: 3048 | CS64: 1.002779708 | CT64: 56.53402079 | CU64: -5958.661417 | CY64: 30.98524209 | CZ64: 381.5616798 | DA64: 12.03626517 | DB64: 11570.86614 | DD64: 14106 | DE64: 35250 | DF64: 44 | DG64: -21100 | DH64: 9034 | DI64: 13323 | DL64: -300 | DM64: 180 | DN64: 1137 | DO64: 1676 | DP64: 0 | DR64: -539 | DS64: -14 | DT64: 3 | DU64: 5 | DV64: -3 | DW64: -558 | DX64: 666 | DY64: 1154 | EA64: 380 | EB64: -1133 | EC64: -180 | EE64: 96 | EH64: 21.25 | EJ64: 278 | EQ64: -5465 | ER64: 737 | ES64: 123 | ET64: -4939 | EU64: 211 | EV64: 41 | EW64: -1443 | EX64: 28 | EY64: 81 | EZ64: 4211 | FA64: 17 | FB64: 3226 | FC64: 479 | FD64: 1287 | FE64: -2 | FF64: 14180 | FG64: 13074 | FH64: 1106 | FI64: 0 | FJ64: 17109 | FK64: 15421 | FL64: 1688 | FM64: 0 | FN64: 17209 | FO64: 15404 | FP64: 1805 | FQ64: 0
A65: 205 | B65: Kajaani | C65: 37622 | E65: 1.576316308 | F65: 80.69971129 | G65: -10616.50098 | K65: 33.89441415 | L65: 437.1910053 | M65: 9.792711969 | N65: 16295.25278 | P65: 338454 | Q65: 527128 | R65: 52 | S65: -188622 | T65: 137353 | U65: 99516 | X65: -5368 | Y65: -633 | Z65: 42246 | AA65: 38766 | AB65: 190 | AD65: 3670 | AE65: -1092 | AF65: 2920 | AI65: 5498 | AJ65: 75548 | AK65: 43658 | AM65: -4668 | AN65: -24711 | AO65: -9977 | AP65: 137353 | AT65: 21 | AV65: 19 | AW65: 37521 | AY65: 1.575348686 | AZ65: 84.62603035 | BA65: -11139.62847 | BE65: 32.07652621 | BF65: 422.9897924 | BG65: 9.153187388 | BH65: 16867.48754 | BJ65: 333843 | BK65: 525991 | BL65: -4 | BM65: -192152 | BN65: 136396 | BO65: 104928 | BR65: -5428 | BS65: -800 | BT65: 42944 | BU65: 37838 | BV65: 116 | BX65: 5222 | BY65: -371 | BZ65: 380 | CA65: 0 | CB65: -326 | CC65: 4905 | CD65: 86242 | CE65: 43417 | CG65: -4305 | CH65: -25206 | CI65: -18632 | CN65: 21 | CP65: 28 | CQ65: 37239 | CS65: 1.660599647 | CT65: 90.6026967 | CU65: -11648.05714 | CY65: 32.26186266 | CZ65: 563.6832353 | DA65: 16.86387778 | DB65: 12200.30076 | DD65: 300207 | DE65: 501841 | DF65: 372 | DG65: -201262 | DH65: 137906 | DI65: 115897 | DL65: -2188 | DM65: -5623 | DN65: 44730 | DO65: 40492 | DP65: 0 | DR65: 4238 | DS65: -436 | DT65: 58 | DU65: 787 | DV65: -1212 | DW65: 1861 | DX65: 83131 | DY65: 44851 | EA65: 7130 | EB65: -26002 | EC65: -8810 | EE65: 2462 | EH65: 21 | EJ65: 33 | EQ65: -54181 | ER65: 1267 | ES65: -721 | ET65: -74676 | EU65: 3823 | EV65: 8804 | EW65: -82955 | EX65: 884 | EY65: 28410 | EZ65: 27219 | FA65: -2825 | FB65: 29409 | FC65: 16793 | FD65: 37315 | FE65: -2380 | FF65: 305817 | FG65: 280639 | FH65: 25178 | FI65: 138 | FJ65: 327093 | FK65: 285372 | FL65: 41721 | FM65: 262 | FN65: 336027 | FO65: 287055 | FP65: 48972 | FQ65: 212
A66: 208 | B66: Kalajoki | C66: 12621 | E66: 1.891657105 | F66: 69.63242242 | G66: -3571.111639 | K66: 48.83047346 | L66: 1692.972031 | M66: 61.72159041 | N66: 10011.64725 | P66: 36419 | Q66: 98095 | R66: 48 | S66: -61628 | T66: 38344 | U66: 34248 | X66: -573 | Y66: 471 | Z66: 10862 | AA66: 8351 | AB66: 420 | AD66: 2931 | AE66: -25 | AF66: -226 | AI66: 2680 | AJ66: 18233 | AK66: 10241 | AM66: 783 | AN66: -5422 | AO66: 1762 | AP66: 38344 | AT66: 20 | AV66: 67 | AW66: 12586 | AY66: 3.201789838 | AZ66: 68.79648746 | BA66: -3354.36199 | BE66: 49.22870731 | BF66: 1845.62212 | BG66: 75.01977561 | BH66: 8979.65994 | BJ66: 36431 | BK66: 100091 | BL66: 90 | BM66: -63570 | BN66: 39000 | BO66: 35486 | BR66: -117 | BS66: 92 | BT66: 10891 | BU66: 8959 | BV66: -6 | BX66: 1926 | BY66: 19 | BZ66: 140 | CA66: 80 | CB66: -50 | CC66: 1955 | CD66: 23106 | CE66: 9537 | CG66: -552 | CH66: -3264 | CI66: 2534 | CN66: 20 | CP66: 85 | CQ66: 12516 | CS66: 1.987313599 | CT66: 76.51147068 | CU66: -3861.697028 | CY66: 46.66033437 | CZ66: 2098.993289 | DA66: 99.27440729 | DB66: 7717.321828 | DD66: 37969 | DE66: 102797 | DF66: 49 | DG66: -64779 | DH66: 38599 | DI66: 34367 | DL66: -403 | DM66: 674 | DN66: 8458 | DO66: 8322 | DP66: 906 | DR66: 1042 | DS66: -65 | DT66: 6 | DU66: 53 | DV66: 36 | DW66: 966 | DX66: 21970 | DY66: 8156 | EA66: 755 | EB66: -4022 | EC66: -411 | EE66: 4962 | EH66: 20 | EJ66: 187 | EQ66: -21370 | ER66: 1817 | ES66: 11074 | ET66: -9091 | EU66: 1294 | EV66: 794 | EW66: -11598 | EX66: 877 | EY66: 2154 | EZ66: 11353 | FA66: -7378 | FB66: 3426 | FC66: -989 | FD66: 9175 | FE66: 154 | FF66: 54788 | FG66: 33412 | FH66: 21376 | FI66: 689 | FJ66: 54062 | FK66: 33529 | FL66: 20533 | FM66: 677 | FN66: 59412 | FO66: 38641 | FP66: 20771 | FQ66: 1466
A67: 211 | B67: Kangasala | C67: 30607 | E67: 1.655882874 | F67: 60.70716194 | G67: -3274.152972 | K67: 41.30394974 | L67: 1502.401411 | M67: 60.12487686 | N67: 9120.626001 | P67: 108107 | Q67: 239851 | R67: 40 | S67: -131704 | T67: 121621 | U67: 35982 | X67: -2085 | Y67: 2112 | Z67: 25926 | AA67: 18116 | AB67: 0 | AD67: 7810 | AE67: -8 | AF67: -455 | AI67: 7347 | AJ67: 47857 | AK67: 24029 | AM67: 1057 | AN67: -14816 | AO67: 6814 | AP67: 121621 | AT67: 21 | AV67: 71 | AW67: 31190 | AY67: 2.080851349 | AZ67: 57.43184174 | BA67: -2791.471626 | BE67: 44.04761495 | BF67: 1736.550176 | BG67: 71.59721644 | BH67: 8852.869509 | BJ67: 107497 | BK67: 241477 | BL67: 53 | BM67: -133927 | BN67: 124961 | BO67: 38639 | BR67: -1725 | BS67: 1391 | BT67: 29339 | BU67: 17886 | BV67: 137 | BX67: 11590 | BY67: -116 | BZ67: 13 | CA67: 539 | CB67: -267 | CC67: 10681 | CD67: 59792 | CE67: 27808 | CG67: 648 | CH67: -13190 | CI67: 12523 | CN67: 21 | CP67: 67 | CQ67: 31437 | CS67: 1.450691325 | CT67: 53.43021719 | CU67: -2426.66285 | CY67: 48.12652595 | CZ67: 1747.813086 | DA67: 81.04457286 | DB67: 7871.616248 | DD67: 109187 | DE67: 245528 | DF67: 172 | DG67: -136169 | DH67: 128741 | DI67: 38279 | DL67: -1339 | DM67: 2389 | DN67: 31901 | DO67: 17812 | DP67: 0 | DR67: 14089 | DS67: -124 | DT67: 1 | DU67: 360 | DV67: 701 | DW67: 14307 | DX67: 72926 | DY67: 31176 | EA67: -1882 | EB67: -21568 | EC67: 11425 | EE67: 8487 | EH67: 21 | EJ67: 69 | EQ67: -21320 | ER67: 891 | ES67: 3214 | ET67: -19563 | EU67: 1036 | EV67: 3242 | EW67: -21472 | EX67: 155 | EY67: 1566 | EZ67: 7009 | FA67: 254 | FB67: 8915 | FC67: -1431 | FD67: 5878 | FE67: 7871 | FF67: 114837 | FG67: 100222 | FH67: 14615 | FI67: 46 | FJ67: 103137 | FK67: 89341 | FL67: 13796 | FM67: 144 | FN67: 101312 | FO67: 87939 | FP67: 13373 | FQ67: 133
A68: 213 | B68: Kangasniemi | C68: 5628 | E68: 2.149047932 | F68: 57.73322798 | G68: -4470.149254 | K68: 35.09365245 | L68: 188.6993603 | M68: 6.28096897 | N68: 10965.70718 | P68: 17191 | Q68: 51318 | R68: 0 | S68: -34127 | T68: 18092 | U68: 19138 | X68: -121 | Y68: 137 | Z68: 3119 | AA68: 2639 | AB68: 0 | AD68: 480 | AE68: -2 | AF68: -1 | AI68: 477 | AJ68: -1251 | AK68: 2564 | AM68: -1767 | AN68: -1369 | AO68: -3924 | AP68: 18092 | AT68: 20 | AV68: 178 | AW68: 5603 | AY68: 2.391304348 | AZ68: 65.504731 | BA68: -4799.92861 | BE68: 31.95625981 | BF68: 238.2652151 | BG68: 8.006884993 | BH68: 10861.50277 | BJ68: 17544 | BK68: 51783 | BL68: 0 | BM68: -34239 | BN68: 17731 | BO68: 19576 | BR68: -170 | BS68: 152 | BT68: 3050 | BU68: 2560 | BV68: 0 | BX68: 490 | BY68: 9 | BZ68: -8 | CA68: 0 | CB68: 0 | CC68: 491 | CD68: -1062 | CE68: 3175 | CG68: -2488 | CH68: -1162 | CI68: -1804 | CN68: 20 | CP68: 213 | CQ68: 5549 | CS68: 1.697214735 | CT68: 59.51312323 | CU68: -4843.575419 | CY68: 33.01808116 | CZ68: 480.9875653 | DA68: 17.17079404 | DB68: 10224.36475 | DD68: 24133 | DE68: 57883 | DF68: -5 | DG68: -33755 | DH68: 18685 | DI68: 18676 | DL68: -229 | DM68: 145 | DN68: 3522 | DO68: 2607 | DP68: 3 | DR68: 918 | DS68: 6 | DT68: -6 | DU68: 0 | DV68: 0 | DW68: 918 | DX68: -213 | DY68: 3720 | EA68: 602 | EB68: -1970 | EC68: 209 | EE68: 2271 | EH68: 20.75 | EJ68: 214 | EQ68: -8871 | ER68: 2160 | ES68: 223 | ET68: -7715 | EU68: 2730 | EV68: 6 | EW68: -3436 | EX68: -289 | EY68: 214 | EZ68: 8032 | FA68: -1635 | FB68: 40 | FC68: 6070 | FD68: 6653 | FE68: -3400 | FF68: 23954 | FG68: 16504 | FH68: 7450 | FI68: 912 | FJ68: 28939 | FK68: 14601 | FL68: 14338 | FM68: 808 | FN68: 30220 | FO68: 19243 | FP68: 10977 | FQ68: 704
A69: 214 | B69: Kankaanpää | C69: 11769 | E69: 1.265924464 | F69: 69.46552921 | G69: -6325.26128 | K69: 32.6699206 | L69: 448.3813408 | M69: 13.21821214 | N69: 12381.34081 | P69: 65020 | Q69: 125620 | R69: 152 | S69: -60448 | T69: 41345 | U69: 27618 | X69: -398 | Y69: 387 | Z69: 8504 | AA69: 6971 | AB69: 0 | AD69: 1533 | AE69: -23 | AF69: -323 | AI69: 1187 | AJ69: 15037 | AK69: 8813 | AM69: 659 | AN69: -6617 | AO69: -3128 | AP69: 41345 | AT69: 21.5 | AV69: 110 | AW69: 11637 | AY69: 0.9187570523 | AZ69: 73.95384391 | BA69: -7010.7416 | BE69: 24.61037434 | BF69: 622.4112744 | BG69: 17.20841904 | BH69: 13201.68428 | BJ69: 68027 | BK69: 127235 | BL69: 43 | BM69: -59165 | BN69: 40738 | BO69: 28595 | BR69: -371 | BS69: 370 | BT69: 10167 | BU69: 7530 | BV69: 0 | BX69: 2637 | BY69: -783 | BZ69: -1 | CA69: 4 | CB69: -226 | CC69: 1623 | CD69: 9547 | CE69: 10789 | CG69: -138 | CH69: -11103 | CI69: -3424 | CN69: 21.5 | CP69: 83 | CQ69: 11585 | CS69: 1.182819383 | CT69: 75.78528154 | CU69: -7207.596029 | CY69: 28.76573618 | CZ69: 577.211912 | DA69: 20.00881263 | DB69: 10529.47777 | DD69: 67466 | DE69: 126957 | DF69: 23 | DG69: -59468 | DH69: 39869 | DI69: 28508 | DL69: -424 | DM69: 735 | DN69: 9220 | DO69: 8672 | DP69: 0 | DR69: 548 | DS69: -553 | DT69: -1 | DU69: 0 | DV69: -139 | DW69: -145 | DX69: 9952 | DY69: 10307 | EA69: -757 | EB69: -7726 | EC69: -849 | EE69: 1734 | EH69: 21.5 | EJ69: 131 | EQ69: -12837 | ER69: 438 | ES69: 458 | ET69: -14807 | EU69: 73 | EV69: 521 | EW69: -13216 | EX69: 848 | EY69: 1212 | EZ69: 10023 | FA69: -1326 | FB69: 18893 | FC69: 224 | FD69: 10265 | FE69: -690 | FF69: 58219 | FG69: 46853 | FH69: 11366 | FI69: 0 | FJ69: 66193 | FK69: 54210 | FL69: 11983 | FM69: 0 | FN69: 67725 | FO69: 56048 | FP69: 11677 | FQ69: 0
A70: 216 | B70: Kannonkoski | C70: 1462 | E70: 1.456470588 | F70: 51.10097203 | G70: -4367.989056 | K70: 52.04620462 | L70: 2796.853625 | M70: 54.96777401 | N70: 18571.81943 | P70: 14698 | Q70: 23450 | R70: 0 | S70: -8752 | T70: 4311 | U70: 6196 | X70: -45 | Y70: 73 | Z70: 1783 | AA70: 1204 | AB70: -37 | AD70: 542 | AE70: 10 | AF70: 3 | AI70: 555 | AJ70: 10291 | AK70: 1714 | AM70: -302 | AN70: -1201 | AO70: 627 | AP70: 4311 | AT70: 21 | AV70: 10 | AW70: 1424 | AY70: 1.851112817 | AZ70: 50.95128335 | BA70: -4176.264045 | BE70: 52.34353073 | BF70: 3158.005618 | BG70: 62.10150959 | BH70: 18561.09551 | BJ70: 14979 | BK70: 23231 | BL70: 0 | BM70: -8252 | BN70: 4204 | BO70: 6414 | BR70: -29 | BS70: 23 | BT70: 2360 | BU70: 1301 | BV70: 0 | BX70: 1059 | BY70: 9 | BZ70: 3 | CA70: 0 | CB70: 0 | CC70: 1071 | CD70: 11362 | CE70: 2375 | CG70: -253 | CH70: -1251 | CI70: 507 | CN70: 21 | CP70: 3 | CQ70: 1408 | CS70: 1.363775902 | CT70: 53.30988168 | CU70: -4813.210227 | CY70: 53.66186608 | CZ70: 2925.426136 | DA70: 70.4481983 | DB70: 15156.96023 | DD70: 14824 | DE70: 23332 | DF70: 0 | DG70: -8508 | DH70: 4229 | DI70: 5963 | DL70: 4 | DM70: 73 | DN70: 1761 | DO70: 1587 | DP70: 320 | DR70: 494 | DS70: 9 | DT70: 4 | DU70: 0 | DV70: 0 | DW70: 507 | DX70: 11862 | DY70: 2081 | EA70: -4 | EB70: -1287 | EC70: -855 | EE70: 2783 | EH70: 21 | EJ70: 23 | EQ70: -2418 | ER70: 1275 | ES70: 56 | ET70: -1890 | EU70: 21 | EV70: 1 | EW70: -3298 | EX70: 22 | EY70: 340 | EZ70: 1300 | FA70: -147 | FB70: 1665 | FC70: -176 | FD70: 2382 | FE70: -818 | FF70: 10044 | FG70: 6759 | FH70: 3285 | FI70: 49 | FJ70: 10282 | FK70: 7137 | FL70: 3145 | FM70: 49 | FN70: 10558 | FO70: 8088 | FP70: 2470 | FQ70: 49
A71: 217 | B71: Kannus | C71: 5590 | E71: 3.027777778 | F71: 59.09433698 | G71: -4255.456172 | K71: 45.00560294 | L71: 1005.366726 | M71: 35.96941907 | N71: 10201.9678 | P71: 25628 | Q71: 52573 | R71: 54 | S71: -26891 | T71: 18567 | U71: 12824 | X71: -156 | Y71: 21 | Z71: 4365 | AA71: 2762 | AB71: 0 | AD71: 1603 | AE71: -18 | AF71: -10 | AI71: 1575 | AJ71: 14498 | AK71: 3947 | AM71: 245 | AN71: -1299 | AO71: 1072 | AP71: 18567 | AT71: 20.5 | AV71: 91 | AW71: 5578 | AY71: 2.364560639 | AZ71: 60.87577939 | BA71: -4219.612764 | BE71: 43.84937497 | BF71: 1202.402295 | BG71: 42.98905981 | BH71: 10209.0355 | BJ71: 25588 | BK71: 52926 | BL71: 148 | BM71: -27190 | BN71: 17171 | BO71: 13214 | BR71: -147 | BS71: 19 | BT71: 3067 | BU71: 2904 | BV71: 0 | BX71: 163 | BY71: -34 | BZ71: -29 | CA71: 0 | CB71: 0 | CC71: 100 | CD71: 15556 | CE71: 3021 | CG71: -566 | CH71: -1188 | CI71: 450 | CN71: 20.5 | CP71: 211 | CQ71: 5520 | CS71: 3.202172097 | CT71: 64.57659889 | CU71: -5499.818841 | CY71: 37.84018246 | CZ71: 1338.586957 | DA71: 45.00525648 | DB71: 10856.15942 | DD71: 35050 | DE71: 62747 | DF71: 312 | DG71: -27385 | DH71: 17621 | DI71: 13531 | DL71: -119 | DM71: 33 | DN71: 3681 | DO71: 3155 | DP71: 0 | DR71: 526 | DS71: -36 | DT71: -27 | DU71: 54 | DV71: 0 | DW71: 409 | DX71: 12434 | DY71: 3419 | EA71: -77 | EB71: -1045 | EC71: -464 | EE71: 1353 | EH71: 20.5 | EJ71: 196 | EQ71: -2923 | ER71: 18 | ES71: 30 | ET71: -2631 | EU71: 0 | EV71: 60 | EW71: -4034 | EX71: 43 | EY71: 108 | EZ71: 199 | FA71: 826 | FB71: 456 | FC71: 558 | FD71: 5447 | FE71: 1242 | FF71: 22698 | FG71: 8186 | FH71: 14512 | FI71: 50 | FJ71: 22524 | FK71: 7856 | FL71: 14668 | FM71: 52 | FN71: 28275 | FO71: 12330 | FP71: 15945 | FQ71: 50
A72: 218 | B72: Karijoki | C72: 1369 | E72: 1.69751693 | F72: 28.92073301 | G72: -1598.977356 | K72: 45.97879729 | L72: 1466.033601 | M72: 38.7759369 | N72: 13799.85391 | P72: 9933 | Q72: 18042 | R72: 2 | S72: -8107 | T72: 4072 | U72: 4767 | X72: -29 | Y72: 5 | Z72: 708 | AA72: 449 | AB72: 0 | AD72: 259 | AE72: 3 | AF72: 29 | AI72: 291 | AJ72: 504 | AK72: 706 | AM72: -175 | AN72: -399 | AO72: 311 | AP72: 4072 | AT72: 22 | AV72: 203 | AW72: 1349 | AY72: 2.334146341 | AZ72: 27.89482106 | BA72: -1229.058562 | BE72: 48.83949295 | BF72: 1837.657524 | BG72: 48.59218087 | BH72: 13803.55819 | BJ72: 9804 | BK72: 17798 | BL72: 1 | BM72: -7993 | BN72: 4001 | BO72: 4944 | BR72: -41 | BS72: 4 | BT72: 915 | BU72: 461 | BV72: 0 | BX72: 454 | BY72: -2 | BZ72: 15 | CA72: 6 | CB72: -1 | CC72: 460 | CD72: 960 | CE72: 918 | CG72: 117 | CH72: -368 | CI72: 516 | CN72: 22 | CP72: 152 | CQ72: 1329 | CS72: 2.8767507 | CT72: 27.67041835 | CU72: -920.2407825 | CY72: 52.02219793 | CZ72: 2211.437171 | DA72: 61.18725759 | DB72: 13191.87359 | DD72: 9610 | DE72: 17813 | DF72: 0 | DG72: -8203 | DH72: 4243 | DI72: 4983 | DL72: -38 | DM72: 4 | DN72: 989 | DO72: 459 | DP72: 0 | DR72: 530 | DS72: -2 | DT72: 0 | DU72: 0 | DV72: -4 | DW72: 524 | DX72: 1659 | DY72: 933 | EA72: 16 | EB72: -319 | EC72: 419 | EE72: 88 | EH72: 22 | EJ72: 156 | EQ72: -400 | ER72: 3 | ES72: 2 | ET72: -409 | EU72: 5 | EV72: 2 | EW72: -643 | EX72: 4 | EY72: 125 | EZ72: 696 | FA72: 19 | FB72: 84 | FC72: -11 | FD72: 245 | FE72: -46 | FF72: 3383 | FG72: 2912 | FH72: 471 | FI72: 2 | FJ72: 3089 | FK72: 2665 | FL72: 424 | FM72: 2 | FN72: 2969 | FO72: 2586 | FP72: 383 | FQ72: 1
A73: 224 | B73: Karkkila | C73: 8969 | E73: 1.176892262 | F73: 62.65830881 | G73: -5650.685695 | K73: 13.85219325 | L73: 753.8187089 | M73: 21.99238036 | N73: 12510.87078 | P73: 50616 | Q73: 96076 | R73: -5 | S73: -45465 | T73: 31852 | U73: 19153 | X73: -485 | Y73: 26 | Z73: 5081 | AA73: 3414 | AB73: 0 | AD73: 1667 | AE73: 0 | AF73: -11 | AI73: 1656 | AJ73: 1541 | AK73: 4587 | AM73: -1581 | AN73: -4242 | AO73: -3895 | AP73: 31852 | AT73: 20.75 | AV73: 172 | AW73: 8911 | AY73: 0.8434610304 | AZ73: 69.7348451 | BA73: -6496.128381 | BE73: 13.47834034 | BF73: 787.1170463 | BG73: 22.53994946 | BH73: 12746.15644 | BJ73: 49149 | BK73: 95747 | BL73: -1 | BM73: -46599 | BN73: 31563 | BO73: 20097 | BR73: -551 | BS73: 16 | BT73: 4526 | BU73: 3776 | BV73: 0 | BX73: 750 | BY73: 1 | BZ73: -2 | CA73: 0 | CB73: 0 | CC73: 749 | CD73: 2461 | CE73: 4049 | CG73: 835 | CH73: -5474 | CI73: -7391 | CN73: 20.75 | CP73: 229 | CQ73: 8900 | CS73: 0.7804726368 | CT73: 71.23639825 | CU73: -6956.629213 | CY73: 13.43729695 | CZ73: 614.1573034 | DA73: 21.02307692 | DB73: 10662.92135 | DD73: 50714 | DE73: 97193 | DF73: 0 | DG73: -46479 | DH73: 31553 | DI73: 19650 | DL73: -617 | DM73: 263 | DN73: 4370 | DO73: 4082 | DP73: 21 | DR73: 309 | DS73: 3 | DT73: 3 | DU73: 0 | DV73: 0 | DW73: 315 | DX73: 2745 | DY73: 3771 | EA73: 175 | EB73: -5782 | EC73: -4064 | EE73: 52 | EH73: 20.75 | EJ73: 256 | EQ73: -11277 | ER73: 2177 | ES73: 618 | ET73: -11666 | EU73: 5 | EV73: 221 | EW73: -8595 | EX73: 22 | EY73: 738 | EZ73: 14717 | FA73: -2500 | FB73: 12685 | FC73: 500 | FD73: 735 | FE73: 6850 | FF73: 53681 | FG73: 32988 | FH73: 20693 | FI73: 3 | FJ73: 61174 | FK73: 39253 | FL73: 21921 | FM73: 3 | FN73: 62977 | FO73: 34019 | FP73: 28958 | FQ73: 3
A74: 226 | B74: Karstula | C74: 4268 | E74: 4.739678899 | F74: 53.38104201 | G74: -3904.639175 | K74: 38.12844335 | L74: 2199.390815 | M74: 60.30440369 | N74: 13312.08997 | P74: 28919 | Q74: 52405 | R74: 7 | S74: -23479 | T74: 12328 | U74: 15067 | X74: -126 | Y74: 99 | Z74: 3889 | AA74: 2678 | AB74: 0 | AD74: 1211 | AE74: 29 | AF74: -53 | AI74: 1187 | AJ74: 4010 | AK74: 3865 | AM74: -1664 | AN74: -628 | AO74: 1021 | AP74: 12328 | AT74: 20 | AV74: 54 | AW74: 4232 | AY74: 25.83333333 | AZ74: 53.3445178 | BA74: -3534.499055 | BE74: 38.25681697 | BF74: 2502.599244 | BG74: 70.67766706 | BH74: 12924.14934 | BJ74: 28416 | BK74: 52086 | BL74: 0 | BM74: -23670 | BN74: 11721 | BO74: 15297 | BR74: -7 | BS74: -63 | BT74: 3278 | BU74: 3383 | BV74: 0 | BX74: -105 | BY74: -21 | BZ74: 102 | CA74: 38 | CB74: 20 | CC74: -42 | CD74: 4181 | CE74: 3317 | CG74: -14 | CH74: 0 | CI74: 1159 | CN74: 20 | CP74: 109 | CQ74: 4146 | CS74: 4.792429792 | CT74: 49.62879459 | CU74: -3524.119633 | CY74: 38.75870183 | CZ74: 2864.688857 | DA74: 77.74439124 | DB74: 13449.34877 | DD74: 33982 | DE74: 58196 | DF74: 0 | DG74: -24214 | DH74: 12130 | DI74: 15983 | DL74: 45 | DM74: -54 | DN74: 3890 | DO74: 2810 | DP74: 0 | DR74: 1080 | DS74: -68 | DT74: 183 | DU74: 45 | DV74: -28 | DW74: 1122 | DX74: 5119 | DY74: 3820 | EA74: -309 | EB74: -784 | EC74: 355 | EE74: 5150 | EH74: 20 | EJ74: 85 | EQ74: -2883 | ER74: 3 | ES74: 36 | ET74: -2304 | EU74: 0 | EV74: 146 | EW74: -3752 | EX74: 242 | EY74: 45 | EZ74: 1205 | FA74: 193 | FB74: 516 | FC74: -1112 | FD74: 3062 | FE74: -645 | FF74: 21187 | FG74: 5512 | FH74: 15675 | FI74: 4 | FJ74: 20593 | FK74: 6029 | FL74: 14564 | FM74: -92 | FN74: 22341 | FO74: 8374 | FP74: 13967 | FQ74: 279
A75: 230 | B75: Karvia | C75: 2475 | E75: 5.654478976 | F75: 49.09447425 | G75: -4075.151515 | K75: 58.33654129 | L75: 1726.868687 | M75: 42.43193254 | N75: 14854.54545 | P75: 20959 | Q75: 33662 | R75: 0 | S75: -12703 | T75: 6647 | U75: 9113 | X75: -19 | Y75: 4 | Z75: 3042 | AA75: 2352 | AB75: 0 | AD75: 690 | AE75: -5 | AF75: -134 | AI75: 551 | AJ75: 14739 | AK75: 3123 | AM75: 428 | AN75: -496 | AO75: 679 | AP75: 6647 | AT75: 19.75 | AV75: 8 | AW75: 2449 | AY75: 2.747252747 | AZ75: 51.64570804 | BA75: -4849.734586 | BE75: 49.6931383 | BF75: 1377.705186 | BG75: 30.78775 | BH75: 16333.19722 | BJ75: 21615 | BK75: 34390 | BL75: 11 | BM75: -12764 | BN75: 6248 | BO75: 8717 | BR75: -11 | BS75: 13 | BT75: 2203 | BU75: 2363 | BV75: 0 | BX75: -160 | BY75: -319 | BZ75: 0 | CA75: 2 | CB75: -113 | CC75: -594 | CD75: 12736 | CE75: 2165 | CG75: 27 | CH75: -772 | CI75: -923 | CN75: 19.75 | CP75: 74 | CQ75: 2403 | CS75: 4.092050209 | CT75: 58.86609393 | CU75: -5824.386184 | CY75: 52.7627931 | CZ75: 1656.679151 | DA75: 49.50143081 | DB75: 12215.56388 | DD75: 21599 | DE75: 34103 | DF75: -2 | DG75: -12506 | DH75: 6712 | DI75: 8588 | DL75: -72 | DM75: 129 | DN75: 2851 | DO75: 2331 | DP75: 0 | DR75: 520 | DS75: -233 | DT75: 0 | DU75: 2 | DV75: -69 | DW75: 216 | DX75: 13318 | DY75: 2624 | EA75: -72 | EB75: -634 | EC75: -1937 | EE75: 268 | EH75: 19.75 | EJ75: 35 | EQ75: -2545 | ER75: 8 | ES75: 93 | ET75: -4772 | EU75: 7 | EV75: 1677 | EW75: -5508 | EX75: 456 | EY75: 491 | EZ75: 849 | FA75: -533 | FB75: 1464 | FC75: 51 | FD75: 3871 | FE75: -210 | FF75: 6934 | FG75: 4882 | FH75: 2052 | FI75: 3 | FJ75: 7666 | FK75: 5565 | FL75: 2101 | FM75: 2 | FN75: 10693 | FO75: 8673 | FP75: 2020 | FQ75: 1
A76: 231 | B76: Kaskinen | C76: 1285 | E76: 0.3702380952 | F76: 49.54533645 | G76: -3627.237354 | K76: 72.05463584 | L76: 340.077821 | M76: 13.48423366 | N76: 9205.447471 | P76: 3860 | Q76: 11248 | R76: 0 | S76: -7388 | T76: 6193 | U76: 1494 | X76: -53 | Y76: 7 | Z76: 253 | AA76: 1105 | AB76: -6 | AD76: -858 | AE76: -28 | AF76: 39 | AI76: -847 | AJ76: 9468 | AK76: 247 | AM76: -118 | AN76: -782 | AO76: 507 | AP76: 6193 | AT76: 21 | AV76: 288 | AW76: 1296 | AY76: 0.05994550409 | AZ76: 55.92196555 | BA76: -4106.481481 | BE76: 65.1786613 | BF76: 681.3271605 | BG76: 23.45669578 | BH76: 10601.85185 | BJ76: 4084 | BK76: 12213 | BL76: 0 | BM76: -8129 | BN76: 6342 | BO76: 1825 | BR76: -50 | BS76: 4 | BT76: -8 | BU76: 1163 | BV76: 6 | BX76: -1165 | BY76: 0 | BZ76: 63 | CA76: 0 | CB76: -46 | CC76: -1148 | CD76: 5907 | CE76: -48 | CG76: -16 | CH76: -682 | CI76: -794 | CN76: 21.5 | CP76: 293 | CQ76: 1274 | CS76: 1.475675676 | CT76: 67.64048408 | CU76: -5776.295133 | CY76: 58.12180337 | CZ76: 332.0251177 | DA76: 15.12786596 | DB76: 8010.989011 | DD76: 4118 | DE76: 11886 | DF76: 0 | DG76: -7768 | DH76: 6638 | DI76: 2217 | DL76: -57 | DM76: 4 | DN76: 1034 | DO76: 1111 | DP76: 0 | DR76: -77 | DS76: 0 | DT76: 21 | DU76: 0 | DV76: -47 | DW76: -103 | DX76: 5809 | DY76: 987 | EA76: -332 | EB76: -682 | EC76: -1415 | EE76: 0 | EH76: 22 | EJ76: 126 | EQ76: 260 | ER76: 0 | ES76: 0 | ET76: -790 | EU76: 18 | EV76: 26 | EW76: -2430 | EX76: 27 | EY76: 1 | EZ76: 175 | FA76: 0 | FB76: 1008 | FC76: -17 | FD76: 1635 | FE76: 204 | FF76: 3980 | FG76: 3980 | FH76: 0 | FI76: 0 | FJ76: 4311 | FK76: 4305 | FL76: 6 | FM76: 0 | FN76: 5469 | FO76: 5409 | FP76: 60 | FQ76: 0
A77: 232 | B77: Kauhajoki | C77: 13875 | E77: 1.322761893 | F77: 62.9662552 | G77: -5956.684685 | K77: 27.74239836 | L77: 1366.27027 | M77: 37.05314876 | N77: 13458.73874 | P77: 88704 | Q77: 171759 | R77: 94 | S77: -82961 | T77: 46722 | U77: 43446 | X77: -1410 | Y77: 3359 | Z77: 9156 | AA77: 7701 | AB77: 0 | AD77: 1455 | AE77: -34 | AF77: -104 | AI77: 1317 | AJ77: -3609 | AK77: 9024 | AM77: 6412 | AN77: -6571 | AO77: 2428 | AP77: 46722 | AT77: 22 | AV77: 127 | AW77: 13772 | AY77: 1.130245495 | AZ77: 65.41741877 | BA77: -6186.029625 | BE77: 26.2848039 | BF77: 1380.482138 | BG77: 36.58717647 | BH77: 13771.92855 | BJ77: 87141 | BK77: 169360 | BL77: 144 | BM77: -82075 | BN77: 45558 | BO77: 44581 | BR77: -1281 | BS77: 1260 | BT77: 8043 | BU77: 8209 | BV77: 0 | BX77: -166 | BY77: -47 | BZ77: -51 | CA77: 0 | CB77: -38 | CC77: -302 | CD77: -2123 | CE77: 8006 | CG77: 4285 | CH77: -6966 | CI77: -2890 | CN77: 22 | CP77: 195 | CQ77: 13610 | CS77: 1.425147493 | CT77: 67.87767753 | CU77: -6036.884644 | CY77: 27.72397241 | CZ77: 1869.066863 | DA77: 56.81112865 | DB77: 12008.37619 | DD77: 83982 | DE77: 163501 | DF77: 157 | DG77: -79362 | DH77: 45865 | DI77: 43727 | DL77: -1118 | DM77: 1348 | DN77: 10460 | DO77: 8016 | DP77: 0 | DR77: 2444 | DS77: 18 | DT77: -14 | DU77: 0 | DV77: -37 | DW77: 2411 | DX77: 153 | DY77: 9929 | EA77: 6571 | EB77: -7001 | EC77: 2975 | EE77: 2861 | EH77: 22 | EJ77: 149 | EQ77: -6776 | ER77: 7 | ES77: 173 | ET77: -11829 | EU77: 488 | EV77: 445 | EW77: -8452 | EX77: 300 | EY77: 1198 | EZ77: 4068 | FA77: 300 | FB77: 8935 | FC77: 1844 | FD77: 16634 | FE77: -7158 | FF77: 86808 | FG77: 70936 | FH77: 15872 | FI77: 108 | FJ77: 90620 | FK77: 72623 | FL77: 17997 | FM77: 150 | FN77: 93095 | FO77: 82478 | FP77: 10617 | FQ77: 117
A78: 233 | B78: Kauhava | C78: 16784 | E78: 1.094313129 | F78: 60.89998983 | G78: -5376.012869 | K78: 32.55265417 | L78: 1816.968541 | M78: 47.34295983 | N78: 14008.2817 | P78: 114185 | Q78: 202601 | R78: 86 | S78: -88330 | T78: 56605 | U78: 45568 | X78: -1150 | Y78: 42 | Z78: 12735 | AA78: 9849 | AB78: 0 | AD78: 2886 | AE78: 111 | AF78: -46 | AI78: 2951 | AJ78: 17519 | AK78: 12543 | AM78: 4789 | AN78: -11526 | AO78: -7964 | AP78: 56605 | AT78: 21.75 | AV78: 97 | AW78: 16599 | AY78: 1.470919912 | AZ78: 61.29651061 | BA78: -5742.695343 | BE78: 31.71654761 | BF78: 1818.121574 | BG78: 47.07810497 | BH78: 14096.02988 | BJ78: 110472 | BK78: 208223 | BL78: 70 | BM78: -97681 | BN78: 55033 | BO78: 56568 | BR78: -981 | BS78: -23 | BT78: 12916 | BU78: 11107 | BV78: 0 | BX78: 1809 | BY78: -48 | BZ78: 317 | CA78: 121 | CB78: -15 | CC78: 1942 | CD78: 21863 | CE78: 12765 | CG78: 4062 | CH78: -8406 | CI78: -5630 | CN78: 21.75 | CP78: 108 | CQ78: 16278 | CS78: 1.255061952 | CT78: 60.12860894 | CU78: -5707.02789 | CY78: 33.04101528 | CZ78: 1937.891633 | DA78: 55.03367333 | DB78: 12852.6846 | DD78: 117673 | DE78: 212526 | DF78: 27 | DG78: -94826 | DH78: 55113 | DI78: 56125 | DL78: -943 | DM78: 45 | DN78: 15514 | DO78: 11844 | DP78: 0 | DR78: 3670 | DS78: -46 | DT78: 629 | DU78: 194 | DV78: -35 | DW78: 4024 | DX78: 25744 | DY78: 14783 | EA78: 1223 | EB78: -12138 | EC78: 2387 | EE78: 5018 | EH78: 21.75 | EJ78: 81 | EQ78: -22385 | ER78: 1173 | ES78: 705 | ET78: -18854 | EU78: 67 | EV78: 392 | EW78: -13949 | EX78: 0 | EY78: 1553 | EZ78: 16139 | FA78: -2048 | FB78: 9432 | FC78: -1427 | FD78: 10004 | FE78: -823 | FF78: 103703 | FG78: 93675 | FH78: 10028 | FI78: 83 | FJ78: 107881 | FK78: 94547 | FL78: 13334 | FM78: 32 | FN78: 108413 | FO78: 93198 | FP78: 15215 | FQ78: 26
A79: 235 | B79: Kauniainen | C79: 9486 | E79: 8.527286136 | F79: 33.59460746 | G79: -2323.63483 | K79: 71.91208896 | L79: 883.3017078 | M79: 30.18371758 | N79: 10681.42526 | P79: 42692 | Q79: 91726 | R79: -2 | S79: -49036 | T79: 59940 | U79: 325 | X79: -256 | Y79: 75 | Z79: 11048 | AA79: 8808 | AB79: 0 | AD79: 2240 | AE79: 0 | AF79: 21 | AI79: 2261 | AJ79: 37554 | AK79: 3947 | AM79: -115 | AN79: -841 | AO79: 3305 | AP79: 59940 | AT79: 16.5 | AV79: 14 | AW79: 9397 | AY79: 14.25 | AZ79: 30.5968983 | BA79: -1845.269767 | BE79: 73.64853402 | BF79: 1293.497925 | BG79: 41.93716857 | BH79: 11257.95467 | BJ79: 45374 | BK79: 93074 | BL79: 0 | BM79: -47700 | BN79: 62972 | BO79: 433 | BR79: -198 | BS79: 70 | BT79: 15577 | BU79: 8670 | BV79: 201 | BX79: 7108 | BY79: -1 | BZ79: 111 | CA79: 6 | CB79: 27 | CC79: 7239 | CD79: 42805 | CE79: 6721 | CG79: 398 | CH79: -684 | CI79: 4723 | CN79: 16.5 | CP79: 2 | CQ79: 9624 | CS79: 13.0181668 | CT79: 33.26746687 | CU79: -2047.277639 | CY79: 73.35518968 | CZ79: 1258.000831 | DA79: 57.94114176 | DB79: 7924.771405 | DD79: 40332 | DE79: 93315 | DF79: 1 | DG79: -52982 | DH79: 69270 | DI79: -796 | DL79: -108 | DM79: 47 | DN79: 15431 | DO79: 9319 | DP79: 45 | DR79: 6157 | DS79: -8 | DT79: 83 | DU79: 5 | DV79: 18 | DW79: 6245 | DX79: 49060 | DY79: 14333 | EA79: -584 | EB79: -877 | EC79: -2427 | EE79: 2598 | EH79: 17 | EJ79: 7 | EQ79: -8154 | ER79: 10 | ES79: 7502 | ET79: -11499 | EU79: 7 | EV79: 9494 | EW79: -18348 | EX79: 240 | EY79: 1348 | EZ79: 1346 | FA79: -4072 | FB79: 114 | FC79: 61 | FD79: 915 | FE79: 1922 | FF79: 20375 | FG79: 19570 | FH79: 805 | FI79: 4738 | FJ79: 19861 | FK79: 18983 | FL79: 878 | FM79: 4735 | FN79: 21859 | FO79: 19041 | FP79: 2818 | FQ79: 4710
A80: 236 | B80: Kaustinen | C80: 4305 | E80: 1.189570351 | F80: 105.3863826 | G80: -10365.62137 | K80: 25.30714317 | L80: 757.7235772 | M80: 20.46635153 | N80: 13513.35656 | P80: 21806 | Q80: 44230 | R80: 40 | S80: -22384 | T80: 14441 | U80: 11633 | X80: -307 | Y80: -138 | Z80: 3245 | AA80: 2735 | AB80: -45 | AD80: 465 | AE80: -15 | AF80: -113 | AI80: 337 | AJ80: 5417 | AK80: 2979 | AM80: 450 | AN80: -2667 | AO80: -7556 | AP80: 14441 | AT80: 21.5 | AV80: 99 | AW80: 4298 | AY80: 1.611773203 | AZ80: 106.2341652 | BA80: -10327.1289 | BE80: 27.15320454 | BF80: 1114.006515 | BG80: 33.37891781 | BH80: 12181.71242 | BJ80: 23346 | BK80: 45716 | BL80: 107 | BM80: -22263 | BN80: 14518 | BO80: 12263 | BR80: -257 | BS80: -122 | BT80: 4139 | BU80: 3114 | BV80: 0 | BX80: 1025 | BY80: -10 | BZ80: 0 | CA80: 0 | CB80: 0 | CC80: 1015 | CD80: 8030 | CE80: 4124 | CG80: -1263 | CH80: -2445 | CI80: 439 | CN80: 21.5 | CP80: 61 | CQ80: 4309 | CS80: 0.6456487754 | CT80: 106.6618327 | CU80: -11458.57508 | CY80: 22.1444281 | CZ80: 1236.945927 | DA80: 37.3156229 | DB80: 12099.09492 | DD80: 28898 | DE80: 51486 | DF80: 172 | DG80: -22416 | DH80: 13983 | DI80: 12284 | DL80: -263 | DM80: -170 | DN80: 3418 | DO80: 3351 | DP80: -12 | DR80: 55 | DS80: 0 | DT80: 0 | DU80: 0 | DV80: 0 | DW80: 55 | DX80: 4606 | DY80: 3266 | EA80: 426 | EB80: -5458 | EC80: -1906 | EE80: 2349 | EH80: 21.5 | EJ80: 134 | EQ80: -10667 | ER80: 16 | ES80: 116 | ET80: -3736 | EU80: 0 | EV80: 51 | EW80: -5327 | EX80: 49 | EY80: 106 | EZ80: 7565 | FA80: 886 | FB80: 3448 | FC80: 376 | FD80: 10223 | FE80: 93 | FF80: 41096 | FG80: 34464 | FH80: 6632 | FI80: 27 | FJ80: 43081 | FK80: 36141 | FL80: 6940 | FM80: 23 | FN80: 47846 | FO80: 40259 | FP80: 7587 | FQ80: 22
A81: 239 | B81: Keitele | C81: 2379 | E81: 1.652463382 | F81: 69.84900725 | G81: -6295.502312 | K81: 36.54766547 | L81: 285.8343842 | M81: 9.254978 | N81: 11272.8037 | P81: 9997 | Q81: 24157 | R81: 10 | S81: -14150 | T81: 7338 | U81: 7898 | X81: -109 | Y81: 151 | Z81: 1128 | AA81: 1070 | AB81: 1 | AD81: 59 | AE81: 2 | AF81: -14 | AI81: 47 | AJ81: 1137 | AK81: 1077 | AM81: -339 | AN81: -638 | AO81: -396 | AP81: 7338 | AT81: 19.5 | AV81: 220 | AW81: 2346 | AY81: 2.125396825 | AZ81: 67.16825739 | BA81: -6309.462916 | BE81: 34.45922049 | BF81: 390.4518329 | BG81: 12.50663973 | BH81: 11395.14066 | BJ81: 10518 | BK81: 24712 | BL81: 9 | BM81: -14185 | BN81: 7106 | BO81: 8360 | BR81: -88 | BS81: 55 | BT81: 1248 | BU81: 976 | BV81: 0 | BX81: 272 | BY81: 0 | BZ81: 0 | CA81: 0 | CB81: 0 | CC81: 272 | CD81: 1457 | CE81: 1234 | CG81: 220 | CH81: -539 | CI81: 61 | CN81: 19.5 | CP81: 216 | CQ81: 2309 | CS81: 1.031561462 | CT81: 69.58837583 | CU81: -6640.537029 | CY81: 35.42696082 | CZ81: 281.507146 | DA81: 9.673013414 | DB81: 10622.34734 | DD81: 10079 | DE81: 25038 | DF81: 14 | DG81: -14945 | DH81: 7315 | DI81: 8139 | DL81: -82 | DM81: 109 | DN81: 536 | DO81: 1036 | DP81: 0 | DR81: -500 | DS81: -8 | DT81: 3 | DU81: 3 | DV81: -2 | DW81: -510 | DX81: 986 | DY81: 535 | EA81: -52 | EB81: -517 | EC81: -548 | EE81: 1441 | EH81: 20.5 | EJ81: 289 | EQ81: -1640 | ER81: 49 | ES81: 118 | ET81: -1360 | EU81: 31 | EV81: 156 | EW81: -1168 | EX81: 30 | EY81: 55 | EZ81: 677 | FA81: 568 | FB81: 415 | FC81: 124 | FD81: 162 | FE81: 798 | FF81: 14678 | FG81: 9053 | FH81: 5625 | FI81: 0 | FJ81: 15088 | FK81: 9335 | FL81: 5753 | FM81: 0 | FN81: 17768 | FO81: 8965 | FP81: 8803 | FQ81: 0
A82: 240 | B82: Kemi | C82: 21758 | E82: 0.9669584245 | F82: 71.56144402 | G82: -6203.879033 | K82: 27.61905881 | L82: 770.1075466 | M82: 24.2602649 | N82: 11586.405 | P82: 101234 | Q82: 218697 | R82: 854 | S82: -116609 | T82: 86704 | U82: 47626 | X82: -4054 | Y82: -63 | Z82: 13604 | AA82: 13760 | AB82: 0 | AD82: -156 | AE82: 50 | AF82: -809 | AI82: -915 | AJ82: -3814 | AK82: 12545 | AM82: 341 | AN82: -14208 | AO82: -1076 | AP82: 86704 | AT82: 21.25 | AV82: 145 | AW82: 21602 | AY82: 1.225214273 | AZ82: 69.76717902 | BA82: -6119.664846 | BE82: 28.53413393 | BF82: 757.2909916 | BG82: 23.49607876 | BH82: 11764.14221 | BJ82: 101524 | BK82: 219573 | BL82: 607 | BM82: -117442 | BN82: 86141 | BO82: 51231 | BR82: -1771 | BS82: 215 | BT82: 18374 | BU82: 14146 | BV82: 0 | BX82: 4228 | BY82: -44 | BZ82: -86 | CA82: 852 | CB82: -135 | CC82: 3111 | CD82: -752 | CE82: 14704 | CG82: -1300 | CH82: -14669 | CI82: -1062 | CN82: 21.25 | CP82: 90 | CQ82: 21256 | CS82: 1.176225885 | CT82: 66.32167279 | CU82: -5908.637561 | CY82: 30.84038661 | CZ82: 782.5084682 | DA82: 27.02530237 | DB82: 10568.45126 | DD82: 105205 | DE82: 220500 | DF82: 173 | DG82: -115122 | DH82: 87280 | DI82: 50128 | DL82: -1892 | DM82: 289 | DN82: 20683 | DO82: 13783 | DP82: -60 | DR82: 6840 | DS82: -46 | DT82: -33 | DU82: 1185 | DV82: -135 | DW82: 5441 | DX82: 4667 | DY82: 19155 | EA82: -554 | EB82: -17294 | EC82: 10059 | EE82: 6501 | EH82: 21.25 | EJ82: 75 | EQ82: -14964 | ER82: 645 | ES82: 698 | ET82: -18058 | EU82: 517 | EV82: 1775 | EW82: -15116 | EX82: 415 | EY82: 5605 | EZ82: 12309 | FA82: 4007 | FB82: 18194 | FC82: -4994 | FD82: 10606 | FE82: -388 | FF82: 129158 | FG82: 94142 | FH82: 35016 | FI82: 0 | FJ82: 127693 | FK82: 95222 | FL82: 32471 | FM82: 0 | FN82: 120540 | FO82: 81611 | FP82: 38929 | FQ82: 0
A83: 320 | B83: Kemijärvi | C83: 7766 | E83: 0.8776993574 | F83: 99.97414494 | G83: -11199.07288 | K83: 32.57189388 | L83: 1497.810971 | M83: 34.80008524 | N83: 15709.76049 | P83: 54025 | Q83: 101115 | R83: 0 | S83: -47090 | T83: 28542 | U83: 25729 | X83: -1236 | Y83: 994 | Z83: 6939 | AA83: 7106 | AB83: 177 | AD83: 10 | AE83: 71 | AF83: -394 | AI83: -313 | AJ83: 4429 | AK83: 6799 | AM83: -331 | AN83: -8100 | AO83: -1176 | AP83: 28542 | AT83: 20.5 | AV83: 60 | AW83: 7661 | AY83: 1.267345267 | AZ83: 95.87532543 | BA83: -11039.81203 | BE83: 29.25822664 | BF83: 1459.731106 | BG83: 30.69526538 | BH83: 17357.78619 | BJ83: 50692 | BK83: 100658 | BL83: 0 | BM83: -49966 | BN83: 29105 | BO83: 30442 | BR83: -1132 | BS83: 1161 | BT83: 9610 | BU83: 6874 | BV83: 51 | BX83: 2787 | BY83: 68 | BZ83: -350 | CA83: 0 | CB83: -388 | CC83: 2117 | CD83: 5754 | CE83: 6249 | CG83: -493 | CH83: -7325 | CI83: 13627 | CN83: 21 | CP83: 17 | CQ83: 7534 | CS83: 1.061226879 | CT83: 100.3299875 | CU83: -11526.14813 | CY83: 33.52618359 | CZ83: 1484.868596 | DA83: 41.31887314 | DB83: 13116.93655 | DD83: 50571 | DE83: 101010 | DF83: 0 | DG83: -50439 | DH83: 29153 | DI83: 29068 | DL83: -1016 | DM83: 1182 | DN83: 7948 | DO83: 6922 | DP83: 9 | DR83: 1035 | DS83: -397 | DT83: 61 | DU83: 0 | DV83: -416 | DW83: 283 | DX83: 7243 | DY83: 7997 | EA83: -169 | EB83: -7425 | EC83: -4100 | EE83: 8725 | EH83: 21 | EJ83: 64 | EQ83: -10947 | ER83: 358 | ES83: 2614 | ET83: -11135 | EU83: 5112 | EV83: 13401 | EW83: -12082 | EX83: 190 | EY83: -205 | EZ83: 876 | FA83: 5413 | FB83: 8467 | FC83: -2499 | FD83: 7698 | FE83: 4138 | FF83: 68959 | FG83: 56536 | FH83: 12423 | FI83: 618 | FJ83: 67228 | FK83: 57326 | FL83: 9902 | FM83: 768 | FN83: 71662 | FO83: 57803 | FP83: 13859 | FQ83: 740
A84: 241 | B84: Keminmaa | C84: 8388 | E84: 1.109538176 | F84: 64.7939623 | G84: -4299.237005 | K84: 36.6371502 | L84: 908.3214115 | M84: 36.13574937 | N84: 9174.773486 | P84: 27229 | Q84: 69841 | R84: 0 | S84: -42612 | T84: 34578 | U84: 12791 | X84: -574 | Y84: 15 | Z84: 4198 | AA84: 4121 | AB84: 38 | AD84: 115 | AE84: 0 | AF84: 3 | AI84: 118 | AJ84: 2414 | AK84: 4338 | AM84: 776 | AN84: -3726 | AO84: 2555 | AP84: 34578 | AT84: 21.25 | AV84: 210 | AW84: 8316 | AY84: 1.75382716 | AZ84: 62.89141013 | BA84: -4068.783069 | BE84: 38.8540589 | BF84: 1073.833574 | BG84: 40.5464746 | BH84: 9666.666667 | BJ84: 27219 | BK84: 68616 | BL84: -2 | BM84: -41399 | BN84: 35173 | BO84: 13232 | BR84: -450 | BS84: 91 | BT84: 6647 | BU84: 5513 | BV84: -70 | BX84: 1064 | BY84: 0 | BZ84: -8 | CA84: 0 | CB84: -180 | CC84: 876 | CD84: 4666 | CE84: 4919 | CG84: 142 | CH84: -3594 | CI84: 783 | CN84: 21.25 | CP84: 102 | CQ84: 8296 | CS84: 1.373975904 | CT84: 60.85487185 | CU84: -3739.513018 | CY84: 40.6520419 | CZ84: 1112.584378 | DA84: 48.9786869 | DB84: 8291.224687 | DD84: 26511 | DE84: 68392 | DF84: 0 | DG84: -41881 | DH84: 34762 | DI84: 12703 | DL84: -377 | DM84: 115 | DN84: 5322 | DO84: 4048 | DP84: -425 | DR84: 849 | DS84: 0 | DT84: 6 | DU84: 0 | DV84: -101 | DW84: 754 | DX84: 5626 | DY84: 4976 | EA84: 433 | EB84: -3770 | EC84: 1417 | EE84: 955 | EH84: 21.25 | EJ84: 211 | EQ84: -2791 | ER84: 117 | ES84: 891 | ET84: -6081 | EU84: 198 | EV84: 1747 | EW84: -3796 | EX84: 60 | EY84: 177 | EZ84: 4072 | FA84: 346 | FB84: 5946 | FC84: -316 | FD84: 2500 | FE84: 3 | FF84: 32598 | FG84: 28563 | FH84: 4035 | FI84: 0 | FJ84: 31513 | FK84: 28128 | FL84: 3385 | FM84: 0 | FN84: 29237 | FO84: 25348 | FP84: 3889 | FQ84: 18
A85: 322 | B85: Kemiönsaari | C85: 6909 | E85: 1.886107635 | F85: 65.84331925 | G85: -5267.332465 | K85: 44.46978206 | L85: 1081.632653 | M85: 33.17172982 | N85: 11901.57765 | P85: 26861 | Q85: 66184 | R85: 3 | S85: -39320 | T85: 22792 | U85: 22532 | X85: -512 | Y85: 9 | Z85: 5501 | AA85: 4393 | AB85: 0 | AD85: 1108 | AE85: -10 | AF85: 0 | AI85: 1098 | AJ85: 17516 | AK85: 5245 | AM85: 374 | AN85: -2669 | AO85: -6994 | AP85: 22792 | AT85: 19.75 | AV85: 88 | AW85: 6872 | AY85: 1.591204037 | AZ85: 60.37756543 | BA85: -5087.892899 | BE85: 45.67232933 | BF85: 725.9895227 | BG85: 24.15676156 | BH85: 10969.44121 | BJ85: 27501 | BK85: 66357 | BL85: 1 | BM85: -38855 | BN85: 22398 | BO85: 23042 | BR85: -481 | BS85: 41 | BT85: 6145 | BU85: 5232 | BV85: 0 | BX85: 913 | BY85: -10 | BZ85: 0 | CA85: 65 | CB85: 11 | CC85: 849 | CD85: 18364 | CE85: 5801 | CG85: -360 | CH85: -3685 | CI85: 1444 | CN85: 19.75 | CP85: 76 | CQ85: 6793 | CS85: 1.874660745 | CT85: 63.67671136 | CU85: -5150.301781 | CY85: 46.21668527 | CZ85: 1112.468718 | DA85: 44.03705537 | DB85: 9220.668335 | DD85: 28373 | DE85: 66346 | DF85: 4 | DG85: -37969 | DH85: 23382 | DI85: 22148 | DL85: -472 | DM85: 39 | DN85: 7128 | DO85: 5106 | DP85: 0 | DR85: 2022 | DS85: -15 | DT85: 0 | DU85: 62 | DV85: -37 | DW85: 1908 | DX85: 20132 | DY85: 5950 | EA85: -354 | EB85: -3583 | EC85: 18 | EE85: 1711 | EH85: 19.75 | EJ85: 65 | EQ85: -12830 | ER85: 183 | ES85: 408 | ET85: -4764 | EU85: 54 | EV85: 353 | EW85: -7858 | EX85: 285 | EY85: 1641 | EZ85: 12755 | FA85: 99 | FB85: 82 | FC85: 896 | FD85: 4691 | FE85: 1102 | FF85: 36559 | FG85: 32995 | FH85: 3564 | FI85: 1 | FJ85: 33966 | FK85: 29609 | FL85: 4357 | FM85: 1 | FN85: 36308 | FO85: 30840 | FP85: 5468 | FQ85: 1
A86: 244 | B86: Kempele | C86: 17066 | E86: 6.376738306 | F86: 59.2319784 | G86: -3184.108754 | K86: 45.0369019 | L86: 601.6641275 | M86: 30.64798914 | N86: 7165.475214 | P86: 36481 | Q86: 111522 | R86: -1 | S86: -75042 | T86: 63605 | U86: 21421 | X86: -1022 | Y86: 96 | Z86: 9058 | AA86: 8163 | AB86: 0 | AD86: 895 | AE86: -37 | AF86: -38 | AI86: 820 | AJ86: 15170 | AK86: 7645 | AM86: -328 | AN86: -552 | AO86: 1242 | AP86: 63605 | AT86: 20.5 | AV86: 193 | AW86: 17297 | AY86: 2.034764522 | AZ86: 57.6706665 | BA86: -2956.524253 | BE86: 45.17556421 | BF86: 963.0571775 | BG86: 45.56175018 | BH86: 7715.152917 | BJ86: 33965 | BK86: 114956 | BL86: -66 | BM86: -81057 | BN86: 65652 | BO86: 29055 | BR86: -929 | BS86: 40 | BT86: 12761 | BU86: 7993 | BV86: 0 | BX86: 4768 | BY86: -3 | BZ86: -3 | CA86: 5 | CB86: -14 | CC86: 4743 | CD86: 19699 | CE86: 9737 | CG86: 974 | CH86: -5796 | CI86: 3218 | CN86: 20.5 | CP86: 125 | CQ86: 17535 | CS86: 1.446848042 | CT86: 64.23865018 | CU86: -3545.993727 | CY86: 43.72279724 | CZ86: 794.582264 | DA86: 48.62734505 | DB86: 5964.185914 | DD86: 34369 | DE86: 119201 | DF86: 85 | DG86: -84747 | DH86: 67244 | DI86: 28301 | DL86: -851 | DM86: 100 | DN86: 10047 | DO86: 8222 | DP86: 0 | DR86: 1825 | DS86: 6 | DT86: 76 | DU86: 2 | DV86: 22 | DW86: 1927 | DX86: 21414 | DY86: 6672 | EA86: -937 | EB86: -6680 | EC86: -11001 | EE86: 1054 | EH86: 20.5 | EJ86: 226 | EQ86: -9148 | ER86: 521 | ES86: 2224 | ET86: -11369 | EU86: 261 | EV86: 4589 | EW86: -22209 | EX86: 528 | EY86: 4008 | EZ86: 7222 | FA86: -5981 | FB86: 8524 | FC86: -729 | FD86: 13748 | FE86: 0 | FF86: 52036 | FG86: 44971 | FH86: 7065 | FI86: 2 | FJ86: 54039 | FK86: 47344 | FL86: 6695 | FM86: 29 | FN86: 61107 | FO86: 53598 | FP86: 7509 | FQ86: 29
A87: 245 | B87: Kerava | C87: 35293 | E87: 2.143841419 | F87: 70.95139162 | G87: -6192.191086 | K87: 53.6196629 | L87: 516.7030289 | M87: 15.76316905 | N87: 11964.38387 | P87: 180346 | Q87: 329702 | R87: -16 | S87: -149372 | T87: 151733 | U87: 34689 | X87: -1568 | Y87: 850 | Z87: 36332 | AA87: 26622 | AB87: 0 | AD87: 9710 | AE87: -161 | AF87: -249 | AI87: 9300 | AJ87: 152051 | AK87: 31342 | AM87: 5139 | AN87: -16078 | AO87: -11702 | AP87: 151733 | AT87: 19 | AV87: 29 | AW87: 35511 | AY87: 1.690888597 | AZ87: 69.58793224 | BA87: -6004.167723 | BE87: 53.87036316 | BF87: 533.7219453 | BG87: 17.31851205 | BH87: 11248.57087 | BJ87: 179588 | BK87: 327425 | BL87: -29 | BM87: -147866 | BN87: 154077 | BO87: 38434 | BR87: -1168 | BS87: 298 | BT87: 43775 | BU87: 28119 | BV87: 0 | BX87: 15656 | BY87: -149 | BZ87: -1152 | CA87: -1 | CB87: -298 | CC87: 14058 | CD87: 166606 | CE87: 37497 | CG87: -3319 | CH87: -25387 | CI87: 3245 | CN87: 19.25 | CP87: 19 | CQ87: 35554 | CS87: 2.156226029 | CT87: 73.80521906 | CU87: -6214.350003 | CY87: 54.5525952 | CZ87: 641.531192 | DA87: 28.49300277 | DB87: 8218.118918 | DD87: 178172 | DE87: 327844 | DF87: 28 | DG87: -149644 | DH87: 156322 | DI87: 34423 | DL87: -772 | DM87: 932 | DN87: 41261 | DO87: 29517 | DP87: 134 | DR87: 11878 | DS87: -172 | DT87: 39 | DU87: 362 | DV87: -523 | DW87: 10860 | DX87: 137647 | DY87: 38574 | EA87: -1758 | EB87: -18651 | EC87: -8646 | EE87: 3263 | EH87: 19.25 | EJ87: 41 | EQ87: -73886 | ER87: 15 | ES87: 30827 | ET87: -44605 | EU87: 11 | EV87: 10342 | EW87: -56048 | EX87: 43 | EY87: 8785 | EZ87: 29717 | FA87: 2870 | FB87: 26355 | FC87: -2900 | FD87: 27781 | FE87: -521 | FF87: 170989 | FG87: 136188 | FH87: 34801 | FI87: 152 | FJ87: 169055 | FK87: 138659 | FL87: 30396 | FM87: 152 | FN87: 177664 | FO87: 147148 | FP87: 30516 | FQ87: 219
A88: 249 | B88: Keuruu | C88: 10117 | E88: 2.898594654 | F88: 101.338466 | G88: -10124.83938 | K88: 32.55713266 | L88: 336.9575961 | M88: 9.578496428 | N88: 12840.17001 | P88: 47241 | Q88: 102520 | R88: 119 | S88: -55160 | T88: 34317 | U88: 31183 | X88: -685 | Y88: 136 | Z88: 9791 | AA88: 8941 | AB88: 0 | AD88: 850 | AE88: 145 | AF88: -428 | AI88: 567 | AJ88: 5664 | AK88: 9279 | AM88: -411 | AN88: -2901 | AO88: -12490 | AP88: 34317 | AT88: 20.5 | AV88: 43 | AW88: 9992 | AY88: 2.320474777 | AZ88: 112.6927545 | BA88: -11289.53163 | BE88: 27.51375192 | BF88: 510.4083267 | BG88: 14.7514482 | BH88: 12629.20336 | BJ88: 47554 | BK88: 102147 | BL88: 140 | BM88: -54453 | BN88: 33553 | BO88: 31666 | BR88: -659 | BS88: 143 | BT88: 10250 | BU88: 10240 | BV88: -1 | BX88: 9 | BY88: -341 | BZ88: 0 | CA88: 84 | CB88: -171 | CC88: -587 | CD88: 10953 | CE88: 10076 | CG88: -967 | CH88: -4020 | CI88: -8845 | CN88: 20.5 | CP88: 44 | CQ88: 9919 | CS88: 1.982530761 | CT88: 111.3418598 | CU88: -11661.55862 | CY88: 29.82187188 | CZ88: 605.5045872 | DA88: 22.72193949 | DB88: 9726.686158 | DD88: 52407 | DE88: 105050 | DF88: 125 | DG88: -52518 | DH88: 33735 | DI88: 31687 | DL88: -615 | DM88: 111 | DN88: 12400 | DO88: 9916 | DP88: 0 | DR88: 2484 | DS88: -219 | DT88: 11 | DU88: 38 | DV88: -94 | DW88: 2144 | DX88: 13623 | DY88: 12173 | EA88: -186 | EB88: -5932 | EC88: -2664 | EE88: 863 | EH88: 20.5 | EJ88: 25 | EQ88: -23733 | ER88: 1689 | ES88: 275 | ET88: -19298 | EU88: 49 | EV88: 328 | EW88: -15195 | EX88: 60 | EY88: 298 | EZ88: 3006 | FA88: 13187 | FB88: 13860 | FC88: -683 | FD88: 13737 | FE88: -2724 | FF88: 85990 | FG88: 42611 | FH88: 43379 | FI88: 0 | FJ88: 95266 | FK88: 51951 | FL88: 43315 | FM88: 0 | FN88: 100404 | FO88: 58711 | FP88: 41693 | FQ88: 0
A89: 250 | B89: Kihniö | C89: 2038 | E89: 0.4668166479 | F89: 58.94797326 | G89: -4015.701668 | K89: 37.9177242 | L89: 1017.1737 | M89: 36.54230658 | N89: 10159.96075 | P89: 6086 | Q89: 18765 | R89: 4 | S89: -12675 | T89: 6192 | U89: 6866 | X89: -138 | Y89: 26 | Z89: 271 | AA89: 1068 | AB89: 0 | AD89: -797 | AE89: -13 | AF89: -12 | AI89: -822 | AJ89: 28 | AK89: 245 | AM89: -62 | AN89: -745 | AO89: -650 | AP89: 6192 | AT89: 21.5 | AV89: 294 | AW89: 1994 | AY89: 1.28232503 | AZ89: 57.72056908 | BA89: -4012.036108 | BE89: 37.12510132 | BF89: 974.9247743 | BG89: 35.82912543 | BH89: 9931.795386 | BJ89: 5638 | BK89: 18134 | BL89: 3 | BM89: -12493 | BN89: 6100 | BO89: 7451 | BR89: -135 | BS89: 20 | BT89: 943 | BU89: 1137 | BV89: -11 | BX89: -205 | BY89: -13 | BZ89: 1 | CA89: 9 | CB89: -6 | CC89: -232 | CD89: -198 | CE89: 921 | CG89: -118 | CH89: -705 | CI89: 382 | CN89: 21.5 | CP89: 241 | CQ89: 1967 | CS89: 1.305764411 | CT89: 66.5046787 | CU89: -4394.001017 | CY89: 33.69662586 | CZ89: 1341.128622 | DA89: 54.96460783 | DB89: 8905.948144 | DD89: 5798 | DE89: 18419 | DF89: 12 | DG89: -12609 | DH89: 5880 | DI89: 7665 | DL89: -143 | DM89: 103 | DN89: 896 | DO89: 1017 | DP89: 0 | DR89: -121 | DS89: -16 | DT89: 0 | DU89: 10 | DV89: -4 | DW89: -151 | DX89: -428 | DY89: 954 | EA89: -454 | EB89: -652 | EC89: -651 | EE89: 3219 | EH89: 21.5 | EJ89: 265 | EQ89: -1030 | ER89: 1 | ES89: 134 | ET89: -707 | EU89: 10 | EV89: 158 | EW89: -1738 | EX89: 2 | EY89: 131 | EZ89: 2800 | FA89: -2 | FB89: 425 | FC89: -25 | FD89: 2250 | FE89: 1 | FF89: 9432 | FG89: 8697 | FH89: 735 | FI89: 0 | FJ89: 9145 | FK89: 8492 | FL89: 653 | FM89: 36 | FN89: 10723 | FO89: 9981 | FP89: 742 | FQ89: 7
A90: 256 | B90: Kinnula | C90: 1745 | E90: 15.38738739 | F90: 49.91649269 | G90: -1691.690544 | K90: 58.15325011 | L90: 1710.028653 | M90: 58.65790607 | N90: 10640.68768 | P90: 6562 | Q90: 17595 | R90: 0 | S90: -11033 | T90: 4784 | U90: 7814 | X90: 71 | Y90: 51 | Z90: 1687 | AA90: 1044 | AB90: 0 | AD90: 643 | AE90: 0 | AF90: 0 | AI90: 643 | AJ90: 6172 | AK90: 1655 | AM90: 51 | AN90: -90 | AO90: 913 | AP90: 4784 | AT90: 20.5 | AV90: 44 | AW90: 1699 | AY90: 13.23157895 | AZ90: 52.41291823 | BA90: -1971.159506 | BE90: 56.06638448 | BF90: 1846.380224 | BG90: 58.35907238 | BH90: 11547.96939 | BJ90: 6500 | BK90: 17762 | BL90: 0 | BM90: -11262 | BN90: 4760 | BO90: 7659 | BR90: 76 | BS90: 12 | BT90: 1245 | BU90: 986 | BV90: 0 | BX90: 259 | BY90: 0 | BZ90: 0 | CA90: 0 | CB90: 0 | CC90: 259 | CD90: 6436 | CE90: 1322 | CG90: 216 | CH90: -83 | CI90: -367 | CN90: 20.5 | CP90: 130 | CQ90: 1656 | CS90: 17.77272727 | CT90: 56.92932575 | CU90: -1676.328502 | CY90: 57.54589526 | CZ90: 2371.376812 | DA90: 89.56789352 | DB90: 9663.647343 | DD90: 6144 | DE90: 17047 | DF90: 0 | DG90: -10903 | DH90: 4778 | DI90: 7543 | DL90: 84 | DM90: 56 | DN90: 1558 | DO90: 990 | DP90: 0 | DR90: 568 | DS90: 0 | DT90: 2 | DU90: 0 | DV90: 0 | DW90: 570 | DX90: 7397 | DY90: 1577 | EA90: -344 | EB90: -82 | EC90: 587 | EE90: 223 | EH90: 20.5 | EJ90: 84 | EQ90: -831 | ER90: 1 | ES90: 88 | ET90: -1717 | EU90: 1 | EV90: 27 | EW90: -1137 | EX90: 1 | EY90: 146 | EZ90: 0 | FA90: -577 | FB90: 496 | FC90: 109 | FD90: 993 | FE90: -413 | FF90: 6932 | FG90: 719 | FH90: 6213 | FI90: 0 | FJ90: 7472 | FK90: 1087 | FL90: 6385 | FM90: 0 | FN90: 7980 | FO90: 1975 | FP90: 6005 | FQ90: 0
A91: 257 | B91: Kirkkonummi | C91: 38649 | E91: 1.574233042 | F91: 65.20096645 | G91: -4271.1325 | K91: 28.61393923 | L91: 545.0076328 | M91: 22.17538152 | N91: 8970.659008 | P91: 115701 | Q91: 300436 | R91: -2 | S91: -184737 | T91: 178491 | U91: 28225 | X91: -2795 | Y91: 266 | Z91: 19450 | AA91: 18957 | AB91: 0 | AD91: 493 | AE91: 57 | AF91: 259 | AI91: 809 | AJ91: 21649 | AK91: 18054 | AM91: -11198 | AN91: -11289 | AO91: -10562 | AP91: 178491 | AT91: 19.5 | AV91: 208 | AW91: 39033 | AY91: 1.503052718 | AZ91: 65.24464874 | BA91: -4300.694284 | BE91: 28.40462889 | BF91: 860.8357031 | BG91: 35.18722063 | BH91: 8929.521174 | BJ91: 111256 | BK91: 302460 | BL91: 11 | BM91: -191193 | BN91: 184775 | BO91: 31602 | BR91: -2020 | BS91: 393 | BT91: 23557 | BU91: 19968 | BV91: 0 | BX91: 3589 | BY91: 54 | BZ91: 36 | CA91: 1 | CB91: -6 | CC91: 3672 | CD91: 25076 | CE91: 22444 | CG91: 11815 | CH91: -14988 | CI91: -4506 | CN91: 19.5 | CP91: 188 | CQ91: 39170 | CS91: 1.329113205 | CT91: 65.42409149 | CU91: -4458.948175 | CY91: 29.15095666 | CZ91: 711.3607353 | DA91: 34.36199434 | DB91: 7556.216492 | DD91: 112139 | DE91: 307827 | DF91: -55 | DG91: -195743 | DH91: 189712 | DI91: 29021 | DL91: -1664 | DM91: 352 | DN91: 21678 | DO91: 20514 | DP91: 150 | DR91: 1314 | DS91: 52 | DT91: 83 | DU91: 0 | DV91: -136 | DW91: 1313 | DX91: 26943 | DY91: 20326 | EA91: -1642 | EB91: -15881 | EC91: -7959 | EE91: 4736 | EH91: 19.5 | EJ91: 237 | EQ91: -31673 | ER91: 869 | ES91: 2188 | ET91: -28732 | EU91: 77 | EV91: 1705 | EW91: -29756 | EX91: -295 | EY91: 1766 | EZ91: 3120 | FA91: 13529 | FB91: 32 | FC91: 30839 | FD91: 11506 | FE91: 3178 | FF91: 147568 | FG91: 119083 | FH91: 28485 | FI91: 1147 | FJ91: 163451 | FK91: 104047 | FL91: 59404 | FM91: 1049 | FN91: 162359 | FO91: 99868 | FP91: 62491 | FQ91: 962
A92: 260 | B92: Kitee | C92: 10832 | E92: 2.171910308 | F92: 46.77289467 | G92: -3405.465288 | K92: 40.44252392 | L92: 865.4911374 | M92: 30.12691272 | N92: 10485.78287 | P92: 34983 | Q92: 98488 | R92: 2 | S92: -63503 | T92: 35877 | U92: 39657 | X92: -519 | Y92: 422 | Z92: 11934 | AA92: 4912 | AB92: 0 | AD92: 7022 | AE92: -35 | AF92: -175 | AI92: 6812 | AJ92: 7647 | AK92: 11840 | AM92: 667 | AN92: -5192 | AO92: 4109 | AP92: 35877 | AT92: 22.5 | AV92: 20 | AW92: 10719 | AY92: 2.18920373 | AZ92: 42.12669724 | BA92: -2917.809497 | BE92: 46.40659122 | BF92: 879.2797836 | BG92: 30.87944886 | BH92: 10393.22698 | BJ92: 36118 | BK92: 99240 | BL92: 1 | BM92: -63121 | BN92: 34516 | BO92: 40355 | BR92: -364 | BS92: 404 | BT92: 11790 | BU92: 5058 | BV92: 0 | BX92: 6732 | BY92: -25 | BZ92: 11 | CA92: 0 | CB92: -80 | CC92: 6638 | CD92: 14282 | CE92: 11717 | CG92: -626 | CH92: -5159 | CI92: 6439 | CN92: 22 | CP92: 34 | CQ92: 10486 | CS92: 1.079648306 | CT92: 29.98150463 | CU92: -2075.910738 | CY92: 53.31362805 | CZ92: 1354.377265 | DA92: 42.318236 | DB92: 11681.6708 | DD92: 62385 | DE92: 124759 | DF92: 0 | DG92: -62374 | DH92: 34203 | DI92: 40203 | DL92: -274 | DM92: 449 | DN92: 12207 | DO92: 5796 | DP92: 533 | DR92: 6944 | DS92: -31 | DT92: -55 | DU92: 67 | DV92: -94 | DW92: 6697 | DX92: 20997 | DY92: 12629 | EA92: 1013 | EB92: -11283 | EC92: 9785 | EE92: 2015 | EH92: 21.5 | EJ92: 40 | EQ92: -9306 | ER92: 1298 | ES92: 277 | ET92: -5968 | EU92: 125 | EV92: 565 | EW92: -14176 | EX92: 23 | EY92: 11309 | EZ92: 1449 | FA92: -231 | FB92: 3138 | FC92: -2500 | FD92: 8194 | FE92: -1410 | FF92: 34767 | FG92: 26060 | FH92: 8707 | FI92: 64 | FJ92: 30246 | FK92: 24056 | FL92: 6190 | FM92: 662 | FN92: 25747 | FO92: 21012 | FP92: 4735 | FQ92: 962
A93: 261 | B93: Kittilä | C93: 6416 | E93: 1.682975871 | F93: 97.76870893 | G93: -12480.51746 | K93: 35.07440829 | L93: 1149.937656 | M93: 26.64539365 | N93: 15752.33791 | P93: 45611 | Q93: 82541 | R93: 1344 | S93: -35586 | T93: 27547 | U93: 21182 | X93: -1136 | Y93: -635 | Z93: 11372 | AA93: 8175 | AB93: 106 | AD93: 3303 | AE93: -246 | AF93: 575 | AI93: 3632 | AJ93: 31335 | AK93: 11322 | AM93: 1917 | AN93: -6277 | AO93: 1857 | AP93: 27547 | AT93: 19.5 | AV93: 1 | AW93: 6383 | AY93: 1.83129164 | AZ93: 82.6306557 | BA93: -11205.70265 | BE93: 36.85198351 | BF93: 843.1771894 | BG93: 19.4134738 | BH93: 15852.89049 | BJ93: 49113 | BK93: 83063 | BL93: 1010 | BM93: -32940 | BN93: 28495 | BO93: 21584 | BR93: -1035 | BS93: -116 | BT93: 15988 | BU93: 8661 | BV93: 4 | BX93: 7331 | BY93: -455 | BZ93: 519 | CA93: 51 | CB93: -64 | CC93: 7280 | CD93: 38466 | CE93: 14931 | CG93: 38 | CH93: -8252 | CI93: 7823 | CN93: 20.25 | CP93: 1 | CQ93: 6421 | CS93: 1.894275923 | CT93: 75.50117657 | CU93: -9788.662202 | CY93: 45.84459991 | CZ93: 945.0241395 | DA93: 26.08033159 | DB93: 13225.82152 | DD93: 49471 | DE93: 83698 | DF93: 0 | DG93: -34227 | DH93: 29144 | DI93: 20402 | DL93: -878 | DM93: -411 | DN93: 14030 | DO93: 8419 | DP93: -55 | DR93: 5556 | DS93: 584 | DT93: 891 | DU93: 529 | DV93: -84 | DW93: 6418 | DX93: 44152 | DY93: 13488 | EA93: -533 | EB93: -6984 | EC93: 5767 | EE93: 4438 | EH93: 20.25 | EJ93: 1 | EQ93: -10269 | ER93: 650 | ES93: 154 | ET93: -8136 | EU93: 813 | EV93: 215 | EW93: -7950 | EX93: 139 | EY93: 90 | EZ93: 7590 | FA93: -2761 | FB93: 156 | FC93: -605 | FD93: 1841 | FE93: -892 | FF93: 65256 | FG93: 55854 | FH93: 9402 | FI93: 226 | FJ93: 56718 | FK93: 47921 | FL93: 8797 | FM93: 306 | FN93: 50840 | FO93: 42935 | FP93: 7905 | FQ93: 423
A94: 263 | B94: Kiuruvesi | C94: 8600 | E94: 1.300438179 | F94: 62.84232307 | G94: -5900 | K94: 34.65522854 | L94: 1419.069767 | M94: 39.32534077 | N94: 13171.16279 | P94: 47488 | Q94: 101128 | R94: 61 | S94: -53579 | T94: 24790 | U94: 34529 | X94: -506 | Y94: 1054 | Z94: 6288 | AA94: 5241 | AB94: 2 | AD94: 1049 | AE94: -1 | AF94: -21 | AI94: 1027 | AJ94: 2084 | AK94: 6313 | AM94: 329 | AN94: -4711 | AO94: -80 | AP94: 24790 | AT94: 20.75 | AV94: 108 | AW94: 8444 | AY94: 1.204559848 | AZ94: 62.3054286 | BA94: -6038.133586 | BE94: 34.97939594 | BF94: 1308.384652 | BG94: 36.07744198 | BH94: 13237.09143 | BJ94: 46966 | BK94: 100500 | BL94: 67 | BM94: -53467 | BN94: 23413 | BO94: 35302 | BR94: -475 | BS94: 445 | BT94: 5218 | BU94: 5236 | BV94: 122 | BX94: 104 | BY94: -16 | BZ94: 88 | CA94: 4 | CB94: -13 | CC94: 159 | CD94: 2254 | CE94: 5240 | CG94: 185 | CH94: -4249 | CI94: -490 | CN94: 20.75 | CP94: 180 | CQ94: 8283 | CS94: 1.494010739 | CT94: 62.80201421 | CU94: -6173.246408 | CY94: 35.06238757 | CZ94: 1308.825305 | DA94: 40.49578869 | DB94: 11796.81275 | DD94: 47164 | DE94: 100169 | DF94: 118 | DG94: -52887 | DH94: 24349 | DI94: 34732 | DL94: -503 | DM94: 1020 | DN94: 6711 | DO94: 6436 | DP94: 1 | DR94: 276 | DS94: -13 | DT94: 9 | DU94: 9 | DV94: -51 | DW94: 212 | DX94: 2622 | DY94: 6685 | EA94: -954 | EB94: -4319 | EC94: -171 | EE94: 315 | EH94: 20.75 | EJ94: 128 | EQ94: -6620 | ER94: 142 | ES94: 85 | ET94: -6298 | EU94: 209 | EV94: 359 | EW94: -7498 | EX94: 533 | EY94: 109 | EZ94: 2571 | FA94: 3268 | FB94: 6071 | FC94: -2819 | FD94: 5544 | FE94: 718 | FF94: 67120 | FG94: 35718 | FH94: 31402 | FI94: 99 | FJ94: 54562 | FK94: 37261 | FL94: 17301 | FM94: 99 | FN94: 56500 | FO94: 38396 | FP94: 18104 | FQ94: 99
A95: 265 | B95: Kivijärvi | C95: 1200 | E95: 1.820224719 | F95: 50.67313948 | G95: -4541.666667 | K95: 42.4615553 | L95: 2474.166667 | M95: 45.39755352 | N95: 19892.5 | P95: 10596 | Q95: 18887 | R95: 0 | S95: -8291 | T95: 3585 | U95: 5800 | X95: -57 | Y95: 31 | Z95: 1068 | AA95: 744 | AB95: 0 | AD95: 324 | AE95: 0 | AF95: 2 | AI95: 326 | AJ95: 2844 | AK95: 1076 | AM95: -698 | AN95: -557 | AO95: -2428 | AP95: 3585 | AT95: 21 | AV95: 61 | AW95: 1161 | AY95: 1.577235772 | AZ95: 49.53280418 | BA95: -4785.529716 | BE95: 39.8379124 | BF95: 2425.495263 | BG95: 49.20955618 | BH95: 17990.52541 | BJ95: 10659 | BK95: 19151 | BL95: 0 | BM95: -8492 | BN95: 3427 | BO95: 5820 | BR95: -62 | BS95: 10 | BT95: 703 | BU95: 1273 | BV95: 0 | BX95: -570 | BY95: 0 | BZ95: -1 | CA95: 1 | CB95: 0 | CC95: -572 | CD95: 2250 | CE95: 603 | CG95: 220 | CH95: -419 | CI95: -110 | CN95: 21 | CP95: 186 | CQ95: 1132 | CS95: 2.529045643 | CT95: 51.4521757 | CU95: -4864.840989 | CY95: 40.17980636 | CZ95: 2347.173145 | DA95: 54.87184565 | DB95: 15613.0742 | DD95: 10431 | DE95: 18291 | DF95: 0 | DG95: -7860 | DH95: 3516 | DI95: 5541 | DL95: -57 | DM95: 12 | DN95: 1152 | DO95: 1369 | DP95: 0 | DR95: -217 | DS95: 0 | DT95: 1 | DU95: 0 | DV95: -1 | DW95: -217 | DX95: 2060 | DY95: 1151 | EA95: -375 | EB95: -415 | EC95: 60 | EE95: 2867 | EH95: 21 | EJ95: 68 | EQ95: -4356 | ER95: 839 | ES95: 13 | ET95: -1243 | EU95: 241 | EV95: 289 | EW95: -1112 | EX95: 1 | EY95: 20 | EZ95: 4452 | FA95: 290 | FB95: 488 | FC95: 154 | FD95: 977 | FE95: -357 | FF95: 7342 | FG95: 6715 | FH95: 627 | FI95: 48 | FJ95: 7566 | FK95: 6784 | FL95: 782 | FM95: 48 | FN95: 7771 | FO95: 7345 | FP95: 426 | FQ95: 60
A96: 271 | B96: Kokemäki | C96: 7591 | E96: 1.185215947 | F96: 64.16657095 | G96: -5204.847846 | K96: 20.8190491 | L96: 579.8972467 | M96: 18.96070333 | N96: 11163.2196 | P96: 33390 | Q96: 74169 | R96: 0 | S96: -40779 | T96: 27021 | U96: 17946 | X96: -385 | Y96: 80 | Z96: 3883 | AA96: 3637 | AB96: 0 | AD96: 246 | AE96: -1 | AF96: 124 | AI96: 369 | AJ96: -820 | AK96: 3927 | AM96: -227 | AN96: -3214 | AO96: -1223 | AP96: 27021 | AT96: 21.25 | AV96: 205 | AW96: 7498 | AY96: 0.9040957015 | AZ96: 64.21765641 | BA96: -5379.567885 | BE96: 21.4357065 | BF96: 677.9141104 | BG96: 20.96141679 | BH96: 11804.48119 | BJ96: 32221 | BK96: 75437 | BL96: 0 | BM96: -43216 | BN96: 26579 | BO96: 21069 | BR96: -295 | BS96: 20 | BT96: 4157 | BU96: 3509 | BV96: 0 | BX96: 648 | BY96: 4 | BZ96: 44 | CA96: 0 | CB96: -30 | CC96: 666 | CD96: -127 | CE96: 4465 | CG96: -730 | CH96: -4630 | CI96: -913 | CN96: 21.25 | CP96: 209 | CQ96: 7381 | CS96: 0.8301602262 | CT96: 62.32752915 | CU96: -5268.933749 | CY96: 24.08161405 | CZ96: 606.963826 | DA96: 21.54811164 | DB96: 10281.2627 | DD96: 31895 | DE96: 74205 | DF96: 15 | DG96: -42295 | DH96: 26780 | DI96: 19889 | DL96: -266 | DM96: 20 | DN96: 4128 | DO96: 3484 | DP96: 0 | DR96: 644 | DS96: 0 | DT96: 25 | DU96: 0 | DV96: -24 | DW96: 645 | DX96: 1069 | DY96: 4166 | EA96: 1315 | EB96: -5029 | EC96: 585 | EE96: 950 | EH96: 21.75 | EJ96: 231 | EQ96: -6885 | ER96: 1669 | ES96: 66 | ET96: -8112 | EU96: 2037 | EV96: 697 | EW96: -3662 | EX96: 70 | EY96: 11 | EZ96: 8175 | FA96: -1336 | FB96: 3884 | FC96: 2700 | FD96: 3259 | FE96: -793 | FF96: 35904 | FG96: 20246 | FH96: 15658 | FI96: 15 | FJ96: 37974 | FK96: 18987 | FL96: 18987 | FM96: 15 | FN96: 35522 | FO96: 19169 | FP96: 16353 | FQ96: 15
A97: 272 | B97: Kokkola | C97: 47570 | E97: 0.4252364661 | F97: 97.97493994 | G97: -9274.395627 | K97: 26.46945369 | L97: 2154.635274 | M97: 52.66623683 | N97: 14932.56254 | P97: 336350 | Q97: 556892 | R97: -495 | S97: -221037 | T97: 182108 | U97: 78907 | X97: -5420 | Y97: -4316 | Z97: 30242 | AA97: 36786 | AB97: -373 | AD97: -6917 | AE97: -231 | AF97: -624 | AI97: -7772 | AJ97: 51456 | AK97: 34743 | AM97: 1926 | AN97: -78794 | AO97: -26254 | AP97: 182108 | AT97: 21 | AV97: 141 | AW97: 47723 | AY97: 0.4364409364 | AZ97: 91.67705537 | BA97: -9291.746118 | BE97: 26.6963664 | BF97: 1683.129728 | BG97: 39.17050334 | BH97: 15683.80026 | BJ97: 358041 | BK97: 579936 | BL97: -67 | BM97: -221962 | BN97: 183911 | BO97: 86936 | BR97: -5456 | BS97: 1035 | BT97: 44464 | BU97: 40395 | BV97: -52 | BX97: 4017 | BY97: -35 | BZ97: 103 | CA97: 92 | CB97: -1296 | CC97: 2697 | CD97: 55287 | CE97: 43297 | CG97: -9409 | CH97: -109151 | CI97: 2316 | CN97: 21.5 | CP97: 68 | CQ97: 47723 | CS97: 1.177165489 | CT97: 93.32409665 | CU97: -8445.717998 | CY97: 31.40269316 | CZ97: 2274.836033 | DA97: 73.178494 | DB97: 11346.43673 | DD97: 327002 | DE97: 537772 | DF97: 520 | DG97: -210250 | DH97: 190238 | DI97: 86873 | DL97: -4148 | DM97: 1650 | DN97: 64363 | DO97: 42548 | DP97: 25022 | DR97: 46837 | DS97: -325 | DT97: -1261 | DU97: 2222 | DV97: -1119 | DW97: 41910 | DX97: 98572 | DY97: 82558 | EA97: 12381 | EB97: -53985 | EC97: 28551 | EE97: 2221 | EH97: 21.75 | EJ97: 15 | EQ97: -64068 | ER97: 251 | ES97: 2820 | ET97: -53587 | EU97: 1391 | EV97: 11215 | EW97: -55797 | EX97: 1833 | EY97: -43 | EZ97: 113706 | FA97: -3764 | FB97: 85469 | FC97: 2344 | FD97: 56613 | FE97: -5586 | FF97: 483081 | FG97: 431511 | FH97: 51570 | FI97: 157 | FJ97: 461743 | FK97: 400351 | FL97: 61392 | FM97: 169 | FN97: 452664 | FO97: 388908 | FP97: 63756 | FQ97: 821
B98: KOKO MAA (Manner-Suomi) | C98: 5458325 | E98: 1.5 | F98: 78.16553584 | G98: -5903.283516 | K98: 43.11851089 | L98: 1207.195248 | M98: 40.23659993 | N98: 10950.88218 | P98: 23476833 | Q98: 49847855 | R98: 59655 | S98: -26311367 | T98: 21629067 | U98: 9442539 | X98: -435325 | Y98: 136177 | Z98: 4449264 | AA98: 3816180 | AB98: 128426 | AD98: 761510 | AE98: -26951 | AF98: -66137 | AI98: 668422 | AJ98: 9192259 | AK98: 4093841 | AM98: 107003 | AN98: -2758048 | AO98: -1276079 | AT98: 19.85 | AV98: - | AW98: 5474085 | AY98: 1.6 | AZ98: 77.6 | BA98: -5949 | BE98: 42.9 | BF98: 1247 | BG98: 41 | BH98: 11169 | BJ98: 23903762 | BK98: 50418429 | BL98: 68081 | BM98: -26446586 | BN98: 21942053 | BO98: 10050212 | BR98: -384607 | BS98: 116459 | BT98: 5294661 | BU98: 3936462 | BV98: 322374 | BX98: 1680573 | BY98: -32889 | BZ98: -15533 | CA98: 68562 | CB98: -43947 | CC98: 1519612 | CD98: 10807561 | CE98: 4883308 | CG98: -144906 | CH98: -3144680 | CI98: -755736 | CN98: 19.89 | CP98: - | CQ98: 5483641 | CS98: 1.885379184 | CT98: 78.71552436 | CU98: -6016.301578 | CY98: 44.3 | CZ98: 1378.654803 | DA98: 59 | DB98: 8537.36377 | DD98: 24653392 | DE98: 50758330 | DF98: 81900 | DG98: -25965096 | DH98: 22391744 | DI98: 9699290 | DL98: -371628 | DM98: 155675 | DN98: 5909985 | DO98: 4146302 | DP98: 84151 | DR98: 1847834 | DS98: -39026 | DT98: -9621 | DU98: 78796 | DV98: -48127 | DW98: 1672264 | DX98: 12311904 | DY98: 5404065 | EA98: -72292 | EB98: -2923408 | EC98: -422554 | EE98: 1498550 | EH98: 19.92 | EJ98: - | EQ98: -6500580 | ER98: 232603 | ES98: 898057 | ET98: -7001117 | EU98: 173789 | EV98: 1186717 | EW98: -7342002 | EX98: 215662 | EY98: 1299721 | EZ98: 4070889 | FA98: 20959 | FB98: 4149527 | FC98: 49387 | FD98: 3784026 | FE98: 43211 | FF98: 32689492 | FG98: 27462794 | FH98: 5226698 | FI98: 1096501 | FJ98: 33722590 | FK98: 28582527 | FL98: 5140063 | FM98: 1163381 | FN98: 34624959 | FO98: 29283914 | FP98: 5341045 | FQ98: 1196148
A99: 273 | B99: Kolari | C99: 3848 | E99: 2.939944904 | F99: 61.56972019 | G99: -5057.432432 | K99: 40.15768899 | L99: 1273.388773 | M99: 41.7172047 | N99: 11141.37214 | P99: 15992 | Q99: 37756 | R99: 0 | S99: -21764 | T99: 14172 | U99: 12901 | X99: -220 | Y99: 22 | Z99: 5111 | AA99: 3083 | AB99: 40 | AD99: 2068 | AE99: -14 | AF99: -6 | AI99: 2048 | AJ99: 5972 | AK99: 4742 | AM99: 1040 | AN99: -1590 | AO99: 1684 | AP99: 14172 | AT99: 20 | AV99: 4 | AW99: 3827 | AY99: 3.150278293 | AZ99: 57.36232019 | BA99: -4531.225503 | BE99: 42.97026679 | BF99: 1212.960544 | BG99: 39.16439369 | BH99: 11304.41599 | BJ99: 14886 | BK99: 37908 | BL99: 0 | BM99: -23022 | BN99: 13882 | BO99: 14194 | BR99: -181 | BS99: 34 | BT99: 4907 | BU99: 3109 | BV99: 0 | BX99: 1798 | BY99: -11 | BZ99: 0 | CA99: 7 | CB99: -4 | CC99: 1776 | CD99: 8490 | CE99: 4852 | CG99: -457 | CH99: -1430 | CI99: 1430 | CN99: 20 | CP99: 14 | CQ99: 3854 | CS99: 3.986008837 | CT99: 54.11192791 | CU99: -4275.298391 | CY99: 50.99730458 | CZ99: 997.4052932 | DA99: 43.20298066 | DB99: 8426.569798 | DD99: 13684 | DE99: 36769 | DF99: 0 | DG99: -23085 | DH99: 14085 | DI99: 14401 | DL99: -137 | DM99: 5 | DN99: 5269 | DO99: 3140 | DP99: -381 | DR99: 1748 | DS99: -6 | DT99: -29 | DU99: 5 | DV99: -9 | DW99: 1699 | DX99: 12271 | DY99: 5416 | EA99: -71 | EB99: -1214 | EC99: -226 | EE99: 5191 | EH99: 20 | EJ99: 13 | EQ99: -3264 | ER99: 150 | ES99: 56 | ET99: -3719 | EU99: 174 | EV99: 123 | EW99: -6267 | EX99: 133 | EY99: 492 | EZ99: 35 | FA99: -849 | FB99: 19 | FC99: -12 | FD99: 1744 | FE99: 74 | FF99: 13834 | FG99: 12395 | FH99: 1439 | FI99: -50 | FJ99: 12473 | FK99: 11128 | FL99: 1345 | FM99: -17 | FN99: 11012 | FO99: 9879 | FP99: 1133 | FQ99: 601
A100: 275 | B100: Konnevesi | C100: 2757 | E100: 1.030242935 | F100: 81.05557628 | G100: -6359.085963 | K100: 36.22104317 | L100: 932.8980776 | M100: 28.13751349 | N100: 12101.55967 | P100: 8554 | Q100: 24917 | R100: 3 | S100: -16360 | T100: 8822 | U100: 9434 | X100: 76 | Y100: -30 | Z100: 1942 | AA100: 1276 | AB100: -11 | AD100: 655 | AE100: 0 | AF100: -128 | AI100: 527 | AJ100: 3292 | AK100: 1910 | AM100: 308 | AN100: -1881 | AO100: -4014 | AP100: 8822 | AT100: 21.5 | AV100: 114 | AW100: 2753 | AY100: 0.6652433817 | AZ100: 100.631427 | BA100: -8327.279332 | BE100: 30.79341685 | BF100: 1179.44061 | BG100: 33.12431873 | BH100: 12996.3676 | BJ100: 9089 | BK100: 26265 | BL100: 0 | BM100: -17176 | BN100: 8697 | BO100: 9929 | BR100: -21 | BS100: -27 | BT100: 1402 | BU100: 1410 | BV100: 0 | BX100: -8 | BY100: 0 | BZ100: -30 | CA100: 23 | CB100: 0 | CC100: -61 | CD100: 3640 | CE100: 1372 | CG100: -241 | CH100: -2186 | CI100: -5512 | CN100: 21.5 | CP100: 228 | CQ100: 2748 | CS100: 0.2067158847 | CT100: 116.9926695 | CU100: -9582.24163 | CY100: 26.53108018 | CZ100: 1199.053857 | DA100: 45.35999849 | DB100: 9648.471616 | DD100: 8854 | DE100: 26500 | DF100: 0 | DG100: -17646 | DH100: 8793 | DI100: 9500 | DL100: 10 | DM100: -19 | DN100: 638 | DO100: 1814 | DP100: 0 | DR100: -1176 | DS100: 0 | DT100: -65 | DU100: 21 | DV100: 1 | DW100: -1261 | DX100: 2680 | DY100: 616 | EA100: -254 | EB100: -3969 | EC100: -3409 | EE100: 7262 | EH100: 21.5 | EJ100: 288 | EQ100: -6395 | ER100: 402 | ES100: 69 | ET100: -7140 | EU100: 1 | EV100: 255 | EW100: -4208 | EX100: 15 | EY100: 168 | EZ100: 4026 | FA100: -662 | FB100: 9869 | FC100: 551 | FD100: 7570 | FE100: -177 | FF100: 15282 | FG100: 13443 | FH100: 1839 | FI100: 0 | FJ100: 23472 | FK100: 21120 | FL100: 2352 | FM100: 0 | FN100: 27023 | FO100: 24847 | FP100: 2176 | FQ100: 0
A101: 276 | B101: Kontiolahti | C101: 14827 | E101: 0.9906256583 | F101: 67.83854789 | G101: -3896.067984 | K101: 36.86735074 | L101: 495.9870507 | M101: 24.00624257 | N101: 7541.174884 | P101: 30269 | Q101: 95585 | R101: 14 | S101: -65302 | T101: 50282 | U101: 24124 | X101: -1134 | Y101: 272 | Z101: 8242 | AA101: 5482 | AB101: 0 | AD101: 2760 | AE101: 1 | AF101: 59 | AI101: 2820 | AJ101: 20477 | AK101: 7648 | AM101: 1320 | AN101: -8331 | AO101: 1663 | AP101: 50282 | AT101: 20.5 | AV101: 176 | AW101: 14806 | AY101: 1.14240333 | AZ101: 70.45172024 | BA101: -3741.591247 | BE101: 37.12122438 | BF101: 967.040389 | BG101: 46.1357216 | BH101: 7650.682156 | BJ101: 34020 | BK101: 96881 | BL101: 18 | BM101: -62843 | BN101: 50879 | BO101: 22092 | BR101: -1091 | BS101: 275 | BT101: 9312 | BU101: 5631 | BV101: 7 | BX101: 3688 | BY101: 4 | BZ101: 89 | CA101: 0 | CB101: -4 | CC101: 3777 | CD101: 24094 | CE101: 8951 | CG101: 230 | CH101: -8012 | CI101: 3014 | CN101: 20.5 | CP101: 173 | CQ101: 14830 | CS101: 0.9238207801 | CT101: 55.90042005 | CU101: -3826.298045 | CY101: 39.0572886 | CZ101: 692.9197572 | DA101: 33.69543539 | DB101: 7505.933918 | DD101: 55600 | DE101: 121480 | DF101: 19 | DG101: -65861 | DH101: 50752 | DI101: 23393 | DL101: -1004 | DM101: 297 | DN101: 7577 | DO101: 6116 | DP101: 418 | DR101: 1879 | DS101: -4 | DT101: 39 | DU101: 0 | DV101: -1 | DW101: 1913 | DX101: 25920 | DY101: 7508 | EA101: -1454 | EB101: -8286 | EC101: -7694 | EE101: 1453 | EH101: 20.5 | EJ101: 248 | EQ101: -6708 | ER101: 44 | ES101: 679 | ET101: -6426 | EU101: 42 | EV101: 447 | EW101: -19485 | EX101: 218 | EY101: 4065 | EZ101: 10114 | FA101: -1501 | FB101: 16241 | FC101: -3250 | FD101: 8306 | FE101: -535 | FF101: 60170 | FG101: 48007 | FH101: 12163 | FI101: 0 | FJ101: 65149 | FK101: 56210 | FL101: 8939 | FM101: 834 | FN101: 59344 | FO101: 51378 | FP101: 7966 | FQ101: 834
A102: 280 | B102: Korsnäs | C102: 2201 | E102: 1.805263158 | F102: 26.76056338 | G102: -1716.946842 | K102: 63.21512418 | L102: 405.2703317 | M102: 14.31183788 | N102: 10335.75647 | P102: 7898 | Q102: 20198 | R102: 0 | S102: -12300 | T102: 6631 | U102: 6345 | X102: -49 | Y102: 8 | Z102: 635 | AA102: 1199 | AB102: 0 | AD102: -564 | AE102: 0 | AF102: 0 | AI102: -564 | AJ102: 7889 | AK102: 640 | AM102: 117 | AN102: -329 | AO102: -1226 | AP102: 6631 | AT102: 21 | AV102: 277 | AW102: 2171 | AY102: 6.689349112 | AZ102: 29.0881859 | BA102: -1800.092123 | BE102: 62.04323409 | BF102: 687.2409028 | BG102: 23.80053319 | BH102: 10539.38277 | BJ102: 7869 | BK102: 19768 | BL102: 0 | BM102: -11899 | BN102: 7043 | BO102: 7121 | BR102: -58 | BS102: -4 | BT102: 2203 | BU102: 1312 | BV102: 0 | BX102: 891 | BY102: 0 | BZ102: 0 | CA102: 0 | CB102: 0 | CC102: 891 | CD102: 8844 | CE102: 2178 | CG102: -128 | CH102: -280 | CI102: -144 | CN102: 21 | CP102: 48 | CQ102: 2154 | CS102: 4.147126437 | CT102: 26.33196721 | CU102: -1805.942433 | CY102: 64.57598884 | CZ102: 405.2924791 | DA102: 17.406588 | DB102: 8498.607242 | DD102: 7558 | DE102: 19680 | DF102: -3 | DG102: -12125 | DH102: 7090 | DI102: 6824 | DL102: -56 | DM102: 15 | DN102: 1748 | DO102: 1256 | DP102: 20 | DR102: 512 | DS102: 0 | DT102: 0 | DU102: 0 | DV102: 0 | DW102: 512 | DX102: 9341 | DY102: 1727 | EA102: 116 | EB102: -379 | EC102: 27 | EE102: 1250 | EH102: 21 | EJ102: 127 | EQ102: -2155 | ER102: 151 | ES102: 138 | ET102: -2757 | EU102: 140 | EV102: 295 | EW102: -1820 | EX102: 70 | EY102: 50 | EZ102: 1021 | FA102: 100 | FB102: 879 | FC102: 405 | FD102: 30 | FE102: 54 | FF102: 2852 | FG102: 2409 | FH102: 443 | FI102: 1 | FJ102: 3834 | FK102: 2928 | FL102: 906 | FM102: 1 | FN102: 3540 | FO102: 2580 | FP102: 960 | FQ102: 1
A103: 284 | B103: Koski tl | C103: 2399 | E103: 2.974828375 | F103: 26.46722319 | G103: -775.7398916 | K103: 63.24060891 | L103: 1369.32055 | M103: 50.13484696 | N103: 9969.153814 | P103: 9309 | Q103: 22341 | R103: 1 | S103: -13031 | T103: 6865 | U103: 7425 | X103: -21 | Y103: 21 | Z103: 1259 | AA103: 986 | AB103: 0 | AD103: 273 | AE103: 0 | AF103: 23 | AI103: 296 | AJ103: 3810 | AK103: 1317 | AM103: 41 | AN103: -396 | AO103: 400 | AP103: 6865 | AT103: 19.5 | AV103: 197 | AW103: 2416 | AY103: 3.768328446 | AZ103: 25.54154272 | BA103: -760.3476821 | BE103: 63.34431186 | BF103: 1245.860927 | BG103: 44.14553783 | BH103: 10300.9106 | BJ103: 9567 | BK103: 22621 | BL103: 0 | BM103: -13054 | BN103: 6785 | BO103: 7515 | BR103: -1 | BS103: 21 | BT103: 1266 | BU103: 1026 | BV103: 0 | BX103: 240 | BY103: 0 | BZ103: 127 | CA103: 0 | CB103: 0 | CC103: 367 | CD103: 4359 | CE103: 1267 | CG103: -90 | CH103: -322 | CI103: -211 | CN103: 19.5 | CP103: 219 | CQ103: 2359 | CS103: 10.62566845 | CT103: 23.64407471 | CU103: -743.1114879 | CY103: 68.06600592 | CZ103: 962.6960577 | DA103: 39.94771084 | DB103: 8796.100042 | DD103: 9690 | DE103: 22564 | DF103: 1 | DG103: -12873 | DH103: 7435 | DI103: 7397 | DL103: -22 | DM103: 21 | DN103: 1958 | DO103: 1064 | DP103: 0 | DR103: 894 | DS103: 0 | DT103: 65 | DU103: 0 | DV103: 0 | DW103: 959 | DX103: 5381 | DY103: 2011 | EA103: -522 | EB103: -158 | EC103: 100 | EE103: 157 | EH103: 19.5 | EJ103: 117 | EQ103: -1134 | ER103: 194 | ES103: 23 | ET103: -1863 | EU103: 264 | EV103: 121 | EW103: -2002 | EX103: 53 | EY103: 38 | EZ103: 177 | FA103: 3 | FB103: 53 | FC103: -6 | FD103: 102 | FE103: -119 | FF103: 2358 | FG103: 2029 | FH103: 329 | FI103: 33 | FJ103: 1760 | FK103: 1412 | FL103: 348 | FM103: 10 | FN103: 1515 | FO103: 1286 | FP103: 229 | FQ103: 10
A104: 285 | B104: Kotka | C104: 54319 | E104: 0.9558320713 | F104: 114.8069163 | G104: -11021.57624 | K104: 31.93086356 | L104: 482.2253723 | M104: 14.50519624 | N104: 12134.4281 | P104: 263790 | Q104: 526583 | R104: 2147 | S104: -260646 | T104: 209667 | U104: 114086 | X104: -9457 | Y104: -2117 | Z104: 51533 | AA104: 52390 | AB104: 0 | AD104: -857 | AE104: -1712 | AF104: -1148 | AI104: -3717 | AJ104: -48525 | AK104: 50661 | AM104: 4882 | AN104: -54362 | AO104: 1538 | AP104: 209667 | AT104: 20.5 | AV104: 49 | AW104: 54187 | AY104: 1.398844881 | AZ104: 112.8295137 | BA104: -10734.36433 | BE104: 26.99260126 | BF104: 982.4865743 | BG104: 29.42827114 | BH104: 12185.81948 | BJ104: 282298 | BK104: 538861 | BL104: 4292 | BM104: -252271 | BN104: 208149 | BO104: 123450 | BR104: -8262 | BS104: -2912 | BT104: 68154 | BU104: 56064 | BV104: 159 | BX104: 12249 | BY104: -2760 | BZ104: 0 | CA104: 2547 | CB104: -185 | CC104: 6757 | CD104: -41678 | CE104: 63463 | CG104: -8056 | CH104: -46332 | CI104: 11002 | CN104: 20.5 | CP104: 16 | CQ104: 53539 | CS104: 1.596956281 | CT104: 106.9003661 | CU104: -8958.609612 | CY104: 36.80993235 | CZ104: 2438.372028 | DA104: 95.47418491 | DB104: 9321.952222 | DD104: 283620 | DE104: 530822 | DF104: 1172 | DG104: -246030 | DH104: 214777 | DI104: 120860 | DL104: -6760 | DM104: -3193 | DN104: 79654 | DO104: 64407 | DP104: 48218 | DR104: 63465 | DS104: -2700 | DT104: 0 | DU104: 3058 | DV104: -212 | DW104: 57495 | DX104: 15728 | DY104: 123442 | EA104: 3652 | EB104: -47293 | EC104: 84513 | EE104: 317 | EH104: 21.5 | EJ104: 9 | EQ104: -66020 | ER104: 1811 | ES104: 15086 | ET104: -63637 | EU104: 189 | EV104: 10987 | EW104: -89381 | EX104: 1826 | EY104: 48626 | EZ104: 44051 | FA104: 12034 | FB104: 49080 | FC104: 16080 | FD104: 47796 | FE104: -31279 | FF104: 574971 | FG104: 446817 | FH104: 128154 | FI104: 1448 | FJ104: 594337 | FK104: 437167 | FL104: 157170 | FM104: 1382 | FN104: 560306 | FO104: 399671 | FP104: 160635 | FQ104: 1210
A105: 286 | B105: Kouvola | C105: 85855 | E105: 1.281484302 | F105: 62.45666346 | G105: -4241.476909 | K105: 39.72922603 | L105: 846.2873449 | M105: 31.72269139 | N105: 9737.347854 | P105: 295395 | Q105: 746779 | R105: 1143 | S105: -450241 | T105: 331432 | U105: 166672 | X105: -6448 | Y105: 5687 | Z105: 47102 | AA105: 37615 | AB105: 0 | AD105: 9487 | AE105: 61 | AF105: -3106 | AI105: 6442 | AJ105: 2829 | AK105: 43721 | AM105: 8226 | AN105: -35276 | AO105: 1242 | AP105: 331432 | AT105: 20.5 | AV105: 185 | AW105: 85306 | AY105: 1.480935373 | AZ105: 59.25817189 | BA105: -4144.60882 | BE105: 41.32662284 | BF105: 681.0189201 | BG105: 25.06293902 | BH105: 9917.907298 | BJ105: 291984 | BK105: 748987 | BL105: 122 | BM105: -456881 | BN105: 339413 | BO105: 175852 | BR105: -5400 | BS105: 2640 | BT105: 55624 | BU105: 37804 | BV105: 1492 | BX105: 19312 | BY105: -40 | BZ105: 2 | CA105: 2184 | CB105: -187 | CC105: 16903 | CD105: 19071 | CE105: 51597 | CG105: -7800 | CH105: -35695 | CI105: 9272 | CN105: 20.75 | CP105: 163 | CQ105: 84196 | CS105: 1.434412423 | CT105: 62.21817701 | CU105: -4278.077343 | CY105: 41.7769935 | CZ105: 825.6330467 | DA105: 35.08557415 | DB105: 8589.172882 | DD105: 295120 | DE105: 743319 | DF105: 1968 | DG105: -446231 | DH105: 336659 | DI105: 169167 | DL105: -4920 | DM105: 2125 | DN105: 56800 | DO105: 44774 | DP105: 0 | DR105: 12026 | DS105: 9 | DT105: 0 | DU105: 2649 | DV105: -522 | DW105: 8864 | DX105: 36695 | DY105: 51109 | EA105: -1869 | EB105: -37973 | EC105: -7046 | EE105: 16429 | EH105: 20.75 | EJ105: 190 | EQ105: -46331 | ER105: 951 | ES105: 2901 | ET105: -54219 | EU105: 2165 | EV105: 9729 | EW105: -63890 | EX105: 957 | EY105: 4778 | EZ105: 53558 | FA105: -3432 | FB105: 19762 | FC105: 1874 | FD105: 41800 | FE105: 9309 | FF105: 347634 | FG105: 312152 | FH105: 35482 | FI105: 5204 | FJ105: 333587 | FK105: 296268 | FL105: 37319 | FM105: 5179 | FN105: 346723 | FO105: 306603 | FP105: 40120 | FQ105: 5419
A106: 287 | B106: Kristiinankaupunki | C106: 6793 | E106: 0.8828491097 | F106: 61.53402712 | G106: -4607.24275 | K106: 31.3205097 | L106: 714.8535257 | M106: 24.9025641 | N106: 10477.69763 | P106: 23289 | Q106: 61144 | R106: 0 | S106: -37855 | T106: 23238 | U106: 19391 | X106: -620 | Y106: -72 | Z106: 4082 | AA106: 2962 | AB106: 0 | AD106: 1120 | AE106: 0 | AF106: 0 | AI106: 1120 | AJ106: 1965 | AK106: 3205 | AM106: 203 | AN106: -4707 | AO106: -23 | AP106: 23238 | AT106: 21.5 | AV106: 157 | AW106: 6727 | AY106: 2.077993814 | AZ106: 51.30441144 | BA106: -3922.40226 | BE106: 39.76690511 | BF106: 832.7634904 | BG106: 31.7553968 | BH106: 9571.874535 | BJ106: 24125 | BK106: 58948 | BL106: 0 | BM106: -34823 | BN106: 23253 | BO106: 20967 | BR106: -500 | BS106: 6 | BT106: 8903 | BU106: 3057 | BV106: 0 | BX106: 5846 | BY106: 0 | BZ106: 5 | CA106: 0 | CB106: -16 | CC106: 5835 | CD106: 7763 | CE106: 6115 | CG106: 1391 | CH106: -4024 | CI106: 8016 | CN106: 21.5 | CP106: 12 | CQ106: 6638 | CS106: 3.388282026 | CT106: 58.9684173 | CU106: -4616.752034 | CY106: 41.17927356 | CZ106: 338.3549262 | DA106: 17.22899416 | DB106: 7168.122929 | DD106: 16952 | DE106: 54919 | DF106: 0 | DG106: -37967 | DH106: 24097 | DI106: 20662 | DL106: -512 | DM106: 31 | DN106: 6311 | DO106: 3176 | DP106: 40 | DR106: 3175 | DS106: 0 | DT106: -35 | DU106: 0 | DV106: -4 | DW106: 3136 | DX106: 10654 | DY106: 4762 | EA106: -317 | EB106: -1501 | EC106: -3022 | EE106: 1100 | EH106: 21.5 | EJ106: 82 | EQ106: -4271 | ER106: 2 | ES106: 1041 | ET106: -855 | EU106: 0 | EV106: 2756 | EW106: -9419 | EX106: 0 | EY106: 1635 | EZ106: 3572 | FA106: 500 | FB106: 0 | FC106: -246 | FD106: 0 | FE106: 23 | FF106: 30938 | FG106: 26206 | FH106: 4732 | FI106: 3 | FJ106: 27071 | FK106: 22608 | FL106: 4463 | FM106: 2 | FN106: 26451 | FO106: 21902 | FP106: 4549 | FQ106: 3
A107: 288 | B107: Kruunupyy | C107: 6682 | E107: 0.8807114382 | F107: 57.03080945 | G107: -4152.648908 | K107: 28.00034113 | L107: 407.0637534 | M107: 15.53677621 | N107: 9563.005088 | P107: 19740 | Q107: 55775 | R107: 25 | S107: -36010 | T107: 22777 | U107: 16004 | X107: -418 | Y107: 77 | Z107: 2430 | AA107: 2297 | AB107: 170 | AD107: 303 | AE107: 0 | AF107: 124 | AI107: 427 | AJ107: 6821 | AK107: 2309 | AM107: -1374 | AN107: -2819 | AO107: -2386 | AP107: 22777 | AT107: 20.75 | AV107: 259 | AW107: 6620 | AY107: 0.9667341626 | AZ107: 60.35452302 | BA107: -4274.320242 | BE107: 26.82672652 | BF107: 711.6314199 | BG107: 27.10629611 | BH107: 9582.477341 | BJ107: 20736 | BK107: 56429 | BL107: 8 | BM107: -35685 | BN107: 22338 | BO107: 16499 | BR107: -392 | BS107: 176 | BT107: 2936 | BU107: 2488 | BV107: -1 | BX107: 447 | BY107: -1 | BZ107: 141 | CA107: 0 | CB107: 0 | CC107: 587 | CD107: 7276 | CE107: 2297 | CG107: 139 | CH107: -3051 | CI107: -849 | CN107: 20.75 | CP107: 248 | CQ107: 6531 | CS107: 1.189412738 | CT107: 58.61467919 | CU107: -4452.304394 | CY107: 28.59816972 | CZ107: 654.7236258 | DA107: 26.6001977 | DB107: 8983.92283 | DD107: 24300 | DE107: 59838 | DF107: 29 | DG107: -35509 | DH107: 22757 | DI107: 16625 | DL107: -375 | DM107: 431 | DN107: 3929 | DO107: 2460 | DP107: 22 | DR107: 1491 | DS107: 1 | DT107: 114 | DU107: 14 | DV107: -3 | DW107: 1589 | DX107: 8868 | DY107: 3887 | EA107: -1024 | EB107: -3242 | EC107: -712 | EE107: 6569 | EH107: 21.25 | EJ107: 220 | EQ107: -4844 | ER107: 11 | ES107: 138 | ET107: -3531 | EU107: 120 | EV107: 265 | EW107: -4801 | EX107: 153 | EY107: 49 | EZ107: 4415 | FA107: 129 | FB107: 3698 | FC107: -201 | FD107: 3307 | FE107: 1679 | FF107: 24292 | FG107: 18294 | FH107: 5998 | FI107: 9 | FJ107: 24642 | FK107: 18618 | FL107: 6024 | FM107: 9 | FN107: 26247 | FO107: 18091 | FP107: 8156 | FQ107: 9
A108: 290 | B108: Kuhmo | C108: 8806 | E108: 0.7732576474 | F108: 36.50610864 | G108: -1295.821031 | K108: 51.73047544 | L108: 2823.188735 | M108: 73.51869106 | N108: 14016.35249 | P108: 49095 | Q108: 106887 | R108: 0 | S108: -57792 | T108: 29580 | U108: 32479 | X108: -257 | Y108: 594 | Z108: 4604 | AA108: 4231 | AB108: 44 | AD108: 417 | AE108: -118 | AF108: 1 | AI108: 300 | AJ108: 6370 | AK108: 4544 | AM108: 250 | AN108: -6042 | AO108: -3860 | AP108: 29580 | AT108: 21.5 | AV108: 200 | AW108: 8647 | AY108: 1.269351338 | AZ108: 41.52617085 | BA108: -1649.473806 | BE108: 46.44024214 | BF108: 3095.755753 | BG108: 81.78290129 | BH108: 13816.46814 | BJ108: 48786 | BK108: 105791 | BL108: 0 | BM108: -57005 | BN108: 28707 | BO108: 32534 | BR108: -209 | BS108: 992 | BT108: 5019 | BU108: 4329 | BV108: 294 | BX108: 984 | BY108: -69 | BZ108: -48 | CA108: 0 | CB108: -28 | CC108: 839 | CD108: 7259 | CE108: 5307 | CG108: -355 | CH108: -3902 | CI108: -3057 | CN108: 21.5 | CP108: 199 | CQ108: 8499 | CS108: 1.500976774 | CT108: 57.8461237 | CU108: -3219.437581 | CY108: 41.32332083 | CZ108: 3767.855042 | DA108: 128.7764557 | DB108: 10679.4917 | DD108: 50942 | DE108: 106694 | DF108: 2 | DG108: -55750 | DH108: 29097 | DI108: 32233 | DL108: -138 | DM108: 1249 | DN108: 6691 | DO108: 5095 | DP108: 0 | DR108: 1596 | DS108: -159 | DT108: 12 | DU108: 0 | DV108: -147 | DW108: 1302 | DX108: 8637 | DY108: 7438 | EA108: -902 | EB108: -4383 | EC108: -12795 | EE108: 885 | EH108: 21.5 | EJ108: 138 | EQ108: -9864 | ER108: 1447 | ES108: 13 | ET108: -9022 | EU108: 414 | EV108: 244 | EW108: -20934 | EX108: 160 | EY108: 541 | EZ108: 5283 | FA108: 1815 | FB108: 8376 | FC108: 1920 | FD108: 21025 | FE108: -186 | FF108: 27624 | FG108: 19441 | FH108: 8183 | FI108: 6 | FJ108: 33946 | FK108: 23764 | FL108: 10182 | FM108: 53 | FN108: 50402 | FO108: 40077 | FP108: 10325 | FQ108: 201
A109: 291 | B109: Kuhmoinen | C109: 2334 | E109: 1.867954911 | F109: 32.43196619 | G109: -1362.896315 | K109: 67.71310994 | L109: 1526.13539 | M109: 53.69110056 | N109: 10374.89289 | P109: 4716 | Q109: 20932 | R109: 0 | S109: -16216 | T109: 8155 | U109: 10316 | X109: 49 | Y109: -40 | Z109: 2264 | AA109: 1396 | AB109: -2 | AD109: 866 | AE109: -2 | AF109: -9 | AI109: 855 | AJ109: 4056 | AK109: 2142 | AM109: 621 | AN109: -1186 | AO109: 390 | AP109: 8155 | AT109: 20.75 | AV109: 41 | AW109: 2286 | AY109: 4.710526316 | AZ109: 45.93138523 | BA109: -1678.040245 | BE109: 60.97268807 | BF109: 2699.03762 | BG109: 90.07839686 | BH109: 10936.57043 | BJ109: 4341 | BK109: 21187 | BL109: 1 | BM109: -16845 | BN109: 8267 | BO109: 10594 | BR109: 72 | BS109: 12 | BT109: 2100 | BU109: 1638 | BV109: 3 | BX109: 465 | BY109: 89 | BZ109: 0 | CA109: 2 | CB109: 0 | CC109: 552 | CD109: 4452 | CE109: 2115 | CG109: 31 | CH109: -408 | CI109: -1119 | CN109: 20.75 | CP109: 71 | CQ109: 2252 | CS109: 2.399190283 | CT109: 44.27408588 | CU109: -1855.683837 | CY109: 63.29625547 | CZ109: 2075.488455 | DA109: 91.85430464 | DB109: 8247.335702 | DD109: 4784 | DE109: 20319 | DF109: 4 | DG109: -15531 | DH109: 8067 | DI109: 10368 | DL109: 63 | DM109: -46 | DN109: 2921 | DO109: 1785 | DP109: 4 | DR109: 1140 | DS109: -40 | DT109: -2 | DU109: 3 | DV109: -1 | DW109: 1094 | DX109: 5535 | DY109: 2938 | EA109: -720 | EB109: -1193 | EC109: -90 | EE109: 345 | EH109: 20.75 | EJ109: 19 | EQ109: -1951 | ER109: 0 | ES109: 199 | ET109: -3285 | EU109: 0 | EV109: 51 | EW109: -3093 | EX109: 40 | EY109: 25 | EZ109: 1680 | FA109: -2005 | FB109: 4277 | FC109: -1033 | FD109: 189 | FE109: 298 | FF109: 5395 | FG109: 3765 | FH109: 1630 | FI109: 60 | FJ109: 8266 | FK109: 7680 | FL109: 586 | FM109: 59 | FN109: 7596 | FO109: 6795 | FP109: 801 | FQ109: 59
A110: 297 | B110: Kuopio | C110: 112119 | E110: 1.404960683 | F110: 95.07425633 | G110: -8009.231263 | K110: 26.07759198 | L110: 1497.658738 | M110: 46.4096252 | N110: 11778.70834 | P110: 545201 | Q110: 1076403 | R110: 245 | S110: -530957 | T110: 429383 | U110: 226189 | X110: -15880 | Y110: 1872 | Z110: 110607 | AA110: 99054 | AB110: 309 | AD110: 11862 | AE110: -968 | AF110: -3023 | AI110: 7871 | AJ110: -40109 | AK110: 101817 | AM110: 6536 | AN110: -73888 | AO110: -10047 | AP110: 429383 | AT110: 20.5 | AV110: 36 | AW110: 113013 | AY110: 1.267232977 | AZ110: 91.71306925 | BA110: -7782.538292 | BE110: 25.54107681 | BF110: 1653.057613 | BG110: 50.6704255 | BH110: 11907.65664 | BJ110: 557569 | BK110: 1092468 | BL110: 418 | BM110: -534481 | BN110: 429134 | BO110: 244730 | BR110: -14502 | BS110: 1935 | BT110: 126816 | BU110: 99407 | BV110: 1392 | BX110: 28801 | BY110: -1448 | BZ110: -99 | CA110: 906 | CB110: -2417 | CC110: 23931 | CD110: -15766 | CE110: 122135 | CG110: 11284 | CH110: -96930 | CI110: 2828 | CN110: 20.5 | CP110: 30 | CQ110: 118209 | CS110: 1.148742783 | CT110: 89.75450531 | CU110: -7984.282077 | CY110: 28.61081766 | CZ110: 1338.248357 | DA110: 52.92365176 | DB110: 9229.53413 | DD110: 614581 | DE110: 1170587 | DF110: 1068 | DG110: -554938 | DH110: 452739 | DI110: 258004 | DL110: -13717 | DM110: 1787 | DN110: 143875 | DO110: 103555 | DP110: 0 | DR110: 40320 | DS110: -2623 | DT110: 23 | DU110: 2434 | DV110: -2510 | DW110: 32776 | DX110: 2177 | DY110: 135955 | EA110: -22130 | EB110: -123419 | EC110: -24494 | EE110: 11789 | EH110: 20.5 | EJ110: 28 | EQ110: -152797 | ER110: 2787 | ES110: 38146 | ET110: -140518 | EU110: 1450 | EV110: 19761 | EW110: -218638 | EX110: 2399 | EY110: 55790 | EZ110: 88818 | FA110: -42 | FB110: 95976 | FC110: -577 | FD110: 84002 | FE110: 42570 | FF110: 908508 | FG110: 836072 | FH110: 72436 | FI110: 0 | FJ110: 906583 | FK110: 821194 | FL110: 85389 | FM110: 0 | FN110: 947219 | FO110: 839892 | FP110: 107327 | FQ110: 510
A111: 300 | B111: Kuortane | C111: 3715 | E111: 3.584775087 | F111: 48.63338656 | G111: -4176.850606 | K111: 42.6641081 | L111: 813.7281292 | M111: 24.98629982 | N111: 11886.94482 | P111: 18955 | Q111: 41184 | R111: 10 | S111: -22219 | T111: 11000 | U111: 13254 | X111: -85 | Y111: 15 | Z111: 1965 | AA111: 1927 | AB111: 0 | AD111: 38 | AE111: -11 | AF111: -5 | AI111: 22 | AJ111: 1212 | AK111: 1890 | AM111: 85 | AN111: -471 | AO111: 40 | AP111: 11000 | AT111: 21 | AV111: 195 | AW111: 3690 | AY111: 7.745327103 | AZ111: 37.47126863 | BA111: -3939.837398 | BE111: 45.24140463 | BF111: 860.1626016 | BG111: 21.53484395 | BH111: 14579.13279 | BJ111: 28594 | BK111: 50665 | BL111: 3 | BM111: -22068 | BN111: 11111 | BO111: 14243 | BR111: -78 | BS111: 10 | BT111: 3218 | BU111: 1918 | BV111: 0 | BX111: 1300 | BY111: -13 | BZ111: -31 | CA111: 0 | CB111: 0 | CC111: 1256 | CD111: 2696 | CE111: 3189 | CG111: 40 | CH111: -331 | CI111: 767 | CN111: 21 | CP111: 84 | CQ111: 3637 | CS111: 8.852071006 | CT111: 35.42817433 | CU111: -3846.851801 | CY111: 46.48599349 | CZ111: 795.4357987 | DA111: 20.35870592 | DB111: 14260.92934 | DD111: 30555 | DE111: 52970 | DF111: -22 | DG111: -22437 | DH111: 11305 | DI111: 14262 | DL111: -58 | DM111: -152 | DN111: 2920 | DO111: 2244 | DP111: 0 | DR111: 676 | DS111: -11 | DT111: -94 | DU111: 0 | DV111: 0 | DW111: 571 | DX111: 3195 | DY111: 2745 | EA111: -464 | EB111: -266 | EC111: 906 | EE111: 1982 | EH111: 21 | EJ111: 130 | EQ111: -2292 | ER111: 165 | ES111: 277 | ET111: -2687 | EU111: 58 | EV111: 207 | EW111: -2819 | EX111: 188 | EY111: 792 | EZ111: 13 | FA111: 275 | FB111: 522 | FC111: 440 | FD111: 1206 | FE111: -1236 | FF111: 14639 | FG111: 6621 | FH111: 8018 | FI111: 1160 | FJ111: 15320 | FK111: 6827 | FL111: 8493 | FM111: 1145 | FN111: 15071 | FO111: 7827 | FP111: 7244 | FQ111: 1570
A112: 301 | B112: Kurikka | C112: 13958 | E112: 1.037238408 | F112: 68.91266502 | G112: -3788.938243 | K112: 49.18615509 | L112: 2518.842241 | M112: 83.57377775 | N112: 11000.78808 | P112: 62198 | Q112: 137356 | R112: 14 | S112: -75144 | T112: 39915 | U112: 35747 | X112: -800 | Y112: 9154 | Z112: 8872 | AA112: 9126 | AB112: 0 | AD112: -254 | AE112: 32 | AF112: -40 | AI112: -262 | AJ112: 30170 | AK112: 8542 | AM112: 2128 | AN112: -8509 | AO112: 3283 | AP112: 39915 | AT112: 19 | AV112: 142 | AW112: 21501 | AY112: 0.6236913205 | AZ112: 74.74671569 | BA112: -5058.462397 | BE112: 39.21505411 | BF112: 2157.946142 | BG112: 65.30998126 | BH112: 12060.18325 | BJ112: 93598 | BK112: 217471 | BL112: 14 | BM112: -123859 | BN112: 63169 | BO112: 66796 | BR112: -1034 | BS112: 8361 | BT112: 13433 | BU112: 16033 | BV112: 0 | BX112: -2600 | BY112: -61 | BZ112: 59 | CA112: 0 | CB112: -68 | CC112: -2670 | CD112: 13876 | CE112: 13345 | CG112: 4238 | CH112: -22347 | CI112: -1066 | CN112: 20 | CP112: 176 | CQ112: 21203 | CS112: 1.488301048 | CT112: 76.89394945 | CU112: -4908.362024 | CY112: 39.86389207 | CZ112: 2719.002028 | DA112: 99.84443949 | DB112: 9939.819837 | DD112: 91921 | DE112: 213779 | DF112: -6 | DG112: -121864 | DH112: 66489 | DI112: 67652 | DL112: -1148 | DM112: 8935 | DN112: 20064 | DO112: 14373 | DP112: 0 | DR112: 5691 | DS112: 49 | DT112: -95 | DU112: 0 | DV112: -14 | DW112: 5631 | DX112: 19953 | DY112: 19742 | EA112: 3152 | EB112: -13031 | EC112: 4379 | EE112: 17611 | EH112: 21 | EJ112: 83 | EQ112: -6370 | ER112: 364 | ES112: 747 | ET112: -17529 | EU112: 173 | EV112: 2945 | EW112: -18027 | EX112: 189 | EY112: 2475 | EZ112: 5495 | FA112: 164 | FB112: 26290 | FC112: -4131 | FD112: 16573 | FE112: 2176 | FF112: 73476 | FG112: 63525 | FH112: 9951 | FI112: 521 | FJ112: 132104 | FK112: 111679 | FL112: 20425 | FM112: 335 | FN112: 137520 | FO112: 116224 | FP112: 21296 | FQ112: 332
A113: 304 | B113: Kustavi | C113: 895 | E113: 1.69058296 | F113: 48.54651163 | G113: -4094.972067 | K113: 54.46317363 | L113: 938.547486 | M113: 26.61458333 | N113: 12871.50838 | P113: 4617 | Q113: 10261 | R113: 1 | S113: -5643 | T113: 4028 | U113: 2363 | X113: -69 | Y113: 6 | Z113: 685 | AA113: 463 | AB113: 0 | AD113: 222 | AE113: 0 | AF113: 0 | AI113: 222 | AJ113: 2573 | AK113: 699 | AM113: -78 | AN113: -377 | AO113: 60 | AP113: 4028 | AT113: 19.25 | AV113: 96 | AW113: 908 | AY113: 2.538461538 | AZ113: 49.47701503 | BA113: -4014.317181 | BE113: 55.05451713 | BF113: 1112.334802 | BG113: 31.27332881 | BH113: 12982.37885 | BJ113: 4652 | BK113: 10297 | BL113: 0 | BM113: -5645 | BN113: 4233 | BO113: 2492 | BR113: -51 | BS113: 9 | BT113: 1038 | BU113: 489 | BV113: 0 | BX113: 549 | BY113: 0 | BZ113: -407 | CA113: 0 | CB113: 0 | CC113: 142 | CD113: 2716 | CE113: 1027 | CG113: -134 | CH113: -378 | CI113: 38 | CN113: 19.25 | CP113: 29 | CQ113: 923 | CS113: 2.419483101 | CT113: 49.2319641 | CU113: -3921.993499 | CY113: 56.82586334 | CZ113: 1191.76598 | DA113: 41.25989107 | DB113: 10542.79523 | DD113: 5195 | DE113: 10376 | DF113: 1 | DG113: -5180 | DH113: 4026 | DI113: 2367 | DL113: -58 | DM113: 4 | DN113: 1159 | DO113: 524 | DP113: 0 | DR113: 635 | DS113: 0 | DT113: 30 | DU113: 0 | DV113: 0 | DW113: 665 | DX113: 3432 | DY113: 1175 | EA113: -7 | EB113: -445 | EC113: 39 | EE113: 1358 | EH113: 19 | EJ113: 22 | EQ113: -807 | ER113: 150 | ES113: 18 | ET113: -1061 | EU113: 63 | EV113: 9 | EW113: -1148 | EX113: 5 | EY113: 7 | EZ113: 40 | FA113: 1 | FB113: 686 | FC113: -4 | FD113: 495 | FE113: -2 | FF113: 4055 | FG113: 3674 | FH113: 381 | FI113: 1 | FJ113: 4353 | FK113: 3904 | FL113: 449 | FM113: 1 | FN113: 4408 | FO113: 3940 | FP113: 468 | FQ113: 0
A114: 305 | B114: Kuusamo | C114: 15688 | E114: 1.41056493 | F114: 57.1128502 | G114: -2690.91025 | K114: 50.12859959 | L114: 1937.914329 | M114: 74.49219615 | N114: 9495.474248 | P114: 44788 | Q114: 134359 | R114: 20 | S114: -89551 | T114: 52714 | U114: 44846 | X114: -1051 | Y114: 1553 | Z114: 8511 | AA114: 7241 | AB114: 0 | AD114: 1270 | AE114: 9 | AF114: 618 | AI114: 1897 | AJ114: 14617 | AK114: 8386 | AM114: 1107 | AN114: -5713 | AO114: 2354 | AP114: 52714 | AT114: 20 | AV114: 189 | AW114: 15533 | AY114: 1.802641126 | AZ114: 53.63277969 | BA114: -2342.303483 | BE114: 50.9240979 | BF114: 2152.900277 | BG114: 79.69212739 | BH114: 9860.554948 | BJ114: 49234 | BK114: 136667 | BL114: 1 | BM114: -87432 | BN114: 51794 | BO114: 46600 | BR114: -982 | BS114: 1489 | BT114: 11469 | BU114: 8409 | BV114: 0 | BX114: 3060 | BY114: 2 | BZ114: 538 | CA114: 15 | CB114: -147 | CC114: 3438 | CD114: 18557 | CE114: 10312 | CG114: -711 | CH114: -5938 | CI114: 3144 | CN114: 20 | CP114: 123 | CQ114: 15386 | CS114: 1.763862748 | CT114: 50.62492333 | CU114: -2223.969843 | CY114: 53.08632151 | CZ114: 2023.527882 | DA114: 85.76471121 | DB114: 8611.789939 | DD114: 47965 | DE114: 135460 | DF114: 2 | DG114: -87493 | DH114: 52586 | DI114: 46187 | DL114: -894 | DM114: 883 | DN114: 11269 | DO114: 9222 | DP114: 0 | DR114: 2047 | DS114: -39 | DT114: 414 | DU114: 46 | DV114: -66 | DW114: 2310 | DX114: 21081 | DY114: 11152 | EA114: 420 | EB114: -5993 | EC114: 2430 | EE114: 2506 | EH114: 20 | EJ114: 163 | EQ114: -7205 | ER114: 1064 | ES114: 109 | ET114: -9362 | EU114: 753 | EV114: 1441 | EW114: -9976 | EX114: 580 | EY114: 674 | EZ114: 5629 | FA114: -472 | FB114: 7170 | FC114: -313 | FD114: 1049 | FE114: -450 | FF114: 59721 | FG114: 52520 | FH114: 7201 | FI114: 412 | FJ114: 60769 | FK114: 53959 | FL114: 6810 | FM114: 572 | FN114: 55375 | FO114: 49041 | FP114: 6334 | FQ114: 546
A115: 312 | B115: Kyyjärvi | C115: 1379 | E115: 1.611995104 | F115: 85.79220504 | G115: -5588.832487 | K115: 31.70242128 | L115: 4602.610587 | M115: 104.3209348 | N115: 16103.69833 | P115: 9829 | Q115: 18019 | R115: 2 | S115: -8188 | T115: 4527 | U115: 4528 | X115: -46 | Y115: 434 | Z115: 1255 | AA115: 978 | AB115: 0 | AD115: 277 | AE115: 1 | AF115: -7 | AI115: 271 | AJ115: 1024 | AK115: 1261 | AM115: -1383 | AN115: -755 | AO115: -1844 | AP115: 4527 | AT115: 20.5 | AV115: 55 | AW115: 1375 | AY115: -0.7781299525 | AZ115: 95.44004924 | BA115: -6812.363636 | BE115: 22.10188356 | BF115: 4785.454545 | BG115: 117.2590567 | BH115: 14896 | BJ115: 9707 | BK115: 18494 | BL115: 0 | BM115: -8787 | BN115: 3907 | BO115: 4259 | BR115: -22 | BS115: 108 | BT115: -535 | BU115: 1080 | BV115: 0 | BX115: -1615 | BY115: 0 | BZ115: 0 | CA115: 0 | CB115: 0 | CC115: -1615 | CD115: -393 | CE115: -529 | CG115: 1102 | CH115: -587 | CI115: -1833 | CN115: 20.5 | CP115: 297 | CQ115: 1352 | CS115: 1.621527778 | CT115: 93.21027986 | CU115: -7004.43787 | CY115: 20.87191712 | CZ115: 4744.822485 | DA115: 136.5610055 | DB115: 12681.95266 | DD115: 9627 | DE115: 17810 | DF115: 0 | DG115: -8183 | DH115: 4319 | DI115: 4420 | DL115: -7 | DM115: 350 | DN115: 899 | DO115: 954 | DP115: 0 | DR115: -55 | DS115: 48 | DT115: 2 | DU115: 0 | DV115: 0 | DW115: -5 | DX115: -1539 | DY115: 898 | EA115: -144 | EB115: -541 | EC115: -261 | EE115: 2406 | EH115: 21 | EJ115: 198 | EQ115: -3284 | ER115: 170 | ES115: 9 | ET115: -1332 | EU115: 23 | EV115: 5 | EW115: -1245 | EX115: 71 | EY115: 15 | EZ115: 2864 | FA115: 62 | FB115: 1097 | FC115: 175 | FD115: 820 | FE115: 119 | FF115: 13813 | FG115: 13144 | FH115: 669 | FI115: 65 | FJ115: 14499 | FK115: 13673 | FL115: 826 | FM115: 66 | FN115: 14982 | FO115: 4564 | FP115: 10418 | FQ115: 66
A116: 316 | B116: Kärkölä | C116: 4604 | E116: 1.246022032 | F116: 50.96090126 | G116: -3638.140747 | K116: 21.49405654 | L116: 519.1138141 | M116: 19.42699982 | N116: 9753.258036 | P116: 18128 | Q116: 41180 | R116: 0 | S116: -23052 | T116: 16170 | U116: 7954 | X116: -99 | Y116: -77 | Z116: 896 | AA116: 1828 | AB116: -9 | AD116: -941 | AE116: -6 | AF116: 0 | AI116: -947 | AJ116: -4440 | AK116: 921 | AM116: 89 | AN116: -695 | AO116: -1414 | AP116: 16170 | AT116: 21.75 | AV116: 289 | AW116: 4540 | AY116: 1.601097896 | AZ116: 37.34266402 | BA116: -2425.330396 | BE116: 39.49695564 | BF116: 591.6299559 | BG116: 22.44071599 | BH116: 9622.907489 | BJ116: 17070 | BK116: 40138 | BL116: 0 | BM116: -23068 | BN116: 16223 | BO116: 8576 | BR116: -147 | BS116: 15 | BT116: 1599 | BU116: 1610 | BV116: 4842 | BX116: 4831 | BY116: -10 | BZ116: 1 | CA116: 10 | CB116: 0 | CC116: 4812 | CD116: 333 | CE116: 6476 | CG116: 479 | CH116: -942 | CI116: 5408 | CN116: 21.75 | CP116: 265 | CQ116: 4508 | CS116: 3.120076849 | CT116: 31.72158237 | CU116: -1950.754215 | CY116: 42.44638711 | CZ116: 734.2502218 | DA116: 25.72502342 | DB116: 10417.92369 | DD116: 25035 | DE116: 46680 | DF116: 1 | DG116: -21644 | DH116: 16687 | DI116: 8203 | DL116: -155 | DM116: 1 | DN116: 3092 | DO116: 1587 | DP116: 20 | DR116: 1525 | DS116: -9 | DT116: 0 | DU116: 0 | DV116: 0 | DW116: 1516 | DX116: 1861 | DY116: 3040 | EA116: -1794 | EB116: -885 | EC116: 2515 | EE116: 1095 | EH116: 21.75 | EJ116: 184 | EQ116: -2824 | ER116: 389 | ES116: 100 | ET116: -2444 | EU116: 35 | EV116: 1341 | EW116: -830 | EX116: 24 | EY116: 281 | EZ116: 5 | FA116: 2488 | FB116: 213 | FC116: -6000 | FD116: 303 | FE116: 0 | FF116: 17292 | FG116: 10564 | FH116: 6728 | FI116: 370 | FJ116: 10567 | FK116: 9884 | FL116: 683 | FM116: 9 | FN116: 9986 | FO116: 9295 | FP116: 691 | FQ116: 49
A117: 317 | B117: Kärsämäki | C117: 2658 | E117: 1.037625861 | F117: 86.46945382 | G117: -4362.302483 | K117: 29.96981339 | L117: 3711.813394 | M117: 115.9136705 | N117: 11688.11136 | P117: 11066 | Q117: 27568 | R117: 7 | S117: -16495 | T117: 7179 | U117: 10793 | X117: -162 | Y117: 453 | Z117: 1768 | AA117: 1364 | AB117: 0 | AD117: 404 | AE117: 74 | AF117: -2 | AI117: 476 | AJ117: 4158 | AK117: 1734 | AM117: 247 | AN117: -1697 | AO117: 570 | AP117: 7179 | AT117: 21.5 | AV117: 124 | AW117: 2655 | AY117: 0.8609680742 | AZ117: 60.05462294 | BA117: -3720.903955 | BE117: 30.91522005 | BF117: 4282.862524 | BG117: 93.57476214 | BH117: 16705.83804 | BJ117: 24223 | BK117: 40199 | BL117: 0 | BM117: -15976 | BN117: 7027 | BO117: 11223 | BR117: -171 | BS117: 226 | BT117: 2329 | BU117: 1328 | BV117: 0 | BX117: 1001 | BY117: 2 | BZ117: -86 | CA117: 2 | CB117: -9 | CC117: 906 | CD117: 4960 | CE117: 2263 | CG117: -846 | CH117: -2734 | CI117: 1409 | CN117: 21.5 | CP117: 81 | CQ117: 2611 | CS117: 1.053362979 | CT117: 61.3801951 | CU117: -4292.991191 | CY117: 31.62103479 | CZ117: 4392.186902 | DA117: 108.8130394 | DB117: 14733.05247 | DD117: 22453 | DE117: 39888 | DF117: 1 | DG117: -17434 | DH117: 6835 | DI117: 12025 | DL117: -132 | DM117: 458 | DN117: 1752 | DO117: 1898 | DP117: 0 | DR117: -146 | DS117: -1 | DT117: 277 | DU117: 6 | DV117: -2 | DW117: 122 | DX117: 5051 | DY117: 1760 | EA117: 1176 | EB117: -1656 | EC117: -1254 | EE117: 2733 | EH117: 21.5 | EJ117: 191 | EQ117: -1535 | ER117: 358 | ES117: 13 | ET117: -1014 | EU117: 7 | EV117: 153 | EW117: -3341 | EX117: 11 | EY117: 316 | EZ117: 1613 | FA117: -1191 | FB117: 1685 | FC117: 658 | FD117: 1209 | FE117: 2201 | FF117: 18919 | FG117: 16367 | FH117: 2552 | FI117: 1 | FJ117: 18529 | FK117: 15498 | FL117: 3031 | FM117: -388 | FN117: 20282 | FO117: 15175 | FP117: 5107 | FQ117: 102
A118: 398 | B118: Lahti | C118: 103918 | E118: 1.460938136 | F118: 100.4419069 | G118: -8928.356974 | K118: 31.86873165 | L118: 1384.861141 | M118: 40.74095217 | N118: 12407.03247 | P118: 541891 | Q118: 1036673 | R118: 118 | S118: -494664 | T118: 388657 | U118: 226483 | X118: -20323 | Y118: 4561 | Z118: 104714 | AA118: 102951 | AB118: -495 | AD118: 1268 | AE118: 1026 | AF118: -3357 | AI118: -1063 | AJ118: 91284 | AK118: 100702 | AM118: 359 | AN118: -65083 | AO118: -47995 | AP118: 388657 | AT118: 20.25 | AV118: 32 | AW118: 119452 | AY118: 1.599793974 | AZ118: 97.00834651 | BA118: -8462.780029 | BE118: 31.63864483 | BF118: 947.2842648 | BG118: 29.88562491 | BH118: 11569.40026 | BJ118: 558052 | BK118: 1118146 | BL118: 36 | BM118: -560058 | BN118: 444753 | BO118: 265390 | BR118: -20261 | BS118: -2135 | BT118: 127689 | BU118: 117466 | BV118: -135 | BX118: 10088 | BY118: 390 | BZ118: -10 | CA118: 5346 | CB118: -1079 | CC118: 4043 | CD118: 132152 | CE118: 120232 | CG118: -11331 | CH118: -71793 | CI118: -37650 | CN118: 20.25 | CP118: 38 | CQ118: 119573 | CS118: 1.960145084 | CT118: 102.4004743 | CU118: -8998.109941 | CY118: 31.49045476 | CZ118: 1326.394755 | DA118: 56.30039884 | DB118: 8599.123548 | DD118: 610585 | DE118: 1134068 | DF118: 156 | DG118: -523327 | DH118: 448384 | DI118: 253230 | DL118: -20701 | DM118: 1576 | DN118: 159162 | DO118: 118319 | DP118: 1047 | DR118: 41890 | DS118: -1048 | DT118: -138 | DU118: 5764 | DV118: -1862 | DW118: 33078 | DX118: 162740 | DY118: 144444 | EA118: -5424 | EB118: -70483 | EC118: -72152 | EE118: 2104 | EH118: 20.25 | EJ118: 17 | EQ118: -162941 | ER118: 4582 | ES118: 9662 | ET118: -167825 | EU118: 574 | EV118: 9369 | EW118: -211894 | EX118: 530 | EY118: -5232 | EZ118: 132724 | FA118: -10607 | FB118: 75096 | FC118: -8331 | FD118: 174022 | FE118: 21942 | FF118: 942838 | FG118: 885610 | FH118: 57228 | FI118: 11332 | FJ118: 989489 | FK118: 921308 | FL118: 68181 | FM118: 10796 | FN118: 1098025 | FO118: 993239 | FP118: 104786 | FQ118: 24203
A119: 399 | B119: Laihia | C119: 8090 | E119: 2.352063213 | F119: 60.07333566 | G119: -3922.991347 | K119: 35.69292288 | L119: 329.1718171 | M119: 14.12249731 | N119: 8507.540173 | P119: 19646 | Q119: 60379 | R119: 0 | S119: -40733 | T119: 29757 | U119: 13595 | X119: -303 | Y119: 41 | Z119: 2357 | AA119: 3096 | AB119: 0 | AD119: -739 | AE119: 17 | AF119: -21 | AI119: -743 | AJ119: 980 | AK119: 2395 | AM119: -64 | AN119: -817 | AO119: -4349 | AP119: 29757 | AT119: 21.5 | AV119: 276 | AW119: 8139 | AY119: 0.766798419 | AZ119: 65.11146572 | BA119: -4347.339968 | BE119: 30.83537493 | BF119: 371.667281 | BG119: 15.90431125 | BH119: 8529.67195 | BJ119: 19205 | BK119: 61821 | BL119: 0 | BM119: -42616 | BN119: 29150 | BO119: 14938 | BR119: -278 | BS119: 73 | BT119: 1267 | BU119: 2897 | BV119: 0 | BX119: -1630 | BY119: 4 | BZ119: 21 | CA119: 0 | CB119: -28 | CC119: -1633 | CD119: -423 | CE119: 1161 | CG119: 620 | CH119: -1739 | CI119: -3601 | CN119: 21.5 | CP119: 287 | CQ119: 8051 | CS119: 1.065986611 | CT119: 72.48521641 | CU119: -5020.37014 | CY119: 29.99495758 | CZ119: 356.353248 | DA119: 18.94774459 | DB119: 6864.613092 | DD119: 18597 | DE119: 60277 | DF119: 0 | DG119: -41680 | DH119: 29946 | DI119: 15041 | DL119: -260 | DM119: 34 | DN119: 3081 | DO119: 2931 | DP119: 0 | DR119: 150 | DS119: 21 | DT119: -34 | DU119: 0 | DV119: -38 | DW119: 99 | DX119: -336 | DY119: 3100 | EA119: 0 | EB119: -2874 | EC119: -4817 | EE119: 603 | EH119: 21.75 | EJ119: 277 | EQ119: -7207 | ER119: 127 | ES119: 336 | ET119: -5515 | EU119: 253 | EV119: 500 | EW119: -8208 | EX119: 65 | EY119: 226 | EZ119: 1566 | FA119: 2774 | FB119: 6736 | FC119: -1479 | FD119: 8125 | FE119: -1679 | FF119: 27854 | FG119: 15361 | FH119: 12493 | FI119: 250 | FJ119: 31671 | FK119: 20657 | FL119: 11014 | FM119: 102 | FN119: 35436 | FO119: 25026 | FP119: 10410 | FQ119: 4
A120: 400 | B120: Laitila | C120: 8520 | E120: 2.674193548 | F120: 54.78644203 | G120: -4303.99061 | K120: 46.20385859 | L120: 413.8497653 | M120: 14.15441298 | N120: 10671.94836 | P120: 36875 | Q120: 80389 | R120: 10 | S120: -43504 | T120: 29254 | U120: 19164 | X120: -259 | Y120: 47 | Z120: 4702 | AA120: 4113 | AB120: 0 | AD120: 589 | AE120: -98 | AF120: 7 | AI120: 498 | AJ120: 7427 | AK120: 4926 | AM120: 549 | AN120: -1588 | AO120: -3366 | AP120: 29254 | AT120: 20.75 | AV120: 182 | AW120: 8520 | AY120: 3.676705593 | AZ120: 54.88197672 | BA120: -4210.915493 | BE120: 45.04755852 | BF120: 451.8779343 | BG120: 15.83184056 | BH120: 10417.95775 | BJ120: 37761 | BK120: 81043 | BL120: 17 | BM120: -43265 | BN120: 28683 | BO120: 20488 | BR120: -180 | BS120: 71 | BT120: 5797 | BU120: 4354 | BV120: 0 | BX120: 1443 | BY120: -118 | BZ120: 0 | CA120: 0 | CB120: 30 | CC120: 1355 | CD120: 9292 | CE120: 5959 | CG120: -1450 | CH120: -1442 | CI120: 596 | CN120: 20.75 | CP120: 150 | CQ120: 8610 | CS120: 8.27064803 | CT120: 55.07475593 | CU120: -4232.404181 | CY120: 46.05531358 | CZ120: 506.039489 | DA120: 20.66082472 | DB120: 8939.837398 | DD120: 38145 | DE120: 81498 | DF120: 12 | DG120: -43341 | DH120: 29232 | DI120: 20509 | DL120: -188 | DM120: 103 | DN120: 6315 | DO120: 6583 | DP120: -1 | DR120: -269 | DS120: -98 | DT120: -293 | DU120: 33 | DV120: -14 | DW120: -707 | DX120: 8617 | DY120: 5234 | EA120: 378 | EB120: -593 | EC120: 486 | EE120: 2247 | EH120: 20.75 | EJ120: 162 | EQ120: -8644 | ER120: 239 | ES120: 113 | ET120: -6121 | EU120: 587 | EV120: 171 | EW120: -5269 | EX120: -573 | EY120: 1094 | EZ120: 3189 | FA120: 862 | FB120: 118 | FC120: 2304 | FD120: 187 | FE120: -1337 | FF120: 31506 | FG120: 17694 | FH120: 13812 | FI120: 328 | FJ120: 32541 | FK120: 16479 | FL120: 16062 | FM120: 328 | FN120: 31673 | FO120: 16691 | FP120: 14982 | FQ120: 328
A121: 407 | B121: Lapinjärvi | C121: 2774 | E121: 2.668367347 | F121: 61.00046318 | G121: -4838.13987 | K121: 38.03749903 | L121: 497.8370584 | M121: 19.06448563 | N121: 9531.362653 | P121: 10461 | Q121: 24587 | R121: -1 | S121: -14127 | T121: 8824 | U121: 6623 | X121: -251 | Y121: 765 | Z121: 1834 | AA121: 1446 | AB121: 18 | AD121: 406 | AE121: 0 | AF121: 0 | AI121: 406 | AJ121: 940 | AK121: 1677 | AM121: -45 | AN121: -526 | AO121: 1002 | AP121: 8824 | AT121: 20.5 | AV121: 125 | AW121: 2739 | AY121: 0.4791231733 | AZ121: 64.77577928 | BA121: -5028.842643 | BE121: 34.48682019 | BF121: 401.9715225 | BG121: 14.91869919 | BH121: 9834.611172 | BJ121: 9028 | BK121: 24905 | BL121: 0 | BM121: -15877 | BN121: 8481 | BO121: 7065 | BR121: -199 | BS121: 783 | BT121: 253 | BU121: 1476 | BV121: 0 | BX121: -1223 | BY121: 0 | BZ121: -1 | CA121: 0 | CB121: 0 | CC121: -1224 | CD121: -421 | CE121: 245 | CG121: -41 | CH121: -752 | CI121: -329 | CN121: 20.5 | CP121: 289 | CQ121: 2706 | CS121: 0.7283236994 | CT121: 71.15671935 | CU121: -5644.124169 | CY121: 29.27168703 | CZ121: 574.2793792 | DA121: 23.36408947 | DB121: 8971.544715 | DD121: 9643 | DE121: 25315 | DF121: 1 | DG121: -15671 | DH121: 8630 | DI121: 7161 | DL121: -107 | DM121: 756 | DN121: 769 | DO121: 1697 | DP121: 0 | DR121: -928 | DS121: 0 | DT121: 1 | DU121: 0 | DV121: 0 | DW121: -927 | DX121: -1348 | DY121: 742 | EA121: -228 | EB121: -1098 | EC121: -1433 | EE121: 242 | EH121: 20.5 | EJ121: 285 | EQ121: -1039 | ER121: 35 | ES121: 329 | ET121: -1046 | EU121: 1 | EV121: 471 | EW121: -2304 | EX121: 98 | EY121: 31 | EZ121: 125 | FA121: -704 | FB121: 5 | FC121: 852 | FD121: 1139 | FE121: 2015 | FF121: 12523 | FG121: 10904 | FH121: 1619 | FI121: 0 | FJ121: 12629 | FK121: 10116 | FL121: 2513 | FM121: 0 | FN121: 14685 | FO121: 10147 | FP121: 4538 | FQ121: 0
A122: 402 | B122: Lapinlahti | C122: 9982 | E122: 1.288093066 | F122: 72.60819578 | G122: -5803.045482 | K122: 34.51469343 | L122: 515.0270487 | M122: 17.78049936 | N122: 10572.53055 | P122: 34508 | Q122: 92586 | R122: 115 | S122: -57963 | T122: 29928 | U122: 32980 | X122: -658 | Y122: 675 | Z122: 4962 | AA122: 5499 | AB122: 3 | AD122: -534 | AE122: 38 | AF122: -91 | AI122: -587 | AJ122: 249 | AK122: 4740 | AM122: -1749 | AN122: -3699 | AO122: -1140 | AP122: 29928 | AT122: 20.25 | AV122: 211 | AW122: 9882 | AY122: 0.6826594533 | AZ122: 73.64533276 | BA122: -6211.596843 | BE122: 32.71728856 | BF122: 347.9052823 | BG122: 11.41818546 | BH122: 11121.33171 | BJ122: 35233 | BK122: 93723 | BL122: 109 | BM122: -58381 | BN122: 29107 | BO122: 33673 | BR122: -526 | BS122: 368 | BT122: 4241 | BU122: 5565 | BV122: 43 | BX122: -1281 | BY122: 30 | BZ122: -4 | CA122: 70 | CB122: 16 | CC122: -1309 | CD122: -1062 | CE122: 4181 | CG122: 306 | CH122: -6470 | CI122: -3747 | CN122: 20.25 | CP122: 253 | CQ122: 9692 | CS122: 1.5109847 | CT122: 70.92766147 | CU122: -6203.157243 | CY122: 34.61909266 | CZ122: 370.5117623 | DA122: 14.43343868 | DB122: 9369.686339 | DD122: 35963 | DE122: 91828 | DF122: 115 | DG122: -55750 | DH122: 29275 | DI122: 33354 | DL122: -567 | DM122: 798 | DN122: 7110 | DO122: 5962 | DP122: -3 | DR122: 1145 | DS122: 66 | DT122: 1 | DU122: 24 | DV122: -3 | DW122: 1185 | DX122: 126 | DY122: 6589 | EA122: 1146 | EB122: -4505 | EC122: 1407 | EE122: 3116 | EH122: 20.25 | EJ122: 161 | EQ122: -8483 | ER122: 530 | ES122: 2073 | ET122: -9085 | EU122: 302 | EV122: 855 | EW122: -6179 | EX122: 453 | EY122: 544 | EZ122: 6030 | FA122: 370 | FB122: 7683 | FC122: -14 | FD122: 2419 | FE122: 38 | FF122: 58639 | FG122: 52125 | FH122: 6514 | FI122: 907 | FJ122: 59777 | FK122: 52673 | FL122: 7104 | FM122: 907 | FN122: 57754 | FO122: 49773 | FP122: 7981 | FQ122: 907
A123: 403 | B123: Lappajärvi | C123: 3215 | E123: 3.282278481 | F123: 59.08232189 | G123: -5510.108865 | K123: 47.3495653 | L123: 1021.150855 | M123: 28.91498962 | N123: 12890.20218 | P123: 16195 | Q123: 36111 | R123: 9 | S123: -19907 | T123: 10293 | U123: 12153 | X123: -157 | Y123: 35 | Z123: 2417 | AA123: 1829 | AB123: 0 | AD123: 588 | AE123: -2 | AF123: -12 | AI123: 574 | AJ123: 1662 | AK123: 2362 | AM123: 330 | AN123: -614 | AO123: -1292 | AP123: 10293 | AT123: 21 | AV123: 100 | AW123: 3176 | AY123: 2.976165803 | AZ123: 58.97599591 | BA123: -5346.662469 | BE123: 42.04593179 | BF123: 1217.254408 | BG123: 35.68495056 | BH123: 12450.56675 | BJ123: 16234 | BK123: 36321 | BL123: 5 | BM123: -20082 | BN123: 10354 | BO123: 12572 | BR123: -154 | BS123: 19 | BT123: 2709 | BU123: 1667 | BV123: 0 | BX123: 1042 | BY123: 7 | BZ123: 9 | CA123: 0 | CB123: 6 | CC123: 1064 | CD123: 2732 | CE123: 2744 | CG123: -226 | CH123: -802 | CI123: 687 | CN123: 21 | CP123: 87 | CQ123: 3140 | CS123: 1.811206897 | CT123: 61.93466028 | CU123: -5572.611465 | CY123: 47.58259205 | CZ123: 1234.394904 | DA123: 41.13812155 | DB123: 10952.2293 | DD123: 16092 | DE123: 36262 | DF123: -90 | DG123: -20260 | DH123: 9906 | DI123: 12386 | DL123: -143 | DM123: 62 | DN123: 1951 | DO123: 1945 | DP123: 0 | DR123: 6 | DS123: 8 | DT123: 2 | DU123: 3 | DV123: -7 | DW123: 6 | DX123: 2912 | DY123: 1911 | EA123: 133 | EB123: -1010 | EC123: -667 | EE123: 647 | EH123: 21 | EJ123: 218 | EQ123: -4529 | ER123: 709 | ES123: 166 | ET123: -2244 | EU123: 180 | EV123: 7 | EW123: -3056 | EX123: 183 | EY123: 295 | EZ123: 1476 | FA123: -899 | FB123: 686 | FC123: 852 | FD123: 1127 | FE123: 583 | FF123: 17239 | FG123: 10140 | FH123: 7099 | FI123: 8 | FJ123: 17969 | FK123: 9974 | FL123: 7995 | FM123: 7 | FN123: 18416 | FO123: 10008 | FP123: 8408 | FQ123: 5
A124: 405 | B124: Lappeenranta | C124: 72875 | E124: 0.859459343 | F124: 96.56071773 | G124: -8422.696398 | K124: 26.80879158 | L124: 608.3704974 | M124: 19.54543917 | N124: 11360.97427 | P124: 323407 | Q124: 653464 | R124: 328 | S124: -329729 | T124: 294643 | U124: 115039 | X124: -8131 | Y124: -630 | Z124: 71192 | AA124: 53279 | AB124: 0 | AD124: 17913 | AE124: -205 | AF124: -3167 | AI124: 14541 | AJ124: 32324 | AK124: 67057 | AM124: 14893 | AN124: -84236 | AO124: -3852 | AP124: 294643 | AT124: 21 | AV124: 40 | AW124: 72872 | AY124: 1.783575568 | AZ124: 88.22540215 | BA124: -8258.219892 | BE124: 28.84841154 | BF124: 602.3438358 | BG124: 18.97463623 | BH124: 11586.80975 | BJ124: 376468 | BK124: 693585 | BL124: 1327 | BM124: -315790 | BN124: 293913 | BO124: 122300 | BR124: -6879 | BS124: -627 | BT124: 92917 | BU124: 49567 | BV124: 0 | BX124: 43350 | BY124: -662 | BZ124: -29 | CA124: 2177 | CB124: -2087 | CC124: 38395 | CD124: 69752 | CE124: 88675 | CG124: -3557 | CH124: -48978 | CI124: 13696 | CN124: 21 | CP124: 15 | CQ124: 72909 | CS124: 1.320369449 | CT124: 88.7632341 | CU124: -8124.264494 | CY124: 30.40635752 | CZ124: 586.6628263 | DA124: 22.78669562 | DB124: 9397.234909 | DD124: 365675 | DE124: 683920 | DF124: -31 | DG124: -318276 | DH124: 291499 | DI124: 117435 | DL124: -5924 | DM124: -632 | DN124: 84102 | DO124: 61837 | DP124: 0 | DR124: 22265 | DS124: -602 | DT124: 812 | DU124: 3399 | DV124: -2524 | DW124: 16552 | DX124: 80222 | DY124: 79845 | EA124: 1155 | EB124: -62215 | EC124: 22973 | EE124: 17250 | EH124: 21 | EJ124: 42 | EQ124: -80488 | ER124: 4124 | ES124: 5455 | ET124: -93568 | EU124: 2452 | EV124: 16137 | EW124: -78830 | EX124: 1719 | EY124: 20239 | EZ124: 71263 | FA124: -1392 | FB124: 18999 | FC124: 18336 | FD124: 53383 | FE124: -8566 | FF124: 536161 | FG124: 467845 | FH124: 68316 | FI124: 428 | FJ124: 520003 | FK124: 421960 | FL124: 98043 | FM124: 428 | FN124: 500519 | FO124: 412577 | FP124: 87942 | FQ124: 11258
A125: 408 | B125: Lapua | C125: 14609 | E125: 0.6278588808 | F125: 92.55362045 | G125: -7096.242043 | K125: 26.27338147 | L125: 633.7189404 | M125: 22.91118042 | N125: 10095.83134 | P125: 44243 | Q125: 119037 | R125: 46 | S125: -74748 | T125: 48434 | U125: 36285 | X125: -1245 | Y125: 340 | Z125: 9066 | AA125: 8314 | AB125: 3 | AD125: 755 | AE125: 49 | AF125: -25 | AI125: 779 | AJ125: 11300 | AK125: 8894 | AM125: 495 | AN125: -15184 | AO125: -1099 | AP125: 48434 | AT125: 21 | AV125: 147 | AW125: 14575 | AY125: 1.408137317 | AZ125: 89.82512648 | BA125: -6882.744425 | BE125: 27.48898838 | BF125: 736.1921098 | BG125: 28.43219816 | BH125: 9450.909091 | BJ125: 43967 | BK125: 118806 | BL125: 59 | BM125: -74780 | BN125: 48256 | BO125: 39415 | BR125: -1306 | BS125: 386 | BT125: 11971 | BU125: 8802 | BV125: 0 | BX125: 3169 | BY125: -38 | BZ125: 16 | CA125: -1 | CB125: -29 | CC125: 3119 | CD125: 14497 | CE125: 11471 | CG125: -761 | CH125: -8119 | CI125: 3163 | CN125: 21 | CP125: 97 | CQ125: 14494 | CS125: 1.196691015 | CT125: 92.67201364 | CU125: -7032.427211 | CY125: 28.72398828 | CZ125: 842.7625224 | DA125: 39.11869478 | DB125: 7863.460742 | DD125: 43993 | DE125: 118217 | DF125: 34 | DG125: -74190 | DH125: 48687 | DI125: 38734 | DL125: -1034 | DM125: 334 | DN125: 12531 | DO125: 8802 | DP125: 0 | DR125: 3729 | DS125: -35 | DT125: 58 | DU125: 47 | DV125: -82 | DW125: 3623 | DX125: 18249 | DY125: 11487 | EA125: -443 | EB125: -10296 | EC125: -1694 | EE125: 2249 | EH125: 21 | EJ125: 102 | EQ125: -11987 | ER125: 1403 | ES125: 591 | ET125: -9436 | EU125: 33 | EV125: 1095 | EW125: -15702 | EX125: 412 | EY125: 2109 | EZ125: 6854 | FA125: 9420 | FB125: 5944 | FC125: 452 | FD125: 11886 | FE125: 375 | FF125: 92101 | FG125: 68998 | FH125: 23103 | FI125: 31 | FJ125: 90378 | FK125: 66609 | FL125: 23769 | FM125: 23 | FN125: 92343 | FO125: 67581 | FP125: 24762 | FQ125: 19
A126: 410 | B126: Laukaa | C126: 18865 | E126: 2.211729194 | F126: 82.13460848 | G126: -5833.87225 | K126: 20.72602944 | L126: 239.4911211 | M126: 9.87041515 | N126: 8856.188709 | P126: 41431 | Q126: 137892 | R126: 18 | S126: -96443 | T126: 65306 | U126: 40906 | X126: -214 | Y126: 439 | Z126: 9994 | AA126: 10371 | AB126: 0 | AD126: -377 | AE126: 0 | AF126: -947 | AI126: -1324 | AJ126: -6933 | AK126: 9662 | AM126: 574 | AN126: -4374 | AO126: -6890 | AP126: 65306 | AT126: 21.5 | AV126: 194 | AW126: 18970 | AY126: 3.662452107 | AZ126: 89.2525024 | BA126: -6337.691091 | BE126: 18.73640281 | BF126: 389.4043226 | BG126: 16.27740818 | BH126: 8731.892462 | BJ126: 41588 | BK126: 142812 | BL126: 0 | BM126: -101224 | BN126: 66746 | BO126: 43720 | BR126: -252 | BS126: 262 | BT126: 9252 | BU126: 9020 | BV126: 0 | BX126: 232 | BY126: 0 | BZ126: -8 | CA126: 22 | CB126: -120 | CC126: 82 | CD126: -3969 | CE126: 9293 | CG126: -1570 | CH126: -2303 | CI126: -9258 | CN126: 21.5 | CP126: 234 | CQ126: 18978 | CS126: 4.694740854 | CT126: 93.17925952 | CU126: -6780.693435 | CY126: 19.10108649 | CZ126: 352.6715144 | DA126: 19.44184029 | DB126: 6621.034882 | DD126: 44331 | DE126: 144285 | DF126: 0 | DG126: -99954 | DH126: 67930 | DI126: 44071 | DL126: -61 | DM126: 215 | DN126: 12201 | DO126: 8993 | DP126: 0 | DR126: 3208 | DS126: 0 | DT126: -201 | DU126: 17 | DV126: -87 | DW126: 2903 | DX126: -886 | DY126: 12013 | EA126: -1566 | EB126: -2506 | EC126: -8026 | EE126: 3674 | EH126: 21.5 | EJ126: 210 | EQ126: -21744 | ER126: 1216 | ES126: 3976 | ET126: -19898 | EU126: 410 | EV126: 937 | EW126: -21436 | EX126: 717 | EY126: 680 | EZ126: 14144 | FA126: -3983 | FB126: 5312 | FC126: 8928 | FD126: 12780 | FE126: -4977 | FF126: 100056 | FG126: 33546 | FH126: 66510 | FI126: 278 | FJ126: 112039 | FK126: 38635 | FL126: 73404 | FM126: 303 | FN126: 118285 | FO126: 49865 | FP126: 68420 | FQ126: 237
A127: 416 | B127: Lemi | C127: 3073 | E127: 1.347663551 | F127: 48.93757607 | G127: -3552.554507 | K127: 33.12982748 | L127: 410.3481939 | M127: 13.62900121 | N127: 10989.58672 | P127: 12487 | Q127: 27327 | R127: 10 | S127: -14830 | T127: 10385 | U127: 5883 | X127: -134 | Y127: 3 | Z127: 1307 | AA127: 1026 | AB127: 0 | AD127: 281 | AE127: 0 | AF127: -1 | AI127: 280 | AJ127: 79 | AK127: 1296 | AM127: 262 | AN127: -935 | AO127: -1807 | AP127: 10385 | AT127: 21 | AV127: 238 | AW127: 3076 | AY127: 2.470277411 | AZ127: 43.61220757 | BA127: -3402.795839 | BE127: 35.73366441 | BF127: 464.5643693 | BG127: 16.40204403 | BH127: 10338.10143 | BJ127: 14123 | BK127: 29337 | BL127: 29 | BM127: -15185 | BN127: 10848 | BO127: 6190 | BR127: -138 | BS127: 16 | BT127: 1731 | BU127: 1103 | BV127: 0 | BX127: 628 | BY127: 0 | BZ127: -29 | CA127: 0 | CB127: 0 | CC127: 599 | CD127: 679 | CE127: 1693 | CG127: -49 | CH127: -618 | CI127: 519 | CN127: 21 | CP127: 206 | CQ127: 3063 | CS127: 0.7173913043 | CT127: 46.44358389 | CU127: -3749.591903 | CY127: 32.05082795 | CZ127: 233.4312765 | DA127: 9.152842563 | DB127: 9308.847535 | DD127: 13656 | DE127: 29523 | DF127: 0 | DG127: -15867 | DH127: 10546 | DI127: 6011 | DL127: -74 | DM127: 2 | DN127: 618 | DO127: 1146 | DP127: 0 | DR127: -528 | DS127: 0 | DT127: -43 | DU127: 0 | DV127: 0 | DW127: -571 | DX127: 179 | DY127: 1371 | EA127: -86 | EB127: -891 | EC127: -691 | EE127: 113 | EH127: 21 | EJ127: 290 | EQ127: -5409 | ER127: 1852 | ES127: 454 | ET127: -1657 | EU127: 391 | EV127: 92 | EW127: -2315 | EX127: 21 | EY127: 232 | EZ127: 2764 | FA127: -302 | FB127: -117 | FC127: 250 | FD127: 1466 | FE127: -17 | FF127: 10533 | FG127: 9598 | FH127: 935 | FI127: -45 | FJ127: 9791 | FK127: 8872 | FL127: 919 | FM127: 2 | FN127: 10350 | FO127: 9378 | FP127: 972 | FQ127: 197
A128: 418 | B128: Lempäälä | C128: 22536 | E128: 0.8839434276 | F128: 83.89298036 | G128: -5767.039404 | K128: 27.44679251 | L128: 265.086972 | M128: 11.21217419 | N128: 8629.614838 | P128: 56824 | Q128: 159803 | R128: -21 | S128: -103000 | T128: 88376 | U128: 24937 | X128: -1217 | Y128: 288 | Z128: 9384 | AA128: 14012 | AB128: 0 | AD128: -4628 | AE128: -7 | AF128: -10 | AI128: -4645 | AJ128: 4729 | AK128: 7481 | AM128: 634 | AN128: -10779 | AO128: -11511 | AP128: 88376 | AT128: 20.5 | AV128: 243 | AW128: 22745 | AY128: 1.580713644 | AZ128: 78.31622893 | BA128: -5431.479446 | BE128: 28.6583808 | BF128: 357.3532645 | BG128: 16.10605921 | BH128: 8098.439217 | BJ128: 58520 | BK128: 158752 | BL128: 33 | BM128: -100199 | BN128: 92783 | BO128: 26429 | BR128: -813 | BS128: 188 | BT128: 18388 | BU128: 15066 | BV128: 69 | BX128: 3391 | BY128: -76 | BZ128: 7 | CA128: 115 | CB128: 2 | CC128: 3209 | CD128: 9188 | CE128: 16127 | CG128: -998 | CH128: -11276 | CI128: 6206 | CN128: 20.5 | CP128: 100 | CQ128: 22829 | CS128: 1.62417509 | CT128: 80.06879646 | CU128: -5377.852731 | CY128: 32.68411102 | CZ128: 435.7615314 | DA128: 24.02739545 | DB128: 6619.650445 | DD128: 59699 | DE128: 158465 | DF128: 79 | DG128: -98687 | DH128: 93798 | DI128: 23547 | DL128: -937 | DM128: 766 | DN128: 18487 | DO128: 15034 | DP128: 0 | DR128: 3453 | DS128: -108 | DT128: 1 | DU128: 120 | DV128: -122 | DW128: 3104 | DX128: 20919 | DY128: 17024 | EA128: -1419 | EB128: -11015 | EC128: 1321 | EE128: 15700 | EH128: 20.5 | EJ128: 129 | EQ128: -22486 | ER128: 1187 | ES128: 2307 | ET128: -12980 | EU128: 232 | EV128: 2827 | EW128: -19399 | EX128: 496 | EY128: 3200 | EZ128: 19900 | FA128: 1573 | FB128: 7522 | FC128: -248 | FD128: 11721 | FE128: -1008 | FF128: 116371 | FG128: 101866 | FH128: 14505 | FI128: 291 | FJ128: 112685 | FK128: 98403 | FL128: 14282 | FM128: 259 | FN128: 112590 | FO128: 99778 | FP128: 12812 | FQ128: 320
A129: 420 | B129: Leppävirta | C129: 9953 | E129: 2.659303882 | F129: 50.59265622 | G129: -3315.382297 | K129: 48.73607789 | L129: 1009.544861 | M129: 37.35315985 | N129: 9864.864865 | P129: 34235 | Q129: 85930 | R129: 33 | S129: -51662 | T129: 33099 | U129: 25806 | X129: -526 | Y129: 656 | Z129: 7373 | AA129: 5733 | AB129: 0 | AD129: 1640 | AE129: 3 | AF129: 160 | AI129: 1803 | AJ129: 4509 | AK129: 7164 | AM129: 1045 | AN129: -2415 | AO129: 485 | AP129: 33099 | AT129: 20 | AV129: 104 | AW129: 9865 | AY129: 2.19552378 | AZ129: 47.4157327 | BA129: -3187.531678 | BE129: 49.75716966 | BF129: 982.1591485 | BG129: 36.38059625 | BH129: 9853.82666 | BJ129: 35218 | BK129: 88431 | BL129: 31 | BM129: -53182 | BN129: 33186 | BO129: 26710 | BR129: -458 | BS129: 291 | BT129: 6547 | BU129: 6232 | BV129: 0 | BX129: 315 | BY129: -21 | BZ129: -224 | CA129: 5 | CB129: -3 | CC129: 62 | CD129: 4770 | CE129: 6493 | CG129: 110 | CH129: -2701 | CI129: 1306 | CN129: 20 | CP129: 157 | CQ129: 9782 | CS129: 2.278334853 | CT129: 48.79893097 | CU129: -3506.644858 | CY129: 49.49530181 | CZ129: 695.3588223 | DA129: 31.27494205 | DB129: 8115.313842 | DD129: 35297 | DE129: 87515 | DF129: 44 | DG129: -52174 | DH129: 33198 | DI129: 25796 | DL129: -422 | DM129: 624 | DN129: 7022 | DO129: 6746 | DP129: 3 | DR129: 279 | DS129: -27 | DT129: -149 | DU129: 10 | DV129: -7 | DW129: 86 | DX129: 4779 | DY129: 6843 | EA129: -944 | EB129: -2815 | EC129: -3002 | EE129: 649 | EH129: 20 | EJ129: 171 | EQ129: -8916 | ER129: 1521 | ES129: 716 | ET129: -5486 | EU129: 169 | EV129: 130 | EW129: -11504 | EX129: 1463 | EY129: 196 | EZ129: 3670 | FA129: 62 | FB129: 1460 | FC129: 40 | FD129: 3275 | FE129: 133 | FF129: 36288 | FG129: 33604 | FH129: 2684 | FI129: 509 | FJ129: 35078 | FK129: 32315 | FL129: 2763 | FM129: 509 | FN129: 35673 | FO129: 32734 | FP129: 2939 | FQ129: 495
A130: 421 | B130: Lestijärvi | C130: 798 | E130: 7.193548387 | F130: 37.82778172 | G130: -2051.378446 | K130: 66.62775427 | L130: 2045.112782 | M130: 54.1576507 | N130: 13783.20802 | P130: 5690 | Q130: 10427 | R130: 11 | S130: -4726 | T130: 2448 | U130: 3150 | X130: -23 | Y130: 2 | Z130: 851 | AA130: 554 | AB130: 45 | AD130: 342 | AE130: 0 | AF130: -57 | AI130: 285 | AJ130: 3185 | AK130: 832 | AM130: 212 | AN130: -83 | AO130: 453 | AP130: 2448 | AT130: 20 | AV130: 24 | AW130: 811 | AY130: 2.237885463 | AZ130: 42.19368458 | BA130: -2717.632552 | BE130: 64.85555634 | BF130: 1786.683107 | BG130: 43.66980431 | BH130: 14933.41554 | BJ130: 6001 | BK130: 10907 | BL130: 26 | BM130: -4880 | BN130: 2256 | BO130: 3112 | BR130: -24 | BS130: 6 | BT130: 470 | BU130: 566 | BV130: 49 | BX130: -47 | BY130: 0 | BZ130: 0 | CA130: 0 | CB130: 0 | CC130: -47 | CD130: 3246 | CE130: 521 | CG130: 45 | CH130: -189 | CI130: -426 | CN130: 21 | CP130: 200 | CQ130: 789 | CS130: 3.917197452 | CT130: 43.09456419 | CU130: -3991.12801 | CY130: 58.17334065 | CZ130: 2097.591888 | DA130: 47.61369906 | DB130: 16079.84791 | DD130: 8199 | DE130: 13219 | DF130: 39 | DG130: -4981 | DH130: 2569 | DI130: 3011 | DL130: -27 | DM130: 8 | DN130: 580 | DO130: 588 | DP130: 50 | DR130: 42 | DS130: -1 | DT130: -9 | DU130: 0 | DV130: 0 | DW130: 32 | DX130: 2497 | DY130: 598 | EA130: 136 | EB130: -122 | EC130: -82 | EE130: 444 | EH130: 21 | EJ130: 160 | EQ130: -443 | ER130: 52 | ES130: 12 | ET130: -976 | EU130: 29 | EV130: 0 | EW130: -690 | EX130: 5 | EY130: 5 | EZ130: 176 | FA130: -264 | FB130: 62 | FC130: 3 | FD130: 809 | FE130: 26 | FF130: 2921 | FG130: 2861 | FH130: 60 | FI130: -682 | FJ130: 3242 | FK130: 3173 | FL130: 69 | FM130: 0 | FN130: 4076 | FO130: 3888 | FP130: 188 | FQ130: 0
A131: 422 | B131: Lieksa | C131: 11772 | E131: 1.569637462 | F131: 53.80706579 | G131: -3010.788311 | K131: 46.84160587 | L131: 1223.58138 | M131: 40.50400228 | N131: 11026.24873 | P131: 39216 | Q131: 114874 | R131: 2 | S131: -75656 | T131: 40772 | U131: 44386 | X131: -452 | Y131: 598 | Z131: 9648 | AA131: 6807 | AB131: 0 | AD131: 2841 | AE131: 2 | AF131: -44 | AI131: 2799 | AJ131: 24485 | AK131: 9912 | AM131: -952 | AN131: -5877 | AO131: 4261 | AP131: 40772 | AT131: 21 | AV131: 81 | AW131: 11580 | AY131: 1.854195874 | AZ131: 52.44774433 | BA131: -2807.944732 | BE131: 48.50796396 | BF131: 1262.867012 | BG131: 42.21308364 | BH131: 10919.51641 | BJ131: 38796 | BK131: 115486 | BL131: -3 | BM131: -76693 | BN131: 39660 | BO131: 45454 | BR131: -447 | BS131: 569 | BT131: 8543 | BU131: 6017 | BV131: 0 | BX131: 2526 | BY131: 5 | BZ131: 14 | CA131: 0 | CB131: -11 | CC131: 2534 | CD131: 27357 | CE131: 8543 | CG131: -773 | CH131: -4278 | CI131: 3486 | CN131: 21 | CP131: 126 | CQ131: 11297 | CS131: 0.8750758495 | CT131: 39.77873786 | CU131: -2461.981057 | CY131: 52.35671952 | CZ131: 1754.182526 | DA131: 53.76128821 | DB131: 11909.62202 | DD131: 66785 | DE131: 139928 | DF131: -3 | DG131: -73146 | DH131: 40482 | DI131: 43414 | DL131: -441 | DM131: 574 | DN131: 10883 | DO131: 6583 | DP131: 574 | DR131: 4874 | DS131: 1 | DT131: -62 | DU131: 1 | DV131: 11 | DW131: 4823 | DX131: 31860 | DY131: 10547 | EA131: 5540 | EB131: -12530 | EC131: 4764 | EE131: 5045 | EH131: 21 | EJ131: 78 | EQ131: -8190 | ER131: 1719 | ES131: 820 | ET131: -5225 | EU131: 67 | EV131: 101 | EW131: -18607 | EX131: 256 | EY131: 12568 | EZ131: 1365 | FA131: 3038 | FB131: 2021 | FC131: 476 | FD131: 10913 | FE131: -1202 | FF131: 50057 | FG131: 38448 | FH131: 11609 | FI131: 70 | FJ131: 48278 | FK131: 36354 | FL131: 11924 | FM131: 769 | FN131: 45460 | FO131: 33759 | FP131: 11701 | FQ131: 716
A132: 423 | B132: Lieto | C132: 19263 | E132: 1.336808704 | F132: 60.88525874 | G132: -4135.492914 | K132: 28.62183796 | L132: 278.9804288 | M132: 12.42185323 | N132: 8197.477029 | P132: 55091 | Q132: 141947 | R132: 5 | S132: -86851 | T132: 72610 | U132: 23012 | X132: -865 | Y132: 55 | Z132: 7961 | AA132: 7540 | AB132: 0 | AD132: 421 | AE132: 19 | AF132: -107 | AI132: 333 | AJ132: 5480 | AK132: 6152 | AM132: -129 | AN132: -5732 | AO132: -81 | AP132: 72610 | AT132: 19.5 | AV132: 245 | AW132: 19418 | AY132: 0.9870838639 | AZ132: 65.65901712 | BA132: -4277.165517 | BE132: 28.09273479 | BF132: 550.8291276 | BG132: 23.07570456 | BH132: 8712.740756 | BJ132: 55532 | BK132: 142880 | BL132: 2 | BM132: -87346 | BN132: 75363 | BO132: 22796 | BR132: -654 | BS132: 27 | BT132: 10186 | BU132: 8122 | BV132: 0 | BX132: 2064 | BY132: -49 | BZ132: 0 | CA132: 0 | CB132: -29 | CC132: 1986 | CD132: 8452 | CE132: 8505 | CG132: -437 | CH132: -10328 | CI132: -3160 | CN132: 19.5 | CP132: 218 | CQ132: 19596 | CS132: 1.973432888 | CT132: 71.84095497 | CU132: -4703.868136 | CY132: 27.41403893 | CZ132: 355.582772 | DA132: 21.02038961 | DB132: 6174.372321 | DD132: 52269 | DE132: 138306 | DF132: 5 | DG132: -86032 | DH132: 75955 | DI132: 21394 | DL132: -612 | DM132: 40 | DN132: 10745 | DO132: 8790 | DP132: 0 | DR132: 1955 | DS132: -1 | DT132: 0 | DU132: 0 | DV132: -64 | DW132: 1890 | DX132: 9613 | DY132: 8428 | EA132: -1121 | EB132: -5139 | EC132: -9278 | EE132: 6246 | EH132: 19.5 | EJ132: 239 | EQ132: -9327 | ER132: 128 | ES132: 2966 | ET132: -15222 | EU132: 1305 | EV132: 2252 | EW132: -23087 | EX132: 2268 | EY132: 3113 | EZ132: 1415 | FA132: 40 | FB132: 9209 | FC132: 9976 | FD132: 10463 | FE132: -702 | FF132: 67246 | FG132: 44878 | FH132: 22368 | FI132: 0 | FJ132: 76102 | FK132: 43178 | FL132: 32924 | FM132: 0 | FN132: 80724 | FO132: 48324 | FP132: 32400 | FQ132: 0
A133: 425 | B133: Liminka | C133: 9937 | E133: 2.199335548 | F133: 51.73507365 | G133: -2906.511019 | K133: 56.08590854 | L133: 557.9148636 | M133: 26.80211921 | N133: 7597.866559 | P133: 22656 | Q133: 68475 | R133: 10 | S133: -45809 | T133: 29551 | U133: 24101 | X133: -256 | Y133: 87 | Z133: 7674 | AA133: 5966 | AB133: 0 | AD133: 1708 | AE133: 50 | AF133: 18 | AI133: 1776 | AJ133: 29125 | AK133: 7007 | AM133: 193 | AN133: -3342 | AO133: 5043 | AP133: 29551 | AT133: 20.5 | AV133: 95 | AW133: 10000 | AY133: 1.526711813 | AZ133: 47.24062656 | BA133: -2664.6 | BE133: 54.78353338 | BF133: 545.3 | BG133: 24.65037217 | BH133: 8074.3 | BJ133: 20265 | BK133: 72301 | BL133: 1 | BM133: -52035 | BN133: 29958 | BO133: 28110 | BR133: -230 | BS133: 51 | BT133: 5854 | BU133: 7482 | BV133: 0 | BX133: -1628 | BY133: 57 | BZ133: -3 | CA133: 5 | CB133: -32 | CC133: -1611 | CD133: 27359 | CE133: 5640 | CG133: 348 | CH133: -3754 | CI133: 2319 | CN133: 20.5 | CP133: 194 | CQ133: 10133 | CS133: 9.247232472 | CT133: 60.60617494 | CU133: -2940.688838 | CY133: 51.17658086 | CZ133: 1254.416264 | DA133: 75.19351388 | DB133: 6089.114774 | DD133: 22895 | DE133: 72060 | DF133: 2 | DG133: -49163 | DH133: 31384 | DI133: 25236 | DL133: -191 | DM133: 59 | DN133: 7325 | DO133: 5510 | DP133: -15 | DR133: 1800 | DS133: 44 | DT133: 43 | DU133: 8 | DV133: -37 | DW133: 1842 | DX133: 29126 | DY133: 6535 | EA133: -775 | EB133: -620 | EC133: -2988 | EE133: 885 | EH133: 21 | EJ133: 169 | EQ133: -3402 | ER133: 489 | ES133: 949 | ET133: -4451 | EU133: 225 | EV133: 905 | EW133: -11174 | EX133: 47 | EY133: 1604 | EZ133: 3989 | FA133: -6048 | FB133: 347 | FC133: 947 | FD133: 15141 | FE133: -4362 | FF133: 25511 | FG133: 17870 | FH133: 7641 | FI133: 687 | FJ133: 23100 | FK133: 15187 | FL133: 7913 | FM133: 695 | FN133: 33585 | FO133: 27682 | FP133: 5903 | FQ133: 674
A134: 426 | B134: Liperi | C134: 12338 | E134: 0.98063024 | F134: 66.11806901 | G134: -4522.288864 | K134: 25.44420753 | L134: 651.7263738 | M134: 25.51633152 | N134: 9322.661696 | P134: 35380 | Q134: 97306 | R134: -8 | S134: -61934 | T134: 40300 | U134: 28039 | X134: -854 | Y134: 351 | Z134: 5902 | AA134: 3981 | AB134: 0 | AD134: 1921 | AE134: 5 | AF134: -84 | AI134: 1842 | AJ134: 7471 | AK134: 5556 | AM134: 630 | AN134: -6036 | AO134: -3474 | AP134: 40300 | AT134: 21.5 | AV134: 216 | AW134: 12301 | AY134: 0.9538502817 | AZ134: 62.02661499 | BA134: -4315.584099 | BE134: 27.00113726 | BF134: 631.9811397 | BG134: 25.50570787 | BH134: 9043.980164 | BJ134: 35280 | BK134: 98314 | BL134: -229 | BM134: -63263 | BN134: 40284 | BO134: 29715 | BR134: -699 | BS134: 341 | BT134: 6378 | BU134: 5081 | BV134: 0 | BX134: 1297 | BY134: 6 | BZ134: 8 | CA134: 26 | CB134: -83 | CC134: 1202 | CD134: 8680 | CE134: 6580 | CG134: 298 | CH134: -6722 | CI134: 3236 | CN134: 21.5 | CP134: 223 | CQ134: 12150 | CS134: 0.6255186722 | CT134: 50.25716272 | CU134: -4158.518519 | CY134: 29.56672737 | CZ134: 895.9670782 | DA134: 33.19096506 | DB134: 9852.921811 | DD134: 60486 | DE134: 121387 | DF134: -67 | DG134: -60968 | DH134: 40020 | DI134: 28984 | DL134: -603 | DM134: 383 | DN134: 7816 | DO134: 5284 | DP134: -305 | DR134: 2227 | DS134: -19 | DT134: -48 | DU134: -19 | DV134: -87 | DW134: 2092 | DX134: 11095 | DY134: 6976 | EA134: 774 | EB134: -12870 | EC134: 2587 | EE134: 43 | EH134: 21.5 | EJ134: 209 | EQ134: -10750 | ER134: 1300 | ES134: 420 | ET134: -4775 | EU134: 37 | EV134: 1394 | EW134: -15196 | EX134: 69 | EY134: 10738 | EZ134: 6716 | FA134: 2999 | FB134: 6024 | FC134: -1000 | FD134: 16310 | FE134: -2870 | FF134: 51062 | FG134: 39696 | FH134: 11366 | FI134: 0 | FJ134: 49363 | FK134: 38409 | FL134: 10954 | FM134: 686 | FN134: 49859 | FO134: 38537 | FP134: 11322 | FQ134: 881
A135: 444 | B135: Lohja | C135: 47353 | E135: 1.809206234 | F135: 53.97515454 | G135: -4038.117965 | K135: 39.22267579 | L135: 387.4939286 | M135: 14.78144712 | N135: 9568.432834 | P135: 158874 | Q135: 396729 | R135: -80 | S135: -237935 | T135: 187476 | U135: 75055 | X135: -2236 | Y135: 298 | Z135: 22658 | AA135: 22020 | AB135: 0 | AD135: 638 | AE135: 12 | AF135: -383 | AI135: 267 | AJ135: 19887 | AK135: 19790 | AM135: -89 | AN135: -11495 | AO135: -17302 | AP135: 187476 | AT135: 20.5 | AV135: 215 | AW135: 47149 | AY135: 1.933333333 | AZ135: 57.73136854 | BA135: -4409.998091 | BE135: 36.78454174 | BF135: 381.6199707 | BG135: 14.35711085 | BH135: 9701.902479 | BJ135: 156079 | BK135: 402266 | BL135: 128 | BM135: -246059 | BN135: 190131 | BO135: 81722 | BR135: -1846 | BS135: 165 | BT135: 24113 | BU135: 26207 | BV135: 0 | BX135: -2094 | BY135: 40 | BZ135: -7 | CA135: 377 | CB135: 51 | CC135: -2387 | CD135: 16931 | CE135: 22434 | CG135: -3182 | CH135: -11555 | CI135: -16335 | CN135: 20.5 | CP135: 226 | CQ135: 46785 | CS135: 0.7503694822 | CT135: 63.31744003 | CU135: -4975.056108 | CY135: 34.80296701 | CZ135: 463.9093727 | DA135: 20.32141968 | DB135: 8332.43561 | DD135: 163705 | DE135: 406111 | DF135: 88 | DG135: -242318 | DH135: 189856 | DI135: 79116 | DL135: -1696 | DM135: 121 | DN135: 25079 | DO135: 23234 | DP135: 282 | DR135: 2127 | DS135: -54 | DT135: 13 | DU135: 335 | DV135: 10 | DW135: 1761 | DX135: 18775 | DY135: 24036 | EA135: 1634 | EB135: -34031 | EC135: -25268 | EE135: 4985 | EH135: 20.5 | EJ135: 241 | EQ135: -41878 | ER135: 1447 | ES135: 3339 | ET135: -41049 | EU135: 70 | EV135: 2210 | EW135: -52881 | EX135: 1136 | EY135: 2441 | EZ135: 23756 | FA135: 6000 | FB135: 30326 | FC135: -2000 | FD135: 57337 | FE135: 5033 | FF135: 163673 | FG135: 128956 | FH135: 34717 | FI135: 58 | FJ135: 180376 | FK135: 125647 | FL135: 54729 | FM135: 86 | FN135: 208715 | FO135: 170033 | FP135: 38682 | FQ135: 86
A136: 430 | B136: Loimaa | C136: 16467 | E136: 1.318010458 | F136: 47.96919907 | G136: -3796.319913 | K136: 40.82929542 | L136: 616.5057388 | M136: 21.96451752 | N136: 10244.91407 | P136: 61502 | Q136: 155253 | R136: 8 | S136: -93743 | T136: 54007 | U136: 50460 | X136: -712 | Y136: 106 | Z136: 10118 | AA136: 8087 | AB136: 0 | AD136: 2031 | AE136: -219 | AF136: -65 | AI136: 1747 | AJ136: 11396 | AK136: 10108 | AM136: 417 | AN136: -7503 | AO136: 5233 | AP136: 54007 | AT136: 20.5 | AV136: 149 | AW136: 16267 | AY136: 1.056973966 | AZ136: 45.11347063 | BA136: -3677.752505 | BE136: 39.21183643 | BF136: 491.1169853 | BG136: 16.58949327 | BH136: 10805.49579 | BJ136: 65627 | BK136: 163078 | BL136: 3 | BM136: -97448 | BN136: 53725 | BO136: 52058 | BR136: -500 | BS136: 64 | BT136: 7899 | BU136: 8068 | BV136: 0 | BX136: -169 | BY136: -298 | BZ136: 0 | CA136: 0 | CB136: 9 | CC136: -458 | CD136: 11153 | CE136: 6997 | CG136: -2196 | CH136: -7446 | CI136: 2653 | CN136: 20.5 | CP136: 235 | CQ136: 16150 | CS136: 1.208365608 | CT136: 46.06212848 | CU136: -3668.978328 | CY136: 40.70862847 | CZ136: 695.9133127 | DA136: 25.26053437 | DB136: 10055.5418 | DD136: 68944 | DE136: 163492 | DF136: 9 | DG136: -94539 | DH136: 53515 | DI136: 50312 | DL136: -589 | DM136: 69 | DN136: 8768 | DO136: 8219 | DP136: 0 | DR136: 549 | DS136: -374 | DT136: 0 | DU136: 201 | DV136: -11 | DW136: -37 | DX136: 11159 | DY136: 8290 | EA136: 7268 | EB136: -7154 | EC136: 633 | EE136: 788 | EH136: 20.5 | EJ136: 240 | EQ136: -5981 | ER136: 397 | ES136: 709 | ET136: -5459 | EU136: 30 | EV136: 1085 | EW136: -8127 | EX136: 95 | EY136: 375 | EZ136: 4566 | FA136: -24 | FB136: -423 | FC136: 2920 | FD136: 6052 | FE136: -5220 | FF136: 57704 | FG136: 42892 | FH136: 14812 | FI136: 0 | FJ136: 53500 | FK136: 35942 | FL136: 17558 | FM136: 88 | FN136: 54645 | FO136: 35281 | FP136: 19364 | FQ136: 89
A137: 433 | B137: Loppi | C137: 8175 | E137: 0.8251442212 | F137: 51.06223482 | G137: -3677.308869 | K137: 44.09982805 | L137: 240.1223242 | M137: 9.807342212 | N137: 8936.636086 | P137: 23852 | Q137: 62584 | R137: -21 | S137: -38753 | T137: 27605 | U137: 15242 | X137: -501 | Y137: 49 | Z137: 3642 | AA137: 2874 | AB137: 0 | AD137: 768 | AE137: -3 | AF137: 4 | AI137: 769 | AJ137: 11375 | AK137: 3619 | AM137: 239 | AN137: -4521 | AO137: -1256 | AP137: 27605 | AT137: 20.5 | AV137: 232 | AW137: 8098 | AY137: 1.152587441 | AZ137: 55.32412451 | BA137: -4058.656458 | BE137: 42.71559362 | BF137: 369.2269696 | BG137: 14.14325333 | BH137: 9528.772536 | BJ137: 24289 | BK137: 63233 | BL137: -47 | BM137: -38991 | BN137: 28572 | BO137: 15986 | BR137: -444 | BS137: 51 | BT137: 5174 | BU137: 3316 | BV137: 0 | BX137: 1858 | BY137: 0 | BZ137: 2 | CA137: 0 | CB137: 0 | CC137: 1860 | CD137: 12888 | CE137: 4500 | CG137: -231 | CH137: -4428 | CI137: -4047 | CN137: 21.5 | CP137: 168 | CQ137: 8028 | CS137: 0.866499711 | CT137: 52.82550345 | CU137: -3968.360737 | CY137: 44.04341766 | CZ137: 359.8654709 | DA137: 16.45216401 | DB137: 7983.806677 | DD137: 24606 | DE137: 65185 | DF137: -44 | DG137: -40623 | DH137: 29192 | DI137: 15871 | DL137: -416 | DM137: 55 | DN137: 4079 | DO137: 3061 | DP137: 163 | DR137: 1181 | DS137: 0 | DT137: 2 | DU137: 1 | DV137: -4 | DW137: 1178 | DX137: 13651 | DY137: 4355 | EA137: 169 | EB137: -4772 | EC137: 1090 | EE137: 314 | EH137: 21.5 | EJ137: 249 | EQ137: -5443 | ER137: 0 | ES137: 568 | ET137: -9038 | EU137: 139 | EV137: 352 | EW137: -6286 | EX137: 105 | EY137: 2916 | EZ137: 5513 | FA137: -793 | FB137: 9566 | FC137: -500 | FD137: 5295 | FE137: -2025 | FF137: 25685 | FG137: 16781 | FH137: 8904 | FI137: 52 | FJ137: 30269 | FK137: 21920 | FL137: 8349 | FM137: 48 | FN137: 28791 | FO137: 21129 | FP137: 7662 | FQ137: 43
A138: 434 | B138: Loviisa | C138: 15311 | E138: 1.165736935 | F138: 49.5309982 | G138: -3255.110705 | K138: 41.10012017 | L138: 795.310561 | M138: 28.66691821 | N138: 10126.2491 | P138: 54705 | Q138: 138834 | R138: -4 | S138: -84133 | T138: 65765 | U138: 24732 | X138: -611 | Y138: 1509 | Z138: 7262 | AA138: 6351 | AB138: 6 | AD138: 917 | AE138: 1 | AF138: -38 | AI138: 880 | AJ138: 3672 | AK138: 6322 | AM138: -4160 | AN138: -6133 | AO138: 1192 | AP138: 65765 | AT138: 19.75 | AV138: 219 | AW138: 15208 | AY138: 1.939768051 | AZ138: 51.08309416 | BA138: -3440.886376 | BE138: 40.7273313 | BF138: 760.0604945 | BG138: 27.23996668 | BH138: 10184.37664 | BJ138: 50698 | BK138: 137554 | BL138: -3 | BM138: -86859 | BN138: 65884 | BO138: 29758 | BR138: -482 | BS138: 1538 | BT138: 9839 | BU138: 7986 | BV138: -130 | BX138: 1723 | BY138: 5 | BZ138: -2 | CA138: 38 | CB138: -24 | CC138: 1664 | CD138: 6164 | CE138: 9080 | CG138: -1077 | CH138: -4815 | CI138: -1547 | CN138: 19.75 | CP138: 165 | CQ138: 15085 | CS138: 1.677058824 | CT138: 52.45893799 | CU138: -3651.773285 | CY138: 42.17829157 | CZ138: 703.8117335 | DA138: 32.07659071 | DB138: 8008.684123 | DD138: 52563 | DE138: 136560 | DF138: -10 | DG138: -84007 | DH138: 65949 | DI138: 27852 | DL138: -419 | DM138: 1578 | DN138: 10953 | DO138: 6525 | DP138: -91 | DR138: 4337 | DS138: -140 | DT138: 188 | DU138: 12 | DV138: -17 | DW138: 4356 | DX138: 10617 | DY138: 9850 | EA138: -212 | EB138: -6349 | EC138: -2718 | EE138: 0 | EH138: 19.75 | EJ138: 166 | EQ138: -9119 | ER138: 3842 | ES138: 147 | ET138: -11798 | EU138: 549 | EV138: 622 | EW138: -22713 | EX138: 1985 | EY138: 8160 | EZ138: 10383 | FA138: 2240 | FB138: 9119 | FC138: -2943 | FD138: 7132 | FE138: 1933 | FF138: 52400 | FG138: 37874 | FH138: 14526 | FI138: 36 | FJ138: 54364 | FK138: 41551 | FL138: 12813 | FM138: 89 | FN138: 57322 | FO138: 42625 | FP138: 14697 | FQ138: 1
A139: 435 | B139: Luhanka | C139: 761 | F139: 33 | G139: 0 | K139: 65.9 | L139: 0 | N139: 0 | T139: 2522 | X139: 0 | Y139: 0 | AD139: 0 | AN139: 0 | AT139: 19 | AV139: 301 | AW139: 756 | AY139: 1.002849003 | AZ139: 46.80956511 | BA139: -1927.248677 | BE139: 59.46087138 | BF139: 2342.592593 | BG139: 72.46804933 | BH139: 11798.9418 | BJ139: 2653 | BK139: 7645 | BL139: 0 | BM139: -4992 | BN139: 2329 | BO139: 3089 | BR139: -6 | BS139: -95 | BT139: 325 | BU139: 302 | BV139: 68 | BX139: 91 | BY139: 0 | BZ139: 0 | CA139: 2 | CB139: 0 | CC139: 89 | CD139: 2354 | CE139: 398 | CG139: -108 | CH139: -324 | CI139: -357 | CN139: 18.5 | CP139: 252 | CQ139: 734 | CS139: 3.10701107 | CT139: 54.39056356 | CU139: -3591.280654 | CY139: 57.06136719 | CZ139: 1761.580381 | DA139: 80.82634013 | DB139: 7955.040872 | DD139: 2813 | DE139: 7614 | DF139: 0 | DG139: -4801 | DH139: 2436 | DI139: 3144 | DL139: -8 | DM139: 43 | DN139: 814 | DO139: 307 | DP139: 0 | DR139: 507 | DS139: 0 | DT139: 0 | DU139: 0 | DV139: 0 | DW139: 507 | DX139: 2860 | DY139: 817 | EA139: -86 | EB139: -243 | EC139: -1264 | EE139: 5346 | EH139: 18.5 | EJ139: 49 | EQ139: 0 | ET139: -746 | EU139: -1 | EV139: -8 | EW139: -2085 | EX139: 3 | EY139: 1 | FB139: 391 | FC139: 53 | FD139: 1513 | FE139: -115 | FI139: 0 | FJ139: 1996 | FK139: 1996 | FL139: 0 | FM139: 174 | FN139: 3164 | FO139: 3164 | FP139: 0 | FQ139: 94
A140: 436 | B140: Lumijoki | C140: 2076 | E140: 1.415019763 | F140: 64.52851496 | G140: -4670.038536 | K140: 29.9661263 | L140: 423.4104046 | M140: 17.90174088 | N140: 8632.947977 | P140: 5631 | Q140: 16656 | R140: 3 | S140: -11022 | T140: 5439 | U140: 6640 | X140: -103 | Y140: 14 | Z140: 968 | AA140: 1028 | AB140: 0 | AD140: -60 | AE140: 0 | AF140: 5 | AI140: -55 | AJ140: 1103 | AK140: 930 | AM140: -30 | AN140: -653 | AO140: 473 | AP140: 5439 | AT140: 20.5 | AV140: 225 | AW140: 2105 | AY140: 1.509803922 | AZ140: 61.03866906 | BA140: -4309.738717 | BE140: 30.14765435 | BF140: 365.7957245 | BG140: 15.64169635 | BH140: 8535.866983 | BJ140: 5599 | BK140: 16644 | BL140: 0 | BM140: -11045 | BN140: 5353 | BO140: 6840 | BR140: -76 | BS140: 2 | BT140: 1074 | BU140: 1032 | BV140: 0 | BX140: 42 | BY140: -8 | BZ140: -1 | CA140: 2 | CB140: -13 | CC140: 18 | CD140: 1007 | CE140: 1068 | CG140: -64 | CH140: -684 | CI140: 674 | CN140: 20.75 | CP140: 227 | CQ140: 2081 | CS140: 1.213393871 | CT140: 65.91438394 | CU140: -4305.141759 | CY140: 29.15155061 | CZ140: 855.358001 | DA140: 38.40742492 | DB140: 8128.784238 | DD140: 5422 | DE140: 16981 | DF140: 1 | DG140: -11558 | DH140: 5788 | DI140: 6824 | DL140: -69 | DM140: 13 | DN140: 998 | DO140: 996 | DP140: 0 | DR140: 2 | DS140: 0 | DT140: -4 | DU140: 4 | DV140: -1 | DW140: -7 | DX140: 999 | DY140: 985 | EA140: -131 | EB140: -810 | EC140: 104 | EE140: 1352 | EH140: 20.75 | EJ140: 263 | EQ140: -484 | ER140: 0 | ES140: 27 | ET140: -557 | EU140: 105 | EV140: 58 | EW140: -948 | EX140: 10 | EY140: 57 | EZ140: 4 | FA140: 7 | FB140: 118 | FC140: -4 | FD140: 548 | FE140: 1377 | FF140: 8183 | FG140: 5408 | FH140: 2775 | FI140: 0 | FJ140: 7613 | FK140: 4864 | FL140: 2749 | FM140: 5 | FN140: 8729 | FO140: 4634 | FP140: 4095 | FQ140: 1
A141: 440 | B141: Luoto | C141: 5147 | E141: 1.534290844 | F141: 75.18640024 | G141: -3164.561881 | K141: 45.05128861 | L141: 1621.332815 | M141: 81.28969843 | N141: 7279.968914 | P141: 8947 | Q141: 32549 | R141: 0 | S141: -23602 | T141: 14929 | U141: 13007 | X141: -85 | Y141: -78 | Z141: 4171 | AA141: 1877 | AB141: 0 | AD141: 2294 | AE141: 0 | AF141: -95 | AI141: 2199 | AJ141: 13471 | AK141: 4044 | AM141: -1004 | AN141: -2683 | AO141: 2512 | AP141: 14929 | AT141: 20 | AV141: 83 | AW141: 5176 | AY141: 2.54763263 | AZ141: 71.71940283 | BA141: -3021.251932 | BE141: 47.04545888 | BF141: 1759.080371 | BG141: 83.43773538 | BH141: 7695.131376 | BJ141: 8975 | BK141: 33423 | BL141: 0 | BM141: -24448 | BN141: 14899 | BO141: 13703 | BR141: 1 | BS141: 234 | BT141: 4389 | BU141: 1990 | BV141: 0 | BX141: 2399 | BY141: 0 | BZ141: -176 | CA141: 0 | CB141: 0 | CC141: 2223 | CD141: 15683 | CE141: 4207 | CG141: -516 | CH141: -1676 | CI141: 222 | CN141: 19.5 | CP141: 91 | CQ141: 5264 | CS141: 0.5261915302 | CT141: 104.0953835 | CU141: -4772.986322 | CY141: 40.54435304 | CZ141: 2414.323708 | DA141: 155.6273694 | DB141: 5662.424012 | DD141: 9289 | DE141: 34196 | DF141: 0 | DG141: -24907 | DH141: 14985 | DI141: 13720 | DL141: 50 | DM141: -341 | DN141: 3507 | DO141: 2130 | DP141: 18 | DR141: 1395 | DS141: 0 | DT141: -55 | DU141: 0 | DV141: 0 | DW141: 1340 | DX141: 16753 | DY141: 3602 | EA141: -713 | EB141: -6718 | EC141: -8362 | EE141: 7 | EH141: 19.5 | EJ141: 197 | EQ141: -1747 | ER141: 65 | ES141: 150 | ET141: -4383 | EU141: 128 | EV141: 270 | EW141: -12878 | EX141: 412 | EY141: 502 | EZ141: 4 | FA141: 638 | FB141: 57 | FC141: 3126 | FD141: 86 | FE141: 12593 | FF141: 20319 | FG141: 11799 | FH141: 8520 | FI141: 570 | FJ141: 21252 | FK141: 9747 | FL141: 11505 | FM141: 0 | FN141: 35526 | FO141: 8421 | FP141: 27105 | FQ141: 0
A142: 441 | B142: Luumäki | C142: 4860 | E142: 5.405 | F142: 46.38462901 | G142: -456.5843621 | K142: 61.58625788 | L142: 3733.950617 | M142: 113.9553548 | N142: 11959.87654 | P142: 21954 | Q142: 49087 | R142: -37 | S142: -27170 | T142: 16971 | U142: 11872 | X142: 37 | Y142: 298 | Z142: 2008 | AA142: 2862 | AB142: 0 | AD142: -854 | AE142: 2 | AF142: -20 | AI142: -872 | AJ142: 19349 | AK142: 2081 | AM142: -26 | AN142: -246 | AO142: -5108 | AP142: 16971 | AT142: 19.75 | AV142: 246 | AW142: 4831 | AY142: 3.63556338 | AZ142: 44.78230163 | BA142: -726.764645 | BE142: 59.42395641 | BF142: 3433.864624 | BG142: 106.9785336 | BH142: 11716.00083 | BJ142: 23629 | BK142: 50849 | BL142: 8 | BM142: -27212 | BN142: 16444 | BO142: 12316 | BR142: -59 | BS142: 412 | BT142: 1901 | BU142: 3056 | BV142: 0 | BX142: -1155 | BY142: 0 | BZ142: -2 | CA142: 2 | CB142: -40 | CC142: -1199 | CD142: 17497 | CE142: 1917 | CG142: -150 | CH142: -404 | CI142: -2421 | CN142: 19.75 | CP142: 258 | CQ142: 4747 | CS142: 6.428571429 | CT142: 48.78991024 | CU142: -1486.62313 | CY142: 58.46077719 | CZ142: 3355.803665 | DA142: 137.6820345 | DB142: 8896.355593 | DD142: 23202 | DE142: 49695 | DF142: -37 | DG142: -26530 | DH142: 17264 | DI142: 12340 | DL142: 81 | DM142: 699 | DN142: 3854 | DO142: 3225 | DP142: 0 | DR142: 629 | DS142: 0 | DT142: 178 | DU142: 0 | DV142: -26 | DW142: 781 | DX142: 17898 | DY142: 4052 | EA142: 632 | EB142: -472 | EC142: -3678 | EE142: 2202 | EH142: 19.75 | EJ142: 125 | EQ142: -8561 | ER142: 1241 | ES142: 131 | ET142: -5129 | EU142: 648 | EV142: 143 | EW142: -8088 | EX142: 179 | EY142: 179 | EZ142: 5993 | FA142: 323 | FB142: 839 | FC142: 23 | FD142: 2867 | FE142: 180 | FF142: 16800 | FG142: 14204 | FH142: 2596 | FI142: 26 | FJ142: 17273 | FK142: 16300 | FL142: 973 | FM142: 0 | FN142: 19867 | FO142: 18690 | FP142: 1177 | FQ142: 259
A143: 475 | B143: Maalahti | C143: 5545 | E143: 2.429725363 | F143: 54.54499194 | G143: -4892.335437 | K143: 38.96968474 | L143: 342.651037 | M143: 10.63944034 | N143: 11755.09468 | P143: 23941 | Q143: 55964 | R143: 0 | S143: -32023 | T143: 19355 | U143: 15659 | X143: -164 | Y143: 14 | Z143: 2841 | AA143: 2407 | AB143: 0 | AD143: 434 | AE143: -2 | AF143: -26 | AI143: 406 | AJ143: 4099 | AK143: 2898 | AM143: 276 | AN143: -1071 | AO143: -3448 | AP143: 19355 | AT143: 21.5 | AV143: 204 | AW143: 5517 | AY143: 1.483050847 | AZ143: 57.10298959 | BA143: -5411.274243 | BE143: 37.81911527 | BF143: 318.4701831 | BG143: 9.667088741 | BH143: 12024.46982 | BJ143: 23790 | BK143: 55995 | BL143: -10 | BM143: -32215 | BN143: 19218 | BO143: 16833 | BR143: -151 | BS143: 7 | BT143: 3692 | BU143: 3353 | BV143: 0 | BX143: 339 | BY143: 0 | BZ143: 9 | CA143: 21 | CB143: -18 | CC143: 309 | CD143: 5062 | CE143: 3602 | CG143: 570 | CH143: -2438 | CI143: -3172 | CN143: 21.5 | CP143: 154 | CQ143: 5477 | CS143: 1.445358402 | CT143: 61.22397113 | CU143: -5898.30199 | CY143: 37.44670852 | CZ143: 234.0697462 | DA143: 9.101571618 | DB143: 9386.890634 | DD143: 23054 | DE143: 55336 | DF143: -10 | DG143: -32292 | DH143: 19459 | DI143: 16508 | DL143: -135 | DM143: 6 | DN143: 3546 | DO143: 2832 | DP143: 76 | DR143: 790 | DS143: 0 | DT143: -61 | DU143: 19 | DV143: -15 | DW143: 695 | DX143: 5655 | DY143: 3431 | EA143: 12 | EB143: -2409 | EC143: -2436 | EE143: 1066 | EH143: 21.5 | EJ143: 207 | EQ143: -7927 | ER143: 1577 | ES143: 4 | ET143: -7723 | EU143: 740 | EV143: 209 | EW143: -6513 | EX143: 394 | EY143: 252 | EZ143: 0 | FA143: 4234 | FB143: 13640 | FC143: -9036 | FD143: 110 | FE143: 3996 | FF143: 21899 | FG143: 7502 | FH143: 14397 | FI143: 13 | FJ143: 24064 | FK143: 18704 | FL143: 5360 | FM143: 27 | FN143: 25761 | FO143: 16405 | FP143: 9356 | FQ143: 27
A144: 480 | B144: Marttila | C144: 2028 | E144: 1.512544803 | F144: 35.3424015 | G144: -2230.769231 | K144: 50.4681855 | L144: 419.6252465 | M144: 17.96812634 | N144: 8524.161736 | P144: 6048 | Q144: 16219 | R144: 0 | S144: -10171 | T144: 6211 | U144: 4797 | X144: -62 | Y144: 3 | Z144: 778 | AA144: 707 | AB144: 0 | AD144: 71 | AE144: 0 | AF144: -48 | AI144: 23 | AJ144: 1970 | AK144: 723 | AM144: 91 | AN144: -492 | AO144: 319 | AP144: 6211 | AT144: 20.25 | AV144: 255 | AW144: 2021 | AY144: -25.94230769 | AZ144: 36.26825875 | BA144: -1968.332509 | BE144: 48.2038835 | BF144: 595.2498763 | BG144: 25.85497262 | BH144: 8403.26571 | BJ144: 6124 | BK144: 15912 | BL144: 0 | BM144: -9788 | BN144: 6078 | BO144: 5050 | BR144: -41 | BS144: 6 | BT144: 1305 | BU144: 754 | BV144: 0 | BX144: 551 | BY144: 0 | BZ144: -485 | CA144: 0 | CB144: 0 | CC144: 66 | CD144: 2086 | CE144: 1278 | CG144: -426 | CH144: 96 | CI144: 478 | CN144: 20.25 | CP144: 166 | CQ144: 1988 | CS144: 2.675136116 | CT144: 33.28471248 | CU144: -1962.77666 | CY144: 51.0543471 | CZ144: 552.3138833 | DA144: 26.49193548 | DB144: 7609.657948 | DD144: 6143 | DE144: 16365 | DF144: 0 | DG144: -10222 | DH144: 6631 | DI144: 5051 | DL144: -45 | DM144: 11 | DN144: 1426 | DO144: 758 | DP144: 0 | DR144: 668 | DS144: 0 | DT144: -19 | DU144: 0 | DV144: 0 | DW144: 649 | DX144: 2810 | DY144: 1398 | EA144: 143 | EB144: -503 | EC144: -43 | EE144: 0 | EH144: 20.25 | EJ144: 172 | EQ144: -508 | ER144: 3 | ES144: 101 | ET144: -1122 | EU144: 284 | EV144: 38 | EW144: -1789 | EX144: 232 | EY144: 116 | EZ144: 0 | FA144: 0 | FB144: 0 | FC144: 0 | FD144: 0 | FE144: 0 | FF144: 3952 | FG144: 3510 | FH144: 442 | FI144: 2 | FJ144: 4050 | FK144: 3545 | FL144: 505 | FM144: 2 | FN144: 3548 | FO144: 3067 | FP144: 481 | FQ144: 1
A145: 481 | B145: Masku | C145: 9706 | E145: 1.564659126 | F145: 60.06650234 | G145: -4091.283742 | K145: 35.6190941 | L145: 248.4030497 | M145: 9.464053342 | N145: 9580.156604 | P145: 28211 | Q145: 72808 | R145: 3 | S145: -44594 | T145: 39478 | U145: 10203 | X145: -222 | Y145: 26 | Z145: 4891 | AA145: 3624 | AB145: 5829 | AD145: 7096 | AE145: 1 | AF145: 63 | AI145: 7160 | AJ145: 1725 | AK145: 9077 | AM145: -226 | AN145: -3044 | AO145: 10242 | AP145: 39478 | AT145: 20.75 | AV145: 207 | AW145: 9675 | AY145: 1.705465165 | AZ145: 62.02640922 | BA145: -4480.723514 | BE145: 26.99527213 | BF145: 339.121447 | BG145: 13.96365566 | BH145: 8864.392765 | BJ145: 32799 | BK145: 78227 | BL145: 1 | BM145: -45427 | BN145: 39164 | BO145: 10281 | BR145: -139 | BS145: -22 | BT145: 3857 | BU145: 6174 | BV145: 0 | BX145: -2317 | BY145: 1 | BZ145: 23 | CA145: 0 | CB145: -33 | CC145: -2326 | CD145: -1800 | CE145: 3078 | CG145: 421 | CH145: -2166 | CI145: -538 | CN145: 20.75 | CP145: 257 | CQ145: 9656 | CS145: 1.896591235 | CT145: 65.52284044 | CU145: -4572.597349 | CY145: 28.11932555 | CZ145: 576.2220381 | DA145: 26.71692057 | DB145: 7872.203811 | DD145: 32645 | DE145: 76611 | DF145: 3 | DG145: -43963 | DH145: 40441 | DI145: 10056 | DL145: -145 | DM145: 82 | DN145: 6471 | DO145: 3952 | DP145: 0 | DR145: 2519 | DS145: 1 | DT145: -37 | DU145: 0 | DV145: 0 | DW145: 2483 | DX145: 614 | DY145: 6180 | EA145: -378 | EB145: -3341 | EC145: 2483 | EE145: 470 | EH145: 20.75 | EJ145: 192 | EQ145: -12480 | ER145: 52 | ES145: 13593 | ET145: -5066 | EU145: 55 | EV145: 1395 | EW145: -4129 | EX145: 27 | EY145: 405 | EZ145: 0 | FA145: 0 | FB145: -1500 | FC145: 3000 | FD145: 2349 | FE145: 0 | FF145: 35961 | FG145: 15117 | FH145: 20844 | FI145: 4398 | FJ145: 37464 | FK145: 13707 | FL145: 23757 | FM145: 0 | FN145: 39813 | FO145: 15795 | FP145: 24018 | FQ145: 0
A146: 483 | B146: Merijärvi | C146: 1134 | E146: 1.198910082 | F146: 42.49576913 | G146: -1222.222222 | K146: 60.63992282 | L146: 2577.601411 | M146: 90.87691652 | N146: 10352.73369 | P146: 4528 | Q146: 10958 | R146: 3 | S146: -6427 | T146: 2782 | U146: 3917 | X146: -33 | Y146: 167 | Z146: 406 | AA146: 542 | AB146: 0 | AD146: -136 | AE146: 0 | AF146: 5 | AI146: -131 | AJ146: 2937 | AK146: 392 | AM146: 3 | AN146: -333 | AO146: 133 | AP146: 2782 | AT146: 21 | AV146: 262 | AW146: 1131 | AY146: 1.149051491 | AZ146: 46.25 | BA146: -1059.239611 | BE146: 57.13710651 | BF146: 3041.556145 | BG146: 110.1693428 | BH146: 10076.92308 | BJ146: 4214 | BK146: 10765 | BL146: 0 | BM146: -6551 | BN146: 2484 | BO146: 4342 | BR146: -26 | BS146: 148 | BT146: 397 | BU146: 542 | BV146: 0 | BX146: -145 | BY146: -1 | BZ146: 0 | CA146: 1 | CB146: -1 | CC146: -148 | CD146: 2809 | CE146: 430 | CG146: -8 | CH146: -342 | CI146: 200 | CN146: 21.5 | CP146: 266 | CQ146: 1119 | CS146: 0.5270092227 | CT146: 58.2205029 | CU146: -1288.650581 | CY146: 50.74788641 | CZ146: 3848.078642 | DA146: 142.0415725 | DB146: 9888.293119 | DD146: 4465 | DE146: 11044 | DF146: 1 | DG146: -6578 | DH146: 2606 | DI146: 4303 | DL146: -23 | DM146: 68 | DN146: 376 | DO146: 510 | DP146: 0 | DR146: -134 | DS146: 0 | DT146: 0 | DU146: 0 | DV146: -1 | DW146: -135 | DX146: 2671 | DY146: 389 | EA146: -404 | EB146: -735 | EC146: -284 | EE146: 1364 | EH146: 21.5 | EJ146: 281 | EQ146: -402 | ER146: 0 | ES146: 143 | ET146: -252 | EU146: 0 | EV146: 22 | EW146: -740 | EX146: 23 | EY146: 44 | EZ146: 504 | FA146: -75 | FB146: 408 | FC146: -3 | FD146: 1435 | FE146: 600 | FF146: 3230 | FG146: 2480 | FH146: 750 | FI146: 68 | FJ146: 3301 | FK146: 2163 | FL146: 1138 | FM146: 80 | FN146: 4595 | FO146: 3226 | FP146: 1369 | FQ146: 66
A147: 484 | B147: Merikarvia | C147: 3185 | E147: 6.176781003 | F147: 22.65747793 | G147: -367.3469388 | K147: 73.64795744 | L147: 1406.279435 | M147: 49.60057646 | N147: 10348.50863 | P147: 10473 | Q147: 30824 | R147: -12 | S147: -20363 | T147: 10052 | U147: 12559 | X147: -35 | Y147: 83 | Z147: 2296 | AA147: 1497 | AB147: 0 | AD147: 799 | AE147: 0 | AF147: -1 | AI147: 798 | AJ147: 5911 | AK147: 2309 | AM147: 133 | AN147: -334 | AO147: 757 | AP147: 10052 | AT147: 19.5 | AV147: 111 | AW147: 3169 | AY147: 5.108024691 | AZ147: 21.56893228 | BA147: -239.5077311 | BE147: 75.13835086 | BF147: 1363.521616 | BG147: 48.59543984 | BH147: 10241.40107 | BJ147: 10576 | BK147: 30552 | BL147: -2 | BM147: -19978 | BN147: 9100 | BO147: 12486 | BR147: -22 | BS147: 41 | BT147: 1627 | BU147: 1515 | BV147: 0 | BX147: 112 | BY147: -10 | BZ147: 0 | CA147: 4 | CB147: 0 | CC147: 98 | CD147: 6012 | CE147: 1637 | CG147: 93 | CH147: -296 | CI147: 272 | CN147: 19.5 | CP147: 225 | CQ147: 3156 | CS147: 4.191358025 | CT147: 20.63453251 | CU147: -354.8795944 | CY147: 75.57989014 | CZ147: 1191.381496 | DA147: 45.77718479 | DB147: 9499.366286 | DD147: 10682 | DE147: 31445 | DF147: -1 | DG147: -20764 | DH147: 9756 | DI147: 12279 | DL147: -23 | DM147: 86 | DN147: 1334 | DO147: 1495 | DP147: 0 | DR147: -161 | DS147: 0 | DT147: -14 | DU147: -4 | DV147: 1 | DW147: -170 | DX147: 5803 | DY147: 1330 | EA147: 81 | EB147: -300 | EC147: -393 | EE147: 182 | EH147: 19.5 | EJ147: 270 | EQ147: -1750 | ER147: 89 | ES147: 109 | ET147: -1578 | EU147: 59 | EV147: 154 | EW147: -1792 | EX147: 8 | EY147: 61 | EZ147: 279 | FA147: -122 | FB147: 15 | FC147: -67 | FD147: 96 | FE147: 9 | FF147: 2927 | FG147: 2566 | FH147: 361 | FI147: 0 | FJ147: 2584 | FK147: 2272 | FL147: 312 | FM147: 0 | FN147: 2409 | FO147: 2089 | FP147: 320 | FQ147: 0
A148: 489 | B148: Miehikkälä | C148: 2085 | E148: 2.301369863 | F148: 44.37168142 | G148: -4429.736211 | K148: 54.56555068 | L148: 1217.745803 | M148: 30.03321775 | N148: 14799.52038 | P148: 14493 | Q148: 26228 | R148: -2 | S148: -11737 | T148: 6041 | U148: 7716 | X148: -80 | Y148: -15 | Z148: 1925 | AA148: 1014 | AB148: 0 | AD148: 911 | AE148: 0 | AF148: -84 | AI148: 827 | AJ148: 3133 | AK148: 1916 | AM148: 170 | AN148: -785 | AO148: -1148 | AP148: 6041 | AT148: 20 | AV148: 52 | AW148: 2034 | AY148: 2.680738786 | AZ148: 43.00556718 | BA148: -4481.317601 | BE148: 54.71436199 | BF148: 899.2133727 | BG148: 23.23246911 | BH148: 14127.3353 | BJ148: 14552 | BK148: 26200 | BL148: 0 | BM148: -11648 | BN148: 5918 | BO148: 7731 | BR148: -57 | BS148: 19 | BT148: 1963 | BU148: 1304 | BV148: 0 | BX148: 659 | BY148: 0 | BZ148: 6 | CA148: 0 | CB148: 18 | CC148: 683 | CD148: 5252 | CE148: 1806 | CG148: -424 | CH148: -689 | CI148: 69 | CN148: 20 | CP148: 60 | CQ148: 1992 | CS148: 2.677506775 | CT148: 49.09939236 | CU148: -4707.329317 | CY148: 54.31708534 | CZ148: 1437.248996 | DA148: 43.49071916 | DB148: 12062.249 | DD148: 13743 | DE148: 25702 | DF148: 1 | DG148: -11958 | DH148: 5996 | DI148: 7909 | DL148: -46 | DM148: 18 | DN148: 1919 | DO148: 1232 | DP148: 0 | DR148: 687 | DS148: 0 | DT148: -4 | DU148: 0 | DV148: -10 | DW148: 673 | DX148: 5817 | DY148: 1899 | EA148: -151 | EB148: -681 | EC148: -292 | EE148: 306 | EH148: 20 | EJ148: 77 | EQ148: -3719 | ER148: 600 | ES148: 55 | ET148: -1737 | EU148: 155 | EV148: -155 | EW148: -2456 | EX148: 380 | EY148: -115 | EZ148: 0 | FA148: 2014 | FB148: 90 | FC148: -56 | FD148: 174 | FE148: 1990 | FF148: 8934 | FG148: 6180 | FH148: 2754 | FI148: 133 | FJ148: 8280 | FK148: 5582 | FL148: 2698 | FM148: 133 | FN148: 9765 | FO148: 5076 | FP148: 4689 | FQ148: 133
A149: 491 | B149: Mikkeli | C149: 54665 | E149: 1.37762084 | F149: 94.50724077 | G149: -8683.892802 | K149: 34.08610974 | L149: 499.4786426 | M149: 15.98712811 | N149: 11403.5306 | P149: 245585 | Q149: 528406 | R149: 386 | S149: -282435 | T149: 197227 | U149: 136132 | X149: -3690 | Y149: -1340 | Z149: 45894 | AA149: 41440 | AB149: 0 | AD149: 4454 | AE149: -602 | AF149: -1775 | AI149: 2077 | AJ149: 57524 | AK149: 43326 | AM149: -1672 | AN149: -32152 | AO149: -5779 | AP149: 197227 | AT149: 20 | AV149: 74 | AW149: 54517 | AY149: 1.478639427 | AZ149: 98.44066674 | BA149: -9024.157602 | BE149: 31.98791166 | BF149: 713.6306106 | BG149: 21.58674938 | BH149: 12066.43799 | BJ149: 253655 | BK149: 533898 | BL149: 168 | BM149: -280075 | BN149: 196606 | BO149: 141338 | BR149: -4357 | BS149: -1982 | BT149: 51530 | BU149: 41542 | BV149: 14 | BX149: 10002 | BY149: -407 | BZ149: -88 | CA149: 1244 | CB149: -664 | CC149: 7599 | CD149: 64536 | CE149: 48670 | CG149: -6254 | CH149: -33279 | CI149: -14860 | CN149: 20 | CP149: 66 | CQ149: 54261 | CS149: 1.476842945 | CT149: 99.72755118 | CU149: -9602.771788 | CY149: 32.35075773 | CZ149: 672.9326772 | DA149: 27.45515335 | DB149: 8946.241315 | DD149: 273023 | DE149: 551934 | DF149: 3714 | DG149: -275197 | DH149: 199350 | DI149: 139118 | DL149: -4130 | DM149: -987 | DN149: 58154 | DO149: 50042 | DP149: 24 | DR149: 8136 | DS149: 95 | DT149: -73 | DU149: 1462 | DV149: -815 | DW149: 5881 | DX149: 63358 | DY149: 53674 | EA149: -1460 | EB149: -37830 | EC149: -30478 | EE149: 4629 | EH149: 20.5 | EJ149: 57 | EQ149: -55217 | ER149: 615 | ES149: 5497 | ET149: -82947 | EU149: 1822 | EV149: 17595 | EW149: -111464 | EX149: 2394 | EY149: 24918 | EZ149: 22444 | FA149: 18330 | FB149: 81170 | FC149: -16596 | FD149: 75420 | FE149: -9300 | FF149: 443077 | FG149: 312198 | FH149: 130879 | FI149: 25438 | FJ149: 476923 | FK149: 354484 | FL149: 122439 | FM149: 25081 | FN149: 505223 | FO149: 389558 | FP149: 115665 | FQ149: 25222
A150: 494 | B150: Muhos | C150: 9063 | E150: 0.6308643838 | F150: 66.37299771 | G150: -5427.672956 | K150: 32.22755312 | L150: 316.5618449 | M150: 9.764235829 | N150: 11833.49884 | P150: 34859 | Q150: 83292 | R150: 9 | S150: -48424 | T150: 28775 | U150: 23766 | X150: -525 | Y150: 37 | Z150: 3629 | AA150: 4048 | AB150: 0 | AD150: -419 | AE150: -1 | AF150: 21 | AI150: -399 | AJ150: 113 | AK150: 3286 | AM150: 19 | AN150: -6076 | AO150: -11814 | AP150: 28775 | AT150: 20.5 | AV150: 248 | AW150: 8995 | AY150: 0.9594288002 | AZ150: 65.49127088 | BA150: -5392.773763 | BE150: 34.14655436 | BF150: 458.5881045 | BG150: 15.51758789 | BH150: 10786.77043 | BJ150: 34471 | BK150: 82654 | BL150: 49 | BM150: -48134 | BN150: 29671 | BO150: 25615 | BR150: -462 | BS150: 11 | BT150: 6701 | BU150: 4640 | BV150: 0 | BX150: 2061 | BY150: -3 | BZ150: -5 | CA150: 4 | CB150: -3 | CC150: 2046 | CD150: 3227 | CE150: 6651 | CG150: -214 | CH150: -7005 | CI150: 604 | CN150: 20.5 | CP150: 119 | CQ150: 9019 | CS150: 0.8052415211 | CT150: 67.93391564 | CU150: -5556.380974 | CY150: 33.92336922 | CZ150: 570.1297261 | DA150: 22.50395683 | DB150: 9247.144916 | DD150: 32127 | DE150: 83488 | DF150: 34 | DG150: -51327 | DH150: 29837 | DI150: 27679 | DL150: -409 | DM150: 43 | DN150: 5823 | DO150: 5014 | DP150: 0 | DR150: 809 | DS150: -2 | DT150: 39 | DU150: 3 | DV150: -6 | DW150: 837 | DX150: 4020 | DY150: 5671 | EA150: 516 | EB150: -7339 | EC150: -1596 | EE150: 294 | EH150: 20.5 | EJ150: 208 | EQ150: -17287 | ER150: 1791 | ES150: 396 | ET150: -6812 | EU150: 482 | EV150: 283 | EW150: -7875 | EX150: 90 | EY150: 518 | EZ150: 8523 | FA150: 8524 | FB150: 9132 | FC150: -21 | FD150: 11797 | FE150: -3000 | FF150: 43414 | FG150: 29199 | FH150: 14215 | FI150: 2 | FJ150: 45520 | FK150: 30333 | FL150: 15187 | FM150: 80 | FN150: 46978 | FO150: 33545 | FP150: 13433 | FQ150: 56
A151: 495 | B151: Multia | C151: 1710 | E151: 1.913123845 | F151: 33.1042144 | G151: -1702.923977 | K151: 56.34941559 | L151: 782.4561404 | M151: 32.33167825 | N151: 8833.333333 | P151: 2539 | Q151: 13399 | R151: 0 | S151: -10860 | T151: 5357 | U151: 6507 | X151: -22 | Y151: 27 | Z151: 1009 | AA151: 678 | AB151: 0 | AD151: 331 | AE151: 0 | AF151: -13 | AI151: 318 | AJ151: 213 | AK151: 1007 | AM151: 498 | AN151: -515 | AO151: -123 | AP151: 5357 | AT151: 21 | AV151: 165 | AW151: 1663 | AY151: 2.901345291 | AZ151: 35.95490263 | BA151: -1453.998797 | BE151: 51.71102662 | BF151: 1367.408298 | BG151: 56.52093973 | BH151: 8830.426939 | BJ151: 2587 | BK151: 13361 | BL151: 1 | BM151: -10773 | BN151: 5588 | BO151: 6460 | BR151: -16 | BS151: 13 | BT151: 1272 | BU151: 593 | BV151: 0 | BX151: 679 | BY151: 0 | BZ151: -43 | CA151: 0 | CB151: 0 | CC151: 636 | CD151: 861 | CE151: 1251 | CG151: 416 | CH151: -424 | CI151: 489 | CN151: 21.75 | CP151: 112 | CQ151: 1636 | CS151: 2.018348624 | CT151: 37.47129736 | CU151: -1740.831296 | CY151: 55.48273657 | CZ151: 1016.503667 | DA151: 49.88863319 | DB151: 7437.041565 | DD151: 2592 | DE151: 13057 | DF151: 0 | DG151: -10465 | DH151: 5458 | DI151: 5886 | DL151: -8 | DM151: -4 | DN151: 867 | DO151: 638 | DP151: 0 | DR151: 229 | DS151: 0 | DT151: -55 | DU151: 0 | DV151: 0 | DW151: 174 | DX151: 1159 | DY151: 839 | EA151: 413 | EB151: -423 | EC151: -439 | EE151: 3099 | EH151: 21.75 | EJ151: 245 | EQ151: -1158 | ER151: 19 | ES151: 9 | ET151: -805 | EU151: 2 | EV151: 41 | EW151: -1345 | EX151: 17 | EY151: 50 | EZ151: 9 | FA151: 0 | FB151: 345 | FC151: 361 | FD151: 695 | FE151: -282 | FF151: 2717 | FG151: 1903 | FH151: 814 | FI151: 57 | FJ151: 2999 | FK151: 1820 | FL151: 1179 | FM151: 80 | FN151: 2940 | FO151: 2018 | FP151: 922 | FQ151: 30
A152: 498 | B152: Muonio | C152: 2358 | E152: 0.8934476424 | F152: 55.78254715 | G152: -4872.773537 | K152: 12.41286392 | L152: 739.6098388 | M152: 23.23126893 | N152: 11620.44105 | P152: 9203 | Q152: 24687 | R152: 0 | S152: -15484 | T152: 8404 | U152: 8532 | X152: -172 | Y152: 4 | Z152: 1284 | AA152: 1027 | AB152: 16 | AD152: 273 | AE152: 0 | AF152: -73 | AI152: 200 | AJ152: -816 | AK152: 1267 | AM152: 68 | AN152: -1458 | AO152: 317 | AP152: 8404 | AT152: 21 | AV152: 187 | AW152: 2350 | AY152: 0.9736164736 | AZ152: 57.48565467 | BA152: -5057.446809 | BE152: 15.21996343 | BF152: 889.3617021 | BG152: 26.44010814 | BH152: 12277.44681 | BJ152: 8628 | BK152: 25328 | BL152: 0 | BM152: -16700 | BN152: 8540 | BO152: 9670 | BR152: -132 | BS152: 1 | BT152: 1379 | BU152: 1032 | BV152: 0 | BX152: 347 | BY152: 0 | BZ152: 4 | CA152: -7 | CB152: 0 | CC152: 358 | CD152: -132 | CE152: 1360 | CG152: -107 | CH152: -1420 | CI152: -429 | CN152: 21 | CP152: 193 | CQ152: 2332 | CS152: 1.486600846 | CT152: 50.29935694 | CU152: -4579.759863 | CY152: 21.19831224 | CZ152: 698.9708405 | DA152: 23.36711048 | DB152: 10918.09605 | DD152: 9266 | DE152: 24954 | DF152: 0 | DG152: -15688 | DH152: 8738 | DI152: 9054 | DL152: -102 | DM152: 0 | DN152: 2002 | DO152: 1131 | DP152: -11 | DR152: 860 | DS152: 0 | DT152: 15 | DU152: 0 | DV152: 7 | DW152: 882 | DX152: 798 | DY152: 1990 | EA152: 155 | EB152: -1312 | EC152: 1146 | EE152: 0 | EH152: 21.5 | EJ152: 107 | EQ152: -1021 | ER152: 68 | ES152: 3 | ET152: -1953 | EU152: 85 | EV152: 79 | EW152: -933 | EX152: 62 | EY152: 27 | EZ152: 1024 | FA152: 404 | FB152: 1511 | FC152: 22 | FD152: 0 | FE152: -397 | FF152: 11207 | FG152: 7044 | FH152: 4163 | FI152: 72 | FJ152: 11316 | FK152: 7122 | FL152: 4194 | FM152: 35 | FN152: 9610 | FO152: 5990 | FP152: 3620 | FQ152: 27
A153: 499 | B153: Mustasaari | C153: 19302 | E153: 1.197381968 | F153: 65.59076511 | G153: -4688.736918 | K153: 34.47262241 | L153: 313.5944462 | M153: 12.96312921 | N153: 8829.810382 | P153: 56963 | Q153: 151971 | R153: 186 | S153: -94822 | T153: 75158 | U153: 27621 | X153: -691 | Y153: 162 | Z153: 7428 | AA153: 9007 | AB153: 0 | AD153: -1579 | AE153: 13 | AF153: -21 | AI153: -1587 | AJ153: 5255 | AK153: 6695 | AM153: 1417 | AN153: -6086 | AO153: -3593 | AP153: 75158 | AT153: 20.75 | AV153: 254 | AW153: 19380 | AY153: 1.915331116 | AZ153: 64.10585375 | BA153: -4676.522188 | BE153: 34.8863921 | BF153: 301.0319917 | BG153: 12.54342819 | BH153: 8759.700722 | BJ153: 56883 | BK153: 150521 | BL153: 66 | BM153: -93572 | BN153: 75915 | BO153: 30106 | BR153: -632 | BS153: 207 | BT153: 12024 | BU153: 9033 | BV153: 0 | BX153: 2991 | BY153: 17 | BZ153: 21 | CA153: 0 | CB153: 8 | CC153: 3037 | CD153: 8892 | CE153: 11493 | CG153: 254 | CH153: -5970 | CI153: -176 | CN153: 20.75 | CP153: 178 | CQ153: 19384 | CS153: 1.58680203 | CT153: 64.36823834 | CU153: -4766.611638 | CY153: 36.32788887 | CZ153: 285.8543128 | DA153: 14.1434086 | DB153: 7377.063558 | DD153: 55054 | DE153: 149557 | DF153: 198 | DG153: -94305 | DH153: 76796 | DI153: 31479 | DL153: -575 | DM153: 94 | DN153: 13489 | DO153: 11022 | DP153: 168 | DR153: 2635 | DS153: 1 | DT153: -136 | DU153: 8 | DV153: -31 | DW153: 2461 | DX153: 11345 | DY153: 12971 | EA153: 771 | EB153: -8287 | EC153: -1454 | EE153: 91 | EH153: 20.75 | EJ153: 178 | EQ153: -11576 | ER153: 634 | ES153: 654 | ET153: -12552 | EU153: 197 | EV153: 686 | EW153: -15485 | EX153: 284 | EY153: 776 | EZ153: 0 | FA153: 10364 | FB153: 11646 | FC153: -5103 | FD153: 10204 | FE153: -2859 | FF153: 76858 | FG153: 42095 | FH153: 34763 | FI153: 56 | FJ153: 77432 | FK153: 45768 | FL153: 31664 | FM153: 44 | FN153: 76742 | FO153: 45940 | FP153: 30802 | FQ153: 36
A154: 500 | B154: Muurame | C154: 9791 | E154: 1.303808487 | F154: 89.12530553 | G154: -5782.759677 | K154: 26.89190587 | L154: 147.686651 | M154: 6.476427712 | N154: 8323.358186 | P154: 22327 | Q154: 64986 | R154: 17 | S154: -42642 | T154: 36837 | U154: 11615 | X154: -557 | Y154: 173 | Z154: 5426 | AA154: 5850 | AB154: 0 | AD154: -424 | AE154: 1 | AF154: -52 | AI154: -475 | AJ154: 2517 | AK154: 4357 | AM154: 759 | AN154: -4030 | AO154: -4022 | AP154: 36837 | AT154: 19.5 | AV154: 179 | AW154: 9941 | AY154: 1.676117251 | AZ154: 84.86777603 | BA154: -5683.43225 | BE154: 27.7717305 | BF154: 231.0632733 | BG154: 10.75816096 | BH154: 7839.452771 | BJ154: 24022 | BK154: 67618 | BL154: 18 | BM154: -43578 | BN154: 37688 | BO154: 12747 | BR154: -454 | BS154: 113 | BT154: 6516 | BU154: 5967 | BV154: 0 | BX154: 549 | BY154: 2 | BZ154: 9 | CA154: 0 | CB154: -32 | CC154: 528 | CD154: 3585 | CE154: 5638 | CG154: 1318 | CH154: -3702 | CI154: 590 | CN154: 19.5 | CP154: 162 | CQ154: 10097 | CS154: 1.924324324 | CT154: 85.72359323 | CU154: -5509.458255 | CY154: 28.80416324 | CZ154: 346.2414579 | DA154: 19.87848953 | DB154: 6357.53194 | DD154: 23809 | DE154: 67183 | DF154: 30 | DG154: -43344 | DH154: 38655 | DI154: 12744 | DL154: -384 | DM154: 116 | DN154: 7787 | DO154: 5734 | DP154: 0 | DR154: 2053 | DS154: 0 | DT154: 12 | DU154: 9 | DV154: -53 | DW154: 2003 | DX154: 4693 | DY154: 6852 | EA154: -553 | EB154: -3854 | EC154: 935 | EE154: 4096 | EH154: 19.5 | EJ154: 145 | EQ154: -11891 | ER154: 898 | ES154: 2614 | ET154: -6132 | EU154: 80 | EV154: 1004 | EW154: -7339 | EX154: 131 | EY154: 1291 | EZ154: 0 | FA154: 6090 | FB154: 1881 | FC154: 89 | FD154: 7177 | FE154: -3342 | FF154: 50886 | FG154: 27547 | FH154: 23339 | FI154: 94 | FJ154: 49454 | FK154: 28583 | FL154: 20871 | FM154: 0 | FN154: 49795 | FO154: 33003 | FP154: 16792 | FQ154: 36
A155: 503 | B155: Mynämäki | C155: 7859 | E155: 0.4883806713 | F155: 45.6899995 | G155: -3659.371421 | K155: 40.29639756 | L155: 466.8532892 | M155: 15.64212629 | N155: 10893.75239 | P155: 35992 | Q155: 78918 | R155: 92 | S155: -42834 | T155: 25815 | U155: 18309 | X155: -197 | Y155: 21 | Z155: 1114 | AA155: 3237 | AB155: 0 | AD155: -2123 | AE155: 16 | AF155: 299 | AI155: -1808 | AJ155: 2160 | AK155: 722 | AM155: -47 | AN155: -2501 | AO155: -1836 | AP155: 25815 | AT155: 20.5 | AV155: 292 | AW155: 7842 | AY155: 1.709210526 | AZ155: 43.37174208 | BA155: -3413.414945 | BE155: 40.51469665 | BF155: 519.000255 | BG155: 18.00470252 | BH155: 10521.42311 | BJ155: 36048 | BK155: 78080 | BL155: -26 | BM155: -42058 | BN155: 27071 | BO155: 18720 | BR155: -117 | BS155: 142 | BT155: 3758 | BU155: 3386 | BV155: 0 | BX155: 372 | BY155: 17 | BZ155: 0 | CA155: 0 | CB155: 0 | CC155: 389 | CD155: 2484 | CE155: 3706 | CG155: -460 | CH155: -2141 | CI155: 1815 | CN155: 21 | CP155: 238 | CQ155: 7838 | CS155: 1.802079168 | CT155: 42.42149166 | CU155: -3139.576423 | CY155: 42.16565468 | CZ155: 727.9918347 | DA155: 36.65868727 | DB155: 7248.405205 | DD155: 36158 | DE155: 77091 | DF155: 26 | DG155: -40907 | DH155: 27861 | DI155: 17501 | DL155: -154 | DM155: 44 | DN155: 4345 | DO155: 3436 | DP155: 0 | DR155: 909 | DS155: 19 | DT155: -19 | DU155: 22 | DV155: 0 | DW155: 887 | DX155: 3282 | DY155: 4311 | EA155: 249 | EB155: -2339 | EC155: -10544 | EE155: 836 | EH155: 21 | EJ155: 234 | EQ155: -3939 | ER155: 149 | ES155: 1232 | ET155: -2133 | EU155: 175 | EV155: 67 | EW155: -22794 | EX155: 45 | EY155: 7894 | EZ155: 187 | FA155: 3740 | FB155: 2081 | FC155: -309 | FD155: 5902 | FE155: -2330 | FF155: 23538 | FG155: 13562 | FH155: 9976 | FI155: 0 | FJ155: 23169 | FK155: 13473 | FL155: 9696 | FM155: 0 | FN155: 21853 | FO155: 14361 | FP155: 7492 | FQ155: 0
A156: 504 | B156: Myrskylä | C156: 1969 | E156: 9.270491803 | F156: 38.34203409 | G156: -2158.456069 | K156: 58.2063385 | L156: 553.5804977 | M156: 23.35622872 | N156: 8651.091925 | P156: 4796 | Q156: 14981 | R156: -63 | S156: -10248 | T156: 6349 | U156: 4754 | X156: -40 | Y156: 274 | Z156: 1089 | AA156: 626 | AB156: 0 | AD156: 463 | AE156: 0 | AF156: 0 | AI156: 463 | AJ156: 1975 | AK156: 1161 | AM156: 612 | AN156: -80 | AO156: 43 | AP156: 6349 | AT156: 21.5 | AV156: 181 | AW156: 1986 | AY156: 6.416666667 | AZ156: 39.58190328 | BA156: -1807.15005 | BE156: 54.902219 | BF156: 1140.986908 | BG156: 51.22251811 | BH156: 8130.41289 | BJ156: 5025 | BK156: 15851 | BL156: 7 | BM156: -10819 | BN156: 6374 | BO156: 4626 | BR156: -34 | BS156: 279 | BT156: 426 | BU156: 688 | BV156: 0 | BX156: -262 | BY156: 0 | BZ156: 0 | CA156: 0 | CB156: 0 | CC156: -262 | CD156: 1680 | CE156: 425 | CG156: 268 | CH156: -36 | CI156: 308 | CN156: 21.5 | CP156: 283 | CQ156: 1969 | CS156: 4.052631579 | CT156: 31.91765194 | CU156: -1725.749111 | CY156: 54.66530055 | CZ156: 1019.299137 | DA156: 38.23156411 | DB156: 9731.335703 | DD156: 8337 | DE156: 19199 | DF156: 5 | DG156: -10857 | DH156: 6378 | DI156: 4569 | DL156: -39 | DM156: 295 | DN156: 346 | DO156: 681 | DP156: 0 | DR156: -335 | DS156: 0 | DT156: 1 | DU156: 0 | DV156: 0 | DW156: -334 | DX156: 1346 | DY156: 337 | EA156: -261 | EB156: -56 | EC156: 225 | EE156: 795 | EH156: 21.5 | EJ156: 292 | EQ156: -1929 | ER156: 807 | ES156: 4 | ET156: -220 | EU156: 90 | EV156: 13 | EW156: -142 | EX156: 0 | EY156: 30 | EZ156: 5 | FA156: 24 | FB156: 1118 | FC156: -1198 | FD156: 0 | FE156: -1022 | FF156: 3640 | FG156: 1296 | FH156: 2344 | FI156: 2 | FJ156: 3525 | FK156: 2379 | FL156: 1146 | FM156: 2 | FN156: 2447 | FO156: 2303 | FP156: 144 | FQ156: 8
A157: 505 | B157: Mäntsälä | C157: 20685 | E157: 1.638215161 | F157: 97.0293434 | G157: -8028.861494 | K157: 27.21662376 | L157: 357.6021271 | M157: 12.05831517 | N157: 10824.46217 | P157: 87738 | Q157: 175089 | R157: -5 | S157: -87356 | T157: 78707 | U157: 26307 | X157: -1577 | Y157: 62 | Z157: 16143 | AA157: 13785 | AB157: 0 | AD157: 2358 | AE157: -46 | AF157: 469 | AI157: 2781 | AJ157: 16550 | AK157: 15878 | AM157: -420 | AN157: -8591 | AO157: -19988 | AP157: 78707 | AT157: 20.5 | AV157: 92 | AW157: 20853 | AY157: 1.711057728 | AZ157: 101.9362713 | BA157: -8445.739222 | BE157: 27.88643378 | BF157: 505.3469525 | BG157: 17.24241962 | BH157: 10697.54951 | BJ157: 87192 | BK157: 176725 | BL157: -1 | BM157: -89534 | BN157: 79624 | BO157: 32278 | BR157: -1448 | BS157: 405 | BT157: 21325 | BU157: 12399 | BV157: 0 | BX157: 8926 | BY157: -45 | BZ157: -5 | CA157: 34 | CB157: 168 | CC157: 9010 | CD157: 25719 | CE157: 20208 | CG157: -2739 | CH157: -11853 | CI157: -10538 | CN157: 20.5 | CP157: 46 | CQ157: 20803 | CS157: 2.602484472 | CT157: 103.4440417 | CU157: -9068.547806 | CY157: 29.21536337 | CZ157: 350.1898765 | DA157: 17.32771822 | DB157: 7376.580301 | DD157: 91640 | DE157: 182371 | DF157: 2 | DG157: -90729 | DH157: 81127 | DI157: 31644 | DL157: -1386 | DM157: 81 | DN157: 20737 | DO157: 15727 | DP157: 84 | DR157: 5094 | DS157: 9 | DT157: 5 | DU157: 7 | DV157: 213 | DW157: 5314 | DX157: 31191 | DY157: 19759 | EA157: 779 | EB157: -7063 | EC157: -12976 | EE157: 4203 | EH157: 20.5 | EJ157: 72 | EQ157: -36789 | ER157: 12 | ES157: 911 | ET157: -32848 | EU157: 13 | EV157: 2089 | EW157: -37701 | EX157: 40 | EY157: 4926 | EZ157: 13834 | FA157: 10939 | FB157: 28768 | FC157: -2093 | FD157: 14530 | FE157: -2584 | FF157: 132314 | FG157: 89810 | FH157: 42504 | FI157: 15 | FJ157: 147157 | FK157: 109141 | FL157: 38016 | FM157: 12 | FN157: 152041 | FO157: 116575 | FP157: 35466 | FQ157: 10
A158: 508 | B158: Mänttä-Vilppula | C158: 10604 | E158: -2.633279483 | F158: 53.07384532 | G158: -5022.255753 | K158: 34.70062172 | L158: 463.3157299 | M158: 13.66521371 | N158: 12375.23576 | P158: 58055 | Q158: 120784 | R158: -51 | S158: -62780 | T158: 41718 | U158: 28942 | X158: -808 | Y158: 154 | Z158: 7226 | AA158: 5196 | AB158: 0 | AD158: 2030 | AE158: -28 | AF158: -155 | AI158: 1847 | AJ158: -958 | AK158: 7002 | AM158: 898 | AN158: 4019 | AO158: -4143 | AP158: 41718 | AT158: 22 | AV158: 120 | AW158: 10448 | AY158: 1.599830795 | AZ158: 60.81486195 | BA158: -5536.753446 | BE158: 31.48500793 | BF158: 918.931853 | BG158: 25.15714399 | BH158: 13332.59954 | BJ158: 57123 | BK158: 124489 | BL158: -75 | BM158: -67441 | BN158: 40518 | BO158: 32786 | BR158: -689 | BS158: 1681 | BT158: 6855 | BU158: 6441 | BV158: 509 | BX158: 923 | BY158: -152 | BZ158: 16 | CA158: 75 | CB158: -9 | CC158: 703 | CD158: 898 | CE158: 7499 | CG158: -1729 | CH158: -4019 | CI158: -280 | CN158: 22 | CP158: 161 | CQ158: 10256 | CS158: 2.0335686 | CT158: 56.95720301 | CU158: -5705.538222 | CY158: 34.81821648 | CZ158: 741.7121685 | DA158: 23.25929432 | DB158: 11639.43058 | DD158: 61579 | DE158: 124698 | DF158: 845 | DG158: -62274 | DH158: 40637 | DI158: 32443 | DL158: -750 | DM158: 793 | DN158: 10849 | DO158: 7165 | DP158: 0 | DR158: 3684 | DS158: -163 | DT158: 1 | DU158: 101 | DV158: 119 | DW158: 3540 | DX158: 4133 | DY158: 7381 | EA158: 1440 | EB158: -4845 | EC158: -1014 | EE158: 323 | EH158: 22 | EJ158: 63 | EQ158: -13323 | ER158: 1937 | ES158: 241 | ET158: -9899 | EU158: 1397 | EV158: 723 | EW158: -11287 | EX158: 29 | EY158: 2863 | EZ158: 9373 | FA158: -923 | FB158: 19726 | FC158: -6858 | FD158: 1135 | FE158: 3021 | FF158: 54001 | FG158: 42298 | FH158: 11703 | FI158: 0 | FJ158: 63676 | FK158: 58831 | FL158: 4845 | FM158: 47 | FN158: 62987 | FO158: 55235 | FP158: 7752 | FQ158: 236
A159: 507 | B159: Mäntyharju | C159: 6159 | E159: 1.912070344 | F159: 51.15439767 | G159: -4044.650106 | K159: 40.77015338 | L159: 382.8543595 | M159: 13.35863289 | N159: 10460.78909 | P159: 22698 | Q159: 57342 | R159: 0 | S159: -34644 | T159: 21219 | U159: 18150 | X159: -297 | Y159: 59 | Z159: 4487 | AA159: 2968 | AB159: 35 | AD159: 1554 | AE159: -27 | AF159: -34 | AI159: 1493 | AJ159: 5975 | AK159: 3308 | AM159: 670 | AN159: -2205 | AO159: -447 | AP159: 21219 | AT159: 19.75 | AV159: 109 | AW159: 6097 | AY159: 1.610864366 | AZ159: 58.71096388 | BA159: -4993.767427 | BE159: 38.26292622 | BF159: 369.5259964 | BG159: 11.84252592 | BH159: 11389.20781 | BJ159: 23380 | BK159: 57656 | BL159: 0 | BM159: -34276 | BN159: 20164 | BO159: 18642 | BR159: -411 | BS159: 184 | BT159: 4303 | BU159: 3311 | BV159: 67 | BX159: 1059 | BY159: -57 | BZ159: 138 | CA159: 0 | CB159: -73 | CC159: 1067 | CD159: 6858 | CE159: 4273 | CG159: 802 | CH159: -2515 | CI159: -2525 | CN159: 19.75 | CP159: 143 | CQ159: 6054 | CS159: 1.679136691 | CT159: 53.0359199 | CU159: -4766.930955 | CY159: 37.64004308 | CZ159: 856.4585398 | DA159: 28.28209995 | DB159: 11053.18797 | DD159: 31571 | DE159: 67005 | DF159: 0 | DG159: -35434 | DH159: 21017 | DI159: 18626 | DL159: -335 | DM159: 448 | DN159: 4322 | DO159: 4063 | DP159: 3 | DR159: 262 | DS159: 0 | DT159: -22 | DU159: 0 | DV159: -38 | DW159: 202 | DX159: 6868 | DY159: 4024 | EA159: 213 | EB159: -2434 | EC159: 1451 | EE159: 6639 | EH159: 19.75 | EJ159: 173 | EQ159: -4399 | ER159: 252 | ES159: 392 | ET159: -7285 | EU159: 34 | EV159: 453 | EW159: -2865 | EX159: 97 | EY159: 195 | EZ159: 4050 | FA159: -1855 | FB159: 5561 | FC159: 532 | FD159: 1986 | FE159: 688 | FF159: 22911 | FG159: 19463 | FH159: 3448 | FI159: 1899 | FJ159: 28032 | FK159: 24240 | FL159: 3792 | FM159: 4844 | FN159: 28320 | FO159: 23704 | FP159: 4616 | FQ159: 4702
